Workbook

Sheet Start
A1: Start | C1: Excel Toolkit for Mitigation Analysis for Low-Carbon Development Planning | Q1: XLMT-Agricultural Crop v17.1
C11: Disclaimer
C12: Data used has been obtained from reliable sources. The Ministry of Social Security, National Solidarity, and Environment and Sustainable Development (Environment and Sustainable Development Division) assumes no responsibility for errors and omissions in the data provided. Users are, however, kindly asked to report any errors or deficiencies in this product to the Ministry. The choices of calculation made in this tool are derived from TNC Report (2016).
C13: ©2017 Government of Mauritius and United Nations Environment Programme
C14: All rights reserved. No part of this Guideline and/or Toolkit may be produced, stored in a retrieval system or transmitted, in any form or by any means, electronic, mechanical, photocopying, recording or otherwise without prior permission from the Ministry of Social Security, National Solidarity, and Environment and Sustainable Development (Environment and Sustainable Development Division) and the United Nations Environment Programme. Results based on the use of the Toolkit must be duly acknowledged and referenced; the copyright holder’s endorsement of Users' views, products or services shall not be implied in any way.

Sheet 1. Sector
A1: Sector | C1: Excel Toolkit for Mitigation Analysis for Low-Carbon Development Planning | J1: XLMT-Agricultural Crop v17.1
E3: Contact Details of Registered Users
E4: STAKEHOLDER USER GROUP | G4: Name | H4: Email | I4: Phone Number | J4: Address
D5: Chair: | E5: FAREI | G5: Mr Alfaz Atawoo | H5: alfazatawoo@hotmail.com | I5: 6708249 | J5: Wooton Crop Research Station, Wooton
D6: Members: | E6: FAREI | G6: Ram Vencatasamy | H6: rmd@farei.mu | I6: 6708249 | J6: Wooton Crop Research Station, Wooton
E7: FAREI | G7: Mrs R Dumur | H7: rmd@farei.mu | I7: 6708249 | J7: Wooton Crop Research Station, Wooton

Sheet 2. Description
A1: Description | E1: Excel Toolkit for Mitigation Analysis for Low-Carbon Development Planning | J1: XLMT-Agricultural Crop v17.1
B3: Mitigation actions modelled to reduce GHG emissions in land transport (source: TNC, 2016)
B4: Scenarios | E4: TNC Assumptions | I4: Expected GHG reductions (GgCO2e)
B5: BAU | C5: Business-As-Usual | I5: BAU GHG Emissions: 2020: 109; 2030: 110; 2040: 111; 2050: 112;
B6: SC1 | C6: Decreasing sugar cane field burning | E6: Decrease from its present level of 10% of total area cultivated to 8% between 2020 and 2030; 7% in 2035; 6% in 2040; and to 5% in 2050. | I6: Relative to BAU, emissions reductions of: 2020: 0.4; 2030: 0.4; 2040: 0.8; 2050: 0.8;
B7: SC2 | C7: Reduction in the use of N-containing chemical fertilizers | E7: It is assumed that the reduction starts in 2016 at a meagre 1% of the baseline value in 2015, and decreases by 1% absolute per year until 2020. After 2020, the annual decrease is an absolute 2% to reach 25% in 2030. Thereafter, the decrease is 5% every 5 years. This scenario is shown by the curve in dark red, and accounts for direct N2O emissions only. | I7: Relative to BAU, emissions reductions of: 2020: 2.7; 2030: 13.4; 2040: 18.8; 2050: 24.1;
B8: SC3 | C8: Bio-farming scenario | E8: Since it is unlikely that the use of chemical fertilizers will be reduced without any substitution, this scenario has been developed for investigating the co-use of compost produced from MSW in food crop cultivation. This scenario (lighter blue curve) (Fig. 4.1) increases emissions relative to scenario (b) due to the release of N2O from the compost. This scenario also includes the increase in manure applied to soil with increasing livestock heads to enhance food security under the policy option. The curve shows the combined effect of reduced use of chemical fertilizers and use of compost, including the calculation of both direct and indirect N2O generation. | I8: Relative to BAU, emissions reductions of: 2020: 1.4; 2030: 8.8; 2040: 10.2; 2050: 10.0;
B9: SC4 | C9: Cumulative | E9: SC1 to SC3 combined | I9: Relative to BAU, emissions reductions of: 2020: 1.8; 2030: 9.2; 2040: 11.0; 2050: 10.8;

Sheet 3. Query
A1: QUERY | D1: Excel Toolkit for Mitigation Analysis for Low-Carbon Development Planning | O1: XLMT-Agricultural Crop v17.1
B3: Users can analyze their results after inputting their parameters (if required) and new assumptions. The number of cases of User-defined scenarios that can be made, in addition to the TNC scenarios (labelled TNC), has been limited to two (labelled UD1 and UD2) for practical reasons. Users can visualize the impact of their assumptions and/or parameter changes made on a number of variables relevant to individual sectors including the Total CO2e emission. Full list of the variables relevant to individual sectors appear in in the individual user manuals. Results can be compared graphically or through tabular representations. Radar dashboards are provided to assess the extent of departure from the targeted annual values estimated by the original TNC studies. The Toolkit has a pdf reporting system, which provides details of the project and the results of the investigations.

Sheet 4. Data
A1: Data | C1: Excel Toolkit for Mitigation Analysis for Low-Carbon Development Planning | Q1: XLMT-Agriculture v17.1
C4: Crop | D4: Mixed cropping | E4: Sugar Cane | F4: Tea | G4: Rice (upland) | H4: Banana | I4: Pineapple | J4: Orchards (litchi, mango) | K4: Greenhouse ?? | L4: Tobacco | O4: References
C5: 2006 | D5: 6521 | E5: 70800 | F5: 688 | G5: 0 | H5: 510 | I5: 176 | J5: 300 | K5: 11 | L5: 249 | O5: Digest of Agricultural statistics 2010
C6: 2007 | D6: 6072 | E6: 68520 | F6: 709 | G6: 0 | H6: 464 | I6: 204 | J6: 300 | K6: 12 | L6: 252 | O6: Digest of Agricultural statistics 2013
C7: 2008 | D7: 5536 | E7: 65440 | F7: 701 | G7: 0 | H7: 502 | I7: 228 | J7: 300 | K7: 14 | L7: 260 | O7: 2014 Census of Agriculture
C8: 2009 | D8: 6318 | E8: 65850 | F8: 713 | G8: 0 | H8: 494 | I8: 271 | J8: 300 | K8: 15 | L8: 210 | O8: Fruit trees census 2011
C9: 2010 | D9: 6780 | E9: 64130 | F9: 698 | G9: 0 | H9: 542 | I9: 248 | J9: 300 | K9: 16 | L9: 213 | O9: Acreage for sugarcane: Crop Bulletin of Chamber of Agriculture
C10: 2011 | D10: 6610 | E10: 61730 | F10: 651 | G10: 120 | H10: 497 | I10: 377 | J10: 300 | K10: 24 | L10: 222
C11: 2012 | D11: 7121 | E11: 57160 | F11: 669 | G11: 309 | H11: 510 | I11: 493 | J11: 305 | K11: 25 | L11: 173
C12: 2013 | D12: 7078 | E12: 56464 | F12: 672 | G12: 304 | H12: 501 | I12: 610 | J12: 310 | K12: 26 | L12: 2
C13: 2014 | E13: 50694
C14: 2015 | E14: 52387
C15: 2016 | E15: 52000
C16: 2017 | E16: 51000
C17: 2018 | E17: 50500
C18: 2019 | E18: 50000
C19: 2020 | E19: 49500
C20: 2021 | E20: 49000
C21: 2022 | E21: 48500
C22: 2023 | E22: 48000
C23: 2024 | E23: 47500
C24: 2025 | E24: 47000
C25: 2026 | E25: 46500
C26: 2027 | E26: 46000
C27: 2028 | E27: 45500
C28: 2029 | E28: 45250
C29: 2030 | E29: 45000
C30: 2035 | E30: 44000
C31: 2040 | E31: 43000
C32: 2045 | E32: 42000
C33: 2050 | E33: 40000

Sheet 5. TNC Parameters
A1: TNC Parameters | D1: Excel Toolkit for Mitigation Analysis for Low-Carbon Development Planning | O1: XLMT-Agriculture v17.1
B3: PARAMETERS | G3: TNC | H3: CHAIR
B4: Constants (controlled biomass burning - sugar cane fields)
B5: Parameter | E5: Symbol | F5: Unit | G5: Value | H5: Value
B6: Mass of fuel available for burning | E6: MB | F6: t/ha | G6: 6.5 | H6: 6.5
B7: Combustion factor | E7: Cf | F7: dml | G7: 1 | H7: 1
B8: Emission factor | E8: Gef | F8: gGHG/(kg dm burnt) | G8: 2.7 | H8: 2.7
B9: Global warming potential | E9: GWP | F9: tCO2e/tCH4 | G9: 25 | H9: 25
B10: Fraction of available area burnt, 2006-2015 | E10: Fb | F10: dml | G10: 0.1 | H10: 0.1
B12: Emission factor | E12: EF | F12: kgN2O-N/Kg N input | G12: 0.01 | H12: 0.01
B13: Conversion factor | E13: Cf | F13: kgN2O/kgN2O-N | G13: 1.571428571 | H13: =44/28 -> 1.571428571
B14: Emission factor, cattle,poultry, pigs | E14: EF | F14: kgN2O-N/Kg N input | G14: 0.02 | H14: 0.02
B15: Emission factor, sheep & other | E15: EF | F15: kgN2O-N/Kg N input | G15: 0.01 | H15: 0.01
B16: Global warming potential | E16: GWP | G16: 298 | H16: 298
C18: fraction of synthetic fertiliser that volatilises | E18: Frac(GASF) | F18: (kg NH3-N+Nox-N)/kg N | G18: 0.1 | H18: 0.1
C19: fraction of organic or dung that volatilises | E19: Frac(GASM) | F19: (kg NH3-N+Nox-N)/kg N | G19: 0.2 | H19: 0.2
C20: fraction N leached | E20: Frac(LEACH) | F20: kgN/Kg of N additions | G20: 0.3 | H20: 0.3
C21: Conversion factor | E21: Cf | F21: kgN2O/kgN2O-N | G21: 1.571428571 | H21: =44/28 -> 1.571428571
C22: Global Warming Potential | E22: GWP(N2O) | F22: (kg N2O)/(kg N2O-N) | G22: 298 | H22: 298
C23: Emission factor leached | E23: EF-5 | F23: Kg N2O-N/kg N leached | G23: 0.0075 | H23: 0.0075
C24: Emission factor volatilised | E24: EF-4 | F24: (kg N2O-N)/kg(NH3-N+Nox-N) | G24: 0.01 | H24: 0.01
B26: COMPOST
B27: Organic waste to compost | G27: 0.5 | H27: 0.5
B28: Nitrogen content in compost | G28: 0.0175 | H28: 0.0175

Sheet 5. UD1 Parameters
A1: UD1 Parameters | D1: Excel Toolkit for Mitigation Analysis for Low-Carbon Development Planning | O1: XLMT-Agriculture v17.1
B3: PARAMETERS | G3: TNC | H3: USER UD1
B4: Constants (controlled biomass burning - sugar cane fields)
B5: Parameter | E5: Symbol | F5: Unit | G5: Value | H5: Value
B6: Mass of fuel available for burning | E6: MB | F6: t/ha | G6: 6.5 | H6: 6.5
B7: Combustion factor | E7: Cf | F7: dml | G7: 1 | H7: 1
B8: Emission factor | E8: Gef | F8: gGHG/(kg dm burnt) | G8: 2.7 | H8: 2.7
B9: Global warming potential | E9: GWP | F9: tCO2e/tCH4 | G9: 25 | H9: 25
B10: Fraction of available area burnt, 2006-2015 | E10: Fb | F10: dml | G10: 0.1 | H10: 0.1
B12: Emission factor | E12: EF | F12: kgN2O-N/Kg N input | G12: 0.01 | H12: 0.01
B13: Conversion factor | E13: Cf | F13: kgN2O/kgN2O-N | G13: 1.571428571 | H13: =44/28 -> 1.571428571
B14: Emission factor, cattle,poultry, pigs | E14: EF | F14: kgN2O-N/Kg N input | G14: 0.02 | H14: 0.02
B15: Emission factor, sheep & other | E15: EF | F15: kgN2O-N/Kg N input | G15: 0.01 | H15: 0.01
B16: Global warming potential | E16: GWP | G16: 298 | H16: 298
C18: fraction of synthetic fertiliser that volatilises | E18: Frac(GASF) | F18: (kg NH3-N+Nox-N)/kg N | G18: 0.1 | H18: 0.1
C19: fraction of organic or dung that volatilises | E19: Frac(GASM) | F19: (kg NH3-N+Nox-N)/kg N | G19: 0.2 | H19: 0.2
C20: fraction N leached | E20: Frac(LEACH) | F20: kgN/Kg of N additions | G20: 0.3 | H20: 0.3
C21: Conversion factor | E21: Cf | F21: kgN2O/kgN2O-N | G21: 1.571428571 | H21: =44/28 -> 1.571428571
C22: Global Warming Potential | E22: GWP(N2O) | F22: (kg N2O)/(kg N2O-N) | G22: 298 | H22: 298
C23: Emission factor leached | E23: EF-5 | F23: Kg N2O-N/kg N leached | G23: 0.0075 | H23: 0.0075
C24: Emission factor volatilised | E24: EF-4 | F24: (kg N2O-N)/kg(NH3-N+Nox-N) | G24: 0.01 | H24: 0.01
B26: COMPOST
B27: Organic waste to compost | G27: 0.5 | H27: 0.5
B28: Nitrogen content in compost | G28: 0.0175 | H28: 0.0175

Sheet 5. UD2 Parameters
A1: UD2 Parameters | D1: Excel Toolkit for Mitigation Analysis for Low-Carbon Development Planning | O1: XLMT-Agriculture v17.1
B3: PARAMETERS | G3: TNC | H3: USER UD2
B4: Constants (controlled biomass burning - sugar cane fields)
B5: Parameter | E5: Symbol | F5: Unit | G5: Value | H5: Value
B6: Mass of fuel available for burning | E6: MB | F6: t/ha | G6: 6.5 | H6: 6.5
B7: Combustion factor | E7: Cf | F7: dml | G7: 1 | H7: 1
B8: Emission factor | E8: Gef | F8: gGHG/(kg dm burnt) | G8: 2.7 | H8: 2.7
B9: Global warming potential | E9: GWP | F9: tCO2e/tCH4 | G9: 25 | H9: 25
B10: Fraction of available area burnt, 2006-2015 | E10: Fb | F10: dml | G10: 0.1 | H10: 0.1
B12: Emission factor | E12: EF | F12: kgN2O-N/Kg N input | G12: 0.01 | H12: 0.01
B13: Conversion factor | E13: Cf | F13: kgN2O/kgN2O-N | G13: 1.571428571 | H13: =44/28 -> 1.571428571
B14: Emission factor, cattle,poultry, pigs | E14: EF | F14: kgN2O-N/Kg N input | G14: 0.02 | H14: 0.02
B15: Emission factor, sheep & other | E15: EF | F15: kgN2O-N/Kg N input | G15: 0.01 | H15: 0.01
B16: Global warming potential | E16: GWP | G16: 298 | H16: 298
C18: fraction of synthetic fertiliser that volatilises | E18: Frac(GASF) | F18: (kg NH3-N+Nox-N)/kg N | G18: 0.1 | H18: 0.1
C19: fraction of organic or dung that volatilises | E19: Frac(GASM) | F19: (kg NH3-N+Nox-N)/kg N | G19: 0.2 | H19: =Table511[[#This Row],[Value]] -> 0.2
C20: fraction N leached | E20: Frac(LEACH) | F20: kgN/Kg of N additions | G20: 0.3 | H20: 0.3
C21: Conversion factor | E21: Cf | F21: kgN2O/kgN2O-N | G21: 1.571428571 | H21: =44/28 -> 1.571428571
C22: Global Warming Potential | E22: GWP(N2O) | F22: (kg N2O)/(kg N2O-N) | G22: 298 | H22: 298
C23: Emission factor leached | E23: EF-5 | F23: Kg N2O-N/kg N leached | G23: 0.0075 | H23: 0.0075
C24: Emission factor volatilised | E24: EF-4 | F24: (kg N2O-N)/kg(NH3-N+Nox-N) | G24: 0.01 | H24: 0.01
B26: COMPOST
B27: Organic waste to compost | G27: 0.5 | H27: 0.5
B28: Nitrogen content in compost | G28: 0.0175 | H28: 0.0175

Sheet 6. TNC Assumptions
A1: TNC Assumptions | D1: Excel Toolkit for Mitigation Analysis for Low-Carbon Development Planning | O1: XLMT-Agriculture v17.1
A2: This section calculates CH4 emissions from the burning of sugar cane fields | H2: TNC
A3: (agriculture residue burning).
A4: It reproduces the calculation carried out in the sheet 3.C.1.b. in the IPCC tool. | J4: Emissions scenarios through policy interventions:
A6: EMISSIONS CALCULATIONS - Business as Usual (BAU) scenario | E6: Emissions reduction scenario - | H6: Chemical Fertisers Use | M6: Biofarming with Composting from MSW
E7: To reduce percentage area burnt | I7: DirN2OManSoil
E8: TNC: | H8: TNC: | J8: SC2 | M8: SC3
E9: To reduce percentage area burnt | H9: Annual increase in chemical fertiliser use | J9: (1) reducing chemical fertilizer inputs by 75% by 2030; | M9: (2) biofarming with composting from MSW
E10: to 7.5% of total area available in 2020, and | H10: between 2013 and 2020
E11: to 5% of total area in 2025 and beyond | M11: SC3 | N11: SC3 | O11: SC3 | P11: SC3 | Q11: SC3 | R11: SC3 | S11: SC3
B12: BAU | C12: BAU | E12: SC1 | F12: SC1 | H12: SC2 | I12: SC2 | J12: SC2 | K12: SC2 | M12: Org Waste composted from MSW
B13: TNC | C13: USER | E13: TNC values | F13: USER | H13: TNC | I13: USER | J13: TNC | K13: USER | M13: Split | N13: TNC | O13: USER | P13: TNC | Q13: USER | R13: TNC | S13: USER
A14: YEAR | B14: Area Available (ha) | C14: Area Available (ha) | E14: % Area Burnt | F14: % Area Burnt | H14: % Increase in Chem Fertiliser | I14: % Increase in Chem Fertiliser | J14: Chemical fertilizer loading (%) | K14: Chemical fertilizer loading (%) | P14: MSW | Q14: MSW | R14: Quantity composted | S14: Quantity composted
A15: 2006 | B15: ='4. Data'!E5 -> 70800 | C15: =Table2[[#This Row],[Area Available (ha)]] -> 70800 | E15: 0.1 | F15: 0.1 | H15: 0 | I15: 0 | J15: 1 | K15: 1 | M15: Food | N15: 0.15 | O15: 0.15
A16: 2007 | B16: ='4. Data'!E6 -> 68520 | C16: =Table2[[#This Row],[Area Available (ha)]] -> 68520 | E16: 0.1 | F16: 0.1 | H16: 0 | I16: 0 | J16: 1 | K16: 1 | M16: Garden | N16: 0.5 | O16: 0.5
A17: 2008 | B17: ='4. Data'!E7 -> 65440 | C17: =Table2[[#This Row],[Area Available (ha)]] -> 65440 | E17: 0.1 | F17: 0.1 | H17: 0 | I17: 0 | J17: 1 | K17: 1 | M17: Paper | N17: 0.12 | O17: 0.12
A18: 2009 | B18: ='4. Data'!E8 -> 65850 | C18: =Table2[[#This Row],[Area Available (ha)]] -> 65850 | E18: 0.1 | F18: 0.1 | H18: 0 | I18: 0 | J18: 1 | K18: 1
A19: 2010 | B19: ='4. Data'!E9 -> 64130 | C19: =Table2[[#This Row],[Area Available (ha)]] -> 64130 | E19: 0.1 | F19: 0.1 | H19: 0 | I19: 0 | J19: 1 | K19: 1
A20: 2011 | B20: ='4. Data'!E10 -> 61730 | C20: =Table2[[#This Row],[Area Available (ha)]] -> 61730 | E20: 0.1 | F20: 0.1 | H20: 0 | I20: 0 | J20: 1 | K20: 1
A21: 2012 | B21: ='4. Data'!E11 -> 57160 | C21: =Table2[[#This Row],[Area Available (ha)]] -> 57160 | E21: 0.1 | F21: 0.1 | H21: 0 | I21: 0 | J21: 1 | K21: 1
A22: 2013 | B22: ='4. Data'!E12 -> 56464 | C22: =Table2[[#This Row],[Area Available (ha)]] -> 56464 | E22: 0.1 | F22: 0.1 | H22: 0 | I22: 0 | J22: 1 | K22: 1
A23: 2014 | B23: ='4. Data'!E13 -> 50694 | C23: =Table2[[#This Row],[Area Available (ha)]] -> 50694 | E23: 0.1 | F23: 0.1 | H23: 0.02 | I23: 0.02 | J23: 1 | K23: 1
A24: 2015 | B24: ='4. Data'!E14 -> 52387 | C24: =Table2[[#This Row],[Area Available (ha)]] -> 52387 | E24: 0.1 | F24: 0.1 | H24: 0.02 | I24: 0.02 | J24: 1 | K24: 1
A25: 2016 | B25: ='4. Data'!E15 -> 52000 | C25: =Table2[[#This Row],[Area Available (ha)]] -> 52000 | E25: 0.1 | F25: 0.1 | H25: 0.02 | I25: 0.02 | J25: 0.99 | K25: 0.99 | O25: YEAR | P25: TNC | Q25: USER | R25: TNC | S25: USER
A26: 2017 | B26: ='4. Data'!E16 -> 51000 | C26: =Table2[[#This Row],[Area Available (ha)]] -> 51000 | E26: 0.1 | F26: 0.1 | H26: 0.02 | I26: 0.02 | J26: 0.98 | K26: 0.98 | O26: 2017 | P26: 442.317586 | Q26: 442.317586 | R26: 0.02 | S26: 0.02
A27: 2018 | B27: ='4. Data'!E17 -> 50500 | C27: =Table2[[#This Row],[Area Available (ha)]] -> 50500 | E27: 0.1 | F27: 0.1 | H27: 0.02 | I27: 0.02 | J27: 0.97 | K27: 0.97 | O27: 2018 | P27: 451.1639377 | Q27: 451.1639377 | R27: 0.04 | S27: =S26+2% -> 0.04
A28: 2019 | B28: ='4. Data'!E18 -> 50000 | C28: =Table2[[#This Row],[Area Available (ha)]] -> 50000 | E28: 0.1 | F28: 0.1 | H28: 0.02 | I28: 0.02 | J28: 0.96 | K28: 0.96 | O28: 2019 | P28: 460.1872165 | Q28: 460.1872165 | R28: 0.06 | S28: 0.06
A29: 2020 | B29: ='4. Data'!E19 -> 49500 | C29: =Table2[[#This Row],[Area Available (ha)]] -> 49500 | E29: 0.08 | F29: 0.08 | H29: 0.02 | I29: 0.02 | J29: 0.95 | K29: 0.95 | O29: 2020 | P29: 469.3909608 | Q29: 469.3909608 | R29: 0.08 | S29: 0.08
A30: 2021 | B30: ='4. Data'!E20 -> 49000 | C30: =Table2[[#This Row],[Area Available (ha)]] -> 49000 | E30: 0.08 | F30: 0.08 | H30: 0 | I30: 0 | J30: =J29-2% -> 0.93 | K30: =K29-2% -> 0.93 | O30: 2021 | P30: 478.77878 | Q30: 478.77878 | R30: 0.1 | S30: 0.1
A31: 2022 | B31: ='4. Data'!E21 -> 48500 | C31: =Table2[[#This Row],[Area Available (ha)]] -> 48500 | E31: 0.08 | F31: 0.08 | H31: 0 | I31: 0 | J31: 0.91 | K31: 0.91 | O31: 2022 | P31: 488.3543556 | Q31: 488.3543556 | R31: 0.12 | S31: 0.12
A32: 2023 | B32: ='4. Data'!E22 -> 48000 | C32: =Table2[[#This Row],[Area Available (ha)]] -> 48000 | E32: 0.08 | F32: 0.08 | H32: 0 | I32: 0 | J32: 0.89 | K32: 0.89 | O32: 2023 | P32: 498.1214427 | Q32: 498.1214427 | R32: 0.14 | S32: 0.14
A33: 2024 | B33: ='4. Data'!E23 -> 47500 | C33: =Table2[[#This Row],[Area Available (ha)]] -> 47500 | E33: 0.08 | F33: 0.08 | H33: 0 | I33: 0 | J33: 0.87 | K33: 0.87 | O33: 2024 | P33: 508.0838716 | Q33: 508.0838716 | R33: 0.16 | S33: 0.16
A34: 2025 | B34: ='4. Data'!E24 -> 47000 | C34: =Table2[[#This Row],[Area Available (ha)]] -> 47000 | E34: 0.08 | F34: 0.08 | H34: 0 | I34: 0 | J34: 0.85 | K34: 0.85 | O34: 2025 | P34: 518.245549 | Q34: 518.245549 | R34: 0.18 | S34: 0.18
A35: 2026 | B35: ='4. Data'!E25 -> 46500 | C35: =Table2[[#This Row],[Area Available (ha)]] -> 46500 | E35: 0.08 | F35: 0.08 | H35: 0 | I35: 0 | J35: 0.83 | K35: 0.83 | O35: 2026 | P35: 528.61046 | Q35: 528.61046 | R35: 0.2 | S35: 0.2
A36: 2027 | B36: ='4. Data'!E26 -> 46000 | C36: =Table2[[#This Row],[Area Available (ha)]] -> 46000 | E36: 0.08 | F36: 0.08 | H36: 0 | I36: 0 | J36: 0.81 | K36: 0.81 | O36: 2027 | P36: 539.1826692 | Q36: 539.1826692 | R36: 0.24 | S36: =S35+4% -> 0.24
A37: 2028 | B37: ='4. Data'!E27 -> 45500 | C37: =Table2[[#This Row],[Area Available (ha)]] -> 45500 | E37: 0.08 | F37: 0.08 | H37: 0 | I37: 0 | J37: 0.79 | K37: 0.79 | O37: 2028 | P37: 549.9663226 | Q37: 549.9663226 | R37: 0.26 | S37: =S36+2% -> 0.26
A38: 2029 | B38: ='4. Data'!E28 -> 45250 | C38: =Table2[[#This Row],[Area Available (ha)]] -> 45250 | E38: 0.08 | F38: 0.08 | H38: 0 | I38: 0 | J38: 0.77 | K38: 0.77 | O38: 2029 | P38: 560.965649 | Q38: 560.965649 | R38: 0.28 | S38: =S37+2% -> 0.28
A39: 2030 | B39: ='4. Data'!E29 -> 45000 | C39: =Table2[[#This Row],[Area Available (ha)]] -> 45000 | E39: 0.08 | F39: 0.08 | H39: 0 | I39: 0 | J39: 0.75 | K39: 0.75 | O39: 2030 | P39: 572.184962 | Q39: 572.184962 | R39: 0.3 | S39: =S38+2% -> 0.3
A40: 2035 | B40: ='4. Data'!E30 -> 44000 | C40: =Table2[[#This Row],[Area Available (ha)]] -> 44000 | E40: 0.07 | F40: 0.07 | H40: 0 | I40: 0 | J40: =J39-5% -> 0.7 | K40: 0.7 | O40: 2035 | P40: 631.7384324 | Q40: 631.7384324 | R40: 0.35 | S40: 0.35
A41: 2040 | B41: ='4. Data'!E31 -> 43000 | C41: =Table2[[#This Row],[Area Available (ha)]] -> 43000 | E41: 0.06 | F41: 0.06 | H41: 0 | I41: 0 | J41: 0.65 | K41: 0.65 | O41: 2040 | P41: 697.4902759 | Q41: 697.4902759 | R41: 0.4 | S41: 0.4
A42: 2045 | B42: ='4. Data'!E32 -> 42000 | C42: =Table2[[#This Row],[Area Available (ha)]] -> 42000 | E42: 0.06 | F42: 0.06 | H42: 0 | I42: 0 | J42: 0.6 | K42: 0.6 | O42: 2045 | P42: 770.085624 | Q42: 770.085624 | R42: 0.45 | S42: 0.45
A43: 2050 | B43: ='4. Data'!E33 -> 40000 | C43: =Table2[[#This Row],[Area Available (ha)]] -> 40000 | E43: 0.05 | F43: 0.05 | H43: 0 | I43: 0 | J43: 0.55 | K43: 0.55 | O43: 2050 | P43: 850.2367543 | Q43: 850.2367543 | R43: 0.5 | S43: 0.5

Sheet 6. UD1 Assumptions
A1: UD1 Assumptions | D1: Excel Toolkit for Mitigation Analysis for Low-Carbon Development Planning | O1: XLMT-Agriculture v17.1
A2: This section calculates CH4 emissions from the burning of sugar cane fields | H2: TNC
A3: (agriculture residue burning).
A4: It reproduces the calculation carried out in the sheet 3.C.1.b. in the IPCC tool. | J4: Emissions scenarios through policy interventions:
A6: EMISSIONS CALCULATIONS - Business as Usual (BAU) scenario | E6: Emissions reduction scenario - | H6: Chemical Fertisers Use | M6: Biofarming with Composting from MSW
E7: To reduce percentage area burnt | I7: DirN2OManSoil
E8: TNC: | H8: TNC: | J8: SC2 | M8: SC3
E9: To reduce percentage area burnt | H9: Annual increase in chemical fertiliser use | J9: (1) reducing chemical fertilizer inputs by 75% by 2030; | M9: (2) biofarming with composting from MSW
E10: to 7.5% of total area available in 2020, and | H10: between 2013 and 2020
E11: to 5% of total area in 2025 and beyond | M11: SC3 | N11: SC3 | O11: SC3 | P11: SC3 | Q11: SC3 | R11: SC3 | S11: SC3
B12: BAU | C12: BAU | E12: SC1 | F12: SC1 | H12: SC2 | I12: SC2 | J12: SC2 | K12: SC2 | M12: Org Waste composted from MSW
B13: TNC | C13: USER | E13: TNC values | F13: USER | H13: TNC | I13: USER | J13: TNC | K13: USER | N13: TNC | O13: USER | P13: TNC | Q13: USER | R13: TNC | S13: USER
A14: YEAR | B14: Area Available (ha) | C14: Area Available (ha) | E14: % Area Burnt | F14: % Area Burnt | H14: % Increase in Chem Fertiliser | I14: % Increase in Chem Fertiliser | J14: Chemical fertilizer loading (%) | K14: Chemical fertilizer loading (%) | M14: Split | P14: MSW | Q14: MSW | R14: Quantity composted | S14: Quantity composted
A15: 2006 | B15: ='4. Data'!E5 -> 70800 | C15: =Table28[[#This Row],[Area Available (ha)]] -> 70800 | E15: 0.1 | F15: 0.1 | H15: 0 | I15: 0 | J15: 1 | K15: 1 | M15: Food | N15: 0.15 | O15: 0.15
A16: 2007 | B16: ='4. Data'!E6 -> 68520 | C16: =Table28[[#This Row],[Area Available (ha)]] -> 68520 | E16: 0.1 | F16: 0.1 | H16: 0 | I16: 0 | J16: 1 | K16: 1 | M16: Garden | N16: 0.5 | O16: 0.5
A17: 2008 | B17: ='4. Data'!E7 -> 65440 | C17: =Table28[[#This Row],[Area Available (ha)]] -> 65440 | E17: 0.1 | F17: 0.1 | H17: 0 | I17: 0 | J17: 1 | K17: 1 | M17: Paper | N17: 0.12 | O17: 0.12
A18: 2009 | B18: ='4. Data'!E8 -> 65850 | C18: =Table28[[#This Row],[Area Available (ha)]] -> 65850 | E18: 0.1 | F18: 0.1 | H18: 0 | I18: 0 | J18: 1 | K18: 1
A19: 2010 | B19: ='4. Data'!E9 -> 64130 | C19: =Table28[[#This Row],[Area Available (ha)]] -> 64130 | E19: 0.1 | F19: 0.1 | H19: 0 | I19: 0 | J19: 1 | K19: 1
A20: 2011 | B20: ='4. Data'!E10 -> 61730 | C20: =Table28[[#This Row],[Area Available (ha)]] -> 61730 | E20: 0.1 | F20: 0.1 | H20: 0 | I20: 0 | J20: 1 | K20: 1
A21: 2012 | B21: ='4. Data'!E11 -> 57160 | C21: =Table28[[#This Row],[Area Available (ha)]] -> 57160 | E21: 0.1 | F21: 0.1 | H21: 0 | I21: 0 | J21: 1 | K21: 1
A22: 2013 | B22: ='4. Data'!E12 -> 56464 | C22: =Table28[[#This Row],[Area Available (ha)]] -> 56464 | E22: 0.1 | F22: 0.1 | H22: 0 | I22: 0 | J22: 1 | K22: 1
A23: 2014 | B23: ='4. Data'!E13 -> 50694 | C23: =Table28[[#This Row],[Area Available (ha)]] -> 50694 | E23: 0.1 | F23: 0.1 | H23: 0.02 | I23: 0.02 | J23: 1 | K23: 1
A24: 2015 | B24: ='4. Data'!E14 -> 52387 | C24: =Table28[[#This Row],[Area Available (ha)]] -> 52387 | E24: 0.1 | F24: 0.1 | H24: 0.02 | I24: 0.02 | J24: 1 | K24: 1
A25: 2016 | B25: ='4. Data'!E15 -> 52000 | C25: =Table28[[#This Row],[Area Available (ha)]] -> 52000 | E25: 0.1 | F25: 0.1 | H25: 0.02 | I25: 0.02 | J25: 0.99 | K25: 0.99 | O25: YEAR | P25: TNC | Q25: USER | R25: TNC | S25: USER
A26: 2017 | B26: ='4. Data'!E16 -> 51000 | C26: =Table28[[#This Row],[Area Available (ha)]] -> 51000 | E26: 0.1 | F26: 0.1 | H26: 0.02 | I26: 0.02 | J26: 0.98 | K26: 0.98 | O26: 2017 | P26: 442.317586 | Q26: 442.317586 | R26: 0.02 | S26: 0.02
A27: 2018 | B27: ='4. Data'!E17 -> 50500 | C27: =Table28[[#This Row],[Area Available (ha)]] -> 50500 | E27: 0.1 | F27: 0.1 | H27: 0.02 | I27: 0.02 | J27: 0.97 | K27: 0.97 | O27: 2018 | P27: 451.1639377 | Q27: 451.1639377 | R27: 0.04 | S27: =S26+2% -> 0.04
A28: 2019 | B28: ='4. Data'!E18 -> 50000 | C28: =Table28[[#This Row],[Area Available (ha)]] -> 50000 | E28: 0.1 | F28: 0.1 | H28: 0.02 | I28: 0.02 | J28: 0.96 | K28: 0.96 | O28: 2019 | P28: 460.1872165 | Q28: 460.1872165 | R28: 0.06 | S28: 0.06
A29: 2020 | B29: ='4. Data'!E19 -> 49500 | C29: =Table28[[#This Row],[Area Available (ha)]] -> 49500 | E29: 0.08 | F29: 0.08 | H29: 0.02 | I29: 0.02 | J29: 0.95 | K29: 0.95 | O29: 2020 | P29: 469.3909608 | Q29: 469.3909608 | R29: 0.08 | S29: 0.08
A30: 2021 | B30: ='4. Data'!E20 -> 49000 | C30: =Table28[[#This Row],[Area Available (ha)]] -> 49000 | E30: 0.08 | F30: 0.08 | H30: 0 | I30: 0 | J30: =J29-2% -> 0.93 | K30: 0.93 | O30: 2021 | P30: 478.77878 | Q30: 478.77878 | R30: 0.1 | S30: 0.1
A31: 2022 | B31: ='4. Data'!E21 -> 48500 | C31: =Table28[[#This Row],[Area Available (ha)]] -> 48500 | E31: 0.08 | F31: 0.08 | H31: 0 | I31: 0 | J31: 0.91 | K31: 0.91 | O31: 2022 | P31: 488.3543556 | Q31: 488.3543556 | R31: 0.12 | S31: 0.12
A32: 2023 | B32: ='4. Data'!E22 -> 48000 | C32: =Table28[[#This Row],[Area Available (ha)]] -> 48000 | E32: 0.08 | F32: 0.08 | H32: 0 | I32: 0 | J32: 0.89 | K32: 0.89 | O32: 2023 | P32: 498.1214427 | Q32: 498.1214427 | R32: 0.14 | S32: 0.14
A33: 2024 | B33: ='4. Data'!E23 -> 47500 | C33: =Table28[[#This Row],[Area Available (ha)]] -> 47500 | E33: 0.08 | F33: 0.08 | H33: 0 | I33: 0 | J33: 0.87 | K33: 0.87 | O33: 2024 | P33: 508.0838716 | Q33: 508.0838716 | R33: 0.16 | S33: 0.16
A34: 2025 | B34: ='4. Data'!E24 -> 47000 | C34: =Table28[[#This Row],[Area Available (ha)]] -> 47000 | E34: 0.08 | F34: 0.08 | H34: 0 | I34: 0 | J34: 0.85 | K34: 0.85 | O34: 2025 | P34: 518.245549 | Q34: 518.245549 | R34: 0.18 | S34: 0.18
A35: 2026 | B35: ='4. Data'!E25 -> 46500 | C35: =Table28[[#This Row],[Area Available (ha)]] -> 46500 | E35: 0.08 | F35: 0.08 | H35: 0 | I35: 0 | J35: 0.83 | K35: 0.83 | O35: 2026 | P35: 528.61046 | Q35: 528.61046 | R35: 0.2 | S35: 0.2
A36: 2027 | B36: ='4. Data'!E26 -> 46000 | C36: =Table28[[#This Row],[Area Available (ha)]] -> 46000 | E36: 0.08 | F36: 0.08 | H36: 0 | I36: 0 | J36: 0.81 | K36: 0.81 | O36: 2027 | P36: 539.1826692 | Q36: 539.1826692 | R36: 0.24 | S36: =S35+4% -> 0.24
A37: 2028 | B37: ='4. Data'!E27 -> 45500 | C37: =Table28[[#This Row],[Area Available (ha)]] -> 45500 | E37: 0.08 | F37: 0.08 | H37: 0 | I37: 0 | J37: 0.79 | K37: 0.79 | O37: 2028 | P37: 549.9663226 | Q37: 549.9663226 | R37: 0.26 | S37: =S36+2% -> 0.26
A38: 2029 | B38: ='4. Data'!E28 -> 45250 | C38: =Table28[[#This Row],[Area Available (ha)]] -> 45250 | E38: 0.08 | F38: 0.08 | H38: 0 | I38: 0 | J38: 0.77 | K38: 0.77 | O38: 2029 | P38: 560.965649 | Q38: 560.965649 | R38: 0.28 | S38: =S37+2% -> 0.28
A39: 2030 | B39: ='4. Data'!E29 -> 45000 | C39: =Table28[[#This Row],[Area Available (ha)]] -> 45000 | E39: 0.08 | F39: 0.08 | H39: 0 | I39: 0 | J39: 0.75 | K39: 0.75 | O39: 2030 | P39: 572.184962 | Q39: 572.184962 | R39: 0.3 | S39: =S38+2% -> 0.3
A40: 2035 | B40: ='4. Data'!E30 -> 44000 | C40: =Table28[[#This Row],[Area Available (ha)]] -> 44000 | E40: 0.07 | F40: 0.07 | H40: 0 | I40: 0 | J40: =J39-5% -> 0.7 | K40: 0.7 | O40: 2035 | P40: 631.7384324 | Q40: 631.7384324 | R40: 0.35 | S40: 0.35
A41: 2040 | B41: ='4. Data'!E31 -> 43000 | C41: =Table28[[#This Row],[Area Available (ha)]] -> 43000 | E41: 0.06 | F41: 0.06 | H41: 0 | I41: 0 | J41: 0.65 | K41: 0.65 | O41: 2040 | P41: 697.4902759 | Q41: 697.4902759 | R41: 0.4 | S41: 0.4
A42: 2045 | B42: ='4. Data'!E32 -> 42000 | C42: =Table28[[#This Row],[Area Available (ha)]] -> 42000 | E42: 0.06 | F42: 0.06 | H42: 0 | I42: 0 | J42: 0.6 | K42: 0.6 | O42: 2045 | P42: 770.085624 | Q42: 770.085624 | R42: 0.45 | S42: 0.45
A43: 2050 | B43: ='4. Data'!E33 -> 40000 | C43: =Table28[[#This Row],[Area Available (ha)]] -> 40000 | E43: 0.05 | F43: 0.05 | H43: 0 | I43: 0 | J43: 0.55 | K43: 0.55 | O43: 2050 | P43: 850.2367543 | Q43: 850.2367543 | R43: 0.5 | S43: 0.5

Sheet 6. UD2 Assumptions
A1: UD2 Assumptions | D1: Excel Toolkit for Mitigation Analysis for Low-Carbon Development Planning | O1: XLMT-Agriculture v17.1
A2: This section calculates CH4 emissions from the burning of sugar cane fields | H2: TNC
A3: (agriculture residue burning).
A4: It reproduces the calculation carried out in the sheet 3.C.1.b. in the IPCC tool.
A6: EMISSIONS CALCULATIONS - Business as Usual (BAU) scenario | E6: Emissions reduction scenario - | H6: Chemical Fertisers Use | M6: Biofarming with Composting from MSW
E7: To reduce percentage area burnt | I7: DirN2OManSoil
E8: TNC: | H8: TNC: | J8: SC2 | M8: SC3
E9: To reduce percentage area burnt | H9: Annual increase in chemical fertiliser use | J9: (1) reducing chemical fertilizer inputs by 75% by 2030; | M9: (2) biofarming with composting from MSW
E10: to 7.5% of total area available in 2020, and | H10: between 2013 and 2020
E11: to 5% of total area in 2025 and beyond | M11: SC3 | N11: SC3 | O11: SC3 | P11: SC3 | Q11: SC3 | R11: SC3 | S11: SC3
B12: BAU | C12: BAU | E12: SC1 | F12: SC1 | H12: SC2 | I12: SC2 | J12: SC2 | K12: SC2 | M12: Org Waste composted from MSW
B13: TNC | C13: USER | E13: TNC values | F13: USER | H13: TNC | I13: USER | J13: TNC | K13: USER | N13: TNC | O13: USER | P13: TNC | Q13: USER | R13: TNC | S13: USER
A14: YEAR | B14: Area Available (ha) | C14: Area Available (ha) | E14: % Area Burnt | F14: % Area Burnt | H14: % Increase in Chem Fertiliser | I14: % Increase in Chem Fertiliser | J14: Chemical fertilizer loading (%) | K14: Chemical fertilizer loading (%) | M14: Split | P14: MSW | Q14: MSW | R14: Quantity composted | S14: Quantity composted
A15: 2006 | B15: ='4. Data'!E5 -> 70800 | C15: =Table289[[#This Row],[Area Available (ha)]] -> 70800 | E15: 0.1 | F15: 0.1 | H15: 0 | I15: 0 | J15: 1 | K15: 1 | M15: Food | N15: 0.15 | O15: 0.15
A16: 2007 | B16: ='4. Data'!E6 -> 68520 | C16: =Table289[[#This Row],[Area Available (ha)]] -> 68520 | E16: 0.1 | F16: 0.1 | H16: 0 | I16: 0 | J16: 1 | K16: 1 | M16: Garden | N16: 0.5 | O16: 0.5
A17: 2008 | B17: ='4. Data'!E7 -> 65440 | C17: =Table289[[#This Row],[Area Available (ha)]] -> 65440 | E17: 0.1 | F17: 0.1 | H17: 0 | I17: 0 | J17: 1 | K17: 1 | M17: Paper | N17: 0.12 | O17: 0.12
A18: 2009 | B18: ='4. Data'!E8 -> 65850 | C18: =Table289[[#This Row],[Area Available (ha)]] -> 65850 | E18: 0.1 | F18: 0.1 | H18: 0 | I18: 0 | J18: 1 | K18: 1
A19: 2010 | B19: ='4. Data'!E9 -> 64130 | C19: =Table289[[#This Row],[Area Available (ha)]] -> 64130 | E19: 0.1 | F19: 0.1 | H19: 0 | I19: 0 | J19: 1 | K19: 1
A20: 2011 | B20: ='4. Data'!E10 -> 61730 | C20: =Table289[[#This Row],[Area Available (ha)]] -> 61730 | E20: 0.1 | F20: 0.1 | H20: 0 | I20: 0 | J20: 1 | K20: 1
A21: 2012 | B21: ='4. Data'!E11 -> 57160 | C21: =Table289[[#This Row],[Area Available (ha)]] -> 57160 | E21: 0.1 | F21: 0.1 | H21: 0 | I21: 0 | J21: 1 | K21: 1
A22: 2013 | B22: ='4. Data'!E12 -> 56464 | C22: =Table289[[#This Row],[Area Available (ha)]] -> 56464 | E22: 0.1 | F22: 0.1 | H22: 0 | I22: 0 | J22: 1 | K22: 1
A23: 2014 | B23: ='4. Data'!E13 -> 50694 | C23: =Table289[[#This Row],[Area Available (ha)]] -> 50694 | E23: 0.1 | F23: 0.1 | H23: 0.02 | I23: 0.02 | J23: 1 | K23: 1
A24: 2015 | B24: ='4. Data'!E14 -> 52387 | C24: =Table289[[#This Row],[Area Available (ha)]] -> 52387 | E24: 0.1 | F24: 0.1 | H24: 0.02 | I24: 0.02 | J24: 1 | K24: 1
A25: 2016 | B25: ='4. Data'!E15 -> 52000 | C25: =Table289[[#This Row],[Area Available (ha)]] -> 52000 | E25: 0.1 | F25: 0.1 | H25: 0.02 | I25: 0.02 | J25: 0.99 | K25: 0.99 | O25: YEAR | P25: TNC | Q25: USER | R25: TNC | S25: USER
A26: 2017 | B26: ='4. Data'!E16 -> 51000 | C26: =Table289[[#This Row],[Area Available (ha)]] -> 51000 | E26: 0.1 | F26: 0.1 | H26: 0.02 | I26: 0.02 | J26: 0.98 | K26: 0.98 | O26: 2017 | P26: 442.317586 | Q26: 442.317586 | R26: 0.02 | S26: 0.02
A27: 2018 | B27: ='4. Data'!E17 -> 50500 | C27: =Table289[[#This Row],[Area Available (ha)]] -> 50500 | E27: 0.1 | F27: 0.1 | H27: 0.02 | I27: 0.02 | J27: 0.97 | K27: 0.97 | O27: 2018 | P27: 451.1639377 | Q27: 451.1639377 | R27: 0.04 | S27: =S26+2% -> 0.04
A28: 2019 | B28: ='4. Data'!E18 -> 50000 | C28: =Table289[[#This Row],[Area Available (ha)]] -> 50000 | E28: 0.1 | F28: 0.1 | H28: 0.02 | I28: 0.02 | J28: 0.96 | K28: 0.96 | O28: 2019 | P28: 460.1872165 | Q28: 460.1872165 | R28: 0.06 | S28: 0.06
A29: 2020 | B29: ='4. Data'!E19 -> 49500 | C29: =Table289[[#This Row],[Area Available (ha)]] -> 49500 | E29: 0.08 | F29: 0.08 | H29: 0.02 | I29: 0.02 | J29: 0.95 | K29: 0.95 | O29: 2020 | P29: 469.3909608 | Q29: 469.3909608 | R29: 0.08 | S29: 0.08
A30: 2021 | B30: ='4. Data'!E20 -> 49000 | C30: =Table289[[#This Row],[Area Available (ha)]] -> 49000 | E30: 0.08 | F30: 0.08 | H30: 0 | I30: 0 | J30: =J29-2% -> 0.93 | K30: 0.93 | O30: 2021 | P30: 478.77878 | Q30: 478.77878 | R30: 0.1 | S30: 0.1
A31: 2022 | B31: ='4. Data'!E21 -> 48500 | C31: =Table289[[#This Row],[Area Available (ha)]] -> 48500 | E31: 0.08 | F31: 0.08 | H31: 0 | I31: 0 | J31: 0.91 | K31: 0.91 | O31: 2022 | P31: 488.3543556 | Q31: 488.3543556 | R31: 0.12 | S31: 0.12
A32: 2023 | B32: ='4. Data'!E22 -> 48000 | C32: =Table289[[#This Row],[Area Available (ha)]] -> 48000 | E32: 0.08 | F32: 0.08 | H32: 0 | I32: 0 | J32: 0.89 | K32: 0.89 | O32: 2023 | P32: 498.1214427 | Q32: 498.1214427 | R32: 0.14 | S32: 0.14
A33: 2024 | B33: ='4. Data'!E23 -> 47500 | C33: =Table289[[#This Row],[Area Available (ha)]] -> 47500 | E33: 0.08 | F33: 0.08 | H33: 0 | I33: 0 | J33: 0.87 | K33: 0.87 | O33: 2024 | P33: 508.0838716 | Q33: 508.0838716 | R33: 0.16 | S33: 0.16
A34: 2025 | B34: ='4. Data'!E24 -> 47000 | C34: =Table289[[#This Row],[Area Available (ha)]] -> 47000 | E34: 0.08 | F34: 0.08 | H34: 0 | I34: 0 | J34: 0.85 | K34: 0.85 | O34: 2025 | P34: 518.245549 | Q34: 518.245549 | R34: 0.18 | S34: 0.18
A35: 2026 | B35: ='4. Data'!E25 -> 46500 | C35: =Table289[[#This Row],[Area Available (ha)]] -> 46500 | E35: 0.08 | F35: 0.08 | H35: 0 | I35: 0 | J35: 0.83 | K35: 0.83 | O35: 2026 | P35: 528.61046 | Q35: 528.61046 | R35: 0.2 | S35: 0.2
A36: 2027 | B36: ='4. Data'!E26 -> 46000 | C36: =Table289[[#This Row],[Area Available (ha)]] -> 46000 | E36: 0.08 | F36: 0.08 | H36: 0 | I36: 0 | J36: 0.81 | K36: 0.81 | O36: 2027 | P36: 539.1826692 | Q36: 539.1826692 | R36: 0.24 | S36: =S35+4% -> 0.24
A37: 2028 | B37: ='4. Data'!E27 -> 45500 | C37: =Table289[[#This Row],[Area Available (ha)]] -> 45500 | E37: 0.08 | F37: 0.08 | H37: 0 | I37: 0 | J37: 0.79 | K37: 0.79 | O37: 2028 | P37: 549.9663226 | Q37: 549.9663226 | R37: 0.26 | S37: =S36+2% -> 0.26
A38: 2029 | B38: ='4. Data'!E28 -> 45250 | C38: =Table289[[#This Row],[Area Available (ha)]] -> 45250 | E38: 0.08 | F38: 0.08 | H38: 0 | I38: 0 | J38: 0.77 | K38: 0.77 | O38: 2029 | P38: 560.965649 | Q38: 560.965649 | R38: 0.28 | S38: =S37+2% -> 0.28
A39: 2030 | B39: ='4. Data'!E29 -> 45000 | C39: =Table289[[#This Row],[Area Available (ha)]] -> 45000 | E39: 0.08 | F39: 0.08 | H39: 0 | I39: 0 | J39: 0.75 | K39: 0.75 | O39: 2030 | P39: 572.184962 | Q39: 572.184962 | R39: 0.3 | S39: =S38+2% -> 0.3
A40: 2035 | B40: ='4. Data'!E30 -> 44000 | C40: =Table289[[#This Row],[Area Available (ha)]] -> 44000 | E40: 0.07 | F40: 0.07 | H40: 0 | I40: 0 | J40: =J39-5% -> 0.7 | K40: 0.7 | O40: 2035 | P40: 631.7384324 | Q40: 631.7384324 | R40: 0.35 | S40: 0.35
A41: 2040 | B41: ='4. Data'!E31 -> 43000 | C41: =Table289[[#This Row],[Area Available (ha)]] -> 43000 | E41: 0.06 | F41: 0.06 | H41: 0 | I41: 0 | J41: 0.65 | K41: 0.65 | O41: 2040 | P41: 697.4902759 | Q41: 697.4902759 | R41: 0.4 | S41: 0.4
A42: 2045 | B42: ='4. Data'!E32 -> 42000 | C42: =Table289[[#This Row],[Area Available (ha)]] -> 42000 | E42: 0.06 | F42: 0.06 | H42: 0 | I42: 0 | J42: 0.6 | K42: 0.6 | O42: 2045 | P42: 770.085624 | Q42: 770.085624 | R42: 0.45 | S42: 0.45
A43: 2050 | B43: ='4. Data'!E33 -> 40000 | C43: =Table289[[#This Row],[Area Available (ha)]] -> 40000 | E43: 0.05 | F43: 0.05 | H43: 0 | I43: 0 | J43: 0.55 | K43: 0.55 | O43: 2050 | P43: 850.2367543 | Q43: 850.2367543 | R43: 0.5 | S43: 0.5

Sheet 7. Calculations
A1: Free worksheet for Users

Sheet ChartPlotLegend
A1: Time Series Plots | D1: Excel Toolkit for Mitigation Analysis for Low-Carbon Development Planning | H1: XLMT-Agriculture v17.1
O2: Year | P2: TNC 31:BAU | Q2: TNC 38:SC1 | R2: TNC 45:SC2 | S2: TNC 63:SC3 | T2: TNC 64:SC4 | U2: Sparkline
G3: Legend Code | H3: Scenario | I3: Definition | O3: 2006 | P3: 86.59409086 | Q3: 86.59409086 | R3: 86.59409086 | S3: 86.59409086 | T3: 86.59409086
G4: TNC 31: | H4: BAU | I4: Total CO2e Emissions from Managed Soils (Gg/yr) | O4: 2007 | P4: 84.34373046 | Q4: 84.34373046 | R4: 84.34373046 | S4: 84.34373046 | T4: 84.34373046
G5: TNC 38: | H5: SC1 | I5: GHG Emissions (Nett) due to Reduced Crop Burn Scenario (Gg CO2e) | O5: 2008 | P5: 80.00054059 | Q5: 80.00054059 | R5: 80.00054059 | S5: 80.00054059 | T5: 80.00054059
G6: TNC 45: | H6: SC2 | I6: GHG Emissions (Nett) due to Reduced Fertilizer Use Scenario (Gg CO2e) | O6: 2009 | P6: 78.0855522 | Q6: 78.0855522 | R6: 78.0855522 | S6: 78.0855522 | T6: 78.0855522
G7: TNC 63: | H7: SC3 | I7: Total CO2e Emissions with Biofarming (Reduced Fertilizers + Compost) | O7: 2010 | P7: 86.79734313 | Q7: 86.79734313 | R7: 86.79734313 | S7: 86.79734313 | T7: 86.79734313
G8: TNC 64: | H8: SC4 | I8: GHG Emissions under Biofarming and Crop Burn Reduction | O8: 2011 | P8: 88.47702688 | Q8: 88.47702688 | R8: 88.47702688 | S8: 88.47702688 | T8: 88.47702688
O9: 2012 | P9: 98.48088648 | Q9: 98.48088648 | R9: 98.48088648 | S9: 98.48088648 | T9: 98.48088648
F10: Observations: | O10: 2013 | P10: 99.64777376 | Q10: 99.64777376 | R10: 99.64777376 | S10: 99.64777376 | T10: 99.64777376
O11: 2014 | P11: 100.9151182 | Q11: 100.9151182 | R11: 100.9151182 | S11: 100.9151182 | T11: 100.9151182
O12: 2015 | P12: 102.5346397 | Q12: 102.5346397 | R12: 102.5346397 | S12: 102.5346397 | T12: 102.5346397
O13: 2016 | P13: 103.8558119 | Q13: 103.8558119 | R13: 103.4595777 | S13: 103.2985982 | T13: 103.2985982
O14: 2017 | P14: 105.1758261 | Q14: 105.1758261 | R14: 104.3635447 | S14: 104.4328771 | T14: 104.4328771
O15: 2018 | P15: 106.5440298 | Q15: 106.5440298 | R15: 105.2952941 | S15: 105.6042151 | T15: 105.6042151
O16: 2019 | P16: 107.9390105 | Q16: 107.9390105 | R16: 106.232803 | S16: 106.7908685 | T16: 106.7908685
O17: 2020 | P17: 109.3613039 | Q17: 108.9269414 | R17: 107.1759806 | S17: 107.9930327 | T17: 107.5586702
O18: 2021 | P18: 109.4165293 | Q18: 108.9865543 | R18: 106.235924 | S18: 107.1687596 | T18: 106.7387846
O19: 2022 | P19: 109.4717548 | Q19: 109.0461673 | R19: 105.2958673 | S19: 106.3623824 | T19: 105.9367949
O20: 2023 | P20: 109.5269802 | Q20: 109.1057802 | R20: 104.3558107 | S20: 105.5744314 | T20: 105.1532314
O21: 2024 | P21: 109.5822056 | Q21: 109.1653931 | R21: 103.4157541 | S21: 104.8054506 | T21: 104.3886381
O22: 2025 | P22: 109.637431 | Q22: 109.225006 | R22: 102.4756974 | S22: 104.0559986 | T22: 103.6435736
O23: 2026 | P23: 109.6609415 | Q23: 109.252904 | R23: 101.4973827 | S23: 103.2883907 | T23: 102.8803532
O24: 2027 | P24: 109.6844519 | Q24: 109.2808019 | R24: 100.5190679 | S24: 103.0263045 | T24: 102.6226545
O25: 2028 | P25: 109.7079624 | Q25: 109.3086999 | R25: 99.5407532 | S25: 102.3103783 | T25: 101.9111158
O26: 2029 | P26: 109.7424416 | Q26: 109.3453728 | R26: 98.57340721 | S26: 101.6275292 | T26: 101.2304605
O27: 2030 | P27: 109.7769207 | Q27: 109.3820457 | R27: 97.60606122 | S27: 100.9674284 | T27: 100.5725534
O28: 2035 | P28: 110.2461492 | Q28: 109.6669992 | R28: 95.83829753 | S28: 100.5518144 | T28: 99.97266443
O29: 2040 | P29: 110.7133836 | Q29: 109.9587336 | R29: 94.06254039 | S29: 100.5074294 | T29: 99.75277944
O30: 2045 | P30: 111.2548413 | Q30: 110.5177413 | R30: 92.34319073 | S30: 100.9535283 | T30: 100.2164283
O31: 2050 | P31: 111.752424 | Q31: 110.874924 | R31: 90.57996608 | S31: 101.8519928 | T31: 100.9744928

Sheet RadarPlot
A1: Radar Plot | D1: Excel Toolkit for Mitigation Analysis for Low-Carbon Development Planning | H1: XLMT-Agriculture v17.1
N2: Year | O2: UD1 31:BAU | P2: UD1 38:SC1
G3: Legend Code | H3: Scenario | I3: Definition | N3: 2006 | O3: 86.59409086 | P3: 86.59409086
G4: UD1 31: | H4: BAU | I4: Total CO2e Emissions from Managed Soils (Gg/yr) | N4: 2007 | O4: 84.34373046 | P4: 84.34373046
G5: UD1 38: | H5: SC1 | I5: GHG Emissions (Nett) due to Reduced Crop Burn Scenario (Gg CO2e) | N5: 2008 | O5: 80.00054059 | P5: 80.00054059
G6: Ratio = | H6: (UD1 38:/UD1 31:) | N6: 2009 | O6: 78.0855522 | P6: 78.0855522
N7: 2010 | O7: 86.79734313 | P7: 86.79734313
N8: 2011 | O8: 88.47702688 | P8: 88.47702688
N9: 2012 | O9: 98.48088648 | P9: 98.48088648
F10: Observations: | N10: 2013 | O10: 99.64777376 | P10: 99.64777376
F11: Radar | N11: 2014 | O11: 100.9151182 | P11: 100.9151182
N12: 2015 | O12: 102.5346397 | P12: 102.5346397
N13: 2016 | O13: 103.8558119 | P13: 103.8558119
N14: 2017 | O14: 105.1758261 | P14: 105.1758261
N15: 2018 | O15: 106.5440298 | P15: 106.5440298
N16: 2019 | O16: 107.9390105 | P16: 107.9390105
N17: 2020 | O17: 109.3613039 | P17: 108.9269414
N18: 2021 | O18: 109.4165293 | P18: 108.9865543
N19: 2022 | O19: 109.4717548 | P19: 109.0461673
N20: 2023 | O20: 109.5269802 | P20: 109.1057802
N21: 2024 | O21: 109.5822056 | P21: 109.1653931
N22: 2025 | O22: 109.637431 | P22: 109.225006
N23: 2026 | O23: 109.6609415 | P23: 109.252904
N24: 2027 | O24: 109.6844519 | P24: 109.2808019
N25: 2028 | O25: 109.7079624 | P25: 109.3086999
N26: 2029 | O26: 109.7424416 | P26: 109.3453728
N27: 2030 | O27: 109.7769207 | P27: 109.3820457
N28: 2035 | O28: 110.2461492 | P28: 109.6669992
N29: 2040 | O29: 110.7133836 | P29: 109.9587336
N30: 2045 | O30: 111.2548413 | P30: 110.5177413
N31: 2050 | O31: 111.752424 | P31: 110.874924

Sheet DiffPlot
A1: % Change | D1: Excel Toolkit for Mitigation Analysis for Low-Carbon Development Planning | H1: XLMT-Agriculture v17.1

Sheet Report
A1: Report | C1: Excel Toolkit for Mitigation Analysis for Low-Carbon Development Planning | N1: XLMT-Agriculture v17.1
B4: User Name: | C4: RB
B7: Project Code: | C7: Proj001
B10: Project Detail: | C10: TNC Plots

Sheet ... (hidden)
A1: …

Sheet LIST (hidden)
B3: 1 | C3: BAU: Area of sugar cane available (ha) | H3: Sugar Cane | I3: 1 | J3: 4
B4: 2 | C4: BAU: Area of sugar cane burnt (ha)
B5: 3 | C5: BAU: GHG Emissions from burnt sugar cane (tCH4)
B6: 4 | C6: BAU: GHG Emissions from burnt sugar cane (GgCO2e)
B8: 5 | C8: BAU: Nitrogen from Chemical Fertilizers (kgN/yr) | D8: N2O emissions from managed soils - 1/3 | E8: Dir N2O Man Soil | F8: N2O emissions from Managed Soils
B9: 6 | C9: BAU: Nitrogen from Crop Residues (kgN/yr)
B10: 7 | C10: BAU: Nitrogen from Manure (kgN/yr)
B11: 8 | C11: BAU: N2O Emissions from Chemical Fertilizers (t/yr)
B12: 9 | C12: BAU: N2O Emissions from Crop Residues (t/yr)
B13: 10 | C13: BAU: N2O Emissions from Manure (t/yr)
B14: 11 | C14: BAU: CO2e Emissions from Chemical Fertilizer (Gg/yr)
B15: 12 | C15: BAU: CO2e Emissions from Crop Residues (Gg/yr)
B16: 13 | C16: BAU: CO2e Emissions from Manure (Gg/yr)
A17: @ | B17: 14 | C17: BAU: Total CO2e Emissions from Chemical Fertilizers, Crop Residues and Manure (Gg/yr)
B18: 15 | C18: BAU: Nitrogen from (Cattle, Poultry, Pigs) (kgN/yr) | D18: N2O emissions from urine and dung inputs to grazed soils - 3/3
B19: 16 | C19: BAU: Nitrogen from (Sheep & Other sources) (kgN/yr)
B20: 17 | C20: BAU: N2O Emissions from (Cattle, Poultry, Pigs) (t/yr)
B21: 18 | C21: BAU: N2O Emissions from (Sheep & Other sources) (t/yr)
B22: 19 | C22: BAU: CO2e Emissions from (Cattle, Poultry, Pigs) (Gg/yr)
B23: 20 | C23: BAU: CO2e Emissions from (Sheep & Other sources) (Gg/yr)
A24: @ | B24: 21 | C24: BAU: Total CO2e Emissions animal sources (Gg/yr)
B25: 22 | C25: BAU: Total CO2e Emissions from Direct sources (Gg/yr) | D25: Total
B27: 23 | C27: BAU: Nitrogen from Indirect Fertilizers (kg N/yr) | D27: Managed soil | E27: Ind N2O Man Soil
B28: 24 | C28: BAU: Nitrogen from Indirect Crop Residues (kg N/yr)
B29: 25 | C29: BAU: Nitrogen from Indirect Manure (kg N/yr)
B30: 26 | C30: BAU: N2O Volatilised from Indirect sources (t/yr) | D30: volatized
B31: 27 | C31: BAU: CO2e Volatilised from Indirect sources (Gg/yr)
B32: 28 | C32: BAU: N2O leached from Indirect sources (y/yr) | D32: leached
B33: 29 | C33: BAU: CO2e leached from Indirect sources (Gg/yr)
A34: sc0 | B34: 30 | C34: BAU: Total CO2e Emissions from Indirect sources (Gg/yr) | D34: Total
A35: BAU | B35: 31 | C35: BAU: Total CO2e Emissions from Managed Soils (Gg/yr) | D35: Total
C39: DirN2OManSoilPol
B42: 32 | C42: SC1: Area of sugar cane available (ha) | D42: Reduced Percentage of Crop Burn
B43: 33 | C43: SC1: Percentage of sugar cane area burnt (%)
B44: 34 | C44: SC1: Area of sugar cane burnt (ha)
B45: 35 | C45: SC1: GHG Emissions from burnt sugar cane (tCH4)
B46: 36 | C46: SC1: GHG Emissions from burnt sugar cane (Gg CO2e)
A47: sc1 | B47: 37 | C47: SC1: Reduction in GHG Emissions due to Scenario (Gg CO2e)
A48: Cropburn | B48: 38 | C48: SC1: GHG Emissions (Nett) due to Reduced Crop Burn Scenario (Gg CO2e) | D48: Total
B50: 39 | C50: SC2: (BAU Scenario) CO2e Emissions from Chemical Fertilizers (Gg/yr) | D50: Chemical Fertilizer Loading | E50: Dir N2O Man Soil | F50: N2O emissions from Managed Soils
B51: 40 | C51: SC2: Nitrogen from Reduction in Chemical Fertilizers (kg N/yr)
B52: 41 | C52: SC2: N2O Emissions from Reduction in Chemical Fertilizers (t)
B53: 42 | C53: SC2: CO2e Emissions from Reduction in Chemical Fertilizers (Gg)
B54: 43 | C54: SC2: GHG Emissions due to Scenario (Gg CO2e)
A55: sc2 | B55: 44 | C55: SC2: Reduction in GHG Emissions due to Scenario (Gg CO2e)
A56: Fertilizer | B56: 45 | C56: SC2: GHG Emissions (Nett) due to Reduced Fertilizer Use Scenario (Gg CO2e) | D56: Total
B58: 46 | C58: SC3: Organic waste composted from Food (Gg) | D58: Biofarming from MSW
B59: 47 | C59: SC3: Organic waste composted from Garden (Gg)
B60: 48 | C60: SC3: Organic waste composted from Paper (Gg)
B61: 49 | C61: SC3: Total Organic waste from MSW (Gg)
B62: 50 | C62: SC3: Total Compost from MSW (Gg)
B63: 51 | C63: SC3: Total Nitrogen in Compost from MSW (kg)
B64: 52 | C64: SC3: Change in GHG Emissions due to Scenario (Gg CO2e)
B65: 53 | C65: SC3: GHG Emissions (Nett) due to Biofarming Scenario (Gg CO2e) | D65: Total
B67: 54 | C67: SC3: Nitrogen from Reduction of Fertilizers (KgN/yr) | D67: managed soil | E67: Ind N2O Man Soil
B68: 55 | C68: SC3: Nitrogen from Crop Residues (kgN/yr)
B69: 56 | C69: SC3 :Nitrogen from Manure incl Biofarming sources (kg N/yr)
B70: 57 | C70: SC3: N2O Volatilised from Indirect sources (t/yr) | D70: volatized
B71: 58 | C71: SC3: CO2e Volatilised from Indirect sources (Gg/yr)
B72: 59 | C72: SC3: N2O leached from Indirect sources (y/yr) | D72: Leached
B73: 60 | C73: SC3: CO2e leached from Indirect sources (Gg/yr)
B74: 61 | C74: SC3: Total CO2e Emissions from Indirect sources (Gg/yr) | D74: Total
A75: sc3 | B75: 62 | C75: SC3: Reduction in GHG Emissions due to Scenario (Gg CO2e)
A76: Sc3 | B76: 63 | C76: SC3: Total CO2e Emissions with Biofarming (Reduced Fertilizers + Compost) | D76: Total | H76: TotalDirN2O-Change
A77: sc4
A78: Sc4 | B78: 64 | C78: SC4: GHG Emissions under Biofarming and Crop Burn Reduction | D78: Cumulative

Sheet TNC CropScenarios (hidden)
A1: This worksheet summarises the various emissions scenarios for management of cropland. | AV1: 46 | AW1: 47 | AX1: 48 | AY1: 49 | AZ1: 50 | BA1: 51 | BB1: 52 | BC1: 53 | BD1: 54 | BE1: 55 | BF1: 56 | BG1: 57 | BH1: 58 | BI1: 59 | BJ1: 60 | BK1: 61 | BL1: 62 | BM1: 63 | BN1: 64 | BO1: 65 | BP1: 66 | BQ1: 67 | BR1: 68 | BS1: 69 | BT1: 70 | BU1: 71 | BV1: 72 | BW1: 73 | BX1: 74 | BY1: 75 | BZ1: 76
B2: 1 | C2: 2 | D2: 3 | E2: 4 | F2: 5 | G2: 6 | H2: 7 | I2: 8 | J2: 9 | K2: 10 | L2: 11 | M2: 12 | N2: 13 | O2: 14 | P2: 15 | Q2: 16 | R2: 17 | S2: 18 | T2: 19 | U2: 20 | V2: 21 | W2: 22 | X2: 23 | Y2: 24 | Z2: 25 | AA2: 26 | AB2: 27 | AC2: 28 | AD2: 29 | AE2: 30 | AF2: 31 | AG2: 32 | AH2: 33 | AI2: 34 | AJ2: 35 | AK2: 36 | AL2: 37 | AM2: 38 | AN2: 39 | AO2: 40 | AP2: 41 | AQ2: 42 | AR2: 43 | AS2: 44 | AT2: 45 | AV2: Direct N2O | BN2: Indirect N2O | BY2: Total ER | BZ2: Total ER
BN3: This worksheet calculates the indirect N2O emissions from managed soils.
B4: Business-as-Usual (BAU) | AR4: CROP BURN (Gg CO2e) | AV4: CHEMICAL FERTILIZER | AZ4: (Gg CO2e) | BA4: (Gg CO2e) | BB4: (Gg CO2e) | BD4: Biofarming | BJ4: GgCO2e | BK4: GgCO2e | BL4: GgCO2e | BN4: It follows the calculations given in sheet 3.C.5. Indirect N2O Emissions from managed soils in the IPCC tool. | BY4: GgCO2e | BZ4: reduction
B5: Crop Burn | F5: DirN2OManSoil | X5: IndN2OManSoil | AN5: Crop Burn Sc 1 | BI5: N in compost (kg) | BN5: This scenario includes the combination of reduced chemical fertilizers & use of compost generated from MSW
F6: N2O emissions from managed soils - 1/3 | P6: N2O emissions from urine and dung inputs to grazed soils - 3/3 | W6: N2O Em | X6: This worksheet calculates the indirect N2O emissions from managed soils. It follows the calculations given in sheet 3.C.5. Indirect N2O Emissions from managed soils in the IPCC tool. | BD6: Organic waste composted (Gg) | BH6: Compost (Gg) | BV6: Biofarming - GgCO2e
A7: Year | B7: Area Available (ha) | C7: Area Burnt (ha) | D7: GHG (tCH4) | E7: GHG (GgCO2e) BAU | F7: Fertilizer (kg N/yr) | G7: Crop Residues (kg N/yr) | H7: Manure (kg N/yr) | I7: N2O fert (t/yr) | J7: N2O CropRes (t/yr) | K7: N2O Manure (t/yr) | L7: CO2e Fert (Gg/yr) | M7: CO2e CropRes (Gg/yr) | N7: CO2e Manure (Gg/yr) | O7: CO2e subtotal (Gg/yr) | P7: Cattle,poultry,pigs (kgN/yr) | Q7: sheep & other (kgN/yr) | R7: N2O cpp (t/yr) | S7: N2O s&o (t/yr) | T7: CO2e cpp (Gg/yr) | U7: CO2e s&o (Gg/yr) | V7: CO2e subtotal (Gg/yr) | W7: DirN2OManSoil CO2e total (Gg/yr) | X7: Fertilizer (kg N/yr) | Y7: CropResidues (kg N/yr) | Z7: Manure (kg N/yr) | AA7: N2O Volatilised (t/yr) | AB7: CO2e Volatilised (Gg/yr) | AC7: N2O leached (y/yr) | AD7: CO2e leached (Gg/yr) | AE7: IndN2OManSoil CO2e Total (Gg/yr) | AF7: Total (BAU) | AJ7: DirN2OManSoilPol | AN7: Area Available (ha) | AO7: % Area Burnt | AP7: Area Burnt (ha) | AQ7: GHG (tCH4) | AR7: GHG due to CropBurn (Gg CO2e) | AS7: Reduction in GHG (Gg CO2e) | AT7: Nett GHG (Gg CO2e) | AV7: BAU | AW7: Fertilizer (kg N/yr) | AX7: N2O Fert (t) | AY7: CO2e Fert (Gg) | AZ7: ER | BA7: Change | BB7: Total-change | BD7: Food | BE7: Garden | BF7: Paper | BG7: Total | BJ7: Total CO2e (Gg) | BK7: Change | BL7: Total+ change | BN7: Reduced fertilizer (KgN/yr) | BO7: CropResidues (kgN/yr) | BP7: Manure (kg N/yr) | BQ7: N2O Volatized (t/yr) | BR7: CO2e Volatized (Gg/yr) | BS7: N2O leached (y/yr) | BT7: CO2e leached (Gg/yr) | BU7: CO2e Total (Gg) | BV7: Change | BW7: TotalDirN2O-Change | CD7: BAU | CE7: SC1 | CF7: SC2 | CG7: SC3 | CH7: SC4
A8: 2006 | B8: ='6. TNC Assumptions'!C15 -> 70800 | C8: =B8*'5. TNC Parameters'!$H$10 -> 7080 | D8: =C8*'5. TNC Parameters'!$H$6*'5. TNC Parameters'!$H$7*'5. TNC Parameters'!$H$8/1000 -> 124.254 | E8: =D8*'5. TNC Parameters'!$H$9/1000 -> 3.10635 | F8: 7526219 | G8: 3316504 | H8: 2933111.555 | I8: ='TNC CropScenarios'!F8*'5. TNC Parameters'!$H$12*'5. TNC Parameters'!$H$13/1000 -> 118.2691557 | J8: =G8*'5. TNC Parameters'!$H$12*'5. TNC Parameters'!$H$13/1000 -> 52.11649143 | K8: =H8*'5. TNC Parameters'!$H$12*'5. TNC Parameters'!$H$13/1000 -> 46.09175301 | L8: =I8*'5. TNC Parameters'!$H$16/1000 -> 35.2442084 | M8: =J8*'5. TNC Parameters'!$H$16/1000 -> 15.53071445 | N8: =K8*'5. TNC Parameters'!$H$16/1000 -> 13.7353424 | O8: =SUM('TNC CropScenarios'!L8:N8) -> 64.51026524 | Q8: 451428.39 | R8: =P8*'5. TNC Parameters'!$H$14*'5. TNC Parameters'!$H$13/1000 -> 0 | S8: =Q8*'5. TNC Parameters'!$H$15*'5. TNC Parameters'!$H$13/1000 -> 7.0938747 | T8: =R8*'5. TNC Parameters'!$H$16/1000 -> 0 | U8: =S8*'5. TNC Parameters'!$H$16/1000 -> 2.113974661 | V8: ='TNC CropScenarios'!T8+'TNC CropScenarios'!U8 -> 2.113974661 | W8: ='TNC CropScenarios'!O8+'TNC CropScenarios'!V8 -> 66.6242399 | X8: =F8 -> 7526219 | Y8: =G8 -> 3316504 | Z8: 962068.5 | AA8: =(((X8*'5. TNC Parameters'!$H$18)+(Z8*'5. TNC Parameters'!$H$19))*('5. TNC Parameters'!$H$24*'5. TNC Parameters'!$H$21))/1000 -> 14.85055943 | AB8: =AA8*'5. TNC Parameters'!$H$22/1000 -> 4.42546671 | AC8: =((X8+Y8+Z8)*'5. TNC Parameters'!$H$20*'5. TNC Parameters'!$H$23*'5. TNC Parameters'!$H$21)/1000 -> 41.73836995 | AD8: =AC8*'5. TNC Parameters'!$H$22/1000 -> 12.43803424 | AE8: =AB8+AD8 -> 16.86350095 | AF8: =E8+W8+AE8 -> 86.59409086 | AJ8: =INDEX((DirN2OManSoilPol!$U$15:$U$43),MATCH(A8,DirN2OManSoilPol!$A$15:A$43,0)) -> 66.6242399 | AN8: ='6. TNC Assumptions'!B15 -> 70800 | AO8: ='6. TNC Assumptions'!F15 -> 0.1 | AP8: =AN8*AO8 -> 7080 | AQ8: =AP8*'5. TNC Parameters'!$H$6*'5. TNC Parameters'!$H$7*'5. TNC Parameters'!$H$8/1000 -> 124.254 | AR8: =AQ8*'5. TNC Parameters'!$H$9/1000 -> 3.10635 | AS8: =E8-AR8 -> 0 | AT8: =AF8-AS8 -> 86.59409086 | AV8: =L8 -> 35.2442084 | AW8: ='TNC CropScenarios'!F8*'6. TNC Assumptions'!K15 -> 7526219 | AX8: =AW8*'5. TNC Parameters'!$H$12*'5. TNC Parameters'!$H$13/1000 -> 118.2691557 | AY8: =AX8*'5. TNC Parameters'!$H$16/1000 -> 35.2442084 | AZ8: =AY8 -> 35.2442084 | BA8: =AV8-AZ8 -> 0 | BB8: =E8+AJ8+AE8-BA8 -> 86.59409086 | BL8: =BB8+BK8 -> 86.59409086 | BN8: =AW8 -> 7526219 | BO8: ='TNC CropScenarios'!Y8 -> 3316504 | BP8: ='TNC CropScenarios'!Z8 -> 962068.5 | BQ8: =(((BN8*'5. TNC Parameters'!$H$18)+(BP8*'5. TNC Parameters'!$H$19))*('5. TNC Parameters'!$H$24*'5. TNC Parameters'!$H$21))/1000 -> 14.85055943 | BR8: =BQ8*'5. TNC Parameters'!$H$22/1000 -> 4.42546671 | BS8: =((BN8+BO8+BP8)*'5. TNC Parameters'!$H$20*'5. TNC Parameters'!$H$23*'5. TNC Parameters'!$H$21)/1000 -> 41.73836995 | BT8: =BS8*'5. TNC Parameters'!$H$22/1000 -> 12.43803424 | BU8: =BR8+BT8 -> 16.86350095 | BV8: =AE8-BU8 -> 0 | BW8: =BL8-BV8 -> 86.59409086 | BY8: =BW8-AS8 -> 86.59409086 | BZ8: =AF8-BY8 -> 0 | CD8: =AF8 -> 86.59409086 | CE8: =AT8 -> 86.59409086 | CF8: =BB8 -> 86.59409086 | CG8: =BW8 -> 86.59409086 | CH8: =BY8 -> 86.59409086 | CJ8: 86.59409086 | CK8: 86.59409086 | CL8: 86.59409086 | CM8: 86.59409086 | CN8: 86.59409086 | CP8: =CD8-CJ8 -> 0 | CQ8: =CE8-CK8 -> 0 | CR8: 0 | CS8: 0 | CT8: 0
A9: 2007 | B9: ='6. TNC Assumptions'!C16 -> 68520 | C9: =B9*'5. TNC Parameters'!$H$10 -> 6852 | D9: =C9*'5. TNC Parameters'!$H$6*'5. TNC Parameters'!$H$7*'5. TNC Parameters'!$H$8/1000 -> 120.2526 | E9: =D9*'5. TNC Parameters'!$H$9/1000 -> 3.006315 | F9: 7267732 | G9: 3208625 | H9: 2990028.091 | I9: ='TNC CropScenarios'!F9*'5. TNC Parameters'!$H$12*'5. TNC Parameters'!$H$13/1000 -> 114.2072171 | J9: =G9*'5. TNC Parameters'!$H$12*'5. TNC Parameters'!$H$13/1000 -> 50.42125 | K9: =H9*'5. TNC Parameters'!$H$12*'5. TNC Parameters'!$H$13/1000 -> 46.98615572 | L9: =I9*'5. TNC Parameters'!$H$16/1000 -> 34.03375071 | M9: =J9*'5. TNC Parameters'!$H$16/1000 -> 15.0255325 | N9: =K9*'5. TNC Parameters'!$H$16/1000 -> 14.0018744 | O9: =SUM('TNC CropScenarios'!L9:N9) -> 63.06115761 | Q9: 409968 | R9: =P9*'5. TNC Parameters'!$H$14*'5. TNC Parameters'!$H$13/1000 -> 0 | S9: =Q9*'5. TNC Parameters'!$H$15*'5. TNC Parameters'!$H$13/1000 -> 6.442354286 | T9: =R9*'5. TNC Parameters'!$H$16/1000 -> 0 | U9: =S9*'5. TNC Parameters'!$H$16/1000 -> 1.919821577 | V9: ='TNC CropScenarios'!T9+'TNC CropScenarios'!U9 -> 1.919821577 | W9: ='TNC CropScenarios'!O9+'TNC CropScenarios'!V9 -> 64.98097919 | X9: =F9 -> 7267732 | Y9: =G9 -> 3208625 | Z9: 962068.5 | AA9: =((X9*'5. TNC Parameters'!$H$18)+(Z9*'5. TNC Parameters'!$H$19))*'5. TNC Parameters'!$H$24*'5. TNC Parameters'!$H$21/1000 -> 14.44436557 | AB9: =AA9*'5. TNC Parameters'!$H$22/1000 -> 4.30442094 | AC9: =((X9+Y9+Z9)*'5. TNC Parameters'!$H$20*'5. TNC Parameters'!$H$23*'5. TNC Parameters'!$H$21)/1000 -> 40.44300445 | AD9: =AC9*'5. TNC Parameters'!$H$22/1000 -> 12.05201533 | AE9: 16.35643627 | AF9: =E9+W9+AE9 -> 84.34373046 | AJ9: =INDEX((DirN2OManSoilPol!$U$15:$U$43),MATCH(A9,DirN2OManSoilPol!$A$15:A$43,0)) -> 64.98097919 | AN9: ='6. TNC Assumptions'!B16 -> 68520 | AO9: ='6. TNC Assumptions'!F16 -> 0.1 | AP9: =AN9*AO9 -> 6852 | AQ9: =AP9*'5. TNC Parameters'!$H$6*'5. TNC Parameters'!$H$7*'5. TNC Parameters'!$H$8/1000 -> 120.2526 | AR9: =AQ9*'5. TNC Parameters'!$H$9/1000 -> 3.006315 | AS9: 0 | AT9: 84.34373046 | AV9: =L9 -> 34.03375071 | AW9: ='TNC CropScenarios'!F9*'6. TNC Assumptions'!K16 -> 7267732 | AX9: =AW9*'5. TNC Parameters'!$H$12*'5. TNC Parameters'!$H$13/1000 -> 114.2072171 | AY9: =AX9*'5. TNC Parameters'!$H$16/1000 -> 34.03375071 | AZ9: =AY9 -> 34.03375071 | BA9: 0 | BB9: 84.34373046 | BL9: 84.34373046 | BN9: =AW9 -> 7267732 | BO9: ='TNC CropScenarios'!Y9 -> 3208625 | BP9: ='TNC CropScenarios'!Z9 -> 962068.5 | BQ9: =(((BN9*'5. TNC Parameters'!$H$18)+(BP9*'5. TNC Parameters'!$H$19))*('5. TNC Parameters'!$H$24*'5. TNC Parameters'!$H$21))/1000 -> 14.44436557 | BR9: =BQ9*'5. TNC Parameters'!$H$22/1000 -> 4.30442094 | BS9: =((BN9+BO9+BP9)*'5. TNC Parameters'!$H$20*'5. TNC Parameters'!$H$23*'5. TNC Parameters'!$H$21)/1000 -> 40.44300445 | BT9: =BS9*'5. TNC Parameters'!$H$22/1000 -> 12.05201533 | BU9: 16.35643627 | BV9: =AE9-BU9 -> 0 | BW9: 84.34373046 | BY9: 84.34373046 | BZ9: 0 | CD9: =AF9 -> 84.34373046 | CE9: =AT9 -> 84.34373046 | CF9: =BB9 -> 84.34373046 | CG9: =BW9 -> 84.34373046 | CH9: =BY9 -> 84.34373046 | CJ9: 84.34373046 | CK9: 84.34373046 | CL9: 84.34373046 | CM9: 84.34373046 | CN9: 84.34373046 | CP9: =CD9-CJ9 -> 0 | CQ9: =CE9-CK9 -> 0 | CR9: =CF9-CL9 -> 0 | CS9: =CG9-CM9 -> 0 | CT9: =CH9-CN9 -> 0
A10: 2008 | B10: ='6. TNC Assumptions'!C17 -> 65440 | C10: =B10*'5. TNC Parameters'!$H$10 -> 6544 | D10: =C10*'5. TNC Parameters'!$H$6*'5. TNC Parameters'!$H$7*'5. TNC Parameters'!$H$8/1000 -> 114.8472 | E10: =D10*'5. TNC Parameters'!$H$9/1000 -> 2.87118 | F10: 6807140 | G10: 3064362 | H10: 2878426.246 | I10: ='TNC CropScenarios'!F10*'5. TNC Parameters'!$H$12*'5. TNC Parameters'!$H$13/1000 -> 106.9693429 | J10: =G10*'5. TNC Parameters'!$H$12*'5. TNC Parameters'!$H$13/1000 -> 48.15426 | K10: =H10*'5. TNC Parameters'!$H$12*'5. TNC Parameters'!$H$13/1000 -> 45.23241243 | L10: =I10*'5. TNC Parameters'!$H$16/1000 -> 31.87686417 | M10: =J10*'5. TNC Parameters'!$H$16/1000 -> 14.34996948 | N10: =K10*'5. TNC Parameters'!$H$16/1000 -> 13.4792589 | O10: =SUM('TNC CropScenarios'!L10:N10) -> 59.70609256 | Q10: 409968 | R10: =P10*'5. TNC Parameters'!$H$14*'5. TNC Parameters'!$H$13/1000 -> 0 | S10: =Q10*'5. TNC Parameters'!$H$15*'5. TNC Parameters'!$H$13/1000 -> 6.442354286 | T10: =R10*'5. TNC Parameters'!$H$16/1000 -> 0 | U10: =S10*'5. TNC Parameters'!$H$16/1000 -> 1.919821577 | V10: ='TNC CropScenarios'!T10+'TNC CropScenarios'!U10 -> 1.919821577 | W10: ='TNC CropScenarios'!O10+'TNC CropScenarios'!V10 -> 61.62591413 | X10: 6807140 | Y10: 3064362 | Z10: 962068.5 | AA10: =((X10*'5. TNC Parameters'!$H$18)+(Z10*'5. TNC Parameters'!$H$19))*'5. TNC Parameters'!$H$24*'5. TNC Parameters'!$H$21/1000 -> 13.72057814 | AB10: =AA10*'5. TNC Parameters'!$H$22/1000 -> 4.088732287 | AC10: =((X10+Y10+Z10)*'5. TNC Parameters'!$H$20*'5. TNC Parameters'!$H$23*'5. TNC Parameters'!$H$21)/1000 -> 38.30440998 | AD10: =AC10*'5. TNC Parameters'!$H$22/1000 -> 11.41471417 | AE10: 15.50344646 | AF10: 80.00054059 | AJ10: =INDEX((DirN2OManSoilPol!$U$15:$U$43),MATCH(A10,DirN2OManSoilPol!$A$15:A$43,0)) -> 61.62591413 | AN10: ='6. TNC Assumptions'!B17 -> 65440 | AO10: ='6. TNC Assumptions'!F17 -> 0.1 | AP10: 6544 | AQ10: =AP10*'5. TNC Parameters'!$H$6*'5. TNC Parameters'!$H$7*'5. TNC Parameters'!$H$8/1000 -> 114.8472 | AR10: =AQ10*'5. TNC Parameters'!$H$9/1000 -> 2.87118 | AS10: 0 | AT10: 80.00054059 | AV10: 31.87686417 | AW10: ='TNC CropScenarios'!F10*'6. TNC Assumptions'!K17 -> 6807140 | AX10: =AW10*'5. TNC Parameters'!$H$12*'5. TNC Parameters'!$H$13/1000 -> 106.9693429 | AY10: =AX10*'5. TNC Parameters'!$H$16/1000 -> 31.87686417 | AZ10: 31.87686417 | BA10: 0 | BB10: 80.00054059 | BL10: 80.00054059 | BN10: 6807140 | BO10: ='TNC CropScenarios'!Y10 -> 3064362 | BP10: ='TNC CropScenarios'!Z10 -> 962068.5 | BQ10: =(((BN10*'5. TNC Parameters'!$H$18)+(BP10*'5. TNC Parameters'!$H$19))*('5. TNC Parameters'!$H$24*'5. TNC Parameters'!$H$21))/1000 -> 13.72057814 | BR10: =BQ10*'5. TNC Parameters'!$H$22/1000 -> 4.088732287 | BS10: =((BN10+BO10+BP10)*'5. TNC Parameters'!$H$20*'5. TNC Parameters'!$H$23*'5. TNC Parameters'!$H$21)/1000 -> 38.30440998 | BT10: =BS10*'5. TNC Parameters'!$H$22/1000 -> 11.41471417 | BU10: 15.50344646 | BV10: 0 | BW10: 80.00054059 | BY10: 80.00054059 | BZ10: 0 | CD10: 80.00054059 | CE10: 80.00054059 | CF10: 80.00054059 | CG10: 80.00054059 | CH10: 80.00054059 | CJ10: 80.00054059 | CK10: 80.00054059 | CL10: 80.00054059 | CM10: 80.00054059 | CN10: 80.00054059 | CP10: 0 | CQ10: 0 | CR10: 0 | CS10: 0 | CT10: 0
A11: 2009 | B11: ='6. TNC Assumptions'!C18 -> 65850 | C11: =B11*'5. TNC Parameters'!$H$10 -> 6585 | D11: =C11*'5. TNC Parameters'!$H$6*'5. TNC Parameters'!$H$7*'5. TNC Parameters'!$H$8/1000 -> 115.56675 | E11: =D11*'5. TNC Parameters'!$H$9/1000 -> 2.88916875 | F11: 6616456 | G11: 3013169 | H11: 2637317.403 | I11: ='TNC CropScenarios'!F11*'5. TNC Parameters'!$H$12*'5. TNC Parameters'!$H$13/1000 -> 103.97288 | J11: =G11*'5. TNC Parameters'!$H$12*'5. TNC Parameters'!$H$13/1000 -> 47.34979857 | K11: =H11*'5. TNC Parameters'!$H$12*'5. TNC Parameters'!$H$13/1000 -> 41.44355919 | L11: =I11*'5. TNC Parameters'!$H$16/1000 -> 30.98391824 | M11: =J11*'5. TNC Parameters'!$H$16/1000 -> 14.11023997 | N11: =K11*'5. TNC Parameters'!$H$16/1000 -> 12.35018064 | O11: =SUM('TNC CropScenarios'!L11:N11) -> 57.44433885 | P11: 67844.83125 | Q11: 417977.6009 | R11: =P11*'5. TNC Parameters'!$H$14*'5. TNC Parameters'!$H$13/1000 -> 2.132266125 | S11: =Q11*'5. TNC Parameters'!$H$15*'5. TNC Parameters'!$H$13/1000 -> 6.568219442 | T11: =R11*'5. TNC Parameters'!$H$16/1000 -> 0.6354153053 | U11: =S11*'5. TNC Parameters'!$H$16/1000 -> 1.957329394 | V11: ='TNC CropScenarios'!T11+'TNC CropScenarios'!U11 -> 2.592744699 | W11: ='TNC CropScenarios'!O11+'TNC CropScenarios'!V11 -> 60.03708355 | X11: 6616456 | Y11: 3013169 | Z11: 962068.5 | AA11: =((X11*'5. TNC Parameters'!$H$18)+(Z11*'5. TNC Parameters'!$H$19))*'5. TNC Parameters'!$H$24*'5. TNC Parameters'!$H$21/1000 -> 13.42093186 | AB11: =AA11*'5. TNC Parameters'!$H$22/1000 -> 3.999437693 | AC11: =((X11+Y11+Z11)*'5. TNC Parameters'!$H$20*'5. TNC Parameters'!$H$23*'5. TNC Parameters'!$H$21)/1000 -> 37.44920202 | AD11: =AC11*'5. TNC Parameters'!$H$22/1000 -> 11.1598622 | AE11: 15.15929989 | AF11: 78.0855522 | AJ11: =INDEX((DirN2OManSoilPol!$U$15:$U$43),MATCH(A11,DirN2OManSoilPol!$A$15:A$43,0)) -> 60.03708355 | AN11: ='6. TNC Assumptions'!B18 -> 65850 | AO11: ='6. TNC Assumptions'!F18 -> 0.1 | AP11: 6585 | AQ11: =AP11*'5. TNC Parameters'!$H$6*'5. TNC Parameters'!$H$7*'5. TNC Parameters'!$H$8/1000 -> 115.56675 | AR11: =AQ11*'5. TNC Parameters'!$H$9/1000 -> 2.88916875 | AS11: 0 | AT11: 78.0855522 | AV11: 30.98391824 | AW11: ='TNC CropScenarios'!F11*'6. TNC Assumptions'!K18 -> 6616456 | AX11: =AW11*'5. TNC Parameters'!$H$12*'5. TNC Parameters'!$H$13/1000 -> 103.97288 | AY11: =AX11*'5. TNC Parameters'!$H$16/1000 -> 30.98391824 | AZ11: 30.98391824 | BA11: 0 | BB11: 78.0855522 | BL11: 78.0855522 | BN11: 6616456 | BO11: ='TNC CropScenarios'!Y11 -> 3013169 | BP11: ='TNC CropScenarios'!Z11 -> 962068.5 | BQ11: =(((BN11*'5. TNC Parameters'!$H$18)+(BP11*'5. TNC Parameters'!$H$19))*('5. TNC Parameters'!$H$24*'5. TNC Parameters'!$H$21))/1000 -> 13.42093186 | BR11: =BQ11*'5. TNC Parameters'!$H$22/1000 -> 3.999437693 | BS11: =((BN11+BO11+BP11)*'5. TNC Parameters'!$H$20*'5. TNC Parameters'!$H$23*'5. TNC Parameters'!$H$21)/1000 -> 37.44920202 | BT11: =BS11*'5. TNC Parameters'!$H$22/1000 -> 11.1598622 | BU11: 15.15929989 | BV11: 0 | BW11: 78.0855522 | BY11: 78.0855522 | BZ11: 0 | CD11: 78.0855522 | CE11: 78.0855522 | CF11: 78.0855522 | CG11: 78.0855522 | CH11: 78.0855522 | CJ11: 78.0855522 | CK11: 78.0855522 | CL11: 78.0855522 | CM11: 78.0855522 | CN11: 78.0855522 | CP11: 0 | CQ11: 0 | CR11: 0 | CS11: 0 | CT11: 0
A12: 2010 | B12: ='6. TNC Assumptions'!C19 -> 64130 | C12: =B12*'5. TNC Parameters'!$H$10 -> 6413 | D12: =C12*'5. TNC Parameters'!$H$6*'5. TNC Parameters'!$H$7*'5. TNC Parameters'!$H$8/1000 -> 112.54815 | E12: =D12*'5. TNC Parameters'!$H$9/1000 -> 2.81370375 | F12: 7468310 | G12: 3012269 | H12: 3508672.666 | I12: ='TNC CropScenarios'!F12*'5. TNC Parameters'!$H$12*'5. TNC Parameters'!$H$13/1000 -> 117.3591571 | J12: =G12*'5. TNC Parameters'!$H$12*'5. TNC Parameters'!$H$13/1000 -> 47.33565571 | K12: =H12*'5. TNC Parameters'!$H$12*'5. TNC Parameters'!$H$13/1000 -> 55.13628476 | L12: =I12*'5. TNC Parameters'!$H$16/1000 -> 34.97302883 | M12: =J12*'5. TNC Parameters'!$H$16/1000 -> 14.1060254 | N12: =K12*'5. TNC Parameters'!$H$16/1000 -> 16.43061286 | O12: =SUM('TNC CropScenarios'!L12:N12) -> 65.50966709 | P12: 10606.57515 | Q12: 409968 | R12: =P12*'5. TNC Parameters'!$H$14*'5. TNC Parameters'!$H$13/1000 -> 0.3333495047 | S12: =Q12*'5. TNC Parameters'!$H$15*'5. TNC Parameters'!$H$13/1000 -> 6.442354286 | T12: =R12*'5. TNC Parameters'!$H$16/1000 -> 0.0993381524 | U12: =S12*'5. TNC Parameters'!$H$16/1000 -> 1.919821577 | V12: ='TNC CropScenarios'!T12+'TNC CropScenarios'!U12 -> 2.01915973 | W12: ='TNC CropScenarios'!O12+'TNC CropScenarios'!V12 -> 67.52882682 | X12: 7468310 | Y12: 3012269 | Z12: 962068.5 | AA12: =((X12*'5. TNC Parameters'!$H$18)+(Z12*'5. TNC Parameters'!$H$19))*'5. TNC Parameters'!$H$24*'5. TNC Parameters'!$H$21/1000 -> 14.75955957 | AB12: =AA12*'5. TNC Parameters'!$H$22/1000 -> 4.398348752 | AC12: =((X12+Y12+Z12)*'5. TNC Parameters'!$H$20*'5. TNC Parameters'!$H$23*'5. TNC Parameters'!$H$21)/1000 -> 40.45793223 | AD12: =AC12*'5. TNC Parameters'!$H$22/1000 -> 12.05646381 | AE12: 16.45481256 | AF12: 86.79734313 | AJ12: =INDEX((DirN2OManSoilPol!$U$15:$U$43),MATCH(A12,DirN2OManSoilPol!$A$15:A$43,0)) -> 67.52882682 | AN12: ='6. TNC Assumptions'!B19 -> 64130 | AO12: ='6. TNC Assumptions'!F19 -> 0.1 | AP12: 6413 | AQ12: =AP12*'5. TNC Parameters'!$H$6*'5. TNC Parameters'!$H$7*'5. TNC Parameters'!$H$8/1000 -> 112.54815 | AR12: =AQ12*'5. TNC Parameters'!$H$9/1000 -> 2.81370375 | AS12: 0 | AT12: 86.79734313 | AV12: 34.97302883 | AW12: ='TNC CropScenarios'!F12*'6. TNC Assumptions'!K19 -> 7468310 | AX12: =AW12*'5. TNC Parameters'!$H$12*'5. TNC Parameters'!$H$13/1000 -> 117.3591571 | AY12: =AX12*'5. TNC Parameters'!$H$16/1000 -> 34.97302883 | AZ12: 34.97302883 | BA12: 0 | BB12: 86.79734313 | BL12: 86.79734313 | BN12: 7468310 | BO12: ='TNC CropScenarios'!Y12 -> 3012269 | BP12: ='TNC CropScenarios'!Z12 -> 962068.5 | BQ12: =(((BN12*'5. TNC Parameters'!$H$18)+(BP12*'5. TNC Parameters'!$H$19))*('5. TNC Parameters'!$H$24*'5. TNC Parameters'!$H$21))/1000 -> 14.75955957 | BR12: =BQ12*'5. TNC Parameters'!$H$22/1000 -> 4.398348752 | BS12: =((BN12+BO12+BP12)*'5. TNC Parameters'!$H$20*'5. TNC Parameters'!$H$23*'5. TNC Parameters'!$H$21)/1000 -> 40.45793223 | BT12: =BS12*'5. TNC Parameters'!$H$22/1000 -> 12.05646381 | BU12: 16.45481256 | BV12: 0 | BW12: 86.79734313 | BY12: 86.79734313 | BZ12: 0 | CD12: 86.79734313 | CE12: 86.79734313 | CF12: 86.79734313 | CG12: 86.79734313 | CH12: 86.79734313 | CJ12: 86.79734313 | CK12: 86.79734313 | CL12: 86.79734313 | CM12: 86.79734313 | CN12: 86.79734313 | CP12: 0 | CQ12: 0 | CR12: 0 | CS12: 0 | CT12: 0
A13: 2011 | B13: ='6. TNC Assumptions'!C20 -> 61730 | C13: =B13*'5. TNC Parameters'!$H$10 -> 6173 | D13: =C13*'5. TNC Parameters'!$H$6*'5. TNC Parameters'!$H$7*'5. TNC Parameters'!$H$8/1000 -> 108.33615 | E13: =D13*'5. TNC Parameters'!$H$9/1000 -> 2.70840375 | F13: 7834140 | G13: 2902017 | H13: 3528789 | I13: ='TNC CropScenarios'!F13*'5. TNC Parameters'!$H$12*'5. TNC Parameters'!$H$13/1000 -> 123.1079143 | J13: =G13*'5. TNC Parameters'!$H$12*'5. TNC Parameters'!$H$13/1000 -> 45.60312429 | K13: =H13*'5. TNC Parameters'!$H$12*'5. TNC Parameters'!$H$13/1000 -> 55.45239857 | L13: =I13*'5. TNC Parameters'!$H$16/1000 -> 36.68615846 | M13: =J13*'5. TNC Parameters'!$H$16/1000 -> 13.58973104 | N13: =K13*'5. TNC Parameters'!$H$16/1000 -> 16.52481477 | O13: =SUM('TNC CropScenarios'!L13:N13) -> 66.80070427 | P13: 11286.42232 | Q13: 420000 | R13: =P13*'5. TNC Parameters'!$H$14*'5. TNC Parameters'!$H$13/1000 -> 0.3547161302 | S13: =Q13*'5. TNC Parameters'!$H$15*'5. TNC Parameters'!$H$13/1000 -> 6.6 | T13: =R13*'5. TNC Parameters'!$H$16/1000 -> 0.1057054068 | U13: =S13*'5. TNC Parameters'!$H$16/1000 -> 1.9668 | V13: ='TNC CropScenarios'!T13+'TNC CropScenarios'!U13 -> 2.072505407 | W13: ='TNC CropScenarios'!O13+'TNC CropScenarios'!V13 -> 68.87320968 | X13: 7834140 | Y13: 2902017 | Z13: 962068.5 | AA13: =((X13*'5. TNC Parameters'!$H$18)+(Z13*'5. TNC Parameters'!$H$19))*'5. TNC Parameters'!$H$24*'5. TNC Parameters'!$H$21/1000 -> 15.33443529 | AB13: =AA13*'5. TNC Parameters'!$H$22/1000 -> 4.569661715 | AC13: =((X13+Y13+Z13)*'5. TNC Parameters'!$H$20*'5. TNC Parameters'!$H$23*'5. TNC Parameters'!$H$21)/1000 -> 41.36158302 | AD13: =AC13*'5. TNC Parameters'!$H$22/1000 -> 12.32575174 | AE13: 16.89541345 | AF13: 88.47702688 | AJ13: =INDEX((DirN2OManSoilPol!$U$15:$U$43),MATCH(A13,DirN2OManSoilPol!$A$15:A$43,0)) -> 68.87320968 | AN13: ='6. TNC Assumptions'!B20 -> 61730 | AO13: ='6. TNC Assumptions'!F20 -> 0.1 | AP13: 6173 | AQ13: =AP13*'5. TNC Parameters'!$H$6*'5. TNC Parameters'!$H$7*'5. TNC Parameters'!$H$8/1000 -> 108.33615 | AR13: =AQ13*'5. TNC Parameters'!$H$9/1000 -> 2.70840375 | AS13: 0 | AT13: 88.47702688 | AV13: 36.68615846 | AW13: ='TNC CropScenarios'!F13*'6. TNC Assumptions'!K20 -> 7834140 | AX13: =AW13*'5. TNC Parameters'!$H$12*'5. TNC Parameters'!$H$13/1000 -> 123.1079143 | AY13: =AX13*'5. TNC Parameters'!$H$16/1000 -> 36.68615846 | AZ13: 36.68615846 | BA13: 0 | BB13: 88.47702688 | BL13: 88.47702688 | BN13: 7834140 | BO13: ='TNC CropScenarios'!Y13 -> 2902017 | BP13: ='TNC CropScenarios'!Z13 -> 962068.5 | BQ13: =(((BN13*'5. TNC Parameters'!$H$18)+(BP13*'5. TNC Parameters'!$H$19))*('5. TNC Parameters'!$H$24*'5. TNC Parameters'!$H$21))/1000 -> 15.33443529 | BR13: =BQ13*'5. TNC Parameters'!$H$22/1000 -> 4.569661715 | BS13: =((BN13+BO13+BP13)*'5. TNC Parameters'!$H$20*'5. TNC Parameters'!$H$23*'5. TNC Parameters'!$H$21)/1000 -> 41.36158302 | BT13: =BS13*'5. TNC Parameters'!$H$22/1000 -> 12.32575174 | BU13: 16.89541345 | BV13: 0 | BW13: 88.47702688 | BY13: 88.47702688 | BZ13: 0 | CD13: 88.47702688 | CE13: 88.47702688 | CF13: 88.47702688 | CG13: 88.47702688 | CH13: 88.47702688 | CJ13: 88.47702688 | CK13: 88.47702688 | CL13: 88.47702688 | CM13: 88.47702688 | CN13: 88.47702688 | CP13: 0 | CQ13: 0 | CR13: 0 | CS13: 0 | CT13: 0
A14: 2012 | B14: ='6. TNC Assumptions'!C21 -> 57160 | C14: =B14*'5. TNC Parameters'!$H$10 -> 5716 | D14: =C14*'5. TNC Parameters'!$H$6*'5. TNC Parameters'!$H$7*'5. TNC Parameters'!$H$8/1000 -> 100.3158 | E14: =D14*'5. TNC Parameters'!$H$9/1000 -> 2.507895 | F14: 9700004 | G14: 2697461 | H14: 3437753.084 | I14: ='TNC CropScenarios'!F14*'5. TNC Parameters'!$H$12*'5. TNC Parameters'!$H$13/1000 -> 152.4286343 | J14: =G14*'5. TNC Parameters'!$H$12*'5. TNC Parameters'!$H$13/1000 -> 42.38867286 | K14: =H14*'5. TNC Parameters'!$H$12*'5. TNC Parameters'!$H$13/1000 -> 54.02183418 | L14: =I14*'5. TNC Parameters'!$H$16/1000 -> 45.42373302 | M14: =J14*'5. TNC Parameters'!$H$16/1000 -> 12.63182451 | N14: =K14*'5. TNC Parameters'!$H$16/1000 -> 16.09850659 | O14: =SUM('TNC CropScenarios'!L14:N14) -> 74.15406411 | P14: 14442.25612 | Q14: 462125.7992 | R14: =P14*'5. TNC Parameters'!$H$14*'5. TNC Parameters'!$H$13/1000 -> 0.4538994782 | S14: =Q14*'5. TNC Parameters'!$H$15*'5. TNC Parameters'!$H$13/1000 -> 7.261976845 | T14: =R14*'5. TNC Parameters'!$H$16/1000 -> 0.1352620445 | U14: =S14*'5. TNC Parameters'!$H$16/1000 -> 2.1640691 | V14: ='TNC CropScenarios'!T14+'TNC CropScenarios'!U14 -> 2.299331144 | W14: ='TNC CropScenarios'!O14+'TNC CropScenarios'!V14 -> 76.45339526 | X14: 9700004 | Y14: 2697461 | Z14: 962068.5 | AA14: =((X14*'5. TNC Parameters'!$H$18)+(Z14*'5. TNC Parameters'!$H$19))*'5. TNC Parameters'!$H$24*'5. TNC Parameters'!$H$21/1000 -> 18.26650729 | AB14: =AA14*'5. TNC Parameters'!$H$22/1000 -> 5.443419171 | AC14: =((X14+Y14+Z14)*'5. TNC Parameters'!$H$20*'5. TNC Parameters'!$H$23*'5. TNC Parameters'!$H$21)/1000 -> 47.23549345 | AD14: =AC14*'5. TNC Parameters'!$H$22/1000 -> 14.07617705 | AE14: 19.51959622 | AF14: 98.48088648 | AJ14: =INDEX((DirN2OManSoilPol!$U$15:$U$43),MATCH(A14,DirN2OManSoilPol!$A$15:A$43,0)) -> 76.45339526 | AN14: ='6. TNC Assumptions'!B21 -> 57160 | AO14: ='6. TNC Assumptions'!F21 -> 0.1 | AP14: 5716 | AQ14: =AP14*'5. TNC Parameters'!$H$6*'5. TNC Parameters'!$H$7*'5. TNC Parameters'!$H$8/1000 -> 100.3158 | AR14: =AQ14*'5. TNC Parameters'!$H$9/1000 -> 2.507895 | AS14: 0 | AT14: 98.48088648 | AV14: 45.42373302 | AW14: ='TNC CropScenarios'!F14*'6. TNC Assumptions'!K21 -> 9700004 | AX14: =AW14*'5. TNC Parameters'!$H$12*'5. TNC Parameters'!$H$13/1000 -> 152.4286343 | AY14: =AX14*'5. TNC Parameters'!$H$16/1000 -> 45.42373302 | AZ14: 45.42373302 | BA14: 0 | BB14: 98.48088648 | BL14: 98.48088648 | BN14: 9700004 | BO14: ='TNC CropScenarios'!Y14 -> 2697461 | BP14: ='TNC CropScenarios'!Z14 -> 962068.5 | BQ14: =(((BN14*'5. TNC Parameters'!$H$18)+(BP14*'5. TNC Parameters'!$H$19))*('5. TNC Parameters'!$H$24*'5. TNC Parameters'!$H$21))/1000 -> 18.26650729 | BR14: =BQ14*'5. TNC Parameters'!$H$22/1000 -> 5.443419171 | BS14: =((BN14+BO14+BP14)*'5. TNC Parameters'!$H$20*'5. TNC Parameters'!$H$23*'5. TNC Parameters'!$H$21)/1000 -> 47.23549345 | BT14: =BS14*'5. TNC Parameters'!$H$22/1000 -> 14.07617705 | BU14: 19.51959622 | BV14: 0 | BW14: 98.48088648 | BY14: 98.48088648 | BZ14: 0 | CD14: 98.48088648 | CE14: 98.48088648 | CF14: 98.48088648 | CG14: 98.48088648 | CH14: 98.48088648 | CJ14: 98.48088648 | CK14: 98.48088648 | CL14: 98.48088648 | CM14: 98.48088648 | CN14: 98.48088648 | CP14: 0 | CQ14: 0 | CR14: 0 | CS14: 0 | CT14: 0
A15: 2013 | B15: ='6. TNC Assumptions'!C22 -> 56464 | C15: =B15*'5. TNC Parameters'!$H$10 -> 5646.4 | D15: =C15*'5. TNC Parameters'!$H$6*'5. TNC Parameters'!$H$7*'5. TNC Parameters'!$H$8/1000 -> 99.09432 | E15: =D15*'5. TNC Parameters'!$H$9/1000 -> 2.477358 | F15: 9967255 | G15: 2665224 | H15: 3379421.699 | I15: ='TNC CropScenarios'!F15*'5. TNC Parameters'!$H$12*'5. TNC Parameters'!$H$13/1000 -> 156.6282929 | J15: =G15*'5. TNC Parameters'!$H$12*'5. TNC Parameters'!$H$13/1000 -> 41.88209143 | K15: =H15*'5. TNC Parameters'!$H$12*'5. TNC Parameters'!$H$13/1000 -> 53.10519813 | L15: =I15*'5. TNC Parameters'!$H$16/1000 -> 46.67523127 | M15: =J15*'5. TNC Parameters'!$H$16/1000 -> 12.48086325 | N15: =K15*'5. TNC Parameters'!$H$16/1000 -> 15.82534904 | O15: =SUM('TNC CropScenarios'!L15:N15) -> 74.98144356 | P15: 13170.0906 | Q15: 464088.0465 | R15: =P15*'5. TNC Parameters'!$H$14*'5. TNC Parameters'!$H$13/1000 -> 0.4139171331 | S15: =Q15*'5. TNC Parameters'!$H$15*'5. TNC Parameters'!$H$13/1000 -> 7.292812159 | T15: =R15*'5. TNC Parameters'!$H$16/1000 -> 0.1233473057 | U15: =S15*'5. TNC Parameters'!$H$16/1000 -> 2.173258023 | V15: ='TNC CropScenarios'!T15+'TNC CropScenarios'!U15 -> 2.296605329 | W15: ='TNC CropScenarios'!O15+'TNC CropScenarios'!V15 -> 77.27804889 | X15: 9967255 | Y15: 2665224 | Z15: 962068.5 | AA15: =((X15*'5. TNC Parameters'!$H$18)+(Z15*'5. TNC Parameters'!$H$19))*'5. TNC Parameters'!$H$24*'5. TNC Parameters'!$H$21/1000 -> 18.68647314 | AB15: =AA15*'5. TNC Parameters'!$H$22/1000 -> 5.568568997 | AC15: =((X15+Y15+Z15)*'5. TNC Parameters'!$H$20*'5. TNC Parameters'!$H$23*'5. TNC Parameters'!$H$21)/1000 -> 48.0664358 | AD15: =AC15*'5. TNC Parameters'!$H$22/1000 -> 14.32379787 | AE15: 19.89236687 | AF15: 99.64777376 | AJ15: =INDEX((DirN2OManSoilPol!$U$15:$U$43),MATCH(A15,DirN2OManSoilPol!$A$15:A$43,0)) -> 77.27804889 | AN15: ='6. TNC Assumptions'!B22 -> 56464 | AO15: ='6. TNC Assumptions'!F22 -> 0.1 | AP15: 5646.4 | AQ15: =AP15*'5. TNC Parameters'!$H$6*'5. TNC Parameters'!$H$7*'5. TNC Parameters'!$H$8/1000 -> 99.09432 | AR15: =AQ15*'5. TNC Parameters'!$H$9/1000 -> 2.477358 | AS15: 0 | AT15: 99.64777376 | AV15: 46.67523127 | AW15: ='TNC CropScenarios'!F15*'6. TNC Assumptions'!K22 -> 9967255 | AX15: =AW15*'5. TNC Parameters'!$H$12*'5. TNC Parameters'!$H$13/1000 -> 156.6282929 | AY15: =AX15*'5. TNC Parameters'!$H$16/1000 -> 46.67523127 | AZ15: 46.67523127 | BA15: 0 | BB15: 99.64777376 | BL15: 99.64777376 | BN15: 9967255 | BO15: ='TNC CropScenarios'!Y15 -> 2665224 | BP15: ='TNC CropScenarios'!Z15 -> 962068.5 | BQ15: =(((BN15*'5. TNC Parameters'!$H$18)+(BP15*'5. TNC Parameters'!$H$19))*('5. TNC Parameters'!$H$24*'5. TNC Parameters'!$H$21))/1000 -> 18.68647314 | BR15: =BQ15*'5. TNC Parameters'!$H$22/1000 -> 5.568568997 | BS15: =((BN15+BO15+BP15)*'5. TNC Parameters'!$H$20*'5. TNC Parameters'!$H$23*'5. TNC Parameters'!$H$21)/1000 -> 48.0664358 | BT15: =BS15*'5. TNC Parameters'!$H$22/1000 -> 14.32379787 | BU15: 19.89236687 | BV15: 0 | BW15: 99.64777376 | BY15: 99.64777376 | BZ15: 0 | CD15: 99.64777376 | CE15: 99.64777376 | CF15: 99.64777376 | CG15: 99.64777376 | CH15: 99.64777376 | CJ15: 99.64777376 | CK15: 99.64777376 | CL15: 99.64777376 | CM15: 99.64777376 | CN15: 99.64777376 | CP15: 0 | CQ15: 0 | CR15: 0 | CS15: 0 | CT15: 0
A16: 2014 | B16: ='6. TNC Assumptions'!C23 -> 50694 | C16: =B16*'5. TNC Parameters'!$H$10 -> 5069.4 | D16: =C16*'5. TNC Parameters'!$H$6*'5. TNC Parameters'!$H$7*'5. TNC Parameters'!$H$8/1000 -> 88.96797 | E16: =D16*'5. TNC Parameters'!$H$9/1000 -> 2.22419925 | F16: =F15*(1+'6. TNC Assumptions'!I23) -> 10166600.1 | G16: =G15 -> 2665224 | H16: =H15+(H17-H15)/2 -> 3440472.132 | I16: ='TNC CropScenarios'!F16*'5. TNC Parameters'!$H$12*'5. TNC Parameters'!$H$13/1000 -> 159.7608587 | J16: =G16*'5. TNC Parameters'!$H$12*'5. TNC Parameters'!$H$13/1000 -> 41.88209143 | K16: =H16*'5. TNC Parameters'!$H$12*'5. TNC Parameters'!$H$13/1000 -> 54.06456207 | L16: =I16*'5. TNC Parameters'!$H$16/1000 -> 47.6087359 | M16: =J16*'5. TNC Parameters'!$H$16/1000 -> 12.48086325 | N16: =K16*'5. TNC Parameters'!$H$16/1000 -> 16.1112395 | O16: =SUM('TNC CropScenarios'!L16:N16) -> 76.20083864 | P16: =P15+(P17-P15)/2 -> 12926.5553 | Q16: =Q15 -> 464088.0465 | R16: =P16*'5. TNC Parameters'!$H$14*'5. TNC Parameters'!$H$13/1000 -> 0.4062631666 | S16: =Q16*'5. TNC Parameters'!$H$15*'5. TNC Parameters'!$H$13/1000 -> 7.292812159 | T16: =R16*'5. TNC Parameters'!$H$16/1000 -> 0.1210664236 | U16: =S16*'5. TNC Parameters'!$H$16/1000 -> 2.173258023 | V16: ='TNC CropScenarios'!T16+'TNC CropScenarios'!U16 -> 2.294324447 | W16: ='TNC CropScenarios'!O16+'TNC CropScenarios'!V16 -> 78.49516309 | X16: 10166600.1 | Y16: 2665224 | Z16: 962068.5 | AA16: =((X16*'5. TNC Parameters'!$H$18)+(Z16*'5. TNC Parameters'!$H$19))*'5. TNC Parameters'!$H$24*'5. TNC Parameters'!$H$21/1000 -> 18.99972973 | AB16: =AA16*'5. TNC Parameters'!$H$22/1000 -> 5.661919459 | AC16: =((X16+Y16+Z16)*'5. TNC Parameters'!$H$20*'5. TNC Parameters'!$H$23*'5. TNC Parameters'!$H$21)/1000 -> 48.77126312 | AD16: =AC16*'5. TNC Parameters'!$H$22/1000 -> 14.53383641 | AE16: 20.19575587 | AF16: 100.9151182 | AJ16: =INDEX((DirN2OManSoilPol!$U$15:$U$43),MATCH(A16,DirN2OManSoilPol!$A$15:A$43,0)) -> 78.49516309 | AN16: ='6. TNC Assumptions'!B23 -> 50694 | AO16: ='6. TNC Assumptions'!F23 -> 0.1 | AP16: 5069.4 | AQ16: =AP16*'5. TNC Parameters'!$H$6*'5. TNC Parameters'!$H$7*'5. TNC Parameters'!$H$8/1000 -> 88.96797 | AR16: =AQ16*'5. TNC Parameters'!$H$9/1000 -> 2.22419925 | AS16: 0 | AT16: 100.9151182 | AV16: 47.6087359 | AW16: ='TNC CropScenarios'!F16*'6. TNC Assumptions'!K23 -> 10166600.1 | AX16: =AW16*'5. TNC Parameters'!$H$12*'5. TNC Parameters'!$H$13/1000 -> 159.7608587 | AY16: =AX16*'5. TNC Parameters'!$H$16/1000 -> 47.6087359 | AZ16: 47.6087359 | BA16: 0 | BB16: 100.9151182 | BL16: 100.9151182 | BN16: 10166600.1 | BO16: ='TNC CropScenarios'!Y16 -> 2665224 | BP16: ='TNC CropScenarios'!Z16 -> 962068.5 | BQ16: =(((BN16*'5. TNC Parameters'!$H$18)+(BP16*'5. TNC Parameters'!$H$19))*('5. TNC Parameters'!$H$24*'5. TNC Parameters'!$H$21))/1000 -> 18.99972973 | BR16: =BQ16*'5. TNC Parameters'!$H$22/1000 -> 5.661919459 | BS16: =((BN16+BO16+BP16)*'5. TNC Parameters'!$H$20*'5. TNC Parameters'!$H$23*'5. TNC Parameters'!$H$21)/1000 -> 48.77126312 | BT16: =BS16*'5. TNC Parameters'!$H$22/1000 -> 14.53383641 | BU16: 20.19575587 | BV16: 0 | BW16: 100.9151182 | BY16: 100.9151182 | BZ16: 0 | CD16: 100.9151182 | CE16: 100.9151182 | CF16: 100.9151182 | CG16: 100.9151182 | CH16: 100.9151182 | CJ16: 100.9151182 | CK16: 100.9151182 | CL16: 100.9151182 | CM16: 100.9151182 | CN16: 100.9151182 | CP16: 0 | CQ16: 0 | CR16: 0 | CS16: 0 | CT16: 0
A17: 2015 | B17: ='6. TNC Assumptions'!C24 -> 52387 | C17: =B17*'5. TNC Parameters'!$H$10 -> 5238.7 | D17: =C17*'5. TNC Parameters'!$H$6*'5. TNC Parameters'!$H$7*'5. TNC Parameters'!$H$8/1000 -> 91.939185 | E17: =D17*'5. TNC Parameters'!$H$9/1000 -> 2.298479625 | F17: =F16*(1+'6. TNC Assumptions'!I24) -> 10369932.1 | G17: 2665224 | H17: =MMS!U90 -> 3501522.565 | I17: ='TNC CropScenarios'!F17*'5. TNC Parameters'!$H$12*'5. TNC Parameters'!$H$13/1000 -> 162.9560759 | J17: =G17*'5. TNC Parameters'!$H$12*'5. TNC Parameters'!$H$13/1000 -> 41.88209143 | K17: =H17*'5. TNC Parameters'!$H$12*'5. TNC Parameters'!$H$13/1000 -> 55.02392601 | L17: =I17*'5. TNC Parameters'!$H$16/1000 -> 48.56091061 | M17: =J17*'5. TNC Parameters'!$H$16/1000 -> 12.48086325 | N17: =K17*'5. TNC Parameters'!$H$16/1000 -> 16.39712995 | O17: =SUM('TNC CropScenarios'!L17:N17) -> 77.43890381 | P17: =MMS!U92 -> 12683.02 | Q17: =MMS!U91 -> 464088.0465 | R17: =P17*'5. TNC Parameters'!$H$14*'5. TNC Parameters'!$H$13/1000 -> 0.3986092 | S17: =Q17*'5. TNC Parameters'!$H$15*'5. TNC Parameters'!$H$13/1000 -> 7.292812159 | T17: =R17*'5. TNC Parameters'!$H$16/1000 -> 0.1187855416 | U17: =S17*'5. TNC Parameters'!$H$16/1000 -> 2.173258023 | V17: ='TNC CropScenarios'!T17+'TNC CropScenarios'!U17 -> 2.292043565 | W17: ='TNC CropScenarios'!O17+'TNC CropScenarios'!V17 -> 79.73094738 | X17: 10369932.1 | Y17: 2665224 | Z17: 962068.5 | AA17: =((X17*'5. TNC Parameters'!$H$18)+(Z17*'5. TNC Parameters'!$H$19))*'5. TNC Parameters'!$H$24*'5. TNC Parameters'!$H$21/1000 -> 19.31925145 | AB17: =AA17*'5. TNC Parameters'!$H$22/1000 -> 5.757136931 | AC17: =((X17+Y17+Z17)*'5. TNC Parameters'!$H$20*'5. TNC Parameters'!$H$23*'5. TNC Parameters'!$H$21)/1000 -> 49.49018699 | AD17: =AC17*'5. TNC Parameters'!$H$22/1000 -> 14.74807572 | AE17: 20.50521265 | AF17: 102.5346397 | AJ17: =INDEX((DirN2OManSoilPol!$U$15:$U$43),MATCH(A17,DirN2OManSoilPol!$A$15:A$43,0)) -> 79.73094738 | AN17: ='6. TNC Assumptions'!B24 -> 52387 | AO17: ='6. TNC Assumptions'!F24 -> 0.1 | AP17: 5238.7 | AQ17: =AP17*'5. TNC Parameters'!$H$6*'5. TNC Parameters'!$H$7*'5. TNC Parameters'!$H$8/1000 -> 91.939185 | AR17: =AQ17*'5. TNC Parameters'!$H$9/1000 -> 2.298479625 | AS17: 0 | AT17: 102.5346397 | AV17: 48.56091061 | AW17: ='TNC CropScenarios'!F17*'6. TNC Assumptions'!K24 -> 10369932.1 | AX17: =AW17*'5. TNC Parameters'!$H$12*'5. TNC Parameters'!$H$13/1000 -> 162.9560759 | AY17: =AX17*'5. TNC Parameters'!$H$16/1000 -> 48.56091061 | AZ17: 48.56091061 | BA17: 0 | BB17: 102.5346397 | BL17: 102.5346397 | BN17: 10369932.1 | BO17: ='TNC CropScenarios'!Y17 -> 2665224 | BP17: ='TNC CropScenarios'!Z17 -> 962068.5 | BQ17: =(((BN17*'5. TNC Parameters'!$H$18)+(BP17*'5. TNC Parameters'!$H$19))*('5. TNC Parameters'!$H$24*'5. TNC Parameters'!$H$21))/1000 -> 19.31925145 | BR17: =BQ17*'5. TNC Parameters'!$H$22/1000 -> 5.757136931 | BS17: =((BN17+BO17+BP17)*'5. TNC Parameters'!$H$20*'5. TNC Parameters'!$H$23*'5. TNC Parameters'!$H$21)/1000 -> 49.49018699 | BT17: =BS17*'5. TNC Parameters'!$H$22/1000 -> 14.74807572 | BU17: 20.50521265 | BV17: 0 | BW17: 102.5346397 | BY17: 102.5346397 | BZ17: 0 | CD17: 102.5346397 | CE17: 102.5346397 | CF17: 102.5346397 | CG17: 102.5346397 | CH17: 102.5346397 | CJ17: 102.5346397 | CK17: 102.5346397 | CL17: 102.5346397 | CM17: 102.5346397 | CN17: 102.5346397 | CP17: 0 | CQ17: 0 | CR17: 0 | CS17: 0 | CT17: 0
A18: 2016 | B18: ='6. TNC Assumptions'!C25 -> 52000 | C18: =B18*'5. TNC Parameters'!$H$10 -> 5200 | D18: =C18*'5. TNC Parameters'!$H$6*'5. TNC Parameters'!$H$7*'5. TNC Parameters'!$H$8/1000 -> 91.26 | E18: =D18*'5. TNC Parameters'!$H$9/1000 -> 2.2815 | F18: =F17*(1+'6. TNC Assumptions'!I25) -> 10577330.74 | G18: 2665224 | H18: =H17+($H$22-$H$17)/5 -> 3517897.824 | I18: ='TNC CropScenarios'!F18*'5. TNC Parameters'!$H$12*'5. TNC Parameters'!$H$13/1000 -> 166.2151974 | J18: =G18*'5. TNC Parameters'!$H$12*'5. TNC Parameters'!$H$13/1000 -> 41.88209143 | K18: =H18*'5. TNC Parameters'!$H$12*'5. TNC Parameters'!$H$13/1000 -> 55.28125152 | L18: =I18*'5. TNC Parameters'!$H$16/1000 -> 49.53212883 | M18: =J18*'5. TNC Parameters'!$H$16/1000 -> 12.48086325 | N18: =K18*'5. TNC Parameters'!$H$16/1000 -> 16.47381295 | O18: =SUM('TNC CropScenarios'!L18:N18) -> 78.48680503 | P18: =P17+($P$22-$P$17)/5 -> 12533.808 | Q18: =Q17+($Q$22-$Q$17)/5 -> 458963.4465 | R18: =P18*'5. TNC Parameters'!$H$14*'5. TNC Parameters'!$H$13/1000 -> 0.39391968 | S18: =Q18*'5. TNC Parameters'!$H$15*'5. TNC Parameters'!$H$13/1000 -> 7.212282731 | T18: =R18*'5. TNC Parameters'!$H$16/1000 -> 0.1173880646 | U18: =S18*'5. TNC Parameters'!$H$16/1000 -> 2.149260254 | V18: ='TNC CropScenarios'!T18+'TNC CropScenarios'!U18 -> 2.266648318 | W18: ='TNC CropScenarios'!O18+'TNC CropScenarios'!V18 -> 80.75345334 | X18: 10577330.74 | Y18: 2665224 | Z18: 962068.5 | AA18: =((X18*'5. TNC Parameters'!$H$18)+(Z18*'5. TNC Parameters'!$H$19))*'5. TNC Parameters'!$H$24*'5. TNC Parameters'!$H$21/1000 -> 19.6451636 | AB18: =AA18*'5. TNC Parameters'!$H$22/1000 -> 5.854258752 | AC18: =((X18+Y18+Z18)*'5. TNC Parameters'!$H$20*'5. TNC Parameters'!$H$23*'5. TNC Parameters'!$H$21)/1000 -> 50.22348933 | AD18: =AC18*'5. TNC Parameters'!$H$22/1000 -> 14.96659982 | AE18: 20.82085857 | AF18: 103.8558119 | AJ18: =INDEX((DirN2OManSoilPol!$U$15:$U$43),MATCH(A18,DirN2OManSoilPol!$A$15:A$43,0)) -> 80.85254038 | AN18: ='6. TNC Assumptions'!B25 -> 52000 | AO18: ='6. TNC Assumptions'!F25 -> 0.1 | AP18: 5200 | AQ18: =AP18*'5. TNC Parameters'!$H$6*'5. TNC Parameters'!$H$7*'5. TNC Parameters'!$H$8/1000 -> 91.26 | AR18: =AQ18*'5. TNC Parameters'!$H$9/1000 -> 2.2815 | AS18: 0 | AT18: 103.8558119 | AV18: 49.53212883 | AW18: ='TNC CropScenarios'!F18*'6. TNC Assumptions'!K25 -> 10471557.44 | AX18: =AW18*'5. TNC Parameters'!$H$12*'5. TNC Parameters'!$H$13/1000 -> 164.5530454 | AY18: =AX18*'5. TNC Parameters'!$H$16/1000 -> 49.03680754 | AZ18: 49.03680754 | BA18: 0.4953212883 | BB18: 103.4595777 | BL18: 103.4595777 | BN18: 10471557.44 | BO18: ='TNC CropScenarios'!Y18 -> 2665224 | BP18: ='TNC CropScenarios'!Z18 -> 962068.5 | BQ18: =(((BN18*'5. TNC Parameters'!$H$18)+(BP18*'5. TNC Parameters'!$H$19))*('5. TNC Parameters'!$H$24*'5. TNC Parameters'!$H$21))/1000 -> 19.4789484 | BR18: =BQ18*'5. TNC Parameters'!$H$22/1000 -> 5.804726623 | BS18: =((BN18+BO18+BP18)*'5. TNC Parameters'!$H$20*'5. TNC Parameters'!$H$23*'5. TNC Parameters'!$H$21)/1000 -> 49.84950513 | BT18: =BS18*'5. TNC Parameters'!$H$22/1000 -> 14.85515253 | BU18: 20.65987915 | BV18: 0.1609794187 | BW18: 103.2985982 | BY18: 103.2985982 | BZ18: 0.5572136735 | CD18: 103.8558119 | CE18: 103.8558119 | CF18: 103.4595777 | CG18: 103.2985982 | CH18: 103.2985982 | CJ18: 103.8558119 | CK18: 103.8558119 | CL18: 103.4595777 | CM18: 103.2985982 | CN18: 103.2985982 | CP18: 0 | CQ18: 0 | CR18: 0 | CS18: 0 | CT18: 0
A19: 2017 | B19: ='6. TNC Assumptions'!C26 -> 51000 | C19: =B19*'5. TNC Parameters'!$H$10 -> 5100 | D19: =C19*'5. TNC Parameters'!$H$6*'5. TNC Parameters'!$H$7*'5. TNC Parameters'!$H$8/1000 -> 89.505 | E19: =D19*'5. TNC Parameters'!$H$9/1000 -> 2.237625 | F19: =F18*(1+'6. TNC Assumptions'!I26) -> 10788877.36 | G19: 2665224 | H19: =H18+($H$22-$H$17)/5 -> 3534273.083 | I19: ='TNC CropScenarios'!F19*'5. TNC Parameters'!$H$12*'5. TNC Parameters'!$H$13/1000 -> 169.5395014 | J19: =G19*'5. TNC Parameters'!$H$12*'5. TNC Parameters'!$H$13/1000 -> 41.88209143 | K19: =H19*'5. TNC Parameters'!$H$12*'5. TNC Parameters'!$H$13/1000 -> 55.53857702 | L19: =I19*'5. TNC Parameters'!$H$16/1000 -> 50.5227714 | M19: =J19*'5. TNC Parameters'!$H$16/1000 -> 12.48086325 | N19: =K19*'5. TNC Parameters'!$H$16/1000 -> 16.55049595 | O19: =SUM('TNC CropScenarios'!L19:N19) -> 79.5541306 | P19: =P18+($P$22-$P$17)/5 -> 12384.596 | Q19: =Q18+($Q$22-$Q$17)/5 -> 453838.8465 | R19: =P19*'5. TNC Parameters'!$H$14*'5. TNC Parameters'!$H$13/1000 -> 0.38923016 | S19: =Q19*'5. TNC Parameters'!$H$15*'5. TNC Parameters'!$H$13/1000 -> 7.131753302 | T19: =R19*'5. TNC Parameters'!$H$16/1000 -> 0.1159905877 | U19: =S19*'5. TNC Parameters'!$H$16/1000 -> 2.125262484 | V19: ='TNC CropScenarios'!T19+'TNC CropScenarios'!U19 -> 2.241253072 | W19: ='TNC CropScenarios'!O19+'TNC CropScenarios'!V19 -> 81.79538367 | X19: 10788877.36 | Y19: 2665224 | Z19: 962068.5 | AA19: =((X19*'5. TNC Parameters'!$H$18)+(Z19*'5. TNC Parameters'!$H$19))*'5. TNC Parameters'!$H$24*'5. TNC Parameters'!$H$21/1000 -> 19.97759399 | AB19: =AA19*'5. TNC Parameters'!$H$22/1000 -> 5.95332301 | AC19: =((X19+Y19+Z19)*'5. TNC Parameters'!$H$20*'5. TNC Parameters'!$H$23*'5. TNC Parameters'!$H$21)/1000 -> 50.97145772 | AD19: =AC19*'5. TNC Parameters'!$H$22/1000 -> 15.1894944 | AE19: 21.14281741 | AF19: 105.1758261 | AJ19: =INDEX((DirN2OManSoilPol!$U$15:$U$43),MATCH(A19,DirN2OManSoilPol!$A$15:A$43,0)) -> 81.99355774 | AN19: ='6. TNC Assumptions'!B26 -> 51000 | AO19: ='6. TNC Assumptions'!F26 -> 0.1 | AP19: 5100 | AQ19: =AP19*'5. TNC Parameters'!$H$6*'5. TNC Parameters'!$H$7*'5. TNC Parameters'!$H$8/1000 -> 89.505 | AR19: =AQ19*'5. TNC Parameters'!$H$9/1000 -> 2.237625 | AS19: 0 | AT19: 105.1758261 | AV19: 50.5227714 | AW19: ='TNC CropScenarios'!F19*'6. TNC Assumptions'!K26 -> 10573099.81 | AX19: =AW19*'5. TNC Parameters'!$H$12*'5. TNC Parameters'!$H$13/1000 -> 166.1487113 | AY19: =AX19*'5. TNC Parameters'!$H$16/1000 -> 49.51231598 | AZ19: 49.51231598 | BA19: 1.010455428 | BB19: 104.3635447 | BD19: ='6. TNC Assumptions'!Q26*'6. TNC Assumptions'!$O$15*'6. TNC Assumptions'!S26 -> 1.326952758 | BE19: ='6. TNC Assumptions'!Q26*'6. TNC Assumptions'!$O$16*'6. TNC Assumptions'!S26 -> 4.42317586 | BF19: ='6. TNC Assumptions'!Q26*'6. TNC Assumptions'!$O$17*'6. TNC Assumptions'!S26 -> 1.061562206 | BG19: =BD19+BE19+BF19 -> 6.811690824 | BH19: ='TNC CropScenarios'!BG19*'5. TNC Parameters'!$H$27 -> 3.405845412 | BI19: =BH19*'5. TNC Parameters'!$H$28*1000000 -> 59602.29471 | BJ19: =BI19*'5. TNC Parameters'!$H$12*'5. TNC Parameters'!$H$13*'5. TNC Parameters'!$H$16/1000000 -> 0.2791090315 | BK19: =BJ19 -> 0.2791090315 | BL19: 104.6426538 | BN19: 10573099.81 | BO19: ='TNC CropScenarios'!Y19 -> 2665224 | BP19: =BI19+$BP$18 -> 1021670.795 | BQ19: =(((BN19*'5. TNC Parameters'!$H$18)+(BP19*'5. TNC Parameters'!$H$19))*('5. TNC Parameters'!$H$24*'5. TNC Parameters'!$H$21))/1000 -> 19.82583649 | BR19: =BQ19*'5. TNC Parameters'!$H$22/1000 -> 5.908099273 | BS19: =((BN19+BO19+BP19)*'5. TNC Parameters'!$H$20*'5. TNC Parameters'!$H$23*'5. TNC Parameters'!$H$21)/1000 -> 50.41926664 | BT19: =BS19*'5. TNC Parameters'!$H$22/1000 -> 15.02494146 | BU19: 20.93304073 | BV19: 0.2097766757 | BW19: 104.4328771 | BY19: 104.4328771 | BZ19: 0.7429490054 | CD19: 105.1758261 | CE19: 105.1758261 | CF19: 104.3635447 | CG19: 104.4328771 | CH19: 104.4328771 | CJ19: 105.1758261 | CK19: 105.1758261 | CL19: 104.3635447 | CM19: 104.4328771 | CN19: 104.4328771 | CP19: 0 | CQ19: 0 | CR19: 0 | CS19: 0 | CT19: 0
A20: 2018 | B20: ='6. TNC Assumptions'!C27 -> 50500 | C20: =B20*'5. TNC Parameters'!$H$10 -> 5050 | D20: =C20*'5. TNC Parameters'!$H$6*'5. TNC Parameters'!$H$7*'5. TNC Parameters'!$H$8/1000 -> 88.6275 | E20: =D20*'5. TNC Parameters'!$H$9/1000 -> 2.2156875 | F20: =F19*(1+'6. TNC Assumptions'!I27) -> 11004654.91 | G20: 2665224 | H20: =H19+($H$22-$H$17)/5 -> 3550648.343 | I20: ='TNC CropScenarios'!F20*'5. TNC Parameters'!$H$12*'5. TNC Parameters'!$H$13/1000 -> 172.9302914 | J20: =G20*'5. TNC Parameters'!$H$12*'5. TNC Parameters'!$H$13/1000 -> 41.88209143 | K20: =H20*'5. TNC Parameters'!$H$12*'5. TNC Parameters'!$H$13/1000 -> 55.79590253 | L20: =I20*'5. TNC Parameters'!$H$16/1000 -> 51.53322683 | M20: =J20*'5. TNC Parameters'!$H$16/1000 -> 12.48086325 | N20: =K20*'5. TNC Parameters'!$H$16/1000 -> 16.62717895 | O20: =SUM('TNC CropScenarios'!L20:N20) -> 80.64126903 | P20: =P19+($P$22-$P$17)/5 -> 12235.384 | Q20: =Q19+($Q$22-$Q$17)/5 -> 448714.2465 | R20: =P20*'5. TNC Parameters'!$H$14*'5. TNC Parameters'!$H$13/1000 -> 0.38454064 | S20: =Q20*'5. TNC Parameters'!$H$15*'5. TNC Parameters'!$H$13/1000 -> 7.051223874 | T20: =R20*'5. TNC Parameters'!$H$16/1000 -> 0.1145931107 | U20: =S20*'5. TNC Parameters'!$H$16/1000 -> 2.101264714 | V20: ='TNC CropScenarios'!T20+'TNC CropScenarios'!U20 -> 2.215857825 | W20: ='TNC CropScenarios'!O20+'TNC CropScenarios'!V20 -> 82.85712686 | X20: 11004654.91 | Y20: 2665224 | Z20: 962068.5 | AA20: =((X20*'5. TNC Parameters'!$H$18)+(Z20*'5. TNC Parameters'!$H$19))*'5. TNC Parameters'!$H$24*'5. TNC Parameters'!$H$21/1000 -> 20.316673 | AB20: =AA20*'5. TNC Parameters'!$H$22/1000 -> 6.054368553 | AC20: =((X20+Y20+Z20)*'5. TNC Parameters'!$H$20*'5. TNC Parameters'!$H$23*'5. TNC Parameters'!$H$21)/1000 -> 51.73438547 | AD20: =AC20*'5. TNC Parameters'!$H$22/1000 -> 15.41684687 | AE20: 21.47121542 | AF20: 106.5440298 | AJ20: =INDEX((DirN2OManSoilPol!$U$15:$U$43),MATCH(A20,DirN2OManSoilPol!$A$15:A$43,0)) -> 83.15438796 | AN20: ='6. TNC Assumptions'!B27 -> 50500 | AO20: ='6. TNC Assumptions'!F27 -> 0.1 | AP20: 5050 | AQ20: =AP20*'5. TNC Parameters'!$H$6*'5. TNC Parameters'!$H$7*'5. TNC Parameters'!$H$8/1000 -> 88.6275 | AR20: =AQ20*'5. TNC Parameters'!$H$9/1000 -> 2.2156875 | AS20: 0 | AT20: 106.5440298 | AV20: 51.53322683 | AW20: ='TNC CropScenarios'!F20*'6. TNC Assumptions'!K27 -> 10674515.26 | AX20: =AW20*'5. TNC Parameters'!$H$12*'5. TNC Parameters'!$H$13/1000 -> 167.7423826 | AY20: =AX20*'5. TNC Parameters'!$H$16/1000 -> 49.98723003 | AZ20: 49.98723003 | BA20: 1.545996805 | BB20: 105.2952941 | BD20: ='6. TNC Assumptions'!Q27*'6. TNC Assumptions'!$O$15*'6. TNC Assumptions'!S27 -> 2.706983626 | BE20: ='6. TNC Assumptions'!Q27*'6. TNC Assumptions'!$O$16*'6. TNC Assumptions'!S27 -> 9.023278754 | BF20: ='6. TNC Assumptions'!Q27*'6. TNC Assumptions'!$O$17*'6. TNC Assumptions'!S27 -> 2.165586901 | BG20: 13.89584928 | BH20: ='TNC CropScenarios'!BG20*'5. TNC Parameters'!$H$27 -> 6.947924641 | BI20: =BH20*'5. TNC Parameters'!$H$28*1000000 -> 121588.6812 | BJ20: =BI20*'5. TNC Parameters'!$H$12*'5. TNC Parameters'!$H$13*'5. TNC Parameters'!$H$16/1000000 -> 0.5693824243 | BK20: =BJ20 -> 0.5693824243 | BL20: 105.8646765 | BN20: 10674515.26 | BO20: ='TNC CropScenarios'!Y20 -> 2665224 | BP20: =BI20+$BP$18 -> 1083657.181 | BQ20: =(((BN20*'5. TNC Parameters'!$H$18)+(BP20*'5. TNC Parameters'!$H$19))*('5. TNC Parameters'!$H$24*'5. TNC Parameters'!$H$21))/1000 -> 20.18001798 | BR20: =BQ20*'5. TNC Parameters'!$H$22/1000 -> 6.013645357 | BS20: =((BN20+BO20+BP20)*'5. TNC Parameters'!$H$20*'5. TNC Parameters'!$H$23*'5. TNC Parameters'!$H$21)/1000 -> 50.99700884 | BT20: =BS20*'5. TNC Parameters'!$H$22/1000 -> 15.19710863 | BU20: 21.21075399 | BV20: 0.2604614313 | BW20: 105.6042151 | BY20: 105.6042151 | BZ20: 0.9398147117 | CD20: 106.5440298 | CE20: 106.5440298 | CF20: 105.2952941 | CG20: 105.6042151 | CH20: 105.6042151 | CJ20: 106.5440298 | CK20: 106.5440298 | CL20: 105.2952941 | CM20: 105.6042151 | CN20: 105.6042151 | CP20: 0 | CQ20: 0 | CR20: 0 | CS20: 0 | CT20: 0
A21: 2019 | B21: ='6. TNC Assumptions'!C28 -> 50000 | C21: =B21*'5. TNC Parameters'!$H$10 -> 5000 | D21: =C21*'5. TNC Parameters'!$H$6*'5. TNC Parameters'!$H$7*'5. TNC Parameters'!$H$8/1000 -> 87.75 | E21: =D21*'5. TNC Parameters'!$H$9/1000 -> 2.19375 | F21: =F20*(1+'6. TNC Assumptions'!I28) -> 11224748 | G21: 2665224 | H21: =H20+($H$22-$H$17)/5 -> 3567023.602 | I21: ='TNC CropScenarios'!F21*'5. TNC Parameters'!$H$12*'5. TNC Parameters'!$H$13/1000 -> 176.3888972 | J21: =G21*'5. TNC Parameters'!$H$12*'5. TNC Parameters'!$H$13/1000 -> 41.88209143 | K21: =H21*'5. TNC Parameters'!$H$12*'5. TNC Parameters'!$H$13/1000 -> 56.05322803 | L21: =I21*'5. TNC Parameters'!$H$16/1000 -> 52.56389137 | M21: =J21*'5. TNC Parameters'!$H$16/1000 -> 12.48086325 | N21: =K21*'5. TNC Parameters'!$H$16/1000 -> 16.70386195 | O21: =SUM('TNC CropScenarios'!L21:N21) -> 81.74861657 | P21: =P20+($P$22-$P$17)/5 -> 12086.172 | Q21: =Q20+($Q$22-$Q$17)/5 -> 443589.6465 | R21: =P21*'5. TNC Parameters'!$H$14*'5. TNC Parameters'!$H$13/1000 -> 0.37985112 | S21: =Q21*'5. TNC Parameters'!$H$15*'5. TNC Parameters'!$H$13/1000 -> 6.970694445 | T21: =R21*'5. TNC Parameters'!$H$16/1000 -> 0.1131956338 | U21: =S21*'5. TNC Parameters'!$H$16/1000 -> 2.077266945 | V21: ='TNC CropScenarios'!T21+'TNC CropScenarios'!U21 -> 2.190462578 | W21: ='TNC CropScenarios'!O21+'TNC CropScenarios'!V21 -> 83.93907915 | X21: 11224748 | Y21: 2665224 | Z21: 962068.5 | AA21: =((X21*'5. TNC Parameters'!$H$18)+(Z21*'5. TNC Parameters'!$H$19))*'5. TNC Parameters'!$H$24*'5. TNC Parameters'!$H$21/1000 -> 20.66253358 | AB21: =AA21*'5. TNC Parameters'!$H$22/1000 -> 6.157435006 | AC21: =((X21+Y21+Z21)*'5. TNC Parameters'!$H$20*'5. TNC Parameters'!$H$23*'5. TNC Parameters'!$H$21)/1000 -> 52.51257178 | AD21: =AC21*'5. TNC Parameters'!$H$22/1000 -> 15.64874639 | AE21: 21.8061814 | AF21: 107.9390105 | AJ21: =INDEX((DirN2OManSoilPol!$U$15:$U$43),MATCH(A21,DirN2OManSoilPol!$A$15:A$43,0)) -> 84.33542728 | AN21: ='6. TNC Assumptions'!B28 -> 50000 | AO21: ='6. TNC Assumptions'!F28 -> 0.1 | AP21: 5000 | AQ21: =AP21*'5. TNC Parameters'!$H$6*'5. TNC Parameters'!$H$7*'5. TNC Parameters'!$H$8/1000 -> 87.75 | AR21: =AQ21*'5. TNC Parameters'!$H$9/1000 -> 2.19375 | AS21: 0 | AT21: 107.9390105 | AV21: 52.56389137 | AW21: ='TNC CropScenarios'!F21*'6. TNC Assumptions'!K28 -> 10775758.08 | AX21: =AW21*'5. TNC Parameters'!$H$12*'5. TNC Parameters'!$H$13/1000 -> 169.3333413 | AY21: =AX21*'5. TNC Parameters'!$H$16/1000 -> 50.46133571 | AZ21: 50.46133571 | BA21: 2.102555655 | BB21: 106.232803 | BD21: ='6. TNC Assumptions'!Q28*'6. TNC Assumptions'!$O$15*'6. TNC Assumptions'!S28 -> 4.141684948 | BE21: ='6. TNC Assumptions'!Q28*'6. TNC Assumptions'!$O$16*'6. TNC Assumptions'!S28 -> 13.80561649 | BF21: ='6. TNC Assumptions'!Q28*'6. TNC Assumptions'!$O$17*'6. TNC Assumptions'!S28 -> 3.313347959 | BG21: 21.2606494 | BH21: ='TNC CropScenarios'!BG21*'5. TNC Parameters'!$H$27 -> 10.6303247 | BI21: =BH21*'5. TNC Parameters'!$H$28*1000000 -> 186030.6823 | BJ21: =BI21*'5. TNC Parameters'!$H$12*'5. TNC Parameters'!$H$13*'5. TNC Parameters'!$H$16/1000000 -> 0.8711551092 | BK21: 0.8711551092 | BL21: 107.1039581 | BN21: 10775758.08 | BO21: ='TNC CropScenarios'!Y21 -> 2665224 | BP21: 1148099.182 | BQ21: =(((BN21*'5. TNC Parameters'!$H$18)+(BP21*'5. TNC Parameters'!$H$19))*('5. TNC Parameters'!$H$24*'5. TNC Parameters'!$H$21))/1000 -> 20.54164585 | BR21: =BQ21*'5. TNC Parameters'!$H$22/1000 -> 6.121410463 | BS21: =((BN21+BO21+BP21)*'5. TNC Parameters'!$H$20*'5. TNC Parameters'!$H$23*'5. TNC Parameters'!$H$21)/1000 -> 51.58282305 | BT21: =BS21*'5. TNC Parameters'!$H$22/1000 -> 15.37168127 | BU21: 21.49309173 | BV21: 0.3130896664 | BW21: 106.7908685 | BY21: 106.7908685 | BZ21: 1.148142078 | CD21: 107.9390105 | CE21: 107.9390105 | CF21: 106.232803 | CG21: 106.7908685 | CH21: 106.7908685 | CJ21: 107.9390105 | CK21: 107.9390105 | CL21: 106.232803 | CM21: 106.7908685 | CN21: 106.7908685 | CP21: 0 | CQ21: 0 | CR21: 0 | CS21: 0 | CT21: 0
A22: 2020 | B22: ='6. TNC Assumptions'!C29 -> 49500 | C22: =B22*'5. TNC Parameters'!$H$10 -> 4950 | D22: =C22*'5. TNC Parameters'!$H$6*'5. TNC Parameters'!$H$7*'5. TNC Parameters'!$H$8/1000 -> 86.8725 | E22: =D22*'5. TNC Parameters'!$H$9/1000 -> 2.1718125 | F22: =F21*(1+'6. TNC Assumptions'!I29) -> 11449242.96 | G22: 2665224 | H22: =MMS!V90 -> 3583398.862 | I22: ='TNC CropScenarios'!F22*'5. TNC Parameters'!$H$12*'5. TNC Parameters'!$H$13/1000 -> 179.9166752 | J22: =G22*'5. TNC Parameters'!$H$12*'5. TNC Parameters'!$H$13/1000 -> 41.88209143 | K22: =H22*'5. TNC Parameters'!$H$12*'5. TNC Parameters'!$H$13/1000 -> 56.31055354 | L22: =I22*'5. TNC Parameters'!$H$16/1000 -> 53.6151692 | M22: =J22*'5. TNC Parameters'!$H$16/1000 -> 12.48086325 | N22: =K22*'5. TNC Parameters'!$H$16/1000 -> 16.78054495 | O22: =SUM('TNC CropScenarios'!L22:N22) -> 82.8765774 | P22: =MMS!V92 -> 11936.96 | Q22: =MMS!V91 -> 438465.0465 | R22: =P22*'5. TNC Parameters'!$H$14*'5. TNC Parameters'!$H$13/1000 -> 0.3751616 | S22: =Q22*'5. TNC Parameters'!$H$15*'5. TNC Parameters'!$H$13/1000 -> 6.890165016 | T22: =R22*'5. TNC Parameters'!$H$16/1000 -> 0.1117981568 | U22: =S22*'5. TNC Parameters'!$H$16/1000 -> 2.053269175 | V22: ='TNC CropScenarios'!T22+'TNC CropScenarios'!U22 -> 2.165067332 | W22: ='TNC CropScenarios'!O22+'TNC CropScenarios'!V22 -> 85.04164473 | X22: 11449242.96 | Y22: 2665224 | Z22: 962068.5 | AA22: =((X22*'5. TNC Parameters'!$H$18)+(Z22*'5. TNC Parameters'!$H$19))*'5. TNC Parameters'!$H$24*'5. TNC Parameters'!$H$21/1000 -> 21.01531137 | AB22: =AA22*'5. TNC Parameters'!$H$22/1000 -> 6.262562789 | AC22: =((X22+Y22+Z22)*'5. TNC Parameters'!$H$20*'5. TNC Parameters'!$H$23*'5. TNC Parameters'!$H$21)/1000 -> 53.30632182 | AD22: =AC22*'5. TNC Parameters'!$H$22/1000 -> 15.8852839 | AE22: 22.14784669 | AF22: 109.3613039 | AJ22: =INDEX((DirN2OManSoilPol!$U$15:$U$43),MATCH(A22,DirN2OManSoilPol!$A$15:A$43,0)) -> 85.53707989 | AN22: ='6. TNC Assumptions'!B29 -> 49500 | AO22: ='6. TNC Assumptions'!F29 -> 0.08 | AP22: 3960 | AQ22: =AP22*'5. TNC Parameters'!$H$6*'5. TNC Parameters'!$H$7*'5. TNC Parameters'!$H$8/1000 -> 69.498 | AR22: =AQ22*'5. TNC Parameters'!$H$9/1000 -> 1.73745 | AS22: 0.4343625 | AT22: 108.9269414 | AV22: 53.6151692 | AW22: ='TNC CropScenarios'!F22*'6. TNC Assumptions'!K29 -> 10876780.82 | AX22: =AW22*'5. TNC Parameters'!$H$12*'5. TNC Parameters'!$H$13/1000 -> 170.9208414 | AY22: =AX22*'5. TNC Parameters'!$H$16/1000 -> 50.93441074 | AZ22: 50.93441074 | BA22: 2.68075846 | BB22: 107.1759806 | BD22: ='6. TNC Assumptions'!Q29*'6. TNC Assumptions'!$O$15*'6. TNC Assumptions'!S29 -> 5.63269153 | BE22: ='6. TNC Assumptions'!Q29*'6. TNC Assumptions'!$O$16*'6. TNC Assumptions'!S29 -> 18.77563843 | BF22: ='6. TNC Assumptions'!Q29*'6. TNC Assumptions'!$O$17*'6. TNC Assumptions'!S29 -> 4.506153224 | BG22: 28.91448319 | BH22: ='TNC CropScenarios'!BG22*'5. TNC Parameters'!$H$27 -> 14.45724159 | BI22: =BH22*'5. TNC Parameters'!$H$28*1000000 -> 253001.7279 | BJ22: =BI22*'5. TNC Parameters'!$H$12*'5. TNC Parameters'!$H$13*'5. TNC Parameters'!$H$16/1000000 -> 1.184770949 | BK22: 1.184770949 | BL22: 108.3607516 | BN22: 10876780.82 | BO22: ='TNC CropScenarios'!Y22 -> 2665224 | BP22: 1215070.228 | BQ22: =(((BN22*'5. TNC Parameters'!$H$18)+(BP22*'5. TNC Parameters'!$H$19))*('5. TNC Parameters'!$H$24*'5. TNC Parameters'!$H$21))/1000 -> 20.91087628 | BR22: =BQ22*'5. TNC Parameters'!$H$22/1000 -> 6.231441133 | BS22: =((BN22+BO22+BP22)*'5. TNC Parameters'!$H$20*'5. TNC Parameters'!$H$23*'5. TNC Parameters'!$H$21)/1000 -> 52.17680105 | BT22: =BS22*'5. TNC Parameters'!$H$22/1000 -> 15.54868671 | BU22: 21.78012785 | BV22: 0.3677188463 | BW22: 107.9930327 | BY22: 107.5586702 | BZ22: 1.80263369 | CD22: 109.3613039 | CE22: 108.9269414 | CF22: 107.1759806 | CG22: 107.9930327 | CH22: 107.5586702 | CJ22: 109.3613039 | CK22: 108.9269414 | CL22: 107.1759806 | CM22: 107.9930327 | CN22: 107.5586702 | CP22: 0 | CQ22: 0 | CR22: 0 | CS22: 0 | CT22: 0
A23: 2021 | B23: ='6. TNC Assumptions'!C30 -> 49000 | C23: =B23*'5. TNC Parameters'!$H$10 -> 4900 | D23: =C23*'5. TNC Parameters'!$H$6*'5. TNC Parameters'!$H$7*'5. TNC Parameters'!$H$8/1000 -> 85.995 | E23: =D23*'5. TNC Parameters'!$H$9/1000 -> 2.149875 | F23: =F22 -> 11449242.96 | G23: 2665224 | H23: =H22+($H$27-$H$22)/5 -> 3600132.398 | I23: ='TNC CropScenarios'!F23*'5. TNC Parameters'!$H$12*'5. TNC Parameters'!$H$13/1000 -> 179.9166752 | J23: =G23*'5. TNC Parameters'!$H$12*'5. TNC Parameters'!$H$13/1000 -> 41.88209143 | K23: =H23*'5. TNC Parameters'!$H$12*'5. TNC Parameters'!$H$13/1000 -> 56.57350911 | L23: =I23*'5. TNC Parameters'!$H$16/1000 -> 53.6151692 | M23: =J23*'5. TNC Parameters'!$H$16/1000 -> 12.48086325 | N23: =K23*'5. TNC Parameters'!$H$16/1000 -> 16.85890571 | O23: =SUM('TNC CropScenarios'!L23:N23) -> 82.95493816 | P23: =P22+($P$27-$P$22)/5 -> 11809.064 | Q23: =Q22+($Q$27-$Q$22)/5 -> 438465.0465 | R23: =P23*'5. TNC Parameters'!$H$14*'5. TNC Parameters'!$H$13/1000 -> 0.3711420114 | S23: =Q23*'5. TNC Parameters'!$H$15*'5. TNC Parameters'!$H$13/1000 -> 6.890165016 | T23: =R23*'5. TNC Parameters'!$H$16/1000 -> 0.1106003194 | U23: =S23*'5. TNC Parameters'!$H$16/1000 -> 2.053269175 | V23: ='TNC CropScenarios'!T23+'TNC CropScenarios'!U23 -> 2.163869494 | W23: ='TNC CropScenarios'!O23+'TNC CropScenarios'!V23 -> 85.11880765 | X23: 11449242.96 | Y23: 2665224 | Z23: 962068.5 | AA23: =((X23*'5. TNC Parameters'!$H$18)+(Z23*'5. TNC Parameters'!$H$19))*'5. TNC Parameters'!$H$24*'5. TNC Parameters'!$H$21/1000 -> 21.01531137 | AB23: =AA23*'5. TNC Parameters'!$H$22/1000 -> 6.262562789 | AC23: =((X23+Y23+Z23)*'5. TNC Parameters'!$H$20*'5. TNC Parameters'!$H$23*'5. TNC Parameters'!$H$21)/1000 -> 53.30632182 | AD23: =AC23*'5. TNC Parameters'!$H$22/1000 -> 15.8852839 | AE23: 22.14784669 | AF23: 109.4165293 | AJ23: =INDEX((DirN2OManSoilPol!$U$15:$U$43),MATCH(A23,DirN2OManSoilPol!$A$15:A$43,0)) -> 85.69126414 | AN23: ='6. TNC Assumptions'!B30 -> 49000 | AO23: ='6. TNC Assumptions'!F30 -> 0.08 | AP23: 3920 | AQ23: =AP23*'5. TNC Parameters'!$H$6*'5. TNC Parameters'!$H$7*'5. TNC Parameters'!$H$8/1000 -> 68.796 | AR23: =AQ23*'5. TNC Parameters'!$H$9/1000 -> 1.7199 | AS23: 0.429975 | AT23: 108.9865543 | AV23: 53.6151692 | AW23: ='TNC CropScenarios'!F23*'6. TNC Assumptions'!K30 -> 10647795.96 | AX23: =AW23*'5. TNC Parameters'!$H$12*'5. TNC Parameters'!$H$13/1000 -> 167.3225079 | AY23: =AX23*'5. TNC Parameters'!$H$16/1000 -> 49.86210735 | AZ23: 49.86210735 | BA23: 3.753061844 | BB23: 106.235924 | BD23: ='6. TNC Assumptions'!Q30*'6. TNC Assumptions'!$O$15*'6. TNC Assumptions'!S30 -> 7.1816817 | BE23: ='6. TNC Assumptions'!Q30*'6. TNC Assumptions'!$O$16*'6. TNC Assumptions'!S30 -> 23.938939 | BF23: ='6. TNC Assumptions'!Q30*'6. TNC Assumptions'!$O$17*'6. TNC Assumptions'!S30 -> 5.74534536 | BG23: 36.86596606 | BH23: ='TNC CropScenarios'!BG23*'5. TNC Parameters'!$H$27 -> 18.43298303 | BI23: =BH23*'5. TNC Parameters'!$H$28*1000000 -> 322577.203 | BJ23: =BI23*'5. TNC Parameters'!$H$12*'5. TNC Parameters'!$H$13*'5. TNC Parameters'!$H$16/1000000 -> 1.510582959 | BK23: 1.510582959 | BL23: 107.7465069 | BN23: 10647795.96 | BO23: ='TNC CropScenarios'!Y23 -> 2665224 | BP23: 1284645.703 | BQ23: =(((BN23*'5. TNC Parameters'!$H$18)+(BP23*'5. TNC Parameters'!$H$19))*('5. TNC Parameters'!$H$24*'5. TNC Parameters'!$H$21))/1000 -> 20.76970871 | BR23: =BQ23*'5. TNC Parameters'!$H$22/1000 -> 6.189373197 | BS23: =((BN23+BO23+BP23)*'5. TNC Parameters'!$H$20*'5. TNC Parameters'!$H$23*'5. TNC Parameters'!$H$21)/1000 -> 51.61317501 | BT23: =BS23*'5. TNC Parameters'!$H$22/1000 -> 15.38072615 | BU23: 21.57009935 | BV23: 0.5777473415 | BW23: 107.1687596 | BY23: 106.7387846 | BZ23: 2.677744738 | CD23: 109.4165293 | CE23: 108.9865543 | CF23: 106.235924 | CG23: 107.1687596 | CH23: 106.7387846 | CJ23: 109.4165293 | CK23: 108.9865543 | CL23: 106.235924 | CM23: 107.1687596 | CN23: 106.7387846 | CP23: 0 | CQ23: 0 | CR23: 0 | CS23: 0 | CT23: 0
A24: 2022 | B24: ='6. TNC Assumptions'!C31 -> 48500 | C24: =B24*'5. TNC Parameters'!$H$10 -> 4850 | D24: =C24*'5. TNC Parameters'!$H$6*'5. TNC Parameters'!$H$7*'5. TNC Parameters'!$H$8/1000 -> 85.1175 | E24: =D24*'5. TNC Parameters'!$H$9/1000 -> 2.1279375 | F24: 11449242.96 | G24: 2665224 | H24: =H23+($H$27-$H$22)/5 -> 3616865.934 | I24: ='TNC CropScenarios'!F24*'5. TNC Parameters'!$H$12*'5. TNC Parameters'!$H$13/1000 -> 179.9166752 | J24: =G24*'5. TNC Parameters'!$H$12*'5. TNC Parameters'!$H$13/1000 -> 41.88209143 | K24: =H24*'5. TNC Parameters'!$H$12*'5. TNC Parameters'!$H$13/1000 -> 56.83646468 | L24: =I24*'5. TNC Parameters'!$H$16/1000 -> 53.6151692 | M24: =J24*'5. TNC Parameters'!$H$16/1000 -> 12.48086325 | N24: =K24*'5. TNC Parameters'!$H$16/1000 -> 16.93726647 | O24: =SUM('TNC CropScenarios'!L24:N24) -> 83.03329891 | P24: =P23+($P$27-$P$22)/5 -> 11681.168 | Q24: =Q23+($Q$27-$Q$22)/5 -> 438465.0465 | R24: =P24*'5. TNC Parameters'!$H$14*'5. TNC Parameters'!$H$13/1000 -> 0.3671224229 | S24: =Q24*'5. TNC Parameters'!$H$15*'5. TNC Parameters'!$H$13/1000 -> 6.890165016 | T24: =R24*'5. TNC Parameters'!$H$16/1000 -> 0.109402482 | U24: =S24*'5. TNC Parameters'!$H$16/1000 -> 2.053269175 | V24: ='TNC CropScenarios'!T24+'TNC CropScenarios'!U24 -> 2.162671657 | W24: ='TNC CropScenarios'!O24+'TNC CropScenarios'!V24 -> 85.19597057 | X24: 11449242.96 | Y24: 2665224 | Z24: 962068.5 | AA24: =((X24*'5. TNC Parameters'!$H$18)+(Z24*'5. TNC Parameters'!$H$19))*'5. TNC Parameters'!$H$24*'5. TNC Parameters'!$H$21/1000 -> 21.01531137 | AB24: =AA24*'5. TNC Parameters'!$H$22/1000 -> 6.262562789 | AC24: =((X24+Y24+Z24)*'5. TNC Parameters'!$H$20*'5. TNC Parameters'!$H$23*'5. TNC Parameters'!$H$21)/1000 -> 53.30632182 | AD24: =AC24*'5. TNC Parameters'!$H$22/1000 -> 15.8852839 | AE24: 22.14784669 | AF24: 109.4717548 | AJ24: =INDEX((DirN2OManSoilPol!$U$15:$U$43),MATCH(A24,DirN2OManSoilPol!$A$15:A$43,0)) -> 85.84544838 | AN24: ='6. TNC Assumptions'!B31 -> 48500 | AO24: ='6. TNC Assumptions'!F31 -> 0.08 | AP24: 3880 | AQ24: =AP24*'5. TNC Parameters'!$H$6*'5. TNC Parameters'!$H$7*'5. TNC Parameters'!$H$8/1000 -> 68.094 | AR24: =AQ24*'5. TNC Parameters'!$H$9/1000 -> 1.70235 | AS24: 0.4255875 | AT24: 109.0461673 | AV24: 53.6151692 | AW24: ='TNC CropScenarios'!F24*'6. TNC Assumptions'!K31 -> 10418811.1 | AX24: =AW24*'5. TNC Parameters'!$H$12*'5. TNC Parameters'!$H$13/1000 -> 163.7241744 | AY24: =AX24*'5. TNC Parameters'!$H$16/1000 -> 48.78980397 | AZ24: 48.78980397 | BA24: 4.825365228 | BB24: 105.2958673 | BD24: ='6. TNC Assumptions'!Q31*'6. TNC Assumptions'!$O$15*'6. TNC Assumptions'!S31 -> 8.790378401 | BE24: ='6. TNC Assumptions'!Q31*'6. TNC Assumptions'!$O$16*'6. TNC Assumptions'!S31 -> 29.30126134 | BF24: ='6. TNC Assumptions'!Q31*'6. TNC Assumptions'!$O$17*'6. TNC Assumptions'!S31 -> 7.032302721 | BG24: 45.12394246 | BH24: ='TNC CropScenarios'!BG24*'5. TNC Parameters'!$H$27 -> 22.56197123 | BI24: =BH24*'5. TNC Parameters'!$H$28*1000000 -> 394834.4965 | BJ24: =BI24*'5. TNC Parameters'!$H$12*'5. TNC Parameters'!$H$13*'5. TNC Parameters'!$H$16/1000000 -> 1.848953542 | BK24: 1.848953542 | BL24: 107.1448209 | BN24: 10418811.1 | BO24: ='TNC CropScenarios'!Y24 -> 2665224 | BP24: 1356902.997 | BQ24: =(((BN24*'5. TNC Parameters'!$H$18)+(BP24*'5. TNC Parameters'!$H$19))*('5. TNC Parameters'!$H$24*'5. TNC Parameters'!$H$21))/1000 -> 20.63696971 | BR24: =BQ24*'5. TNC Parameters'!$H$22/1000 -> 6.149816975 | BS24: =((BN24+BO24+BP24)*'5. TNC Parameters'!$H$20*'5. TNC Parameters'!$H$23*'5. TNC Parameters'!$H$21)/1000 -> 51.05903112 | BT24: =BS24*'5. TNC Parameters'!$H$22/1000 -> 15.21559127 | BU24: 21.36540825 | BV24: 0.7824384435 | BW24: 106.3623824 | BY24: 105.9367949 | BZ24: 3.53495982 | CD24: 109.4717548 | CE24: 109.0461673 | CF24: 105.2958673 | CG24: 106.3623824 | CH24: 105.9367949 | CJ24: 109.4717548 | CK24: 109.0461673 | CL24: 105.2958673 | CM24: 106.3623824 | CN24: 105.9367949 | CP24: 0 | CQ24: 0 | CR24: 0 | CS24: 0 | CT24: 0
A25: 2023 | B25: ='6. TNC Assumptions'!C32 -> 48000 | C25: =B25*'5. TNC Parameters'!$H$10 -> 4800 | D25: =C25*'5. TNC Parameters'!$H$6*'5. TNC Parameters'!$H$7*'5. TNC Parameters'!$H$8/1000 -> 84.24 | E25: =D25*'5. TNC Parameters'!$H$9/1000 -> 2.106 | F25: 11449242.96 | G25: 2665224 | H25: =H24+($H$27-$H$22)/5 -> 3633599.47 | I25: ='TNC CropScenarios'!F25*'5. TNC Parameters'!$H$12*'5. TNC Parameters'!$H$13/1000 -> 179.9166752 | J25: =G25*'5. TNC Parameters'!$H$12*'5. TNC Parameters'!$H$13/1000 -> 41.88209143 | K25: =H25*'5. TNC Parameters'!$H$12*'5. TNC Parameters'!$H$13/1000 -> 57.09942024 | L25: =I25*'5. TNC Parameters'!$H$16/1000 -> 53.6151692 | M25: =J25*'5. TNC Parameters'!$H$16/1000 -> 12.48086325 | N25: =K25*'5. TNC Parameters'!$H$16/1000 -> 17.01562723 | O25: =SUM('TNC CropScenarios'!L25:N25) -> 83.11165967 | P25: =P24+($P$27-$P$22)/5 -> 11553.272 | Q25: =Q24+($Q$27-$Q$22)/5 -> 438465.0465 | R25: =P25*'5. TNC Parameters'!$H$14*'5. TNC Parameters'!$H$13/1000 -> 0.3631028343 | S25: =Q25*'5. TNC Parameters'!$H$15*'5. TNC Parameters'!$H$13/1000 -> 6.890165016 | T25: =R25*'5. TNC Parameters'!$H$16/1000 -> 0.1082046446 | U25: =S25*'5. TNC Parameters'!$H$16/1000 -> 2.053269175 | V25: ='TNC CropScenarios'!T25+'TNC CropScenarios'!U25 -> 2.16147382 | W25: ='TNC CropScenarios'!O25+'TNC CropScenarios'!V25 -> 85.27313349 | X25: 11449242.96 | Y25: 2665224 | Z25: 962068.5 | AA25: =((X25*'5. TNC Parameters'!$H$18)+(Z25*'5. TNC Parameters'!$H$19))*'5. TNC Parameters'!$H$24*'5. TNC Parameters'!$H$21/1000 -> 21.01531137 | AB25: =AA25*'5. TNC Parameters'!$H$22/1000 -> 6.262562789 | AC25: =((X25+Y25+Z25)*'5. TNC Parameters'!$H$20*'5. TNC Parameters'!$H$23*'5. TNC Parameters'!$H$21)/1000 -> 53.30632182 | AD25: =AC25*'5. TNC Parameters'!$H$22/1000 -> 15.8852839 | AE25: 22.14784669 | AF25: 109.5269802 | AJ25: =INDEX((DirN2OManSoilPol!$U$15:$U$43),MATCH(A25,DirN2OManSoilPol!$A$15:A$43,0)) -> 85.99963262 | AN25: ='6. TNC Assumptions'!B32 -> 48000 | AO25: ='6. TNC Assumptions'!F32 -> 0.08 | AP25: 3840 | AQ25: =AP25*'5. TNC Parameters'!$H$6*'5. TNC Parameters'!$H$7*'5. TNC Parameters'!$H$8/1000 -> 67.392 | AR25: =AQ25*'5. TNC Parameters'!$H$9/1000 -> 1.6848 | AS25: 0.4212 | AT25: 109.1057802 | AV25: 53.6151692 | AW25: ='TNC CropScenarios'!F25*'6. TNC Assumptions'!K32 -> 10189826.24 | AX25: =AW25*'5. TNC Parameters'!$H$12*'5. TNC Parameters'!$H$13/1000 -> 160.1258409 | AY25: =AX25*'5. TNC Parameters'!$H$16/1000 -> 47.71750058 | AZ25: 47.71750058 | BA25: 5.897668612 | BB25: 104.3558107 | BD25: ='6. TNC Assumptions'!Q32*'6. TNC Assumptions'!$O$15*'6. TNC Assumptions'!S32 -> 10.4605503 | BE25: ='6. TNC Assumptions'!Q32*'6. TNC Assumptions'!$O$16*'6. TNC Assumptions'!S32 -> 34.86850099 | BF25: ='6. TNC Assumptions'!Q32*'6. TNC Assumptions'!$O$17*'6. TNC Assumptions'!S32 -> 8.368440238 | BG25: 53.69749153 | BH25: ='TNC CropScenarios'!BG25*'5. TNC Parameters'!$H$27 -> 26.84874576 | BI25: =BH25*'5. TNC Parameters'!$H$28*1000000 -> 469853.0509 | BJ25: =BI25*'5. TNC Parameters'!$H$12*'5. TNC Parameters'!$H$13*'5. TNC Parameters'!$H$16/1000000 -> 2.200254715 | BK25: 2.200254715 | BL25: 106.5560654 | BN25: 10189826.24 | BO25: ='TNC CropScenarios'!Y25 -> 2665224 | BP25: 1431921.551 | BQ25: =(((BN25*'5. TNC Parameters'!$H$18)+(BP25*'5. TNC Parameters'!$H$19))*('5. TNC Parameters'!$H$24*'5. TNC Parameters'!$H$21))/1000 -> 20.51290896 | BR25: =BQ25*'5. TNC Parameters'!$H$22/1000 -> 6.112846871 | BS25: =((BN25+BO25+BP25)*'5. TNC Parameters'!$H$20*'5. TNC Parameters'!$H$23*'5. TNC Parameters'!$H$21)/1000 -> 50.51465025 | BT25: =BS25*'5. TNC Parameters'!$H$22/1000 -> 15.05336578 | BU25: 21.16621265 | BV25: 0.9816340447 | BW25: 105.5744314 | BY25: 105.1532314 | BZ25: 4.373748811 | CD25: 109.5269802 | CE25: 109.1057802 | CF25: 104.3558107 | CG25: 105.5744314 | CH25: 105.1532314 | CJ25: 109.5269802 | CK25: 109.1057802 | CL25: 104.3558107 | CM25: 105.5744314 | CN25: 105.1532314 | CP25: 0 | CQ25: 0 | CR25: 0 | CS25: 0 | CT25: 0
A26: 2024 | B26: ='6. TNC Assumptions'!C33 -> 47500 | C26: =B26*'5. TNC Parameters'!$H$10 -> 4750 | D26: =C26*'5. TNC Parameters'!$H$6*'5. TNC Parameters'!$H$7*'5. TNC Parameters'!$H$8/1000 -> 83.3625 | E26: =D26*'5. TNC Parameters'!$H$9/1000 -> 2.0840625 | F26: 11449242.96 | G26: 2665224 | H26: =H25+($H$27-$H$22)/5 -> 3650333.006 | I26: ='TNC CropScenarios'!F26*'5. TNC Parameters'!$H$12*'5. TNC Parameters'!$H$13/1000 -> 179.9166752 | J26: =G26*'5. TNC Parameters'!$H$12*'5. TNC Parameters'!$H$13/1000 -> 41.88209143 | K26: =H26*'5. TNC Parameters'!$H$12*'5. TNC Parameters'!$H$13/1000 -> 57.36237581 | L26: =I26*'5. TNC Parameters'!$H$16/1000 -> 53.6151692 | M26: =J26*'5. TNC Parameters'!$H$16/1000 -> 12.48086325 | N26: =K26*'5. TNC Parameters'!$H$16/1000 -> 17.09398799 | O26: =SUM('TNC CropScenarios'!L26:N26) -> 83.19002043 | P26: =P25+($P$27-$P$22)/5 -> 11425.376 | Q26: =Q25+($Q$27-$Q$22)/5 -> 438465.0465 | R26: =P26*'5. TNC Parameters'!$H$14*'5. TNC Parameters'!$H$13/1000 -> 0.3590832457 | S26: =Q26*'5. TNC Parameters'!$H$15*'5. TNC Parameters'!$H$13/1000 -> 6.890165016 | T26: =R26*'5. TNC Parameters'!$H$16/1000 -> 0.1070068072 | U26: =S26*'5. TNC Parameters'!$H$16/1000 -> 2.053269175 | V26: ='TNC CropScenarios'!T26+'TNC CropScenarios'!U26 -> 2.160275982 | W26: ='TNC CropScenarios'!O26+'TNC CropScenarios'!V26 -> 85.35029642 | X26: 11449242.96 | Y26: 2665224 | Z26: 962068.5 | AA26: =((X26*'5. TNC Parameters'!$H$18)+(Z26*'5. TNC Parameters'!$H$19))*'5. TNC Parameters'!$H$24*'5. TNC Parameters'!$H$21/1000 -> 21.01531137 | AB26: =AA26*'5. TNC Parameters'!$H$22/1000 -> 6.262562789 | AC26: =((X26+Y26+Z26)*'5. TNC Parameters'!$H$20*'5. TNC Parameters'!$H$23*'5. TNC Parameters'!$H$21)/1000 -> 53.30632182 | AD26: =AC26*'5. TNC Parameters'!$H$22/1000 -> 15.8852839 | AE26: 22.14784669 | AF26: 109.5822056 | AJ26: =INDEX((DirN2OManSoilPol!$U$15:$U$43),MATCH(A26,DirN2OManSoilPol!$A$15:A$43,0)) -> 86.15381687 | AN26: ='6. TNC Assumptions'!B33 -> 47500 | AO26: ='6. TNC Assumptions'!F33 -> 0.08 | AP26: 3800 | AQ26: =AP26*'5. TNC Parameters'!$H$6*'5. TNC Parameters'!$H$7*'5. TNC Parameters'!$H$8/1000 -> 66.69 | AR26: =AQ26*'5. TNC Parameters'!$H$9/1000 -> 1.66725 | AS26: 0.4168125 | AT26: 109.1653931 | AV26: 53.6151692 | AW26: ='TNC CropScenarios'!F26*'6. TNC Assumptions'!K33 -> 9960841.379 | AX26: =AW26*'5. TNC Parameters'!$H$12*'5. TNC Parameters'!$H$13/1000 -> 156.5275074 | AY26: =AX26*'5. TNC Parameters'!$H$16/1000 -> 46.6451972 | AZ26: 46.6451972 | BA26: 6.969971995 | BB26: 103.4157541 | BD26: ='6. TNC Assumptions'!Q33*'6. TNC Assumptions'!$O$15*'6. TNC Assumptions'!S33 -> 12.19401292 | BE26: ='6. TNC Assumptions'!Q33*'6. TNC Assumptions'!$O$16*'6. TNC Assumptions'!S33 -> 40.64670973 | BF26: ='6. TNC Assumptions'!Q33*'6. TNC Assumptions'!$O$17*'6. TNC Assumptions'!S33 -> 9.755210334 | BG26: 62.59593298 | BH26: ='TNC CropScenarios'!BG26*'5. TNC Parameters'!$H$27 -> 31.29796649 | BI26: =BH26*'5. TNC Parameters'!$H$28*1000000 -> 547714.4136 | BJ26: =BI26*'5. TNC Parameters'!$H$12*'5. TNC Parameters'!$H$13*'5. TNC Parameters'!$H$16/1000000 -> 2.564868354 | BK26: 2.564868354 | BL26: 105.9806224 | BN26: 9960841.379 | BO26: ='TNC CropScenarios'!Y26 -> 2665224 | BP26: 1509782.914 | BQ26: =(((BN26*'5. TNC Parameters'!$H$18)+(BP26*'5. TNC Parameters'!$H$19))*('5. TNC Parameters'!$H$24*'5. TNC Parameters'!$H$21))/1000 -> 20.39778275 | BR26: =BQ26*'5. TNC Parameters'!$H$22/1000 -> 6.07853926 | BS26: =((BN26+BO26+BP26)*'5. TNC Parameters'!$H$20*'5. TNC Parameters'!$H$23*'5. TNC Parameters'!$H$21)/1000 -> 49.98032075 | BT26: =BS26*'5. TNC Parameters'!$H$22/1000 -> 14.89413558 | BU26: 20.97267484 | BV26: 1.175171848 | BW26: 104.8054506 | BY26: 104.3886381 | BZ26: 5.193567539 | CD26: 109.5822056 | CE26: 109.1653931 | CF26: 103.4157541 | CG26: 104.8054506 | CH26: 104.3886381 | CJ26: 109.5822056 | CK26: 109.1653931 | CL26: 103.4157541 | CM26: 104.8054506 | CN26: 104.3886381 | CP26: 0 | CQ26: 0 | CR26: 0 | CS26: 0 | CT26: 0
A27: 2025 | B27: ='6. TNC Assumptions'!C34 -> 47000 | C27: =B27*'5. TNC Parameters'!$H$10 -> 4700 | D27: =C27*'5. TNC Parameters'!$H$6*'5. TNC Parameters'!$H$7*'5. TNC Parameters'!$H$8/1000 -> 82.485 | E27: =D27*'5. TNC Parameters'!$H$9/1000 -> 2.062125 | F27: 11449242.96 | G27: 2665224 | H27: =MMS!W90 -> 3667066.542 | I27: ='TNC CropScenarios'!F27*'5. TNC Parameters'!$H$12*'5. TNC Parameters'!$H$13/1000 -> 179.9166752 | J27: =G27*'5. TNC Parameters'!$H$12*'5. TNC Parameters'!$H$13/1000 -> 41.88209143 | K27: =H27*'5. TNC Parameters'!$H$12*'5. TNC Parameters'!$H$13/1000 -> 57.62533138 | L27: =I27*'5. TNC Parameters'!$H$16/1000 -> 53.6151692 | M27: =J27*'5. TNC Parameters'!$H$16/1000 -> 12.48086325 | N27: =K27*'5. TNC Parameters'!$H$16/1000 -> 17.17234875 | O27: =SUM('TNC CropScenarios'!L27:N27) -> 83.26838119 | P27: =MMS!W92 -> 11297.48 | Q27: =MMS!W91 -> 438465.0465 | R27: =P27*'5. TNC Parameters'!$H$14*'5. TNC Parameters'!$H$13/1000 -> 0.3550636571 | S27: =Q27*'5. TNC Parameters'!$H$15*'5. TNC Parameters'!$H$13/1000 -> 6.890165016 | T27: =R27*'5. TNC Parameters'!$H$16/1000 -> 0.1058089698 | U27: =S27*'5. TNC Parameters'!$H$16/1000 -> 2.053269175 | V27: ='TNC CropScenarios'!T27+'TNC CropScenarios'!U27 -> 2.159078145 | W27: ='TNC CropScenarios'!O27+'TNC CropScenarios'!V27 -> 85.42745934 | X27: 11449242.96 | Y27: 2665224 | Z27: 962068.5 | AA27: =((X27*'5. TNC Parameters'!$H$18)+(Z27*'5. TNC Parameters'!$H$19))*'5. TNC Parameters'!$H$24*'5. TNC Parameters'!$H$21/1000 -> 21.01531137 | AB27: =AA27*'5. TNC Parameters'!$H$22/1000 -> 6.262562789 | AC27: =((X27+Y27+Z27)*'5. TNC Parameters'!$H$20*'5. TNC Parameters'!$H$23*'5. TNC Parameters'!$H$21)/1000 -> 53.30632182 | AD27: =AC27*'5. TNC Parameters'!$H$22/1000 -> 15.8852839 | AE27: 22.14784669 | AF27: 109.637431 | AJ27: =INDEX((DirN2OManSoilPol!$U$15:$U$43),MATCH(A27,DirN2OManSoilPol!$A$15:A$43,0)) -> 86.30800111 | AN27: ='6. TNC Assumptions'!B34 -> 47000 | AO27: ='6. TNC Assumptions'!F34 -> 0.08 | AP27: 3760 | AQ27: =AP27*'5. TNC Parameters'!$H$6*'5. TNC Parameters'!$H$7*'5. TNC Parameters'!$H$8/1000 -> 65.988 | AR27: =AQ27*'5. TNC Parameters'!$H$9/1000 -> 1.6497 | AS27: 0.412425 | AT27: 109.225006 | AV27: 53.6151692 | AW27: ='TNC CropScenarios'!F27*'6. TNC Assumptions'!K34 -> 9731856.52 | AX27: =AW27*'5. TNC Parameters'!$H$12*'5. TNC Parameters'!$H$13/1000 -> 152.9291739 | AY27: =AX27*'5. TNC Parameters'!$H$16/1000 -> 45.57289382 | AZ27: 45.57289382 | BA27: 8.042275379 | BB27: 102.4756974 | BD27: ='6. TNC Assumptions'!Q34*'6. TNC Assumptions'!$O$15*'6. TNC Assumptions'!S34 -> 13.99262982 | BE27: ='6. TNC Assumptions'!Q34*'6. TNC Assumptions'!$O$16*'6. TNC Assumptions'!S34 -> 46.64209941 | BF27: ='6. TNC Assumptions'!Q34*'6. TNC Assumptions'!$O$17*'6. TNC Assumptions'!S34 -> 11.19410386 | BG27: 71.82883309 | BH27: ='TNC CropScenarios'!BG27*'5. TNC Parameters'!$H$27 -> 35.91441655 | BI27: =BH27*'5. TNC Parameters'!$H$28*1000000 -> 628502.2896 | BJ27: =BI27*'5. TNC Parameters'!$H$12*'5. TNC Parameters'!$H$13*'5. TNC Parameters'!$H$16/1000000 -> 2.943186436 | BK27: 2.943186436 | BL27: 105.4188839 | BN27: 9731856.52 | BO27: ='TNC CropScenarios'!Y27 -> 2665224 | BP27: 1590570.79 | BQ27: =(((BN27*'5. TNC Parameters'!$H$18)+(BP27*'5. TNC Parameters'!$H$19))*('5. TNC Parameters'!$H$24*'5. TNC Parameters'!$H$21))/1000 -> 20.29185416 | BR27: =BQ27*'5. TNC Parameters'!$H$22/1000 -> 6.046972538 | BS27: =((BN27+BO27+BP27)*'5. TNC Parameters'!$H$20*'5. TNC Parameters'!$H$23*'5. TNC Parameters'!$H$21)/1000 -> 49.45633856 | BT27: =BS27*'5. TNC Parameters'!$H$22/1000 -> 14.73798889 | BU27: 20.78496143 | BV27: 1.362885263 | BW27: 104.0559986 | BY27: 103.6435736 | BZ27: 5.993857434 | CD27: 109.637431 | CE27: 109.225006 | CF27: 102.4756974 | CG27: 104.0559986 | CH27: 103.6435736 | CJ27: 109.637431 | CK27: 109.225006 | CL27: 102.4756974 | CM27: 104.0559986 | CN27: 103.6435736 | CP27: 0 | CQ27: 0 | CR27: 0 | CS27: 0 | CT27: 0
A28: 2026 | B28: ='6. TNC Assumptions'!C35 -> 46500 | C28: =B28*'5. TNC Parameters'!$H$10 -> 4650 | D28: =C28*'5. TNC Parameters'!$H$6*'5. TNC Parameters'!$H$7*'5. TNC Parameters'!$H$8/1000 -> 81.6075 | E28: =D28*'5. TNC Parameters'!$H$9/1000 -> 2.0401875 | F28: 11449242.96 | G28: 2665224 | H28: =H27+($H$32-$H$27)/5 -> 3675618.462 | I28: ='TNC CropScenarios'!F28*'5. TNC Parameters'!$H$12*'5. TNC Parameters'!$H$13/1000 -> 179.9166752 | J28: =G28*'5. TNC Parameters'!$H$12*'5. TNC Parameters'!$H$13/1000 -> 41.88209143 | K28: =H28*'5. TNC Parameters'!$H$12*'5. TNC Parameters'!$H$13/1000 -> 57.7597187 | L28: =I28*'5. TNC Parameters'!$H$16/1000 -> 53.6151692 | M28: =J28*'5. TNC Parameters'!$H$16/1000 -> 12.48086325 | N28: =K28*'5. TNC Parameters'!$H$16/1000 -> 17.21239617 | O28: =SUM('TNC CropScenarios'!L28:N28) -> 83.30842861 | P28: =P27+($P$32-$P$27)/5 -> 11233.532 | Q28: =Q27+($Q$32-$Q$27)/5 -> 439746.1965 | R28: =P28*'5. TNC Parameters'!$H$14*'5. TNC Parameters'!$H$13/1000 -> 0.3530538629 | S28: =Q28*'5. TNC Parameters'!$H$15*'5. TNC Parameters'!$H$13/1000 -> 6.910297374 | T28: =R28*'5. TNC Parameters'!$H$16/1000 -> 0.1052100511 | U28: =S28*'5. TNC Parameters'!$H$16/1000 -> 2.059268617 | V28: ='TNC CropScenarios'!T28+'TNC CropScenarios'!U28 -> 2.164478668 | W28: ='TNC CropScenarios'!O28+'TNC CropScenarios'!V28 -> 85.47290728 | X28: 11449242.96 | Y28: 2665224 | Z28: 962068.5 | AA28: =((X28*'5. TNC Parameters'!$H$18)+(Z28*'5. TNC Parameters'!$H$19))*'5. TNC Parameters'!$H$24*'5. TNC Parameters'!$H$21/1000 -> 21.01531137 | AB28: =AA28*'5. TNC Parameters'!$H$22/1000 -> 6.262562789 | AC28: =((X28+Y28+Z28)*'5. TNC Parameters'!$H$20*'5. TNC Parameters'!$H$23*'5. TNC Parameters'!$H$21)/1000 -> 53.30632182 | AD28: =AC28*'5. TNC Parameters'!$H$22/1000 -> 15.8852839 | AE28: 22.14784669 | AF28: 109.6609415 | AJ28: =INDEX((DirN2OManSoilPol!$U$15:$U$43),MATCH(A28,DirN2OManSoilPol!$A$15:A$43,0)) -> 86.42392725 | AN28: ='6. TNC Assumptions'!B35 -> 46500 | AO28: ='6. TNC Assumptions'!F35 -> 0.08 | AP28: 3720 | AQ28: =AP28*'5. TNC Parameters'!$H$6*'5. TNC Parameters'!$H$7*'5. TNC Parameters'!$H$8/1000 -> 65.286 | AR28: =AQ28*'5. TNC Parameters'!$H$9/1000 -> 1.63215 | AS28: 0.4080375 | AT28: 109.252904 | AV28: 53.6151692 | AW28: ='TNC CropScenarios'!F28*'6. TNC Assumptions'!K35 -> 9502871.66 | AX28: =AW28*'5. TNC Parameters'!$H$12*'5. TNC Parameters'!$H$13/1000 -> 149.3308404 | AY28: =AX28*'5. TNC Parameters'!$H$16/1000 -> 44.50059043 | AZ28: 44.50059043 | BA28: 9.114578763 | BB28: 101.4973827 | BD28: ='6. TNC Assumptions'!Q35*'6. TNC Assumptions'!$O$15*'6. TNC Assumptions'!S35 -> 15.8583138 | BE28: ='6. TNC Assumptions'!Q35*'6. TNC Assumptions'!$O$16*'6. TNC Assumptions'!S35 -> 52.861046 | BF28: ='6. TNC Assumptions'!Q35*'6. TNC Assumptions'!$O$17*'6. TNC Assumptions'!S35 -> 12.68665104 | BG28: 81.40601084 | BH28: ='TNC CropScenarios'!BG28*'5. TNC Parameters'!$H$27 -> 40.70300542 | BI28: =BH28*'5. TNC Parameters'!$H$28*1000000 -> 712302.5948 | BJ28: =BI28*'5. TNC Parameters'!$H$12*'5. TNC Parameters'!$H$13*'5. TNC Parameters'!$H$16/1000000 -> 3.335611294 | BK28: 3.335611294 | BL28: 104.832994 | BN28: 9502871.66 | BO28: ='TNC CropScenarios'!Y28 -> 2665224 | BP28: 1674371.095 | BQ28: =(((BN28*'5. TNC Parameters'!$H$18)+(BP28*'5. TNC Parameters'!$H$19))*('5. TNC Parameters'!$H$24*'5. TNC Parameters'!$H$21))/1000 -> 20.19539319 | BR28: =BQ28*'5. TNC Parameters'!$H$22/1000 -> 6.018227172 | BS28: =((BN28+BO28+BP28)*'5. TNC Parameters'!$H$20*'5. TNC Parameters'!$H$23*'5. TNC Parameters'!$H$21)/1000 -> 48.94300746 | BT28: =BS28*'5. TNC Parameters'!$H$22/1000 -> 14.58501622 | BU28: 20.60324339 | BV28: 1.544603298 | BW28: 103.2883907 | BY28: 102.8803532 | BZ28: 6.780588296 | CD28: 109.6609415 | CE28: 109.252904 | CF28: 101.4973827 | CG28: 103.2883907 | CH28: 102.8803532 | CJ28: 109.6609415 | CK28: 109.252904 | CL28: 101.4973827 | CM28: 103.2883907 | CN28: 102.8803532 | CP28: 0 | CQ28: 0 | CR28: 0 | CS28: 0 | CT28: 0
A29: 2027 | B29: ='6. TNC Assumptions'!C36 -> 46000 | C29: =B29*'5. TNC Parameters'!$H$10 -> 4600 | D29: =C29*'5. TNC Parameters'!$H$6*'5. TNC Parameters'!$H$7*'5. TNC Parameters'!$H$8/1000 -> 80.73 | E29: =D29*'5. TNC Parameters'!$H$9/1000 -> 2.01825 | F29: 11449242.96 | G29: 2665224 | H29: =H28+($H$32-$H$27)/5 -> 3684170.383 | I29: ='TNC CropScenarios'!F29*'5. TNC Parameters'!$H$12*'5. TNC Parameters'!$H$13/1000 -> 179.9166752 | J29: =G29*'5. TNC Parameters'!$H$12*'5. TNC Parameters'!$H$13/1000 -> 41.88209143 | K29: =H29*'5. TNC Parameters'!$H$12*'5. TNC Parameters'!$H$13/1000 -> 57.89410601 | L29: =I29*'5. TNC Parameters'!$H$16/1000 -> 53.6151692 | M29: =J29*'5. TNC Parameters'!$H$16/1000 -> 12.48086325 | N29: =K29*'5. TNC Parameters'!$H$16/1000 -> 17.25244359 | O29: =SUM('TNC CropScenarios'!L29:N29) -> 83.34847603 | P29: =P28+($P$32-$P$27)/5 -> 11169.584 | Q29: =Q28+($Q$32-$Q$27)/5 -> 441027.3465 | R29: =P29*'5. TNC Parameters'!$H$14*'5. TNC Parameters'!$H$13/1000 -> 0.3510440686 | S29: =Q29*'5. TNC Parameters'!$H$15*'5. TNC Parameters'!$H$13/1000 -> 6.930429731 | T29: =R29*'5. TNC Parameters'!$H$16/1000 -> 0.1046111324 | U29: =S29*'5. TNC Parameters'!$H$16/1000 -> 2.06526806 | V29: ='TNC CropScenarios'!T29+'TNC CropScenarios'!U29 -> 2.169879192 | W29: ='TNC CropScenarios'!O29+'TNC CropScenarios'!V29 -> 85.51835523 | X29: 11449242.96 | Y29: 2665224 | Z29: 962068.5 | AA29: =((X29*'5. TNC Parameters'!$H$18)+(Z29*'5. TNC Parameters'!$H$19))*'5. TNC Parameters'!$H$24*'5. TNC Parameters'!$H$21/1000 -> 21.01531137 | AB29: =AA29*'5. TNC Parameters'!$H$22/1000 -> 6.262562789 | AC29: =((X29+Y29+Z29)*'5. TNC Parameters'!$H$20*'5. TNC Parameters'!$H$23*'5. TNC Parameters'!$H$21)/1000 -> 53.30632182 | AD29: =AC29*'5. TNC Parameters'!$H$22/1000 -> 15.8852839 | AE29: 22.14784669 | AF29: 109.6844519 | AJ29: =INDEX((DirN2OManSoilPol!$U$15:$U$43),MATCH(A29,DirN2OManSoilPol!$A$15:A$43,0)) -> 86.5398534 | AN29: ='6. TNC Assumptions'!B36 -> 46000 | AO29: ='6. TNC Assumptions'!F36 -> 0.08 | AP29: 3680 | AQ29: =AP29*'5. TNC Parameters'!$H$6*'5. TNC Parameters'!$H$7*'5. TNC Parameters'!$H$8/1000 -> 64.584 | AR29: =AQ29*'5. TNC Parameters'!$H$9/1000 -> 1.6146 | AS29: 0.40365 | AT29: 109.2808019 | AV29: 53.6151692 | AW29: ='TNC CropScenarios'!F29*'6. TNC Assumptions'!K36 -> 9273886.801 | AX29: =AW29*'5. TNC Parameters'!$H$12*'5. TNC Parameters'!$H$13/1000 -> 145.7325069 | AY29: =AX29*'5. TNC Parameters'!$H$16/1000 -> 43.42828705 | AZ29: 43.42828705 | BA29: 10.18688215 | BB29: 100.5190679 | BD29: ='6. TNC Assumptions'!Q36*'6. TNC Assumptions'!$O$15*'6. TNC Assumptions'!S36 -> 19.41057609 | BE29: ='6. TNC Assumptions'!Q36*'6. TNC Assumptions'!$O$16*'6. TNC Assumptions'!S36 -> 64.7019203 | BF29: ='6. TNC Assumptions'!Q36*'6. TNC Assumptions'!$O$17*'6. TNC Assumptions'!S36 -> 15.52846087 | BG29: 99.64095727 | BH29: ='TNC CropScenarios'!BG29*'5. TNC Parameters'!$H$27 -> 49.82047863 | BI29: =BH29*'5. TNC Parameters'!$H$28*1000000 -> 871858.3761 | BJ29: =BI29*'5. TNC Parameters'!$H$12*'5. TNC Parameters'!$H$13*'5. TNC Parameters'!$H$16/1000000 -> 4.082788224 | BK29: 4.082788224 | BL29: 104.6018562 | BN29: 9273886.801 | BO29: ='TNC CropScenarios'!Y29 -> 2665224 | BP29: 1833926.876 | BQ29: =(((BN29*'5. TNC Parameters'!$H$18)+(BP29*'5. TNC Parameters'!$H$19))*('5. TNC Parameters'!$H$24*'5. TNC Parameters'!$H$21))/1000 -> 20.33702087 | BR29: =BQ29*'5. TNC Parameters'!$H$22/1000 -> 6.060432219 | BS29: =((BN29+BO29+BP29)*'5. TNC Parameters'!$H$20*'5. TNC Parameters'!$H$23*'5. TNC Parameters'!$H$21)/1000 -> 48.69752607 | BT29: =BS29*'5. TNC Parameters'!$H$22/1000 -> 14.51186277 | BU29: 20.57229499 | BV29: 1.575551703 | BW29: 103.0263045 | BY29: 102.6226545 | BZ29: 7.061797455 | CD29: 109.6844519 | CE29: 109.2808019 | CF29: 100.5190679 | CG29: 103.0263045 | CH29: 102.6226545 | CJ29: 109.6844519 | CK29: 109.2808019 | CL29: 100.5190679 | CM29: 103.0263045 | CN29: 102.6226545 | CP29: 0 | CQ29: 0 | CR29: 0 | CS29: 0 | CT29: 0
A30: 2028 | B30: ='6. TNC Assumptions'!C37 -> 45500 | C30: =B30*'5. TNC Parameters'!$H$10 -> 4550 | D30: =C30*'5. TNC Parameters'!$H$6*'5. TNC Parameters'!$H$7*'5. TNC Parameters'!$H$8/1000 -> 79.8525 | E30: =D30*'5. TNC Parameters'!$H$9/1000 -> 1.9963125 | F30: 11449242.96 | G30: 2665224 | H30: =H29+($H$32-$H$27)/5 -> 3692722.303 | I30: ='TNC CropScenarios'!F30*'5. TNC Parameters'!$H$12*'5. TNC Parameters'!$H$13/1000 -> 179.9166752 | J30: =G30*'5. TNC Parameters'!$H$12*'5. TNC Parameters'!$H$13/1000 -> 41.88209143 | K30: =H30*'5. TNC Parameters'!$H$12*'5. TNC Parameters'!$H$13/1000 -> 58.02849333 | L30: =I30*'5. TNC Parameters'!$H$16/1000 -> 53.6151692 | M30: =J30*'5. TNC Parameters'!$H$16/1000 -> 12.48086325 | N30: =K30*'5. TNC Parameters'!$H$16/1000 -> 17.29249101 | O30: =SUM('TNC CropScenarios'!L30:N30) -> 83.38852345 | P30: =P29+($P$32-$P$27)/5 -> 11105.636 | Q30: =Q29+($Q$32-$Q$27)/5 -> 442308.4965 | R30: =P30*'5. TNC Parameters'!$H$14*'5. TNC Parameters'!$H$13/1000 -> 0.3490342743 | S30: =Q30*'5. TNC Parameters'!$H$15*'5. TNC Parameters'!$H$13/1000 -> 6.950562088 | T30: =R30*'5. TNC Parameters'!$H$16/1000 -> 0.1040122137 | U30: =S30*'5. TNC Parameters'!$H$16/1000 -> 2.071267502 | V30: ='TNC CropScenarios'!T30+'TNC CropScenarios'!U30 -> 2.175279716 | W30: ='TNC CropScenarios'!O30+'TNC CropScenarios'!V30 -> 85.56380317 | X30: 11449242.96 | Y30: 2665224 | Z30: 962068.5 | AA30: =((X30*'5. TNC Parameters'!$H$18)+(Z30*'5. TNC Parameters'!$H$19))*'5. TNC Parameters'!$H$24*'5. TNC Parameters'!$H$21/1000 -> 21.01531137 | AB30: =AA30*'5. TNC Parameters'!$H$22/1000 -> 6.262562789 | AC30: =((X30+Y30+Z30)*'5. TNC Parameters'!$H$20*'5. TNC Parameters'!$H$23*'5. TNC Parameters'!$H$21)/1000 -> 53.30632182 | AD30: =AC30*'5. TNC Parameters'!$H$22/1000 -> 15.8852839 | AE30: 22.14784669 | AF30: 109.7079624 | AJ30: =INDEX((DirN2OManSoilPol!$U$15:$U$43),MATCH(A30,DirN2OManSoilPol!$A$15:A$43,0)) -> 86.65577954 | AN30: ='6. TNC Assumptions'!B37 -> 45500 | AO30: ='6. TNC Assumptions'!F37 -> 0.08 | AP30: 3640 | AQ30: =AP30*'5. TNC Parameters'!$H$6*'5. TNC Parameters'!$H$7*'5. TNC Parameters'!$H$8/1000 -> 63.882 | AR30: =AQ30*'5. TNC Parameters'!$H$9/1000 -> 1.59705 | AS30: 0.3992625 | AT30: 109.3086999 | AV30: 53.6151692 | AW30: ='TNC CropScenarios'!F30*'6. TNC Assumptions'!K37 -> 9044901.942 | AX30: =AW30*'5. TNC Parameters'!$H$12*'5. TNC Parameters'!$H$13/1000 -> 142.1341734 | AY30: =AX30*'5. TNC Parameters'!$H$16/1000 -> 42.35598366 | AZ30: 42.35598366 | BA30: 11.25918553 | BB30: 99.5407532 | BD30: ='6. TNC Assumptions'!Q37*'6. TNC Assumptions'!$O$15*'6. TNC Assumptions'!S37 -> 21.44868658 | BE30: ='6. TNC Assumptions'!Q37*'6. TNC Assumptions'!$O$16*'6. TNC Assumptions'!S37 -> 71.49562194 | BF30: ='6. TNC Assumptions'!Q37*'6. TNC Assumptions'!$O$17*'6. TNC Assumptions'!S37 -> 17.15894926 | BG30: 110.1032578 | BH30: ='TNC CropScenarios'!BG30*'5. TNC Parameters'!$H$27 -> 55.05162889 | BI30: =BH30*'5. TNC Parameters'!$H$28*1000000 -> 963403.5056 | BJ30: =BI30*'5. TNC Parameters'!$H$12*'5. TNC Parameters'!$H$13*'5. TNC Parameters'!$H$16/1000000 -> 4.511480988 | BK30: 4.511480988 | BL30: 104.0522342 | BN30: 9044901.942 | BO30: ='TNC CropScenarios'!Y30 -> 2665224 | BP30: 1925472.006 | BQ30: =(((BN30*'5. TNC Parameters'!$H$18)+(BP30*'5. TNC Parameters'!$H$19))*('5. TNC Parameters'!$H$24*'5. TNC Parameters'!$H$21))/1000 -> 20.26490078 | BR30: =BQ30*'5. TNC Parameters'!$H$22/1000 -> 6.038940433 | BS30: =((BN30+BO30+BP30)*'5. TNC Parameters'!$H$20*'5. TNC Parameters'!$H$23*'5. TNC Parameters'!$H$21)/1000 -> 48.21157846 | BT30: =BS30*'5. TNC Parameters'!$H$22/1000 -> 14.36705038 | BU30: 20.40599081 | BV30: 1.741855878 | BW30: 102.3103783 | BY30: 101.9111158 | BZ30: 7.796846552 | CD30: 109.7079624 | CE30: 109.3086999 | CF30: 99.5407532 | CG30: 102.3103783 | CH30: 101.9111158 | CJ30: 109.7079624 | CK30: 109.3086999 | CL30: 99.5407532 | CM30: 102.3103783 | CN30: 101.9111158 | CP30: 0 | CQ30: 0 | CR30: 0 | CS30: 0 | CT30: 0
A31: 2029 | B31: ='6. TNC Assumptions'!C38 -> 45250 | C31: =B31*'5. TNC Parameters'!$H$10 -> 4525 | D31: =C31*'5. TNC Parameters'!$H$6*'5. TNC Parameters'!$H$7*'5. TNC Parameters'!$H$8/1000 -> 79.41375 | E31: =D31*'5. TNC Parameters'!$H$9/1000 -> 1.98534375 | F31: 11449242.96 | G31: 2665224 | H31: =H30+($H$32-$H$27)/5 -> 3701274.223 | I31: ='TNC CropScenarios'!F31*'5. TNC Parameters'!$H$12*'5. TNC Parameters'!$H$13/1000 -> 179.9166752 | J31: =G31*'5. TNC Parameters'!$H$12*'5. TNC Parameters'!$H$13/1000 -> 41.88209143 | K31: =H31*'5. TNC Parameters'!$H$12*'5. TNC Parameters'!$H$13/1000 -> 58.16288064 | L31: =I31*'5. TNC Parameters'!$H$16/1000 -> 53.6151692 | M31: =J31*'5. TNC Parameters'!$H$16/1000 -> 12.48086325 | N31: =K31*'5. TNC Parameters'!$H$16/1000 -> 17.33253843 | O31: =SUM('TNC CropScenarios'!L31:N31) -> 83.42857087 | P31: =P30+($P$32-$P$27)/5 -> 11041.688 | Q31: =Q30+($Q$32-$Q$27)/5 -> 443589.6465 | R31: =P31*'5. TNC Parameters'!$H$14*'5. TNC Parameters'!$H$13/1000 -> 0.34702448 | S31: =Q31*'5. TNC Parameters'!$H$15*'5. TNC Parameters'!$H$13/1000 -> 6.970694445 | T31: =R31*'5. TNC Parameters'!$H$16/1000 -> 0.103413295 | U31: =S31*'5. TNC Parameters'!$H$16/1000 -> 2.077266945 | V31: ='TNC CropScenarios'!T31+'TNC CropScenarios'!U31 -> 2.18068024 | W31: ='TNC CropScenarios'!O31+'TNC CropScenarios'!V31 -> 85.60925111 | X31: 11449242.96 | Y31: 2665224 | Z31: 962068.5 | AA31: =((X31*'5. TNC Parameters'!$H$18)+(Z31*'5. TNC Parameters'!$H$19))*'5. TNC Parameters'!$H$24*'5. TNC Parameters'!$H$21/1000 -> 21.01531137 | AB31: =AA31*'5. TNC Parameters'!$H$22/1000 -> 6.262562789 | AC31: =((X31+Y31+Z31)*'5. TNC Parameters'!$H$20*'5. TNC Parameters'!$H$23*'5. TNC Parameters'!$H$21)/1000 -> 53.30632182 | AD31: =AC31*'5. TNC Parameters'!$H$22/1000 -> 15.8852839 | AE31: 22.14784669 | AF31: 109.7424416 | AJ31: =INDEX((DirN2OManSoilPol!$U$15:$U$43),MATCH(A31,DirN2OManSoilPol!$A$15:A$43,0)) -> 86.77170568 | AN31: ='6. TNC Assumptions'!B38 -> 45250 | AO31: ='6. TNC Assumptions'!F38 -> 0.08 | AP31: 3620 | AQ31: =AP31*'5. TNC Parameters'!$H$6*'5. TNC Parameters'!$H$7*'5. TNC Parameters'!$H$8/1000 -> 63.531 | AR31: =AQ31*'5. TNC Parameters'!$H$9/1000 -> 1.588275 | AS31: 0.39706875 | AT31: 109.3453728 | AV31: 53.6151692 | AW31: ='TNC CropScenarios'!F31*'6. TNC Assumptions'!K38 -> 8815917.083 | AX31: =AW31*'5. TNC Parameters'!$H$12*'5. TNC Parameters'!$H$13/1000 -> 138.5358399 | AY31: =AX31*'5. TNC Parameters'!$H$16/1000 -> 41.28368028 | AZ31: 41.28368028 | BA31: 12.33148892 | BB31: 98.57340721 | BD31: ='6. TNC Assumptions'!Q38*'6. TNC Assumptions'!$O$15*'6. TNC Assumptions'!S38 -> 23.56055726 | BE31: ='6. TNC Assumptions'!Q38*'6. TNC Assumptions'!$O$16*'6. TNC Assumptions'!S38 -> 78.53519086 | BF31: ='6. TNC Assumptions'!Q38*'6. TNC Assumptions'!$O$17*'6. TNC Assumptions'!S38 -> 18.84844581 | BG31: 120.9441939 | BH31: ='TNC CropScenarios'!BG31*'5. TNC Parameters'!$H$27 -> 60.47209697 | BI31: =BH31*'5. TNC Parameters'!$H$28*1000000 -> 1058261.697 | BJ31: =BI31*'5. TNC Parameters'!$H$12*'5. TNC Parameters'!$H$13*'5. TNC Parameters'!$H$16/1000000 -> 4.955688346 | BK31: 4.955688346 | BL31: 103.5290956 | BN31: 8815917.083 | BO31: ='TNC CropScenarios'!Y31 -> 2665224 | BP31: 2020330.197 | BQ31: =(((BN31*'5. TNC Parameters'!$H$18)+(BP31*'5. TNC Parameters'!$H$19))*('5. TNC Parameters'!$H$24*'5. TNC Parameters'!$H$21))/1000 -> 20.20319318 | BR31: =BQ31*'5. TNC Parameters'!$H$22/1000 -> 6.020551567 | BS31: =((BN31+BO31+BP31)*'5. TNC Parameters'!$H$20*'5. TNC Parameters'!$H$23*'5. TNC Parameters'!$H$21)/1000 -> 47.73734488 | BT31: =BS31*'5. TNC Parameters'!$H$22/1000 -> 14.22572877 | BU31: 20.24628034 | BV31: 1.90156635 | BW31: 101.6275292 | BY31: 101.2304605 | BZ31: 8.5119811 | CD31: 109.7424416 | CE31: 109.3453728 | CF31: 98.57340721 | CG31: 101.6275292 | CH31: 101.2304605 | CJ31: 109.7424416 | CK31: 109.3453728 | CL31: 98.57340721 | CM31: 101.6275292 | CN31: 101.2304605 | CP31: 0 | CQ31: 0 | CR31: 0 | CS31: 0 | CT31: 0
A32: 2030 | B32: ='6. TNC Assumptions'!C39 -> 45000 | C32: =B32*'5. TNC Parameters'!$H$10 -> 4500 | D32: =C32*'5. TNC Parameters'!$H$6*'5. TNC Parameters'!$H$7*'5. TNC Parameters'!$H$8/1000 -> 78.975 | E32: =D32*'5. TNC Parameters'!$H$9/1000 -> 1.974375 | F32: 11449242.96 | G32: 2665224 | H32: =MMS!X90 -> 3709826.143 | I32: ='TNC CropScenarios'!F32*'5. TNC Parameters'!$H$12*'5. TNC Parameters'!$H$13/1000 -> 179.9166752 | J32: =G32*'5. TNC Parameters'!$H$12*'5. TNC Parameters'!$H$13/1000 -> 41.88209143 | K32: =H32*'5. TNC Parameters'!$H$12*'5. TNC Parameters'!$H$13/1000 -> 58.29726796 | L32: =I32*'5. TNC Parameters'!$H$16/1000 -> 53.6151692 | M32: =J32*'5. TNC Parameters'!$H$16/1000 -> 12.48086325 | N32: =K32*'5. TNC Parameters'!$H$16/1000 -> 17.37258585 | O32: =SUM('TNC CropScenarios'!L32:N32) -> 83.46861829 | P32: =MMS!X92 -> 10977.74 | Q32: =MMS!X91 -> 444870.7965 | R32: =P32*'5. TNC Parameters'!$H$14*'5. TNC Parameters'!$H$13/1000 -> 0.3450146857 | S32: =Q32*'5. TNC Parameters'!$H$15*'5. TNC Parameters'!$H$13/1000 -> 6.990826802 | T32: =R32*'5. TNC Parameters'!$H$16/1000 -> 0.1028143763 | U32: =S32*'5. TNC Parameters'!$H$16/1000 -> 2.083266387 | V32: ='TNC CropScenarios'!T32+'TNC CropScenarios'!U32 -> 2.186080763 | W32: ='TNC CropScenarios'!O32+'TNC CropScenarios'!V32 -> 85.65469906 | X32: 11449242.96 | Y32: 2665224 | Z32: 962068.5 | AA32: =((X32*'5. TNC Parameters'!$H$18)+(Z32*'5. TNC Parameters'!$H$19))*'5. TNC Parameters'!$H$24*'5. TNC Parameters'!$H$21/1000 -> 21.01531137 | AB32: =AA32*'5. TNC Parameters'!$H$22/1000 -> 6.262562789 | AC32: =((X32+Y32+Z32)*'5. TNC Parameters'!$H$20*'5. TNC Parameters'!$H$23*'5. TNC Parameters'!$H$21)/1000 -> 53.30632182 | AD32: =AC32*'5. TNC Parameters'!$H$22/1000 -> 15.8852839 | AE32: 22.14784669 | AF32: 109.7769207 | AJ32: =INDEX((DirN2OManSoilPol!$U$15:$U$43),MATCH(A32,DirN2OManSoilPol!$A$15:A$43,0)) -> 86.88763183 | AN32: ='6. TNC Assumptions'!B39 -> 45000 | AO32: ='6. TNC Assumptions'!F39 -> 0.08 | AP32: 3600 | AQ32: =AP32*'5. TNC Parameters'!$H$6*'5. TNC Parameters'!$H$7*'5. TNC Parameters'!$H$8/1000 -> 63.18 | AR32: =AQ32*'5. TNC Parameters'!$H$9/1000 -> 1.5795 | AS32: 0.394875 | AT32: 109.3820457 | AV32: 53.6151692 | AW32: ='TNC CropScenarios'!F32*'6. TNC Assumptions'!K39 -> 8586932.223 | AX32: =AW32*'5. TNC Parameters'!$H$12*'5. TNC Parameters'!$H$13/1000 -> 134.9375064 | AY32: =AX32*'5. TNC Parameters'!$H$16/1000 -> 40.2113769 | AZ32: 40.2113769 | BA32: 13.4037923 | BB32: 97.60606122 | BD32: ='6. TNC Assumptions'!Q39*'6. TNC Assumptions'!$O$15*'6. TNC Assumptions'!S39 -> 25.74832329 | BE32: ='6. TNC Assumptions'!Q39*'6. TNC Assumptions'!$O$16*'6. TNC Assumptions'!S39 -> 85.8277443 | BF32: ='6. TNC Assumptions'!Q39*'6. TNC Assumptions'!$O$17*'6. TNC Assumptions'!S39 -> 20.59865863 | BG32: 132.1747262 | BH32: ='TNC CropScenarios'!BG32*'5. TNC Parameters'!$H$27 -> 66.08736311 | BI32: =BH32*'5. TNC Parameters'!$H$28*1000000 -> 1156528.854 | BJ32: =BI32*'5. TNC Parameters'!$H$12*'5. TNC Parameters'!$H$13*'5. TNC Parameters'!$H$16/1000000 -> 5.415859407 | BK32: 5.415859407 | BL32: 103.0219206 | BN32: 8586932.223 | BO32: ='TNC CropScenarios'!Y32 -> 2665224 | BP32: 2118597.354 | BQ32: =(((BN32*'5. TNC Parameters'!$H$18)+(BP32*'5. TNC Parameters'!$H$19))*('5. TNC Parameters'!$H$24*'5. TNC Parameters'!$H$21))/1000 -> 20.15219946 | BR32: =BQ32*'5. TNC Parameters'!$H$22/1000 -> 6.005355441 | BS32: =((BN32+BO32+BP32)*'5. TNC Parameters'!$H$20*'5. TNC Parameters'!$H$23*'5. TNC Parameters'!$H$21)/1000 -> 47.27516444 | BT32: =BS32*'5. TNC Parameters'!$H$22/1000 -> 14.087999 | BU32: 20.09335444 | BV32: 2.054492249 | BW32: 100.9674284 | BY32: 100.5725534 | BZ32: 9.204367373 | CD32: 109.7769207 | CE32: 109.3820457 | CF32: 97.60606122 | CG32: 100.9674284 | CH32: 100.5725534 | CJ32: 109.7769207 | CK32: 109.3820457 | CL32: 97.60606122 | CM32: 100.9674284 | CN32: 100.5725534 | CP32: 0 | CQ32: 0 | CR32: 0 | CS32: 0 | CT32: 0
A33: 2035 | B33: ='6. TNC Assumptions'!C40 -> 44000 | C33: =B33*'5. TNC Parameters'!$H$10 -> 4400 | D33: =C33*'5. TNC Parameters'!$H$6*'5. TNC Parameters'!$H$7*'5. TNC Parameters'!$H$8/1000 -> 77.22 | E33: =D33*'5. TNC Parameters'!$H$9/1000 -> 1.9305 | F33: 11449242.96 | G33: 2665224 | H33: =MMS!Y90 -> 3816834.432 | I33: ='TNC CropScenarios'!F33*'5. TNC Parameters'!$H$12*'5. TNC Parameters'!$H$13/1000 -> 179.9166752 | J33: =G33*'5. TNC Parameters'!$H$12*'5. TNC Parameters'!$H$13/1000 -> 41.88209143 | K33: =H33*'5. TNC Parameters'!$H$12*'5. TNC Parameters'!$H$13/1000 -> 59.97882678 | L33: =I33*'5. TNC Parameters'!$H$16/1000 -> 53.6151692 | M33: =J33*'5. TNC Parameters'!$H$16/1000 -> 12.48086325 | N33: =K33*'5. TNC Parameters'!$H$16/1000 -> 17.87369038 | O33: =SUM('TNC CropScenarios'!L33:N33) -> 83.96972282 | P33: =MMS!Y92 -> 10977.74 | Q33: =MMS!Y91 -> 447433.0965 | R33: =P33*'5. TNC Parameters'!$H$14*'5. TNC Parameters'!$H$13/1000 -> 0.3450146857 | S33: =Q33*'5. TNC Parameters'!$H$15*'5. TNC Parameters'!$H$13/1000 -> 7.031091516 | T33: =R33*'5. TNC Parameters'!$H$16/1000 -> 0.1028143763 | U33: =S33*'5. TNC Parameters'!$H$16/1000 -> 2.095265272 | V33: ='TNC CropScenarios'!T33+'TNC CropScenarios'!U33 -> 2.198079648 | W33: ='TNC CropScenarios'!O33+'TNC CropScenarios'!V33 -> 86.16780247 | X33: 11449242.96 | Y33: 2665224 | Z33: 962068.5 | AA33: =((X33*'5. TNC Parameters'!$H$18)+(Z33*'5. TNC Parameters'!$H$19))*'5. TNC Parameters'!$H$24*'5. TNC Parameters'!$H$21/1000 -> 21.01531137 | AB33: =AA33*'5. TNC Parameters'!$H$22/1000 -> 6.262562789 | AC33: =((X33+Y33+Z33)*'5. TNC Parameters'!$H$20*'5. TNC Parameters'!$H$23*'5. TNC Parameters'!$H$21)/1000 -> 53.30632182 | AD33: =AC33*'5. TNC Parameters'!$H$22/1000 -> 15.8852839 | AE33: 22.14784669 | AF33: 110.2461492 | AJ33: =INDEX((DirN2OManSoilPol!$U$15:$U$43),MATCH(A33,DirN2OManSoilPol!$A$15:A$43,0)) -> 87.8445016 | AN33: ='6. TNC Assumptions'!B40 -> 44000 | AO33: ='6. TNC Assumptions'!F40 -> 0.07 | AP33: 3080 | AQ33: =AP33*'5. TNC Parameters'!$H$6*'5. TNC Parameters'!$H$7*'5. TNC Parameters'!$H$8/1000 -> 54.054 | AR33: =AQ33*'5. TNC Parameters'!$H$9/1000 -> 1.35135 | AS33: 0.57915 | AT33: 109.6669992 | AV33: 53.6151692 | AW33: ='TNC CropScenarios'!F33*'6. TNC Assumptions'!K40 -> 8014470.075 | AX33: =AW33*'5. TNC Parameters'!$H$12*'5. TNC Parameters'!$H$13/1000 -> 125.9416726 | AY33: =AX33*'5. TNC Parameters'!$H$16/1000 -> 37.53061844 | AZ33: 37.53061844 | BA33: 16.08455076 | BB33: 95.83829753 | BD33: ='6. TNC Assumptions'!Q40*'6. TNC Assumptions'!$O$15*'6. TNC Assumptions'!S40 -> 33.1662677 | BE33: ='6. TNC Assumptions'!Q40*'6. TNC Assumptions'!$O$16*'6. TNC Assumptions'!S40 -> 110.5542257 | BF33: ='6. TNC Assumptions'!Q40*'6. TNC Assumptions'!$O$17*'6. TNC Assumptions'!S40 -> 26.53301416 | BG33: 170.2535075 | BH33: ='TNC CropScenarios'!BG33*'5. TNC Parameters'!$H$27 -> 85.12675377 | BI33: =BH33*'5. TNC Parameters'!$H$28*1000000 -> 1489718.191 | BJ33: =BI33*'5. TNC Parameters'!$H$12*'5. TNC Parameters'!$H$13*'5. TNC Parameters'!$H$16/1000000 -> 6.976137472 | BK33: 6.976137472 | BL33: 102.814435 | BN33: 8014470.075 | BO33: ='TNC CropScenarios'!Y33 -> 2665224 | BP33: 2451786.691 | BQ33: =(((BN33*'5. TNC Parameters'!$H$18)+(BP33*'5. TNC Parameters'!$H$19))*('5. TNC Parameters'!$H$24*'5. TNC Parameters'!$H$21))/1000 -> 20.29978258 | BR33: =BQ33*'5. TNC Parameters'!$H$22/1000 -> 6.049335207 | BS33: =((BN33+BO33+BP33)*'5. TNC Parameters'!$H$20*'5. TNC Parameters'!$H$23*'5. TNC Parameters'!$H$21)/1000 -> 46.42916414 | BT33: =BS33*'5. TNC Parameters'!$H$22/1000 -> 13.83589091 | BU33: 19.88522612 | BV33: 2.262620571 | BW33: 100.5518144 | BY33: 99.97266443 | BZ33: 10.27348473 | CD33: 110.2461492 | CE33: 109.6669992 | CF33: 95.83829753 | CG33: 100.5518144 | CH33: 99.97266443 | CJ33: 110.2461492 | CK33: 109.6669992 | CL33: 95.83829753 | CM33: 100.5518144 | CN33: 99.97266443 | CP33: 0 | CQ33: 0 | CR33: 0 | CS33: 0 | CT33: 0
A34: 2040 | B34: ='6. TNC Assumptions'!C41 -> 43000 | C34: =B34*'5. TNC Parameters'!$H$10 -> 4300 | D34: =C34*'5. TNC Parameters'!$H$6*'5. TNC Parameters'!$H$7*'5. TNC Parameters'!$H$8/1000 -> 75.465 | E34: =D34*'5. TNC Parameters'!$H$9/1000 -> 1.886625 | F34: 11449242.96 | G34: 2665224 | H34: =MMS!Z90 -> 3922135.76 | I34: ='TNC CropScenarios'!F34*'5. TNC Parameters'!$H$12*'5. TNC Parameters'!$H$13/1000 -> 179.9166752 | J34: =G34*'5. TNC Parameters'!$H$12*'5. TNC Parameters'!$H$13/1000 -> 41.88209143 | K34: =H34*'5. TNC Parameters'!$H$12*'5. TNC Parameters'!$H$13/1000 -> 61.63356194 | L34: =I34*'5. TNC Parameters'!$H$16/1000 -> 53.6151692 | M34: =J34*'5. TNC Parameters'!$H$16/1000 -> 12.48086325 | N34: =K34*'5. TNC Parameters'!$H$16/1000 -> 18.36680146 | O34: =SUM('TNC CropScenarios'!L34:N34) -> 84.4628339 | P34: =MMS!Z92 -> 10977.74 | Q34: =MMS!Z91 -> 451276.5465 | R34: =P34*'5. TNC Parameters'!$H$14*'5. TNC Parameters'!$H$13/1000 -> 0.3450146857 | S34: =Q34*'5. TNC Parameters'!$H$15*'5. TNC Parameters'!$H$13/1000 -> 7.091488588 | T34: =R34*'5. TNC Parameters'!$H$16/1000 -> 0.1028143763 | U34: =S34*'5. TNC Parameters'!$H$16/1000 -> 2.113263599 | V34: ='TNC CropScenarios'!T34+'TNC CropScenarios'!U34 -> 2.216077976 | W34: ='TNC CropScenarios'!O34+'TNC CropScenarios'!V34 -> 86.67891187 | X34: 11449242.96 | Y34: 2665224 | Z34: 962068.5 | AA34: =((X34*'5. TNC Parameters'!$H$18)+(Z34*'5. TNC Parameters'!$H$19))*'5. TNC Parameters'!$H$24*'5. TNC Parameters'!$H$21/1000 -> 21.01531137 | AB34: =AA34*'5. TNC Parameters'!$H$22/1000 -> 6.262562789 | AC34: =((X34+Y34+Z34)*'5. TNC Parameters'!$H$20*'5. TNC Parameters'!$H$23*'5. TNC Parameters'!$H$21)/1000 -> 53.30632182 | AD34: =AC34*'5. TNC Parameters'!$H$22/1000 -> 15.8852839 | AE34: 22.14784669 | AF34: 110.7133836 | AJ34: =INDEX((DirN2OManSoilPol!$U$15:$U$43),MATCH(A34,DirN2OManSoilPol!$A$15:A$43,0)) -> 88.79337791 | AN34: ='6. TNC Assumptions'!B41 -> 43000 | AO34: ='6. TNC Assumptions'!F41 -> 0.06 | AP34: 2580 | AQ34: =AP34*'5. TNC Parameters'!$H$6*'5. TNC Parameters'!$H$7*'5. TNC Parameters'!$H$8/1000 -> 45.279 | AR34: =AQ34*'5. TNC Parameters'!$H$9/1000 -> 1.131975 | AS34: 0.75465 | AT34: 109.9587336 | AV34: 53.6151692 | AW34: ='TNC CropScenarios'!F34*'6. TNC Assumptions'!K41 -> 7442007.927 | AX34: =AW34*'5. TNC Parameters'!$H$12*'5. TNC Parameters'!$H$13/1000 -> 116.9458388 | AY34: =AX34*'5. TNC Parameters'!$H$16/1000 -> 34.84985998 | AZ34: 34.84985998 | BA34: 18.76530922 | BB34: 94.06254039 | BD34: ='6. TNC Assumptions'!Q41*'6. TNC Assumptions'!$O$15*'6. TNC Assumptions'!S41 -> 41.84941655 | BE34: ='6. TNC Assumptions'!Q41*'6. TNC Assumptions'!$O$16*'6. TNC Assumptions'!S41 -> 139.4980552 | BF34: ='6. TNC Assumptions'!Q41*'6. TNC Assumptions'!$O$17*'6. TNC Assumptions'!S41 -> 33.47953324 | BG34: 214.827005 | BH34: ='TNC CropScenarios'!BG34*'5. TNC Parameters'!$H$27 -> 107.4135025 | BI34: =BH34*'5. TNC Parameters'!$H$28*1000000 -> 1879736.294 | BJ34: =BI34*'5. TNC Parameters'!$H$12*'5. TNC Parameters'!$H$13*'5. TNC Parameters'!$H$16/1000000 -> 8.802536529 | BK34: 8.802536529 | BL34: 102.8650769 | BN34: 7442007.927 | BO34: ='TNC CropScenarios'!Y34 -> 2665224 | BP34: 2841804.794 | BQ34: =(((BN34*'5. TNC Parameters'!$H$18)+(BP34*'5. TNC Parameters'!$H$19))*('5. TNC Parameters'!$H$24*'5. TNC Parameters'!$H$21))/1000 -> 20.62597038 | BR34: =BQ34*'5. TNC Parameters'!$H$22/1000 -> 6.146539173 | BS34: =((BN34+BO34+BP34)*'5. TNC Parameters'!$H$20*'5. TNC Parameters'!$H$23*'5. TNC Parameters'!$H$21)/1000 -> 45.78409412 | BT34: =BS34*'5. TNC Parameters'!$H$22/1000 -> 13.64366005 | BU34: 19.79019922 | BV34: 2.357647471 | BW34: 100.5074294 | BY34: 99.75277944 | BZ34: 10.96060412 | CD34: 110.7133836 | CE34: 109.9587336 | CF34: 94.06254039 | CG34: 100.5074294 | CH34: 99.75277944 | CJ34: 110.7133836 | CK34: 109.9587336 | CL34: 94.06254039 | CM34: 100.5074294 | CN34: 99.75277944 | CP34: 0 | CQ34: 0 | CR34: 0 | CS34: 0 | CT34: 0
A35: 2045 | B35: ='6. TNC Assumptions'!C42 -> 42000 | C35: =B35*'5. TNC Parameters'!$H$10 -> 4200 | D35: =C35*'5. TNC Parameters'!$H$6*'5. TNC Parameters'!$H$7*'5. TNC Parameters'!$H$8/1000 -> 73.71 | E35: =D35*'5. TNC Parameters'!$H$9/1000 -> 1.84275 | F35: 11449242.96 | G35: 2665224 | H35: =MMS!AA90 -> 4040586.237 | I35: ='TNC CropScenarios'!F35*'5. TNC Parameters'!$H$12*'5. TNC Parameters'!$H$13/1000 -> 179.9166752 | J35: =G35*'5. TNC Parameters'!$H$12*'5. TNC Parameters'!$H$13/1000 -> 41.88209143 | K35: =H35*'5. TNC Parameters'!$H$12*'5. TNC Parameters'!$H$13/1000 -> 63.49492658 | L35: =I35*'5. TNC Parameters'!$H$16/1000 -> 53.6151692 | M35: =J35*'5. TNC Parameters'!$H$16/1000 -> 12.48086325 | N35: =K35*'5. TNC Parameters'!$H$16/1000 -> 18.92148812 | O35: =SUM('TNC CropScenarios'!L35:N35) -> 85.01752056 | P35: =MMS!AA92 -> 11047.017 | Q35: =MMS!AA91 -> 457682.2965 | R35: =P35*'5. TNC Parameters'!$H$14*'5. TNC Parameters'!$H$13/1000 -> 0.3471919629 | S35: =Q35*'5. TNC Parameters'!$H$15*'5. TNC Parameters'!$H$13/1000 -> 7.192150374 | T35: =R35*'5. TNC Parameters'!$H$16/1000 -> 0.1034632049 | U35: =S35*'5. TNC Parameters'!$H$16/1000 -> 2.143260811 | V35: ='TNC CropScenarios'!T35+'TNC CropScenarios'!U35 -> 2.246724016 | W35: ='TNC CropScenarios'!O35+'TNC CropScenarios'!V35 -> 87.26424458 | X35: 11449242.96 | Y35: 2665224 | Z35: 962068.5 | AA35: =((X35*'5. TNC Parameters'!$H$18)+(Z35*'5. TNC Parameters'!$H$19))*'5. TNC Parameters'!$H$24*'5. TNC Parameters'!$H$21/1000 -> 21.01531137 | AB35: =AA35*'5. TNC Parameters'!$H$22/1000 -> 6.262562789 | AC35: =((X35+Y35+Z35)*'5. TNC Parameters'!$H$20*'5. TNC Parameters'!$H$23*'5. TNC Parameters'!$H$21)/1000 -> 53.30632182 | AD35: =AC35*'5. TNC Parameters'!$H$22/1000 -> 15.8852839 | AE35: 22.14784669 | AF35: 111.2548413 | AJ35: =INDEX((DirN2OManSoilPol!$U$15:$U$43),MATCH(A35,DirN2OManSoilPol!$A$15:A$43,0)) -> 89.79866172 | AN35: ='6. TNC Assumptions'!B42 -> 42000 | AO35: ='6. TNC Assumptions'!F42 -> 0.06 | AP35: 2520 | AQ35: =AP35*'5. TNC Parameters'!$H$6*'5. TNC Parameters'!$H$7*'5. TNC Parameters'!$H$8/1000 -> 44.226 | AR35: =AQ35*'5. TNC Parameters'!$H$9/1000 -> 1.10565 | AS35: 0.7371 | AT35: 110.5177413 | AV35: 53.6151692 | AW35: ='TNC CropScenarios'!F35*'6. TNC Assumptions'!K42 -> 6869545.779 | AX35: =AW35*'5. TNC Parameters'!$H$12*'5. TNC Parameters'!$H$13/1000 -> 107.9500051 | AY35: =AX35*'5. TNC Parameters'!$H$16/1000 -> 32.16910152 | AZ35: 32.16910152 | BA35: 21.44606768 | BB35: 92.34319073 | BD35: ='6. TNC Assumptions'!Q42*'6. TNC Assumptions'!$O$15*'6. TNC Assumptions'!S42 -> 51.98077962 | BE35: ='6. TNC Assumptions'!Q42*'6. TNC Assumptions'!$O$16*'6. TNC Assumptions'!S42 -> 173.2692654 | BF35: ='6. TNC Assumptions'!Q42*'6. TNC Assumptions'!$O$17*'6. TNC Assumptions'!S42 -> 41.5846237 | BG35: 266.8346687 | BH35: ='TNC CropScenarios'!BG35*'5. TNC Parameters'!$H$27 -> 133.4173344 | BI35: =BH35*'5. TNC Parameters'!$H$28*1000000 -> 2334803.351 | BJ35: =BI35*'5. TNC Parameters'!$H$12*'5. TNC Parameters'!$H$13*'5. TNC Parameters'!$H$16/1000000 -> 10.93355055 | BK35: 10.93355055 | BL35: 103.2767413 | BN35: 6869545.779 | BO35: ='TNC CropScenarios'!Y35 -> 2665224 | BP35: 3296871.851 | BQ35: =(((BN35*'5. TNC Parameters'!$H$18)+(BP35*'5. TNC Parameters'!$H$19))*('5. TNC Parameters'!$H$24*'5. TNC Parameters'!$H$21))/1000 -> 21.15659776 | BR35: =BQ35*'5. TNC Parameters'!$H$22/1000 -> 6.304666131 | BS35: =((BN35+BO35+BP35)*'5. TNC Parameters'!$H$20*'5. TNC Parameters'!$H$23*'5. TNC Parameters'!$H$21)/1000 -> 45.36901862 | BT35: =BS35*'5. TNC Parameters'!$H$22/1000 -> 13.51996755 | BU35: 19.82463368 | BV35: 2.323213011 | BW35: 100.9535283 | BY35: 100.2164283 | BZ35: 11.038413 | CD35: 111.2548413 | CE35: 110.5177413 | CF35: 92.34319073 | CG35: 100.9535283 | CH35: 100.2164283 | CJ35: 111.2548413 | CK35: 110.5177413 | CL35: 92.34319073 | CM35: 100.9535283 | CN35: 100.2164283 | CP35: 0 | CQ35: 0 | CR35: 0 | CS35: 0 | CT35: 0
A36: 2050 | B36: ='6. TNC Assumptions'!C43 -> 40000 | C36: =B36*'5. TNC Parameters'!$H$10 -> 4000 | D36: =C36*'5. TNC Parameters'!$H$6*'5. TNC Parameters'!$H$7*'5. TNC Parameters'!$H$8/1000 -> 70.2 | E36: =D36*'5. TNC Parameters'!$H$9/1000 -> 1.755 | F36: 11449242.96 | G36: 2665224 | H36: =MMS!AB90 -> 4159036.715 | I36: ='TNC CropScenarios'!F36*'5. TNC Parameters'!$H$12*'5. TNC Parameters'!$H$13/1000 -> 179.9166752 | J36: =G36*'5. TNC Parameters'!$H$12*'5. TNC Parameters'!$H$13/1000 -> 41.88209143 | K36: =H36*'5. TNC Parameters'!$H$12*'5. TNC Parameters'!$H$13/1000 -> 65.35629123 | L36: =I36*'5. TNC Parameters'!$H$16/1000 -> 53.6151692 | M36: =J36*'5. TNC Parameters'!$H$16/1000 -> 12.48086325 | N36: =K36*'5. TNC Parameters'!$H$16/1000 -> 19.47617479 | O36: =SUM('TNC CropScenarios'!L36:N36) -> 85.57220723 | P36: =MMS!AB92 -> 11116.294 | Q36: =MMS!AB91 -> 464088.0465 | R36: =P36*'5. TNC Parameters'!$H$14*'5. TNC Parameters'!$H$13/1000 -> 0.34936924 | S36: =Q36*'5. TNC Parameters'!$H$15*'5. TNC Parameters'!$H$13/1000 -> 7.292812159 | T36: =R36*'5. TNC Parameters'!$H$16/1000 -> 0.1041120335 | U36: =S36*'5. TNC Parameters'!$H$16/1000 -> 2.173258023 | V36: ='TNC CropScenarios'!T36+'TNC CropScenarios'!U36 -> 2.277370057 | W36: ='TNC CropScenarios'!O36+'TNC CropScenarios'!V36 -> 87.84957728 | X36: 11449242.96 | Y36: 2665224 | Z36: 962068.5 | AA36: =((X36*'5. TNC Parameters'!$H$18)+(Z36*'5. TNC Parameters'!$H$19))*'5. TNC Parameters'!$H$24*'5. TNC Parameters'!$H$21/1000 -> 21.01531137 | AB36: =AA36*'5. TNC Parameters'!$H$22/1000 -> 6.262562789 | AC36: =((X36+Y36+Z36)*'5. TNC Parameters'!$H$20*'5. TNC Parameters'!$H$23*'5. TNC Parameters'!$H$21)/1000 -> 53.30632182 | AD36: =AC36*'5. TNC Parameters'!$H$22/1000 -> 15.8852839 | AE36: 22.14784669 | AF36: 111.752424 | AJ36: =INDEX((DirN2OManSoilPol!$U$15:$U$43),MATCH(A36,DirN2OManSoilPol!$A$15:A$43,0)) -> 90.80394553 | AN36: ='6. TNC Assumptions'!B43 -> 40000 | AO36: ='6. TNC Assumptions'!F43 -> 0.05 | AP36: 2000 | AQ36: =AP36*'5. TNC Parameters'!$H$6*'5. TNC Parameters'!$H$7*'5. TNC Parameters'!$H$8/1000 -> 35.1 | AR36: =AQ36*'5. TNC Parameters'!$H$9/1000 -> 0.8775 | AS36: 0.8775 | AT36: 110.874924 | AV36: 53.6151692 | AW36: ='TNC CropScenarios'!F36*'6. TNC Assumptions'!K43 -> 6297083.63 | AX36: =AW36*'5. TNC Parameters'!$H$12*'5. TNC Parameters'!$H$13/1000 -> 98.95417133 | AY36: =AX36*'5. TNC Parameters'!$H$16/1000 -> 29.48834306 | AZ36: 29.48834306 | BA36: 24.12682614 | BB36: 90.57996608 | BD36: ='6. TNC Assumptions'!Q43*'6. TNC Assumptions'!$O$15*'6. TNC Assumptions'!S43 -> 63.76775657 | BE36: ='6. TNC Assumptions'!Q43*'6. TNC Assumptions'!$O$16*'6. TNC Assumptions'!S43 -> 212.5591886 | BF36: ='6. TNC Assumptions'!Q43*'6. TNC Assumptions'!$O$17*'6. TNC Assumptions'!S43 -> 51.01420526 | BG36: 327.3411504 | BH36: ='TNC CropScenarios'!BG36*'5. TNC Parameters'!$H$27 -> 163.6705752 | BI36: =BH36*'5. TNC Parameters'!$H$28*1000000 -> 2864235.066 | BJ36: =BI36*'5. TNC Parameters'!$H$12*'5. TNC Parameters'!$H$13*'5. TNC Parameters'!$H$16/1000000 -> 13.41280364 | BK36: 13.41280364 | BL36: 103.9927697 | BN36: 6297083.63 | BO36: ='TNC CropScenarios'!Y36 -> 2665224 | BP36: 3826303.566 | BQ36: =(((BN36*'5. TNC Parameters'!$H$18)+(BP36*'5. TNC Parameters'!$H$19))*('5. TNC Parameters'!$H$24*'5. TNC Parameters'!$H$21))/1000 -> 21.92094263 | BR36: =BQ36*'5. TNC Parameters'!$H$22/1000 -> 6.532440903 | BS36: =((BN36+BO36+BP36)*'5. TNC Parameters'!$H$20*'5. TNC Parameters'!$H$23*'5. TNC Parameters'!$H$21)/1000 -> 45.2168753 | BT36: =BS36*'5. TNC Parameters'!$H$22/1000 -> 13.47462884 | BU36: 20.00706974 | BV36: 2.140776949 | BW36: 101.8519928 | BY36: 100.9744928 | BZ36: 10.77793121 | CD36: 111.752424 | CE36: 110.874924 | CF36: 90.57996608 | CG36: 101.8519928 | CH36: 100.9744928 | CJ36: 111.752424 | CK36: 110.874924 | CL36: 90.57996608 | CM36: 101.8519928 | CN36: 100.9744928 | CP36: 0 | CQ36: 0 | CR36: 0 | CS36: 0 | CT36: 0
BB37: *
BB38: Red in Chem
BB39: Fert Only

Sheet UD1 CropScenarios (hidden)
A1: This worksheet summarises the various emissions scenarios for management of cropland. | AV1: 46 | AW1: 47 | AX1: 48 | AY1: 49 | AZ1: 50 | BA1: 51 | BB1: 52 | BC1: 53 | BD1: 54 | BE1: 55 | BF1: 56 | BG1: 57 | BH1: 58 | BI1: 59 | BJ1: 60 | BK1: 61 | BL1: 62 | BM1: 63 | BN1: 64 | BO1: 65 | BP1: 66 | BQ1: 67 | BR1: 68 | BS1: 69 | BT1: 70 | BU1: 71 | BV1: 72 | BW1: 73 | BX1: 74 | BY1: 75 | BZ1: 76
B2: 1 | C2: 2 | D2: 3 | E2: 4 | F2: 5 | G2: 6 | H2: 7 | I2: 8 | J2: 9 | K2: 10 | L2: 11 | M2: 12 | N2: 13 | O2: 14 | P2: 15 | Q2: 16 | R2: 17 | S2: 18 | T2: 19 | U2: 20 | V2: 21 | W2: 22 | X2: 23 | Y2: 24 | Z2: 25 | AA2: 26 | AB2: 27 | AC2: 28 | AD2: 29 | AE2: 30 | AF2: 31 | AG2: 32 | AH2: 33 | AI2: 34 | AJ2: 35 | AK2: 36 | AL2: 37 | AM2: 38 | AN2: 39 | AO2: 40 | AP2: 41 | AQ2: 42 | AR2: 43 | AS2: 44 | AT2: 45 | AV2: Direct N2O | BN2: Indirect N2O | BY2: Total ER | BZ2: Total ER
BN3: This worksheet calculates the indirect N2O emissions from managed soils.
B4: Business-as-Usual (BAU) | AR4: CROP BURN (Gg CO2e) | AV4: CHEMICAL FERTILIZER | AZ4: (Gg CO2e) | BA4: (Gg CO2e) | BB4: (Gg CO2e) | BD4: Biofarming | BJ4: GgCO2e | BK4: GgCO2e | BL4: GgCO2e | BN4: It follows the calculations given in sheet 3.C.5. Indirect N2O Emissions from managed soils in the IPCC tool. | BY4: GgCO2e | BZ4: reduction
B5: Crop Burn | F5: DirN2OManSoil | X5: IndN2OManSoil | AN5: Crop Burn Sc 1 | BI5: N in compost (kg) | BN5: This scenario includes the combination of reduced chemical fertilizers & use of compost generated from MSW
F6: N2O emissions from managed soils - 1/3 | P6: N2O emissions from urine and dung inputs to grazed soils - 3/3 | W6: N2O Em | X6: This worksheet calculates the indirect N2O emissions from managed soils. It follows the calculations given in sheet 3.C.5. Indirect N2O Emissions from managed soils in the IPCC tool. | BD6: Organic waste composted (Gg) | BH6: Compost (Gg) | BV6: Biofarming - GgCO2e
A7: Year | B7: Area Available (ha) | C7: Area Burnt (ha) | D7: GHG (tCH4) | E7: GHG (GgCO2e) BAU | F7: Fertilizer (kg N/yr) | G7: Crop Residues (kg N/yr) | H7: Manure (kg N/yr) | I7: N2O fert (t/yr) | J7: N2O CropRes (t/yr) | K7: N2O Manure (t/yr) | L7: CO2e Fert (Gg/yr) | M7: CO2e CropRes (Gg/yr) | N7: CO2e Manure (Gg/yr) | O7: CO2e subtotal (Gg/yr) | P7: Cattle,poultry,pigs (kgN/yr) | Q7: sheep & other (kgN/yr) | R7: N2O cpp (t/yr) | S7: N2O s&o (t/yr) | T7: CO2e cpp (Gg/yr) | U7: CO2e s&o (Gg/yr) | V7: CO2e subtotal (Gg/yr) | W7: DirN2OManSoil CO2e total (Gg/yr) | X7: Fertilizer (kg N/yr) | Y7: CropResidues (kg N/yr) | Z7: Manure (kg N/yr) | AA7: N2O Volatilised (t/yr) | AB7: CO2e Volatilised (Gg/yr) | AC7: N2O leached (y/yr) | AD7: CO2e leached (Gg/yr) | AE7: IndN2OManSoil CO2e Total (Gg/yr) | AF7: Total (BAU) | AJ7: DirN2OManSoilPol | AN7: Area Available (ha) | AO7: % Area Burnt | AP7: Area Burnt (ha) | AQ7: GHG (tCH4) | AR7: GHG due to CropBurn (Gg CO2e) | AS7: Reduction in GHG (Gg CO2e) | AT7: Nett GHG (Gg CO2e) | AV7: BAU | AW7: Fertilizer (kg N/yr) | AX7: N2O Fert (t) | AY7: CO2e Fert (Gg) | AZ7: ER | BA7: Change | BB7: Total-change | BD7: Food | BE7: Garden | BF7: Paper | BG7: Total | BJ7: Total CO2e (Gg) | BK7: Change | BL7: Total+ change | BN7: Reduced fertilizer (KgN/yr) | BO7: CropResidues (kgN/yr) | BP7: Manure (kg N/yr) | BQ7: N2O Volatized (t/yr) | BR7: CO2e Volatized (Gg/yr) | BS7: N2O leached (y/yr) | BT7: CO2e leached (Gg/yr) | BU7: CO2e Total (Gg) | BV7: Change | BW7: TotalDirN2O-Change | CD7: BAU | CE7: SC1 | CF7: SC2 | CG7: SC3 | CH7: SC4
A8: 2006 | B8: ='6. UD1 Assumptions'!C15 -> 70800 | C8: =B8*'5. UD1 Parameters'!$H$10 -> 7080 | D8: =C8*'5. UD1 Parameters'!$H$6*'5. UD1 Parameters'!$H$7*'5. UD1 Parameters'!$H$8/1000 -> 124.254 | E8: =D8*'5. UD1 Parameters'!$H$9/1000 -> 3.10635 | F8: 7526219 | G8: 3316504 | H8: 2933111.555 | I8: ='UD1 CropScenarios'!F8*'5. UD1 Parameters'!$H$12*'5. UD1 Parameters'!$H$13/1000 -> 118.2691557 | J8: =G8*'5. UD1 Parameters'!$H$12*'5. UD1 Parameters'!$H$13/1000 -> 52.11649143 | K8: =H8*'5. UD1 Parameters'!$H$12*'5. UD1 Parameters'!$H$13/1000 -> 46.09175301 | L8: =I8*'5. UD1 Parameters'!$H$16/1000 -> 35.2442084 | M8: =J8*'5. UD1 Parameters'!$H$16/1000 -> 15.53071445 | N8: =K8*'5. UD1 Parameters'!$H$16/1000 -> 13.7353424 | O8: =SUM('UD1 CropScenarios'!L8:N8) -> 64.51026524 | Q8: 451428.39 | R8: =P8*'5. UD1 Parameters'!$H$14*'5. UD1 Parameters'!$H$13/1000 -> 0 | S8: =Q8*'5. UD1 Parameters'!$H$15*'5. UD1 Parameters'!$H$13/1000 -> 7.0938747 | T8: =R8*'5. UD1 Parameters'!$H$16/1000 -> 0 | U8: =S8*'5. UD1 Parameters'!$H$16/1000 -> 2.113974661 | V8: ='UD1 CropScenarios'!T8+'UD1 CropScenarios'!U8 -> 2.113974661 | W8: ='UD1 CropScenarios'!O8+'UD1 CropScenarios'!V8 -> 66.6242399 | X8: =F8 -> 7526219 | Y8: =G8 -> 3316504 | Z8: 962068.5 | AA8: =(((X8*'5. UD1 Parameters'!$H$18)+(Z8*'5. UD1 Parameters'!$H$19))*('5. UD1 Parameters'!$H$24*'5. UD1 Parameters'!$H$21))/1000 -> 14.85055943 | AB8: =AA8*'5. UD1 Parameters'!$H$22/1000 -> 4.42546671 | AC8: =((X8+Y8+Z8)*'5. UD1 Parameters'!$H$20*'5. UD1 Parameters'!$H$23*'5. UD1 Parameters'!$H$21)/1000 -> 41.73836995 | AD8: =AC8*'5. UD1 Parameters'!$H$22/1000 -> 12.43803424 | AE8: =AB8+AD8 -> 16.86350095 | AF8: =E8+W8+AE8 -> 86.59409086 | AJ8: =INDEX((DirN2OManSoilPol!$U$15:$U$43),MATCH(A8,DirN2OManSoilPol!$A$15:A$43,0)) -> 66.6242399 | AN8: ='6. UD1 Assumptions'!B15 -> 70800 | AO8: ='6. UD1 Assumptions'!F15 -> 0.1 | AP8: =AN8*AO8 -> 7080 | AQ8: =AP8*'5. UD1 Parameters'!$H$6*'5. UD1 Parameters'!$H$7*'5. UD1 Parameters'!$H$8/1000 -> 124.254 | AR8: =AQ8*'5. UD1 Parameters'!$H$9/1000 -> 3.10635 | AS8: =E8-AR8 -> 0 | AT8: =AF8-AS8 -> 86.59409086 | AV8: =L8 -> 35.2442084 | AW8: ='UD1 CropScenarios'!F8*'6. UD1 Assumptions'!K15 -> 7526219 | AX8: =AW8*'5. UD1 Parameters'!$H$12*'5. UD1 Parameters'!$H$13/1000 -> 118.2691557 | AY8: =AX8*'5. UD1 Parameters'!$H$16/1000 -> 35.2442084 | AZ8: =AY8 -> 35.2442084 | BA8: =AV8-AZ8 -> 0 | BB8: =E8+AJ8+AE8-BA8 -> 86.59409086 | BL8: =BB8+BK8 -> 86.59409086 | BN8: =AW8 -> 7526219 | BO8: ='UD1 CropScenarios'!Y8 -> 3316504 | BP8: ='UD1 CropScenarios'!Z8 -> 962068.5 | BQ8: =(((BN8*'5. UD1 Parameters'!$H$18)+(BP8*'5. UD1 Parameters'!$H$19))*('5. UD1 Parameters'!$H$24*'5. UD1 Parameters'!$H$21))/1000 -> 14.85055943 | BR8: =BQ8*'5. UD1 Parameters'!$H$22/1000 -> 4.42546671 | BS8: =((BN8+BO8+BP8)*'5. UD1 Parameters'!$H$20*'5. UD1 Parameters'!$H$23*'5. UD1 Parameters'!$H$21)/1000 -> 41.73836995 | BT8: =BS8*'5. UD1 Parameters'!$H$22/1000 -> 12.43803424 | BU8: =BR8+BT8 -> 16.86350095 | BV8: =AE8-BU8 -> 0 | BW8: =BL8-BV8 -> 86.59409086 | BY8: =BW8-AS8 -> 86.59409086 | BZ8: =AF8-BY8 -> 0 | CD8: =AF8 -> 86.59409086 | CE8: =AT8 -> 86.59409086 | CF8: =BB8 -> 86.59409086 | CG8: =BW8 -> 86.59409086 | CH8: =BY8 -> 86.59409086 | CJ8: 86.59409086 | CK8: 86.59409086 | CL8: 86.59409086 | CM8: 86.59409086 | CN8: 86.59409086 | CP8: =CD8-CJ8 -> 0 | CQ8: =CE8-CK8 -> 0 | CR8: 0 | CS8: 0 | CT8: 0
A9: 2007 | B9: ='6. UD1 Assumptions'!C16 -> 68520 | C9: =B9*'5. UD1 Parameters'!$H$10 -> 6852 | D9: =C9*'5. UD1 Parameters'!$H$6*'5. UD1 Parameters'!$H$7*'5. UD1 Parameters'!$H$8/1000 -> 120.2526 | E9: =D9*'5. UD1 Parameters'!$H$9/1000 -> 3.006315 | F9: 7267732 | G9: 3208625 | H9: 2990028.091 | I9: ='UD1 CropScenarios'!F9*'5. UD1 Parameters'!$H$12*'5. UD1 Parameters'!$H$13/1000 -> 114.2072171 | J9: =G9*'5. UD1 Parameters'!$H$12*'5. UD1 Parameters'!$H$13/1000 -> 50.42125 | K9: =H9*'5. UD1 Parameters'!$H$12*'5. UD1 Parameters'!$H$13/1000 -> 46.98615572 | L9: =I9*'5. UD1 Parameters'!$H$16/1000 -> 34.03375071 | M9: =J9*'5. UD1 Parameters'!$H$16/1000 -> 15.0255325 | N9: =K9*'5. UD1 Parameters'!$H$16/1000 -> 14.0018744 | O9: =SUM('UD1 CropScenarios'!L9:N9) -> 63.06115761 | Q9: 409968 | R9: =P9*'5. UD1 Parameters'!$H$14*'5. UD1 Parameters'!$H$13/1000 -> 0 | S9: =Q9*'5. UD1 Parameters'!$H$15*'5. UD1 Parameters'!$H$13/1000 -> 6.442354286 | T9: =R9*'5. UD1 Parameters'!$H$16/1000 -> 0 | U9: =S9*'5. UD1 Parameters'!$H$16/1000 -> 1.919821577 | V9: ='UD1 CropScenarios'!T9+'UD1 CropScenarios'!U9 -> 1.919821577 | W9: ='UD1 CropScenarios'!O9+'UD1 CropScenarios'!V9 -> 64.98097919 | X9: =F9 -> 7267732 | Y9: 3208625 | Z9: 962068.5 | AA9: =((X9*'5. UD1 Parameters'!$H$18)+(Z9*'5. UD1 Parameters'!$H$19))*'5. UD1 Parameters'!$H$24*'5. UD1 Parameters'!$H$21/1000 -> 14.44436557 | AB9: =AA9*'5. UD1 Parameters'!$H$22/1000 -> 4.30442094 | AC9: =((X9+Y9+Z9)*'5. UD1 Parameters'!$H$20*'5. UD1 Parameters'!$H$23*'5. UD1 Parameters'!$H$21)/1000 -> 40.44300445 | AD9: =AC9*'5. UD1 Parameters'!$H$22/1000 -> 12.05201533 | AE9: 16.35643627 | AF9: =E9+W9+AE9 -> 84.34373046 | AJ9: =INDEX((DirN2OManSoilPol!$U$15:$U$43),MATCH(A9,DirN2OManSoilPol!$A$15:A$43,0)) -> 64.98097919 | AN9: ='6. UD1 Assumptions'!B16 -> 68520 | AO9: ='6. UD1 Assumptions'!F16 -> 0.1 | AP9: 6852 | AQ9: =AP9*'5. UD1 Parameters'!$H$6*'5. UD1 Parameters'!$H$7*'5. UD1 Parameters'!$H$8/1000 -> 120.2526 | AR9: =AQ9*'5. UD1 Parameters'!$H$9/1000 -> 3.006315 | AS9: 0 | AT9: 84.34373046 | AV9: =L9 -> 34.03375071 | AW9: ='UD1 CropScenarios'!F9*'6. UD1 Assumptions'!K16 -> 7267732 | AX9: =AW9*'5. UD1 Parameters'!$H$12*'5. UD1 Parameters'!$H$13/1000 -> 114.2072171 | AY9: =AX9*'5. UD1 Parameters'!$H$16/1000 -> 34.03375071 | AZ9: =AY9 -> 34.03375071 | BA9: 0 | BB9: 84.34373046 | BL9: 84.34373046 | BN9: =AW9 -> 7267732 | BO9: ='UD1 CropScenarios'!Y9 -> 3208625 | BP9: ='UD1 CropScenarios'!Z9 -> 962068.5 | BQ9: =(((BN9*'5. UD1 Parameters'!$H$18)+(BP9*'5. UD1 Parameters'!$H$19))*('5. UD1 Parameters'!$H$24*'5. UD1 Parameters'!$H$21))/1000 -> 14.44436557 | BR9: =BQ9*'5. UD1 Parameters'!$H$22/1000 -> 4.30442094 | BS9: =((BN9+BO9+BP9)*'5. UD1 Parameters'!$H$20*'5. UD1 Parameters'!$H$23*'5. UD1 Parameters'!$H$21)/1000 -> 40.44300445 | BT9: =BS9*'5. UD1 Parameters'!$H$22/1000 -> 12.05201533 | BU9: 16.35643627 | BV9: =AE9-BU9 -> 0 | BW9: 84.34373046 | BY9: 84.34373046 | BZ9: 0 | CD9: =AF9 -> 84.34373046 | CE9: =AT9 -> 84.34373046 | CF9: =BB9 -> 84.34373046 | CG9: =BW9 -> 84.34373046 | CH9: =BY9 -> 84.34373046 | CJ9: 84.34373046 | CK9: 84.34373046 | CL9: 84.34373046 | CM9: 84.34373046 | CN9: 84.34373046 | CP9: =CD9-CJ9 -> 0 | CQ9: 0 | CR9: 0 | CS9: 0 | CT9: 0
A10: 2008 | B10: ='6. UD1 Assumptions'!C17 -> 65440 | C10: =B10*'5. UD1 Parameters'!$H$10 -> 6544 | D10: =C10*'5. UD1 Parameters'!$H$6*'5. UD1 Parameters'!$H$7*'5. UD1 Parameters'!$H$8/1000 -> 114.8472 | E10: =D10*'5. UD1 Parameters'!$H$9/1000 -> 2.87118 | F10: 6807140 | G10: 3064362 | H10: 2878426.246 | I10: ='UD1 CropScenarios'!F10*'5. UD1 Parameters'!$H$12*'5. UD1 Parameters'!$H$13/1000 -> 106.9693429 | J10: =G10*'5. UD1 Parameters'!$H$12*'5. UD1 Parameters'!$H$13/1000 -> 48.15426 | K10: =H10*'5. UD1 Parameters'!$H$12*'5. UD1 Parameters'!$H$13/1000 -> 45.23241243 | L10: =I10*'5. UD1 Parameters'!$H$16/1000 -> 31.87686417 | M10: =J10*'5. UD1 Parameters'!$H$16/1000 -> 14.34996948 | N10: =K10*'5. UD1 Parameters'!$H$16/1000 -> 13.4792589 | O10: =SUM('UD1 CropScenarios'!L10:N10) -> 59.70609256 | Q10: 409968 | R10: =P10*'5. UD1 Parameters'!$H$14*'5. UD1 Parameters'!$H$13/1000 -> 0 | S10: =Q10*'5. UD1 Parameters'!$H$15*'5. UD1 Parameters'!$H$13/1000 -> 6.442354286 | T10: =R10*'5. UD1 Parameters'!$H$16/1000 -> 0 | U10: =S10*'5. UD1 Parameters'!$H$16/1000 -> 1.919821577 | V10: ='UD1 CropScenarios'!T10+'UD1 CropScenarios'!U10 -> 1.919821577 | W10: ='UD1 CropScenarios'!O10+'UD1 CropScenarios'!V10 -> 61.62591413 | X10: 6807140 | Y10: 3064362 | Z10: 962068.5 | AA10: =((X10*'5. UD1 Parameters'!$H$18)+(Z10*'5. UD1 Parameters'!$H$19))*'5. UD1 Parameters'!$H$24*'5. UD1 Parameters'!$H$21/1000 -> 13.72057814 | AB10: =AA10*'5. UD1 Parameters'!$H$22/1000 -> 4.088732287 | AC10: =((X10+Y10+Z10)*'5. UD1 Parameters'!$H$20*'5. UD1 Parameters'!$H$23*'5. UD1 Parameters'!$H$21)/1000 -> 38.30440998 | AD10: =AC10*'5. UD1 Parameters'!$H$22/1000 -> 11.41471417 | AE10: 15.50344646 | AF10: 80.00054059 | AJ10: =INDEX((DirN2OManSoilPol!$U$15:$U$43),MATCH(A10,DirN2OManSoilPol!$A$15:A$43,0)) -> 61.62591413 | AN10: ='6. UD1 Assumptions'!B17 -> 65440 | AO10: ='6. UD1 Assumptions'!F17 -> 0.1 | AP10: 6544 | AQ10: =AP10*'5. UD1 Parameters'!$H$6*'5. UD1 Parameters'!$H$7*'5. UD1 Parameters'!$H$8/1000 -> 114.8472 | AR10: =AQ10*'5. UD1 Parameters'!$H$9/1000 -> 2.87118 | AS10: 0 | AT10: 80.00054059 | AV10: 31.87686417 | AW10: ='UD1 CropScenarios'!F10*'6. UD1 Assumptions'!K17 -> 6807140 | AX10: =AW10*'5. UD1 Parameters'!$H$12*'5. UD1 Parameters'!$H$13/1000 -> 106.9693429 | AY10: =AX10*'5. UD1 Parameters'!$H$16/1000 -> 31.87686417 | AZ10: 31.87686417 | BA10: 0 | BB10: 80.00054059 | BL10: 80.00054059 | BN10: 6807140 | BO10: ='UD1 CropScenarios'!Y10 -> 3064362 | BP10: ='UD1 CropScenarios'!Z10 -> 962068.5 | BQ10: =(((BN10*'5. UD1 Parameters'!$H$18)+(BP10*'5. UD1 Parameters'!$H$19))*('5. UD1 Parameters'!$H$24*'5. UD1 Parameters'!$H$21))/1000 -> 13.72057814 | BR10: =BQ10*'5. UD1 Parameters'!$H$22/1000 -> 4.088732287 | BS10: =((BN10+BO10+BP10)*'5. UD1 Parameters'!$H$20*'5. UD1 Parameters'!$H$23*'5. UD1 Parameters'!$H$21)/1000 -> 38.30440998 | BT10: =BS10*'5. UD1 Parameters'!$H$22/1000 -> 11.41471417 | BU10: 15.50344646 | BV10: 0 | BW10: 80.00054059 | BY10: 80.00054059 | BZ10: 0 | CD10: 80.00054059 | CE10: 80.00054059 | CF10: 80.00054059 | CG10: 80.00054059 | CH10: 80.00054059 | CJ10: 80.00054059 | CK10: 80.00054059 | CL10: 80.00054059 | CM10: 80.00054059 | CN10: 80.00054059 | CP10: 0 | CQ10: 0 | CR10: 0 | CS10: 0 | CT10: 0
A11: 2009 | B11: ='6. UD1 Assumptions'!C18 -> 65850 | C11: =B11*'5. UD1 Parameters'!$H$10 -> 6585 | D11: =C11*'5. UD1 Parameters'!$H$6*'5. UD1 Parameters'!$H$7*'5. UD1 Parameters'!$H$8/1000 -> 115.56675 | E11: =D11*'5. UD1 Parameters'!$H$9/1000 -> 2.88916875 | F11: 6616456 | G11: 3013169 | H11: 2637317.403 | I11: ='UD1 CropScenarios'!F11*'5. UD1 Parameters'!$H$12*'5. UD1 Parameters'!$H$13/1000 -> 103.97288 | J11: =G11*'5. UD1 Parameters'!$H$12*'5. UD1 Parameters'!$H$13/1000 -> 47.34979857 | K11: =H11*'5. UD1 Parameters'!$H$12*'5. UD1 Parameters'!$H$13/1000 -> 41.44355919 | L11: =I11*'5. UD1 Parameters'!$H$16/1000 -> 30.98391824 | M11: =J11*'5. UD1 Parameters'!$H$16/1000 -> 14.11023997 | N11: =K11*'5. UD1 Parameters'!$H$16/1000 -> 12.35018064 | O11: =SUM('UD1 CropScenarios'!L11:N11) -> 57.44433885 | P11: 67844.83125 | Q11: 417977.6009 | R11: =P11*'5. UD1 Parameters'!$H$14*'5. UD1 Parameters'!$H$13/1000 -> 2.132266125 | S11: =Q11*'5. UD1 Parameters'!$H$15*'5. UD1 Parameters'!$H$13/1000 -> 6.568219442 | T11: =R11*'5. UD1 Parameters'!$H$16/1000 -> 0.6354153053 | U11: =S11*'5. UD1 Parameters'!$H$16/1000 -> 1.957329394 | V11: ='UD1 CropScenarios'!T11+'UD1 CropScenarios'!U11 -> 2.592744699 | W11: ='UD1 CropScenarios'!O11+'UD1 CropScenarios'!V11 -> 60.03708355 | X11: 6616456 | Y11: 3013169 | Z11: 962068.5 | AA11: =((X11*'5. UD1 Parameters'!$H$18)+(Z11*'5. UD1 Parameters'!$H$19))*'5. UD1 Parameters'!$H$24*'5. UD1 Parameters'!$H$21/1000 -> 13.42093186 | AB11: =AA11*'5. UD1 Parameters'!$H$22/1000 -> 3.999437693 | AC11: =((X11+Y11+Z11)*'5. UD1 Parameters'!$H$20*'5. UD1 Parameters'!$H$23*'5. UD1 Parameters'!$H$21)/1000 -> 37.44920202 | AD11: =AC11*'5. UD1 Parameters'!$H$22/1000 -> 11.1598622 | AE11: 15.15929989 | AF11: 78.0855522 | AJ11: =INDEX((DirN2OManSoilPol!$U$15:$U$43),MATCH(A11,DirN2OManSoilPol!$A$15:A$43,0)) -> 60.03708355 | AN11: ='6. UD1 Assumptions'!B18 -> 65850 | AO11: ='6. UD1 Assumptions'!F18 -> 0.1 | AP11: 6585 | AQ11: =AP11*'5. UD1 Parameters'!$H$6*'5. UD1 Parameters'!$H$7*'5. UD1 Parameters'!$H$8/1000 -> 115.56675 | AR11: =AQ11*'5. UD1 Parameters'!$H$9/1000 -> 2.88916875 | AS11: 0 | AT11: 78.0855522 | AV11: 30.98391824 | AW11: ='UD1 CropScenarios'!F11*'6. UD1 Assumptions'!K18 -> 6616456 | AX11: =AW11*'5. UD1 Parameters'!$H$12*'5. UD1 Parameters'!$H$13/1000 -> 103.97288 | AY11: =AX11*'5. UD1 Parameters'!$H$16/1000 -> 30.98391824 | AZ11: 30.98391824 | BA11: 0 | BB11: 78.0855522 | BL11: 78.0855522 | BN11: 6616456 | BO11: ='UD1 CropScenarios'!Y11 -> 3013169 | BP11: ='UD1 CropScenarios'!Z11 -> 962068.5 | BQ11: =(((BN11*'5. UD1 Parameters'!$H$18)+(BP11*'5. UD1 Parameters'!$H$19))*('5. UD1 Parameters'!$H$24*'5. UD1 Parameters'!$H$21))/1000 -> 13.42093186 | BR11: =BQ11*'5. UD1 Parameters'!$H$22/1000 -> 3.999437693 | BS11: =((BN11+BO11+BP11)*'5. UD1 Parameters'!$H$20*'5. UD1 Parameters'!$H$23*'5. UD1 Parameters'!$H$21)/1000 -> 37.44920202 | BT11: =BS11*'5. UD1 Parameters'!$H$22/1000 -> 11.1598622 | BU11: 15.15929989 | BV11: 0 | BW11: 78.0855522 | BY11: 78.0855522 | BZ11: 0 | CD11: 78.0855522 | CE11: 78.0855522 | CF11: 78.0855522 | CG11: 78.0855522 | CH11: 78.0855522 | CJ11: 78.0855522 | CK11: 78.0855522 | CL11: 78.0855522 | CM11: 78.0855522 | CN11: 78.0855522 | CP11: 0 | CQ11: 0 | CR11: 0 | CS11: 0 | CT11: 0
A12: 2010 | B12: ='6. UD1 Assumptions'!C19 -> 64130 | C12: =B12*'5. UD1 Parameters'!$H$10 -> 6413 | D12: =C12*'5. UD1 Parameters'!$H$6*'5. UD1 Parameters'!$H$7*'5. UD1 Parameters'!$H$8/1000 -> 112.54815 | E12: =D12*'5. UD1 Parameters'!$H$9/1000 -> 2.81370375 | F12: 7468310 | G12: 3012269 | H12: 3508672.666 | I12: ='UD1 CropScenarios'!F12*'5. UD1 Parameters'!$H$12*'5. UD1 Parameters'!$H$13/1000 -> 117.3591571 | J12: =G12*'5. UD1 Parameters'!$H$12*'5. UD1 Parameters'!$H$13/1000 -> 47.33565571 | K12: =H12*'5. UD1 Parameters'!$H$12*'5. UD1 Parameters'!$H$13/1000 -> 55.13628476 | L12: =I12*'5. UD1 Parameters'!$H$16/1000 -> 34.97302883 | M12: =J12*'5. UD1 Parameters'!$H$16/1000 -> 14.1060254 | N12: =K12*'5. UD1 Parameters'!$H$16/1000 -> 16.43061286 | O12: =SUM('UD1 CropScenarios'!L12:N12) -> 65.50966709 | P12: 10606.57515 | Q12: 409968 | R12: =P12*'5. UD1 Parameters'!$H$14*'5. UD1 Parameters'!$H$13/1000 -> 0.3333495047 | S12: =Q12*'5. UD1 Parameters'!$H$15*'5. UD1 Parameters'!$H$13/1000 -> 6.442354286 | T12: =R12*'5. UD1 Parameters'!$H$16/1000 -> 0.0993381524 | U12: =S12*'5. UD1 Parameters'!$H$16/1000 -> 1.919821577 | V12: ='UD1 CropScenarios'!T12+'UD1 CropScenarios'!U12 -> 2.01915973 | W12: ='UD1 CropScenarios'!O12+'UD1 CropScenarios'!V12 -> 67.52882682 | X12: 7468310 | Y12: 3012269 | Z12: 962068.5 | AA12: =((X12*'5. UD1 Parameters'!$H$18)+(Z12*'5. UD1 Parameters'!$H$19))*'5. UD1 Parameters'!$H$24*'5. UD1 Parameters'!$H$21/1000 -> 14.75955957 | AB12: =AA12*'5. UD1 Parameters'!$H$22/1000 -> 4.398348752 | AC12: =((X12+Y12+Z12)*'5. UD1 Parameters'!$H$20*'5. UD1 Parameters'!$H$23*'5. UD1 Parameters'!$H$21)/1000 -> 40.45793223 | AD12: =AC12*'5. UD1 Parameters'!$H$22/1000 -> 12.05646381 | AE12: 16.45481256 | AF12: 86.79734313 | AJ12: =INDEX((DirN2OManSoilPol!$U$15:$U$43),MATCH(A12,DirN2OManSoilPol!$A$15:A$43,0)) -> 67.52882682 | AN12: ='6. UD1 Assumptions'!B19 -> 64130 | AO12: ='6. UD1 Assumptions'!F19 -> 0.1 | AP12: 6413 | AQ12: =AP12*'5. UD1 Parameters'!$H$6*'5. UD1 Parameters'!$H$7*'5. UD1 Parameters'!$H$8/1000 -> 112.54815 | AR12: =AQ12*'5. UD1 Parameters'!$H$9/1000 -> 2.81370375 | AS12: 0 | AT12: 86.79734313 | AV12: 34.97302883 | AW12: ='UD1 CropScenarios'!F12*'6. UD1 Assumptions'!K19 -> 7468310 | AX12: =AW12*'5. UD1 Parameters'!$H$12*'5. UD1 Parameters'!$H$13/1000 -> 117.3591571 | AY12: =AX12*'5. UD1 Parameters'!$H$16/1000 -> 34.97302883 | AZ12: 34.97302883 | BA12: 0 | BB12: 86.79734313 | BL12: 86.79734313 | BN12: 7468310 | BO12: ='UD1 CropScenarios'!Y12 -> 3012269 | BP12: ='UD1 CropScenarios'!Z12 -> 962068.5 | BQ12: =(((BN12*'5. UD1 Parameters'!$H$18)+(BP12*'5. UD1 Parameters'!$H$19))*('5. UD1 Parameters'!$H$24*'5. UD1 Parameters'!$H$21))/1000 -> 14.75955957 | BR12: =BQ12*'5. UD1 Parameters'!$H$22/1000 -> 4.398348752 | BS12: =((BN12+BO12+BP12)*'5. UD1 Parameters'!$H$20*'5. UD1 Parameters'!$H$23*'5. UD1 Parameters'!$H$21)/1000 -> 40.45793223 | BT12: =BS12*'5. UD1 Parameters'!$H$22/1000 -> 12.05646381 | BU12: 16.45481256 | BV12: 0 | BW12: 86.79734313 | BY12: 86.79734313 | BZ12: 0 | CD12: 86.79734313 | CE12: 86.79734313 | CF12: 86.79734313 | CG12: 86.79734313 | CH12: 86.79734313 | CJ12: 86.79734313 | CK12: 86.79734313 | CL12: 86.79734313 | CM12: 86.79734313 | CN12: 86.79734313 | CP12: 0 | CQ12: 0 | CR12: 0 | CS12: 0 | CT12: 0
A13: 2011 | B13: ='6. UD1 Assumptions'!C20 -> 61730 | C13: =B13*'5. UD1 Parameters'!$H$10 -> 6173 | D13: =C13*'5. UD1 Parameters'!$H$6*'5. UD1 Parameters'!$H$7*'5. UD1 Parameters'!$H$8/1000 -> 108.33615 | E13: =D13*'5. UD1 Parameters'!$H$9/1000 -> 2.70840375 | F13: 7834140 | G13: 2902017 | H13: 3528789 | I13: ='UD1 CropScenarios'!F13*'5. UD1 Parameters'!$H$12*'5. UD1 Parameters'!$H$13/1000 -> 123.1079143 | J13: =G13*'5. UD1 Parameters'!$H$12*'5. UD1 Parameters'!$H$13/1000 -> 45.60312429 | K13: =H13*'5. UD1 Parameters'!$H$12*'5. UD1 Parameters'!$H$13/1000 -> 55.45239857 | L13: =I13*'5. UD1 Parameters'!$H$16/1000 -> 36.68615846 | M13: =J13*'5. UD1 Parameters'!$H$16/1000 -> 13.58973104 | N13: =K13*'5. UD1 Parameters'!$H$16/1000 -> 16.52481477 | O13: =SUM('UD1 CropScenarios'!L13:N13) -> 66.80070427 | P13: 11286.42232 | Q13: 420000 | R13: =P13*'5. UD1 Parameters'!$H$14*'5. UD1 Parameters'!$H$13/1000 -> 0.3547161302 | S13: =Q13*'5. UD1 Parameters'!$H$15*'5. UD1 Parameters'!$H$13/1000 -> 6.6 | T13: =R13*'5. UD1 Parameters'!$H$16/1000 -> 0.1057054068 | U13: =S13*'5. UD1 Parameters'!$H$16/1000 -> 1.9668 | V13: ='UD1 CropScenarios'!T13+'UD1 CropScenarios'!U13 -> 2.072505407 | W13: ='UD1 CropScenarios'!O13+'UD1 CropScenarios'!V13 -> 68.87320968 | X13: 7834140 | Y13: 2902017 | Z13: 962068.5 | AA13: =((X13*'5. UD1 Parameters'!$H$18)+(Z13*'5. UD1 Parameters'!$H$19))*'5. UD1 Parameters'!$H$24*'5. UD1 Parameters'!$H$21/1000 -> 15.33443529 | AB13: =AA13*'5. UD1 Parameters'!$H$22/1000 -> 4.569661715 | AC13: =((X13+Y13+Z13)*'5. UD1 Parameters'!$H$20*'5. UD1 Parameters'!$H$23*'5. UD1 Parameters'!$H$21)/1000 -> 41.36158302 | AD13: =AC13*'5. UD1 Parameters'!$H$22/1000 -> 12.32575174 | AE13: 16.89541345 | AF13: 88.47702688 | AJ13: =INDEX((DirN2OManSoilPol!$U$15:$U$43),MATCH(A13,DirN2OManSoilPol!$A$15:A$43,0)) -> 68.87320968 | AN13: ='6. UD1 Assumptions'!B20 -> 61730 | AO13: ='6. UD1 Assumptions'!F20 -> 0.1 | AP13: 6173 | AQ13: =AP13*'5. UD1 Parameters'!$H$6*'5. UD1 Parameters'!$H$7*'5. UD1 Parameters'!$H$8/1000 -> 108.33615 | AR13: =AQ13*'5. UD1 Parameters'!$H$9/1000 -> 2.70840375 | AS13: 0 | AT13: 88.47702688 | AV13: 36.68615846 | AW13: ='UD1 CropScenarios'!F13*'6. UD1 Assumptions'!K20 -> 7834140 | AX13: =AW13*'5. UD1 Parameters'!$H$12*'5. UD1 Parameters'!$H$13/1000 -> 123.1079143 | AY13: =AX13*'5. UD1 Parameters'!$H$16/1000 -> 36.68615846 | AZ13: 36.68615846 | BA13: 0 | BB13: 88.47702688 | BL13: 88.47702688 | BN13: 7834140 | BO13: ='UD1 CropScenarios'!Y13 -> 2902017 | BP13: ='UD1 CropScenarios'!Z13 -> 962068.5 | BQ13: =(((BN13*'5. UD1 Parameters'!$H$18)+(BP13*'5. UD1 Parameters'!$H$19))*('5. UD1 Parameters'!$H$24*'5. UD1 Parameters'!$H$21))/1000 -> 15.33443529 | BR13: =BQ13*'5. UD1 Parameters'!$H$22/1000 -> 4.569661715 | BS13: =((BN13+BO13+BP13)*'5. UD1 Parameters'!$H$20*'5. UD1 Parameters'!$H$23*'5. UD1 Parameters'!$H$21)/1000 -> 41.36158302 | BT13: =BS13*'5. UD1 Parameters'!$H$22/1000 -> 12.32575174 | BU13: 16.89541345 | BV13: 0 | BW13: 88.47702688 | BY13: 88.47702688 | BZ13: 0 | CD13: 88.47702688 | CE13: 88.47702688 | CF13: 88.47702688 | CG13: 88.47702688 | CH13: 88.47702688 | CJ13: 88.47702688 | CK13: 88.47702688 | CL13: 88.47702688 | CM13: 88.47702688 | CN13: 88.47702688 | CP13: 0 | CQ13: 0 | CR13: 0 | CS13: 0 | CT13: 0
A14: 2012 | B14: ='6. UD1 Assumptions'!C21 -> 57160 | C14: =B14*'5. UD1 Parameters'!$H$10 -> 5716 | D14: =C14*'5. UD1 Parameters'!$H$6*'5. UD1 Parameters'!$H$7*'5. UD1 Parameters'!$H$8/1000 -> 100.3158 | E14: =D14*'5. UD1 Parameters'!$H$9/1000 -> 2.507895 | F14: 9700004 | G14: 2697461 | H14: 3437753.084 | I14: ='UD1 CropScenarios'!F14*'5. UD1 Parameters'!$H$12*'5. UD1 Parameters'!$H$13/1000 -> 152.4286343 | J14: =G14*'5. UD1 Parameters'!$H$12*'5. UD1 Parameters'!$H$13/1000 -> 42.38867286 | K14: =H14*'5. UD1 Parameters'!$H$12*'5. UD1 Parameters'!$H$13/1000 -> 54.02183418 | L14: =I14*'5. UD1 Parameters'!$H$16/1000 -> 45.42373302 | M14: =J14*'5. UD1 Parameters'!$H$16/1000 -> 12.63182451 | N14: =K14*'5. UD1 Parameters'!$H$16/1000 -> 16.09850659 | O14: =SUM('UD1 CropScenarios'!L14:N14) -> 74.15406411 | P14: 14442.25612 | Q14: 462125.7992 | R14: =P14*'5. UD1 Parameters'!$H$14*'5. UD1 Parameters'!$H$13/1000 -> 0.4538994782 | S14: =Q14*'5. UD1 Parameters'!$H$15*'5. UD1 Parameters'!$H$13/1000 -> 7.261976845 | T14: =R14*'5. UD1 Parameters'!$H$16/1000 -> 0.1352620445 | U14: =S14*'5. UD1 Parameters'!$H$16/1000 -> 2.1640691 | V14: ='UD1 CropScenarios'!T14+'UD1 CropScenarios'!U14 -> 2.299331144 | W14: ='UD1 CropScenarios'!O14+'UD1 CropScenarios'!V14 -> 76.45339526 | X14: 9700004 | Y14: 2697461 | Z14: 962068.5 | AA14: =((X14*'5. UD1 Parameters'!$H$18)+(Z14*'5. UD1 Parameters'!$H$19))*'5. UD1 Parameters'!$H$24*'5. UD1 Parameters'!$H$21/1000 -> 18.26650729 | AB14: =AA14*'5. UD1 Parameters'!$H$22/1000 -> 5.443419171 | AC14: =((X14+Y14+Z14)*'5. UD1 Parameters'!$H$20*'5. UD1 Parameters'!$H$23*'5. UD1 Parameters'!$H$21)/1000 -> 47.23549345 | AD14: =AC14*'5. UD1 Parameters'!$H$22/1000 -> 14.07617705 | AE14: 19.51959622 | AF14: 98.48088648 | AJ14: =INDEX((DirN2OManSoilPol!$U$15:$U$43),MATCH(A14,DirN2OManSoilPol!$A$15:A$43,0)) -> 76.45339526 | AN14: ='6. UD1 Assumptions'!B21 -> 57160 | AO14: ='6. UD1 Assumptions'!F21 -> 0.1 | AP14: 5716 | AQ14: =AP14*'5. UD1 Parameters'!$H$6*'5. UD1 Parameters'!$H$7*'5. UD1 Parameters'!$H$8/1000 -> 100.3158 | AR14: =AQ14*'5. UD1 Parameters'!$H$9/1000 -> 2.507895 | AS14: 0 | AT14: 98.48088648 | AV14: 45.42373302 | AW14: ='UD1 CropScenarios'!F14*'6. UD1 Assumptions'!K21 -> 9700004 | AX14: =AW14*'5. UD1 Parameters'!$H$12*'5. UD1 Parameters'!$H$13/1000 -> 152.4286343 | AY14: =AX14*'5. UD1 Parameters'!$H$16/1000 -> 45.42373302 | AZ14: 45.42373302 | BA14: 0 | BB14: 98.48088648 | BL14: 98.48088648 | BN14: 9700004 | BO14: ='UD1 CropScenarios'!Y14 -> 2697461 | BP14: ='UD1 CropScenarios'!Z14 -> 962068.5 | BQ14: =(((BN14*'5. UD1 Parameters'!$H$18)+(BP14*'5. UD1 Parameters'!$H$19))*('5. UD1 Parameters'!$H$24*'5. UD1 Parameters'!$H$21))/1000 -> 18.26650729 | BR14: =BQ14*'5. UD1 Parameters'!$H$22/1000 -> 5.443419171 | BS14: =((BN14+BO14+BP14)*'5. UD1 Parameters'!$H$20*'5. UD1 Parameters'!$H$23*'5. UD1 Parameters'!$H$21)/1000 -> 47.23549345 | BT14: =BS14*'5. UD1 Parameters'!$H$22/1000 -> 14.07617705 | BU14: 19.51959622 | BV14: 0 | BW14: 98.48088648 | BY14: 98.48088648 | BZ14: 0 | CD14: 98.48088648 | CE14: 98.48088648 | CF14: 98.48088648 | CG14: 98.48088648 | CH14: 98.48088648 | CJ14: 98.48088648 | CK14: 98.48088648 | CL14: 98.48088648 | CM14: 98.48088648 | CN14: 98.48088648 | CP14: 0 | CQ14: 0 | CR14: 0 | CS14: 0 | CT14: 0
A15: 2013 | B15: ='6. UD1 Assumptions'!C22 -> 56464 | C15: =B15*'5. UD1 Parameters'!$H$10 -> 5646.4 | D15: =C15*'5. UD1 Parameters'!$H$6*'5. UD1 Parameters'!$H$7*'5. UD1 Parameters'!$H$8/1000 -> 99.09432 | E15: =D15*'5. UD1 Parameters'!$H$9/1000 -> 2.477358 | F15: 9967255 | G15: 2665224 | H15: 3379421.699 | I15: ='UD1 CropScenarios'!F15*'5. UD1 Parameters'!$H$12*'5. UD1 Parameters'!$H$13/1000 -> 156.6282929 | J15: =G15*'5. UD1 Parameters'!$H$12*'5. UD1 Parameters'!$H$13/1000 -> 41.88209143 | K15: =H15*'5. UD1 Parameters'!$H$12*'5. UD1 Parameters'!$H$13/1000 -> 53.10519813 | L15: =I15*'5. UD1 Parameters'!$H$16/1000 -> 46.67523127 | M15: =J15*'5. UD1 Parameters'!$H$16/1000 -> 12.48086325 | N15: =K15*'5. UD1 Parameters'!$H$16/1000 -> 15.82534904 | O15: =SUM('UD1 CropScenarios'!L15:N15) -> 74.98144356 | P15: 13170.0906 | Q15: 464088.0465 | R15: =P15*'5. UD1 Parameters'!$H$14*'5. UD1 Parameters'!$H$13/1000 -> 0.4139171331 | S15: =Q15*'5. UD1 Parameters'!$H$15*'5. UD1 Parameters'!$H$13/1000 -> 7.292812159 | T15: =R15*'5. UD1 Parameters'!$H$16/1000 -> 0.1233473057 | U15: =S15*'5. UD1 Parameters'!$H$16/1000 -> 2.173258023 | V15: ='UD1 CropScenarios'!T15+'UD1 CropScenarios'!U15 -> 2.296605329 | W15: ='UD1 CropScenarios'!O15+'UD1 CropScenarios'!V15 -> 77.27804889 | X15: 9967255 | Y15: 2665224 | Z15: 962068.5 | AA15: =((X15*'5. UD1 Parameters'!$H$18)+(Z15*'5. UD1 Parameters'!$H$19))*'5. UD1 Parameters'!$H$24*'5. UD1 Parameters'!$H$21/1000 -> 18.68647314 | AB15: =AA15*'5. UD1 Parameters'!$H$22/1000 -> 5.568568997 | AC15: =((X15+Y15+Z15)*'5. UD1 Parameters'!$H$20*'5. UD1 Parameters'!$H$23*'5. UD1 Parameters'!$H$21)/1000 -> 48.0664358 | AD15: =AC15*'5. UD1 Parameters'!$H$22/1000 -> 14.32379787 | AE15: 19.89236687 | AF15: 99.64777376 | AJ15: =INDEX((DirN2OManSoilPol!$U$15:$U$43),MATCH(A15,DirN2OManSoilPol!$A$15:A$43,0)) -> 77.27804889 | AN15: ='6. UD1 Assumptions'!B22 -> 56464 | AO15: ='6. UD1 Assumptions'!F22 -> 0.1 | AP15: 5646.4 | AQ15: =AP15*'5. UD1 Parameters'!$H$6*'5. UD1 Parameters'!$H$7*'5. UD1 Parameters'!$H$8/1000 -> 99.09432 | AR15: =AQ15*'5. UD1 Parameters'!$H$9/1000 -> 2.477358 | AS15: 0 | AT15: 99.64777376 | AV15: 46.67523127 | AW15: ='UD1 CropScenarios'!F15*'6. UD1 Assumptions'!K22 -> 9967255 | AX15: =AW15*'5. UD1 Parameters'!$H$12*'5. UD1 Parameters'!$H$13/1000 -> 156.6282929 | AY15: =AX15*'5. UD1 Parameters'!$H$16/1000 -> 46.67523127 | AZ15: 46.67523127 | BA15: 0 | BB15: 99.64777376 | BL15: 99.64777376 | BN15: 9967255 | BO15: ='UD1 CropScenarios'!Y15 -> 2665224 | BP15: ='UD1 CropScenarios'!Z15 -> 962068.5 | BQ15: =(((BN15*'5. UD1 Parameters'!$H$18)+(BP15*'5. UD1 Parameters'!$H$19))*('5. UD1 Parameters'!$H$24*'5. UD1 Parameters'!$H$21))/1000 -> 18.68647314 | BR15: =BQ15*'5. UD1 Parameters'!$H$22/1000 -> 5.568568997 | BS15: =((BN15+BO15+BP15)*'5. UD1 Parameters'!$H$20*'5. UD1 Parameters'!$H$23*'5. UD1 Parameters'!$H$21)/1000 -> 48.0664358 | BT15: =BS15*'5. UD1 Parameters'!$H$22/1000 -> 14.32379787 | BU15: 19.89236687 | BV15: 0 | BW15: 99.64777376 | BY15: 99.64777376 | BZ15: 0 | CD15: 99.64777376 | CE15: 99.64777376 | CF15: 99.64777376 | CG15: 99.64777376 | CH15: 99.64777376 | CJ15: 99.64777376 | CK15: 99.64777376 | CL15: 99.64777376 | CM15: 99.64777376 | CN15: 99.64777376 | CP15: 0 | CQ15: 0 | CR15: 0 | CS15: 0 | CT15: 0
A16: 2014 | B16: ='6. UD1 Assumptions'!C23 -> 50694 | C16: =B16*'5. UD1 Parameters'!$H$10 -> 5069.4 | D16: =C16*'5. UD1 Parameters'!$H$6*'5. UD1 Parameters'!$H$7*'5. UD1 Parameters'!$H$8/1000 -> 88.96797 | E16: =D16*'5. UD1 Parameters'!$H$9/1000 -> 2.22419925 | F16: =F15*(1+'6. UD1 Assumptions'!I23) -> 10166600.1 | G16: =G15 -> 2665224 | H16: =H15+(H17-H15)/2 -> 3440472.132 | I16: ='UD1 CropScenarios'!F16*'5. UD1 Parameters'!$H$12*'5. UD1 Parameters'!$H$13/1000 -> 159.7608587 | J16: =G16*'5. UD1 Parameters'!$H$12*'5. UD1 Parameters'!$H$13/1000 -> 41.88209143 | K16: =H16*'5. UD1 Parameters'!$H$12*'5. UD1 Parameters'!$H$13/1000 -> 54.06456207 | L16: =I16*'5. UD1 Parameters'!$H$16/1000 -> 47.6087359 | M16: =J16*'5. UD1 Parameters'!$H$16/1000 -> 12.48086325 | N16: =K16*'5. UD1 Parameters'!$H$16/1000 -> 16.1112395 | O16: =SUM('UD1 CropScenarios'!L16:N16) -> 76.20083864 | P16: =P15+(P17-P15)/2 -> 12926.5553 | Q16: =Q15 -> 464088.0465 | R16: =P16*'5. UD1 Parameters'!$H$14*'5. UD1 Parameters'!$H$13/1000 -> 0.4062631666 | S16: =Q16*'5. UD1 Parameters'!$H$15*'5. UD1 Parameters'!$H$13/1000 -> 7.292812159 | T16: =R16*'5. UD1 Parameters'!$H$16/1000 -> 0.1210664236 | U16: =S16*'5. UD1 Parameters'!$H$16/1000 -> 2.173258023 | V16: ='UD1 CropScenarios'!T16+'UD1 CropScenarios'!U16 -> 2.294324447 | W16: ='UD1 CropScenarios'!O16+'UD1 CropScenarios'!V16 -> 78.49516309 | X16: 10166600.1 | Y16: 2665224 | Z16: 962068.5 | AA16: =((X16*'5. UD1 Parameters'!$H$18)+(Z16*'5. UD1 Parameters'!$H$19))*'5. UD1 Parameters'!$H$24*'5. UD1 Parameters'!$H$21/1000 -> 18.99972973 | AB16: =AA16*'5. UD1 Parameters'!$H$22/1000 -> 5.661919459 | AC16: =((X16+Y16+Z16)*'5. UD1 Parameters'!$H$20*'5. UD1 Parameters'!$H$23*'5. UD1 Parameters'!$H$21)/1000 -> 48.77126312 | AD16: =AC16*'5. UD1 Parameters'!$H$22/1000 -> 14.53383641 | AE16: 20.19575587 | AF16: 100.9151182 | AJ16: =INDEX((DirN2OManSoilPol!$U$15:$U$43),MATCH(A16,DirN2OManSoilPol!$A$15:A$43,0)) -> 78.49516309 | AN16: ='6. UD1 Assumptions'!B23 -> 50694 | AO16: ='6. UD1 Assumptions'!F23 -> 0.1 | AP16: 5069.4 | AQ16: =AP16*'5. UD1 Parameters'!$H$6*'5. UD1 Parameters'!$H$7*'5. UD1 Parameters'!$H$8/1000 -> 88.96797 | AR16: =AQ16*'5. UD1 Parameters'!$H$9/1000 -> 2.22419925 | AS16: 0 | AT16: 100.9151182 | AV16: 47.6087359 | AW16: ='UD1 CropScenarios'!F16*'6. UD1 Assumptions'!K23 -> 10166600.1 | AX16: =AW16*'5. UD1 Parameters'!$H$12*'5. UD1 Parameters'!$H$13/1000 -> 159.7608587 | AY16: =AX16*'5. UD1 Parameters'!$H$16/1000 -> 47.6087359 | AZ16: 47.6087359 | BA16: 0 | BB16: 100.9151182 | BL16: 100.9151182 | BN16: 10166600.1 | BO16: ='UD1 CropScenarios'!Y16 -> 2665224 | BP16: ='UD1 CropScenarios'!Z16 -> 962068.5 | BQ16: =(((BN16*'5. UD1 Parameters'!$H$18)+(BP16*'5. UD1 Parameters'!$H$19))*('5. UD1 Parameters'!$H$24*'5. UD1 Parameters'!$H$21))/1000 -> 18.99972973 | BR16: =BQ16*'5. UD1 Parameters'!$H$22/1000 -> 5.661919459 | BS16: =((BN16+BO16+BP16)*'5. UD1 Parameters'!$H$20*'5. UD1 Parameters'!$H$23*'5. UD1 Parameters'!$H$21)/1000 -> 48.77126312 | BT16: =BS16*'5. UD1 Parameters'!$H$22/1000 -> 14.53383641 | BU16: 20.19575587 | BV16: 0 | BW16: 100.9151182 | BY16: 100.9151182 | BZ16: 0 | CD16: 100.9151182 | CE16: 100.9151182 | CF16: 100.9151182 | CG16: 100.9151182 | CH16: 100.9151182 | CJ16: 100.9151182 | CK16: 100.9151182 | CL16: 100.9151182 | CM16: 100.9151182 | CN16: 100.9151182 | CP16: 0 | CQ16: 0 | CR16: 0 | CS16: 0 | CT16: 0
A17: 2015 | B17: ='6. UD1 Assumptions'!C24 -> 52387 | C17: =B17*'5. UD1 Parameters'!$H$10 -> 5238.7 | D17: =C17*'5. UD1 Parameters'!$H$6*'5. UD1 Parameters'!$H$7*'5. UD1 Parameters'!$H$8/1000 -> 91.939185 | E17: =D17*'5. UD1 Parameters'!$H$9/1000 -> 2.298479625 | F17: =F16*(1+'6. UD1 Assumptions'!I24) -> 10369932.1 | G17: 2665224 | H17: =MMS!U90 -> 3501522.565 | I17: ='UD1 CropScenarios'!F17*'5. UD1 Parameters'!$H$12*'5. UD1 Parameters'!$H$13/1000 -> 162.9560759 | J17: =G17*'5. UD1 Parameters'!$H$12*'5. UD1 Parameters'!$H$13/1000 -> 41.88209143 | K17: =H17*'5. UD1 Parameters'!$H$12*'5. UD1 Parameters'!$H$13/1000 -> 55.02392601 | L17: =I17*'5. UD1 Parameters'!$H$16/1000 -> 48.56091061 | M17: =J17*'5. UD1 Parameters'!$H$16/1000 -> 12.48086325 | N17: =K17*'5. UD1 Parameters'!$H$16/1000 -> 16.39712995 | O17: =SUM('UD1 CropScenarios'!L17:N17) -> 77.43890381 | P17: =MMS!U92 -> 12683.02 | Q17: =MMS!U91 -> 464088.0465 | R17: =P17*'5. UD1 Parameters'!$H$14*'5. UD1 Parameters'!$H$13/1000 -> 0.3986092 | S17: =Q17*'5. UD1 Parameters'!$H$15*'5. UD1 Parameters'!$H$13/1000 -> 7.292812159 | T17: =R17*'5. UD1 Parameters'!$H$16/1000 -> 0.1187855416 | U17: =S17*'5. UD1 Parameters'!$H$16/1000 -> 2.173258023 | V17: ='UD1 CropScenarios'!T17+'UD1 CropScenarios'!U17 -> 2.292043565 | W17: ='UD1 CropScenarios'!O17+'UD1 CropScenarios'!V17 -> 79.73094738 | X17: 10369932.1 | Y17: 2665224 | Z17: 962068.5 | AA17: =((X17*'5. UD1 Parameters'!$H$18)+(Z17*'5. UD1 Parameters'!$H$19))*'5. UD1 Parameters'!$H$24*'5. UD1 Parameters'!$H$21/1000 -> 19.31925145 | AB17: =AA17*'5. UD1 Parameters'!$H$22/1000 -> 5.757136931 | AC17: =((X17+Y17+Z17)*'5. UD1 Parameters'!$H$20*'5. UD1 Parameters'!$H$23*'5. UD1 Parameters'!$H$21)/1000 -> 49.49018699 | AD17: =AC17*'5. UD1 Parameters'!$H$22/1000 -> 14.74807572 | AE17: 20.50521265 | AF17: 102.5346397 | AJ17: =INDEX((DirN2OManSoilPol!$U$15:$U$43),MATCH(A17,DirN2OManSoilPol!$A$15:A$43,0)) -> 79.73094738 | AN17: ='6. UD1 Assumptions'!B24 -> 52387 | AO17: ='6. UD1 Assumptions'!F24 -> 0.1 | AP17: 5238.7 | AQ17: =AP17*'5. UD1 Parameters'!$H$6*'5. UD1 Parameters'!$H$7*'5. UD1 Parameters'!$H$8/1000 -> 91.939185 | AR17: =AQ17*'5. UD1 Parameters'!$H$9/1000 -> 2.298479625 | AS17: 0 | AT17: 102.5346397 | AV17: 48.56091061 | AW17: ='UD1 CropScenarios'!F17*'6. UD1 Assumptions'!K24 -> 10369932.1 | AX17: =AW17*'5. UD1 Parameters'!$H$12*'5. UD1 Parameters'!$H$13/1000 -> 162.9560759 | AY17: =AX17*'5. UD1 Parameters'!$H$16/1000 -> 48.56091061 | AZ17: 48.56091061 | BA17: 0 | BB17: 102.5346397 | BL17: 102.5346397 | BN17: 10369932.1 | BO17: ='UD1 CropScenarios'!Y17 -> 2665224 | BP17: ='UD1 CropScenarios'!Z17 -> 962068.5 | BQ17: =(((BN17*'5. UD1 Parameters'!$H$18)+(BP17*'5. UD1 Parameters'!$H$19))*('5. UD1 Parameters'!$H$24*'5. UD1 Parameters'!$H$21))/1000 -> 19.31925145 | BR17: =BQ17*'5. UD1 Parameters'!$H$22/1000 -> 5.757136931 | BS17: =((BN17+BO17+BP17)*'5. UD1 Parameters'!$H$20*'5. UD1 Parameters'!$H$23*'5. UD1 Parameters'!$H$21)/1000 -> 49.49018699 | BT17: =BS17*'5. UD1 Parameters'!$H$22/1000 -> 14.74807572 | BU17: 20.50521265 | BV17: 0 | BW17: 102.5346397 | BY17: 102.5346397 | BZ17: 0 | CD17: 102.5346397 | CE17: 102.5346397 | CF17: 102.5346397 | CG17: 102.5346397 | CH17: 102.5346397 | CJ17: 102.5346397 | CK17: 102.5346397 | CL17: 102.5346397 | CM17: 102.5346397 | CN17: 102.5346397 | CP17: 0 | CQ17: 0 | CR17: 0 | CS17: 0 | CT17: 0
A18: 2016 | B18: ='6. UD1 Assumptions'!C25 -> 52000 | C18: =B18*'5. UD1 Parameters'!$H$10 -> 5200 | D18: =C18*'5. UD1 Parameters'!$H$6*'5. UD1 Parameters'!$H$7*'5. UD1 Parameters'!$H$8/1000 -> 91.26 | E18: =D18*'5. UD1 Parameters'!$H$9/1000 -> 2.2815 | F18: =F17*(1+'6. UD1 Assumptions'!I25) -> 10577330.74 | G18: 2665224 | H18: =H17+($H$22-$H$17)/5 -> 3517897.824 | I18: ='UD1 CropScenarios'!F18*'5. UD1 Parameters'!$H$12*'5. UD1 Parameters'!$H$13/1000 -> 166.2151974 | J18: =G18*'5. UD1 Parameters'!$H$12*'5. UD1 Parameters'!$H$13/1000 -> 41.88209143 | K18: =H18*'5. UD1 Parameters'!$H$12*'5. UD1 Parameters'!$H$13/1000 -> 55.28125152 | L18: =I18*'5. UD1 Parameters'!$H$16/1000 -> 49.53212883 | M18: =J18*'5. UD1 Parameters'!$H$16/1000 -> 12.48086325 | N18: =K18*'5. UD1 Parameters'!$H$16/1000 -> 16.47381295 | O18: =SUM('UD1 CropScenarios'!L18:N18) -> 78.48680503 | P18: =P17+($P$22-$P$17)/5 -> 12533.808 | Q18: =Q17+($Q$22-$Q$17)/5 -> 458963.4465 | R18: =P18*'5. UD1 Parameters'!$H$14*'5. UD1 Parameters'!$H$13/1000 -> 0.39391968 | S18: =Q18*'5. UD1 Parameters'!$H$15*'5. UD1 Parameters'!$H$13/1000 -> 7.212282731 | T18: =R18*'5. UD1 Parameters'!$H$16/1000 -> 0.1173880646 | U18: =S18*'5. UD1 Parameters'!$H$16/1000 -> 2.149260254 | V18: ='UD1 CropScenarios'!T18+'UD1 CropScenarios'!U18 -> 2.266648318 | W18: ='UD1 CropScenarios'!O18+'UD1 CropScenarios'!V18 -> 80.75345334 | X18: 10577330.74 | Y18: 2665224 | Z18: 962068.5 | AA18: =((X18*'5. UD1 Parameters'!$H$18)+(Z18*'5. UD1 Parameters'!$H$19))*'5. UD1 Parameters'!$H$24*'5. UD1 Parameters'!$H$21/1000 -> 19.6451636 | AB18: =AA18*'5. UD1 Parameters'!$H$22/1000 -> 5.854258752 | AC18: =((X18+Y18+Z18)*'5. UD1 Parameters'!$H$20*'5. UD1 Parameters'!$H$23*'5. UD1 Parameters'!$H$21)/1000 -> 50.22348933 | AD18: =AC18*'5. UD1 Parameters'!$H$22/1000 -> 14.96659982 | AE18: 20.82085857 | AF18: 103.8558119 | AJ18: =INDEX((DirN2OManSoilPol!$U$15:$U$43),MATCH(A18,DirN2OManSoilPol!$A$15:A$43,0)) -> 80.85254038 | AN18: ='6. UD1 Assumptions'!B25 -> 52000 | AO18: ='6. UD1 Assumptions'!F25 -> 0.1 | AP18: 5200 | AQ18: =AP18*'5. UD1 Parameters'!$H$6*'5. UD1 Parameters'!$H$7*'5. UD1 Parameters'!$H$8/1000 -> 91.26 | AR18: =AQ18*'5. UD1 Parameters'!$H$9/1000 -> 2.2815 | AS18: 0 | AT18: 103.8558119 | AV18: 49.53212883 | AW18: ='UD1 CropScenarios'!F18*'6. UD1 Assumptions'!K25 -> 10471557.44 | AX18: =AW18*'5. UD1 Parameters'!$H$12*'5. UD1 Parameters'!$H$13/1000 -> 164.5530454 | AY18: =AX18*'5. UD1 Parameters'!$H$16/1000 -> 49.03680754 | AZ18: 49.03680754 | BA18: 0.4953212883 | BB18: 103.4595777 | BL18: 103.4595777 | BN18: 10471557.44 | BO18: ='UD1 CropScenarios'!Y18 -> 2665224 | BP18: ='UD1 CropScenarios'!Z18 -> 962068.5 | BQ18: =(((BN18*'5. UD1 Parameters'!$H$18)+(BP18*'5. UD1 Parameters'!$H$19))*('5. UD1 Parameters'!$H$24*'5. UD1 Parameters'!$H$21))/1000 -> 19.4789484 | BR18: =BQ18*'5. UD1 Parameters'!$H$22/1000 -> 5.804726623 | BS18: =((BN18+BO18+BP18)*'5. UD1 Parameters'!$H$20*'5. UD1 Parameters'!$H$23*'5. UD1 Parameters'!$H$21)/1000 -> 49.84950513 | BT18: =BS18*'5. UD1 Parameters'!$H$22/1000 -> 14.85515253 | BU18: 20.65987915 | BV18: 0.1609794187 | BW18: 103.2985982 | BY18: 103.2985982 | BZ18: 0.5572136735 | CD18: 103.8558119 | CE18: 103.8558119 | CF18: 103.4595777 | CG18: 103.2985982 | CH18: 103.2985982 | CJ18: 103.8558119 | CK18: 103.8558119 | CL18: 103.4595777 | CM18: 103.2985982 | CN18: 103.2985982 | CP18: 0 | CQ18: 0 | CR18: 0 | CS18: 0 | CT18: 0
A19: 2017 | B19: ='6. UD1 Assumptions'!C26 -> 51000 | C19: =B19*'5. UD1 Parameters'!$H$10 -> 5100 | D19: =C19*'5. UD1 Parameters'!$H$6*'5. UD1 Parameters'!$H$7*'5. UD1 Parameters'!$H$8/1000 -> 89.505 | E19: =D19*'5. UD1 Parameters'!$H$9/1000 -> 2.237625 | F19: =F18*(1+'6. UD1 Assumptions'!I26) -> 10788877.36 | G19: 2665224 | H19: =H18+($H$22-$H$17)/5 -> 3534273.083 | I19: ='UD1 CropScenarios'!F19*'5. UD1 Parameters'!$H$12*'5. UD1 Parameters'!$H$13/1000 -> 169.5395014 | J19: =G19*'5. UD1 Parameters'!$H$12*'5. UD1 Parameters'!$H$13/1000 -> 41.88209143 | K19: =H19*'5. UD1 Parameters'!$H$12*'5. UD1 Parameters'!$H$13/1000 -> 55.53857702 | L19: =I19*'5. UD1 Parameters'!$H$16/1000 -> 50.5227714 | M19: =J19*'5. UD1 Parameters'!$H$16/1000 -> 12.48086325 | N19: =K19*'5. UD1 Parameters'!$H$16/1000 -> 16.55049595 | O19: =SUM('UD1 CropScenarios'!L19:N19) -> 79.5541306 | P19: =P18+($P$22-$P$17)/5 -> 12384.596 | Q19: =Q18+($Q$22-$Q$17)/5 -> 453838.8465 | R19: =P19*'5. UD1 Parameters'!$H$14*'5. UD1 Parameters'!$H$13/1000 -> 0.38923016 | S19: =Q19*'5. UD1 Parameters'!$H$15*'5. UD1 Parameters'!$H$13/1000 -> 7.131753302 | T19: =R19*'5. UD1 Parameters'!$H$16/1000 -> 0.1159905877 | U19: =S19*'5. UD1 Parameters'!$H$16/1000 -> 2.125262484 | V19: ='UD1 CropScenarios'!T19+'UD1 CropScenarios'!U19 -> 2.241253072 | W19: ='UD1 CropScenarios'!O19+'UD1 CropScenarios'!V19 -> 81.79538367 | X19: 10788877.36 | Y19: 2665224 | Z19: 962068.5 | AA19: =((X19*'5. UD1 Parameters'!$H$18)+(Z19*'5. UD1 Parameters'!$H$19))*'5. UD1 Parameters'!$H$24*'5. UD1 Parameters'!$H$21/1000 -> 19.97759399 | AB19: =AA19*'5. UD1 Parameters'!$H$22/1000 -> 5.95332301 | AC19: =((X19+Y19+Z19)*'5. UD1 Parameters'!$H$20*'5. UD1 Parameters'!$H$23*'5. UD1 Parameters'!$H$21)/1000 -> 50.97145772 | AD19: =AC19*'5. UD1 Parameters'!$H$22/1000 -> 15.1894944 | AE19: 21.14281741 | AF19: 105.1758261 | AJ19: =INDEX((DirN2OManSoilPol!$U$15:$U$43),MATCH(A19,DirN2OManSoilPol!$A$15:A$43,0)) -> 81.99355774 | AN19: ='6. UD1 Assumptions'!B26 -> 51000 | AO19: ='6. UD1 Assumptions'!F26 -> 0.1 | AP19: 5100 | AQ19: =AP19*'5. UD1 Parameters'!$H$6*'5. UD1 Parameters'!$H$7*'5. UD1 Parameters'!$H$8/1000 -> 89.505 | AR19: =AQ19*'5. UD1 Parameters'!$H$9/1000 -> 2.237625 | AS19: 0 | AT19: 105.1758261 | AV19: 50.5227714 | AW19: ='UD1 CropScenarios'!F19*'6. UD1 Assumptions'!K26 -> 10573099.81 | AX19: =AW19*'5. UD1 Parameters'!$H$12*'5. UD1 Parameters'!$H$13/1000 -> 166.1487113 | AY19: =AX19*'5. UD1 Parameters'!$H$16/1000 -> 49.51231598 | AZ19: 49.51231598 | BA19: 1.010455428 | BB19: 104.3635447 | BD19: ='6. UD1 Assumptions'!Q26*'6. UD1 Assumptions'!$O$15*'6. UD1 Assumptions'!S26 -> 1.326952758 | BE19: ='6. UD1 Assumptions'!Q26*'6. UD1 Assumptions'!$O$16*'6. UD1 Assumptions'!S26 -> 4.42317586 | BF19: ='6. UD1 Assumptions'!Q26*'6. UD1 Assumptions'!$O$17*'6. UD1 Assumptions'!S26 -> 1.061562206 | BG19: =BD19+BE19+BF19 -> 6.811690824 | BH19: ='UD1 CropScenarios'!BG19*'5. UD1 Parameters'!$H$27 -> 3.405845412 | BI19: =BH19*'5. UD1 Parameters'!$H$28*1000000 -> 59602.29471 | BJ19: =BI19*'5. UD1 Parameters'!$H$12*'5. UD1 Parameters'!$H$13*'5. UD1 Parameters'!$H$16/1000000 -> 0.2791090315 | BK19: =BJ19 -> 0.2791090315 | BL19: 104.6426538 | BN19: 10573099.81 | BO19: ='UD1 CropScenarios'!Y19 -> 2665224 | BP19: =BI19+$BP$18 -> 1021670.795 | BQ19: =(((BN19*'5. UD1 Parameters'!$H$18)+(BP19*'5. UD1 Parameters'!$H$19))*('5. UD1 Parameters'!$H$24*'5. UD1 Parameters'!$H$21))/1000 -> 19.82583649 | BR19: =BQ19*'5. UD1 Parameters'!$H$22/1000 -> 5.908099273 | BS19: =((BN19+BO19+BP19)*'5. UD1 Parameters'!$H$20*'5. UD1 Parameters'!$H$23*'5. UD1 Parameters'!$H$21)/1000 -> 50.41926664 | BT19: =BS19*'5. UD1 Parameters'!$H$22/1000 -> 15.02494146 | BU19: 20.93304073 | BV19: 0.2097766757 | BW19: 104.4328771 | BY19: 104.4328771 | BZ19: 0.7429490054 | CD19: 105.1758261 | CE19: 105.1758261 | CF19: 104.3635447 | CG19: 104.4328771 | CH19: 104.4328771 | CJ19: 105.1758261 | CK19: 105.1758261 | CL19: 104.3635447 | CM19: 104.4328771 | CN19: 104.4328771 | CP19: 0 | CQ19: 0 | CR19: 0 | CS19: 0 | CT19: 0
A20: 2018 | B20: ='6. UD1 Assumptions'!C27 -> 50500 | C20: =B20*'5. UD1 Parameters'!$H$10 -> 5050 | D20: =C20*'5. UD1 Parameters'!$H$6*'5. UD1 Parameters'!$H$7*'5. UD1 Parameters'!$H$8/1000 -> 88.6275 | E20: =D20*'5. UD1 Parameters'!$H$9/1000 -> 2.2156875 | F20: =F19*(1+'6. UD1 Assumptions'!I27) -> 11004654.91 | G20: 2665224 | H20: =H19+($H$22-$H$17)/5 -> 3550648.343 | I20: ='UD1 CropScenarios'!F20*'5. UD1 Parameters'!$H$12*'5. UD1 Parameters'!$H$13/1000 -> 172.9302914 | J20: =G20*'5. UD1 Parameters'!$H$12*'5. UD1 Parameters'!$H$13/1000 -> 41.88209143 | K20: =H20*'5. UD1 Parameters'!$H$12*'5. UD1 Parameters'!$H$13/1000 -> 55.79590253 | L20: =I20*'5. UD1 Parameters'!$H$16/1000 -> 51.53322683 | M20: =J20*'5. UD1 Parameters'!$H$16/1000 -> 12.48086325 | N20: =K20*'5. UD1 Parameters'!$H$16/1000 -> 16.62717895 | O20: =SUM('UD1 CropScenarios'!L20:N20) -> 80.64126903 | P20: =P19+($P$22-$P$17)/5 -> 12235.384 | Q20: =Q19+($Q$22-$Q$17)/5 -> 448714.2465 | R20: =P20*'5. UD1 Parameters'!$H$14*'5. UD1 Parameters'!$H$13/1000 -> 0.38454064 | S20: =Q20*'5. UD1 Parameters'!$H$15*'5. UD1 Parameters'!$H$13/1000 -> 7.051223874 | T20: =R20*'5. UD1 Parameters'!$H$16/1000 -> 0.1145931107 | U20: =S20*'5. UD1 Parameters'!$H$16/1000 -> 2.101264714 | V20: ='UD1 CropScenarios'!T20+'UD1 CropScenarios'!U20 -> 2.215857825 | W20: ='UD1 CropScenarios'!O20+'UD1 CropScenarios'!V20 -> 82.85712686 | X20: 11004654.91 | Y20: 2665224 | Z20: 962068.5 | AA20: =((X20*'5. UD1 Parameters'!$H$18)+(Z20*'5. UD1 Parameters'!$H$19))*'5. UD1 Parameters'!$H$24*'5. UD1 Parameters'!$H$21/1000 -> 20.316673 | AB20: =AA20*'5. UD1 Parameters'!$H$22/1000 -> 6.054368553 | AC20: =((X20+Y20+Z20)*'5. UD1 Parameters'!$H$20*'5. UD1 Parameters'!$H$23*'5. UD1 Parameters'!$H$21)/1000 -> 51.73438547 | AD20: =AC20*'5. UD1 Parameters'!$H$22/1000 -> 15.41684687 | AE20: 21.47121542 | AF20: 106.5440298 | AJ20: =INDEX((DirN2OManSoilPol!$U$15:$U$43),MATCH(A20,DirN2OManSoilPol!$A$15:A$43,0)) -> 83.15438796 | AN20: ='6. UD1 Assumptions'!B27 -> 50500 | AO20: ='6. UD1 Assumptions'!F27 -> 0.1 | AP20: 5050 | AQ20: =AP20*'5. UD1 Parameters'!$H$6*'5. UD1 Parameters'!$H$7*'5. UD1 Parameters'!$H$8/1000 -> 88.6275 | AR20: =AQ20*'5. UD1 Parameters'!$H$9/1000 -> 2.2156875 | AS20: 0 | AT20: 106.5440298 | AV20: 51.53322683 | AW20: ='UD1 CropScenarios'!F20*'6. UD1 Assumptions'!K27 -> 10674515.26 | AX20: =AW20*'5. UD1 Parameters'!$H$12*'5. UD1 Parameters'!$H$13/1000 -> 167.7423826 | AY20: =AX20*'5. UD1 Parameters'!$H$16/1000 -> 49.98723003 | AZ20: 49.98723003 | BA20: 1.545996805 | BB20: 105.2952941 | BD20: ='6. UD1 Assumptions'!Q27*'6. UD1 Assumptions'!$O$15*'6. UD1 Assumptions'!S27 -> 2.706983626 | BE20: ='6. UD1 Assumptions'!Q27*'6. UD1 Assumptions'!$O$16*'6. UD1 Assumptions'!S27 -> 9.023278754 | BF20: ='6. UD1 Assumptions'!Q27*'6. UD1 Assumptions'!$O$17*'6. UD1 Assumptions'!S27 -> 2.165586901 | BG20: 13.89584928 | BH20: ='UD1 CropScenarios'!BG20*'5. UD1 Parameters'!$H$27 -> 6.947924641 | BI20: =BH20*'5. UD1 Parameters'!$H$28*1000000 -> 121588.6812 | BJ20: =BI20*'5. UD1 Parameters'!$H$12*'5. UD1 Parameters'!$H$13*'5. UD1 Parameters'!$H$16/1000000 -> 0.5693824243 | BK20: =BJ20 -> 0.5693824243 | BL20: 105.8646765 | BN20: 10674515.26 | BO20: ='UD1 CropScenarios'!Y20 -> 2665224 | BP20: =BI20+$BP$18 -> 1083657.181 | BQ20: =(((BN20*'5. UD1 Parameters'!$H$18)+(BP20*'5. UD1 Parameters'!$H$19))*('5. UD1 Parameters'!$H$24*'5. UD1 Parameters'!$H$21))/1000 -> 20.18001798 | BR20: =BQ20*'5. UD1 Parameters'!$H$22/1000 -> 6.013645357 | BS20: =((BN20+BO20+BP20)*'5. UD1 Parameters'!$H$20*'5. UD1 Parameters'!$H$23*'5. UD1 Parameters'!$H$21)/1000 -> 50.99700884 | BT20: =BS20*'5. UD1 Parameters'!$H$22/1000 -> 15.19710863 | BU20: 21.21075399 | BV20: 0.2604614313 | BW20: 105.6042151 | BY20: 105.6042151 | BZ20: 0.9398147117 | CD20: 106.5440298 | CE20: 106.5440298 | CF20: 105.2952941 | CG20: 105.6042151 | CH20: 105.6042151 | CJ20: 106.5440298 | CK20: 106.5440298 | CL20: 105.2952941 | CM20: 105.6042151 | CN20: 105.6042151 | CP20: 0 | CQ20: 0 | CR20: 0 | CS20: 0 | CT20: 0
A21: 2019 | B21: ='6. UD1 Assumptions'!C28 -> 50000 | C21: =B21*'5. UD1 Parameters'!$H$10 -> 5000 | D21: =C21*'5. UD1 Parameters'!$H$6*'5. UD1 Parameters'!$H$7*'5. UD1 Parameters'!$H$8/1000 -> 87.75 | E21: =D21*'5. UD1 Parameters'!$H$9/1000 -> 2.19375 | F21: =F20*(1+'6. UD1 Assumptions'!I28) -> 11224748 | G21: 2665224 | H21: =H20+($H$22-$H$17)/5 -> 3567023.602 | I21: ='UD1 CropScenarios'!F21*'5. UD1 Parameters'!$H$12*'5. UD1 Parameters'!$H$13/1000 -> 176.3888972 | J21: =G21*'5. UD1 Parameters'!$H$12*'5. UD1 Parameters'!$H$13/1000 -> 41.88209143 | K21: =H21*'5. UD1 Parameters'!$H$12*'5. UD1 Parameters'!$H$13/1000 -> 56.05322803 | L21: =I21*'5. UD1 Parameters'!$H$16/1000 -> 52.56389137 | M21: =J21*'5. UD1 Parameters'!$H$16/1000 -> 12.48086325 | N21: =K21*'5. UD1 Parameters'!$H$16/1000 -> 16.70386195 | O21: =SUM('UD1 CropScenarios'!L21:N21) -> 81.74861657 | P21: =P20+($P$22-$P$17)/5 -> 12086.172 | Q21: =Q20+($Q$22-$Q$17)/5 -> 443589.6465 | R21: =P21*'5. UD1 Parameters'!$H$14*'5. UD1 Parameters'!$H$13/1000 -> 0.37985112 | S21: =Q21*'5. UD1 Parameters'!$H$15*'5. UD1 Parameters'!$H$13/1000 -> 6.970694445 | T21: =R21*'5. UD1 Parameters'!$H$16/1000 -> 0.1131956338 | U21: =S21*'5. UD1 Parameters'!$H$16/1000 -> 2.077266945 | V21: ='UD1 CropScenarios'!T21+'UD1 CropScenarios'!U21 -> 2.190462578 | W21: ='UD1 CropScenarios'!O21+'UD1 CropScenarios'!V21 -> 83.93907915 | X21: 11224748 | Y21: 2665224 | Z21: 962068.5 | AA21: =((X21*'5. UD1 Parameters'!$H$18)+(Z21*'5. UD1 Parameters'!$H$19))*'5. UD1 Parameters'!$H$24*'5. UD1 Parameters'!$H$21/1000 -> 20.66253358 | AB21: =AA21*'5. UD1 Parameters'!$H$22/1000 -> 6.157435006 | AC21: =((X21+Y21+Z21)*'5. UD1 Parameters'!$H$20*'5. UD1 Parameters'!$H$23*'5. UD1 Parameters'!$H$21)/1000 -> 52.51257178 | AD21: =AC21*'5. UD1 Parameters'!$H$22/1000 -> 15.64874639 | AE21: 21.8061814 | AF21: 107.9390105 | AJ21: =INDEX((DirN2OManSoilPol!$U$15:$U$43),MATCH(A21,DirN2OManSoilPol!$A$15:A$43,0)) -> 84.33542728 | AN21: ='6. UD1 Assumptions'!B28 -> 50000 | AO21: ='6. UD1 Assumptions'!F28 -> 0.1 | AP21: 5000 | AQ21: =AP21*'5. UD1 Parameters'!$H$6*'5. UD1 Parameters'!$H$7*'5. UD1 Parameters'!$H$8/1000 -> 87.75 | AR21: =AQ21*'5. UD1 Parameters'!$H$9/1000 -> 2.19375 | AS21: 0 | AT21: 107.9390105 | AV21: 52.56389137 | AW21: ='UD1 CropScenarios'!F21*'6. UD1 Assumptions'!K28 -> 10775758.08 | AX21: =AW21*'5. UD1 Parameters'!$H$12*'5. UD1 Parameters'!$H$13/1000 -> 169.3333413 | AY21: =AX21*'5. UD1 Parameters'!$H$16/1000 -> 50.46133571 | AZ21: 50.46133571 | BA21: 2.102555655 | BB21: 106.232803 | BD21: ='6. UD1 Assumptions'!Q28*'6. UD1 Assumptions'!$O$15*'6. UD1 Assumptions'!S28 -> 4.141684948 | BE21: ='6. UD1 Assumptions'!Q28*'6. UD1 Assumptions'!$O$16*'6. UD1 Assumptions'!S28 -> 13.80561649 | BF21: ='6. UD1 Assumptions'!Q28*'6. UD1 Assumptions'!$O$17*'6. UD1 Assumptions'!S28 -> 3.313347959 | BG21: 21.2606494 | BH21: ='UD1 CropScenarios'!BG21*'5. UD1 Parameters'!$H$27 -> 10.6303247 | BI21: =BH21*'5. UD1 Parameters'!$H$28*1000000 -> 186030.6823 | BJ21: =BI21*'5. UD1 Parameters'!$H$12*'5. UD1 Parameters'!$H$13*'5. UD1 Parameters'!$H$16/1000000 -> 0.8711551092 | BK21: 0.8711551092 | BL21: 107.1039581 | BN21: 10775758.08 | BO21: ='UD1 CropScenarios'!Y21 -> 2665224 | BP21: 1148099.182 | BQ21: =(((BN21*'5. UD1 Parameters'!$H$18)+(BP21*'5. UD1 Parameters'!$H$19))*('5. UD1 Parameters'!$H$24*'5. UD1 Parameters'!$H$21))/1000 -> 20.54164585 | BR21: =BQ21*'5. UD1 Parameters'!$H$22/1000 -> 6.121410463 | BS21: =((BN21+BO21+BP21)*'5. UD1 Parameters'!$H$20*'5. UD1 Parameters'!$H$23*'5. UD1 Parameters'!$H$21)/1000 -> 51.58282305 | BT21: =BS21*'5. UD1 Parameters'!$H$22/1000 -> 15.37168127 | BU21: 21.49309173 | BV21: 0.3130896664 | BW21: 106.7908685 | BY21: 106.7908685 | BZ21: 1.148142078 | CD21: 107.9390105 | CE21: 107.9390105 | CF21: 106.232803 | CG21: 106.7908685 | CH21: 106.7908685 | CJ21: 107.9390105 | CK21: 107.9390105 | CL21: 106.232803 | CM21: 106.7908685 | CN21: 106.7908685 | CP21: 0 | CQ21: 0 | CR21: 0 | CS21: 0 | CT21: 0
A22: 2020 | B22: ='6. UD1 Assumptions'!C29 -> 49500 | C22: =B22*'5. UD1 Parameters'!$H$10 -> 4950 | D22: =C22*'5. UD1 Parameters'!$H$6*'5. UD1 Parameters'!$H$7*'5. UD1 Parameters'!$H$8/1000 -> 86.8725 | E22: =D22*'5. UD1 Parameters'!$H$9/1000 -> 2.1718125 | F22: =F21*(1+'6. UD1 Assumptions'!I29) -> 11449242.96 | G22: 2665224 | H22: =MMS!V90 -> 3583398.862 | I22: ='UD1 CropScenarios'!F22*'5. UD1 Parameters'!$H$12*'5. UD1 Parameters'!$H$13/1000 -> 179.9166752 | J22: =G22*'5. UD1 Parameters'!$H$12*'5. UD1 Parameters'!$H$13/1000 -> 41.88209143 | K22: =H22*'5. UD1 Parameters'!$H$12*'5. UD1 Parameters'!$H$13/1000 -> 56.31055354 | L22: =I22*'5. UD1 Parameters'!$H$16/1000 -> 53.6151692 | M22: =J22*'5. UD1 Parameters'!$H$16/1000 -> 12.48086325 | N22: =K22*'5. UD1 Parameters'!$H$16/1000 -> 16.78054495 | O22: =SUM('UD1 CropScenarios'!L22:N22) -> 82.8765774 | P22: =MMS!V92 -> 11936.96 | Q22: =MMS!V91 -> 438465.0465 | R22: =P22*'5. UD1 Parameters'!$H$14*'5. UD1 Parameters'!$H$13/1000 -> 0.3751616 | S22: =Q22*'5. UD1 Parameters'!$H$15*'5. UD1 Parameters'!$H$13/1000 -> 6.890165016 | T22: =R22*'5. UD1 Parameters'!$H$16/1000 -> 0.1117981568 | U22: =S22*'5. UD1 Parameters'!$H$16/1000 -> 2.053269175 | V22: ='UD1 CropScenarios'!T22+'UD1 CropScenarios'!U22 -> 2.165067332 | W22: ='UD1 CropScenarios'!O22+'UD1 CropScenarios'!V22 -> 85.04164473 | X22: 11449242.96 | Y22: 2665224 | Z22: 962068.5 | AA22: =((X22*'5. UD1 Parameters'!$H$18)+(Z22*'5. UD1 Parameters'!$H$19))*'5. UD1 Parameters'!$H$24*'5. UD1 Parameters'!$H$21/1000 -> 21.01531137 | AB22: =AA22*'5. UD1 Parameters'!$H$22/1000 -> 6.262562789 | AC22: =((X22+Y22+Z22)*'5. UD1 Parameters'!$H$20*'5. UD1 Parameters'!$H$23*'5. UD1 Parameters'!$H$21)/1000 -> 53.30632182 | AD22: =AC22*'5. UD1 Parameters'!$H$22/1000 -> 15.8852839 | AE22: 22.14784669 | AF22: 109.3613039 | AJ22: =INDEX((DirN2OManSoilPol!$U$15:$U$43),MATCH(A22,DirN2OManSoilPol!$A$15:A$43,0)) -> 85.53707989 | AN22: ='6. UD1 Assumptions'!B29 -> 49500 | AO22: ='6. UD1 Assumptions'!F29 -> 0.08 | AP22: 3960 | AQ22: =AP22*'5. UD1 Parameters'!$H$6*'5. UD1 Parameters'!$H$7*'5. UD1 Parameters'!$H$8/1000 -> 69.498 | AR22: =AQ22*'5. UD1 Parameters'!$H$9/1000 -> 1.73745 | AS22: 0.4343625 | AT22: 108.9269414 | AV22: 53.6151692 | AW22: ='UD1 CropScenarios'!F22*'6. UD1 Assumptions'!K29 -> 10876780.82 | AX22: =AW22*'5. UD1 Parameters'!$H$12*'5. UD1 Parameters'!$H$13/1000 -> 170.9208414 | AY22: =AX22*'5. UD1 Parameters'!$H$16/1000 -> 50.93441074 | AZ22: 50.93441074 | BA22: 2.68075846 | BB22: 107.1759806 | BD22: ='6. UD1 Assumptions'!Q29*'6. UD1 Assumptions'!$O$15*'6. UD1 Assumptions'!S29 -> 5.63269153 | BE22: ='6. UD1 Assumptions'!Q29*'6. UD1 Assumptions'!$O$16*'6. UD1 Assumptions'!S29 -> 18.77563843 | BF22: ='6. UD1 Assumptions'!Q29*'6. UD1 Assumptions'!$O$17*'6. UD1 Assumptions'!S29 -> 4.506153224 | BG22: 28.91448319 | BH22: ='UD1 CropScenarios'!BG22*'5. UD1 Parameters'!$H$27 -> 14.45724159 | BI22: =BH22*'5. UD1 Parameters'!$H$28*1000000 -> 253001.7279 | BJ22: =BI22*'5. UD1 Parameters'!$H$12*'5. UD1 Parameters'!$H$13*'5. UD1 Parameters'!$H$16/1000000 -> 1.184770949 | BK22: 1.184770949 | BL22: 108.3607516 | BN22: 10876780.82 | BO22: ='UD1 CropScenarios'!Y22 -> 2665224 | BP22: 1215070.228 | BQ22: =(((BN22*'5. UD1 Parameters'!$H$18)+(BP22*'5. UD1 Parameters'!$H$19))*('5. UD1 Parameters'!$H$24*'5. UD1 Parameters'!$H$21))/1000 -> 20.91087628 | BR22: =BQ22*'5. UD1 Parameters'!$H$22/1000 -> 6.231441133 | BS22: =((BN22+BO22+BP22)*'5. UD1 Parameters'!$H$20*'5. UD1 Parameters'!$H$23*'5. UD1 Parameters'!$H$21)/1000 -> 52.17680105 | BT22: =BS22*'5. UD1 Parameters'!$H$22/1000 -> 15.54868671 | BU22: 21.78012785 | BV22: 0.3677188463 | BW22: 107.9930327 | BY22: 107.5586702 | BZ22: 1.80263369 | CD22: 109.3613039 | CE22: 108.9269414 | CF22: 107.1759806 | CG22: 107.9930327 | CH22: 107.5586702 | CJ22: 109.3613039 | CK22: 108.9269414 | CL22: 107.1759806 | CM22: 107.9930327 | CN22: 107.5586702 | CP22: 0 | CQ22: 0 | CR22: 0 | CS22: 0 | CT22: 0
A23: 2021 | B23: ='6. UD1 Assumptions'!C30 -> 49000 | C23: =B23*'5. UD1 Parameters'!$H$10 -> 4900 | D23: =C23*'5. UD1 Parameters'!$H$6*'5. UD1 Parameters'!$H$7*'5. UD1 Parameters'!$H$8/1000 -> 85.995 | E23: =D23*'5. UD1 Parameters'!$H$9/1000 -> 2.149875 | F23: =F22 -> 11449242.96 | G23: 2665224 | H23: =H22+($H$27-$H$22)/5 -> 3600132.398 | I23: ='UD1 CropScenarios'!F23*'5. UD1 Parameters'!$H$12*'5. UD1 Parameters'!$H$13/1000 -> 179.9166752 | J23: =G23*'5. UD1 Parameters'!$H$12*'5. UD1 Parameters'!$H$13/1000 -> 41.88209143 | K23: =H23*'5. UD1 Parameters'!$H$12*'5. UD1 Parameters'!$H$13/1000 -> 56.57350911 | L23: =I23*'5. UD1 Parameters'!$H$16/1000 -> 53.6151692 | M23: =J23*'5. UD1 Parameters'!$H$16/1000 -> 12.48086325 | N23: =K23*'5. UD1 Parameters'!$H$16/1000 -> 16.85890571 | O23: =SUM('UD1 CropScenarios'!L23:N23) -> 82.95493816 | P23: =P22+($P$27-$P$22)/5 -> 11809.064 | Q23: =Q22+($Q$27-$Q$22)/5 -> 438465.0465 | R23: =P23*'5. UD1 Parameters'!$H$14*'5. UD1 Parameters'!$H$13/1000 -> 0.3711420114 | S23: =Q23*'5. UD1 Parameters'!$H$15*'5. UD1 Parameters'!$H$13/1000 -> 6.890165016 | T23: =R23*'5. UD1 Parameters'!$H$16/1000 -> 0.1106003194 | U23: =S23*'5. UD1 Parameters'!$H$16/1000 -> 2.053269175 | V23: ='UD1 CropScenarios'!T23+'UD1 CropScenarios'!U23 -> 2.163869494 | W23: ='UD1 CropScenarios'!O23+'UD1 CropScenarios'!V23 -> 85.11880765 | X23: 11449242.96 | Y23: 2665224 | Z23: 962068.5 | AA23: =((X23*'5. UD1 Parameters'!$H$18)+(Z23*'5. UD1 Parameters'!$H$19))*'5. UD1 Parameters'!$H$24*'5. UD1 Parameters'!$H$21/1000 -> 21.01531137 | AB23: =AA23*'5. UD1 Parameters'!$H$22/1000 -> 6.262562789 | AC23: =((X23+Y23+Z23)*'5. UD1 Parameters'!$H$20*'5. UD1 Parameters'!$H$23*'5. UD1 Parameters'!$H$21)/1000 -> 53.30632182 | AD23: =AC23*'5. UD1 Parameters'!$H$22/1000 -> 15.8852839 | AE23: 22.14784669 | AF23: 109.4165293 | AJ23: =INDEX((DirN2OManSoilPol!$U$15:$U$43),MATCH(A23,DirN2OManSoilPol!$A$15:A$43,0)) -> 85.69126414 | AN23: ='6. UD1 Assumptions'!B30 -> 49000 | AO23: ='6. UD1 Assumptions'!F30 -> 0.08 | AP23: 3920 | AQ23: =AP23*'5. UD1 Parameters'!$H$6*'5. UD1 Parameters'!$H$7*'5. UD1 Parameters'!$H$8/1000 -> 68.796 | AR23: =AQ23*'5. UD1 Parameters'!$H$9/1000 -> 1.7199 | AS23: 0.429975 | AT23: 108.9865543 | AV23: 53.6151692 | AW23: ='UD1 CropScenarios'!F23*'6. UD1 Assumptions'!K30 -> 10647795.96 | AX23: =AW23*'5. UD1 Parameters'!$H$12*'5. UD1 Parameters'!$H$13/1000 -> 167.3225079 | AY23: =AX23*'5. UD1 Parameters'!$H$16/1000 -> 49.86210735 | AZ23: 49.86210735 | BA23: 3.753061844 | BB23: 106.235924 | BD23: ='6. UD1 Assumptions'!Q30*'6. UD1 Assumptions'!$O$15*'6. UD1 Assumptions'!S30 -> 7.1816817 | BE23: ='6. UD1 Assumptions'!Q30*'6. UD1 Assumptions'!$O$16*'6. UD1 Assumptions'!S30 -> 23.938939 | BF23: ='6. UD1 Assumptions'!Q30*'6. UD1 Assumptions'!$O$17*'6. UD1 Assumptions'!S30 -> 5.74534536 | BG23: 36.86596606 | BH23: ='UD1 CropScenarios'!BG23*'5. UD1 Parameters'!$H$27 -> 18.43298303 | BI23: =BH23*'5. UD1 Parameters'!$H$28*1000000 -> 322577.203 | BJ23: =BI23*'5. UD1 Parameters'!$H$12*'5. UD1 Parameters'!$H$13*'5. UD1 Parameters'!$H$16/1000000 -> 1.510582959 | BK23: 1.510582959 | BL23: 107.7465069 | BN23: 10647795.96 | BO23: ='UD1 CropScenarios'!Y23 -> 2665224 | BP23: 1284645.703 | BQ23: =(((BN23*'5. UD1 Parameters'!$H$18)+(BP23*'5. UD1 Parameters'!$H$19))*('5. UD1 Parameters'!$H$24*'5. UD1 Parameters'!$H$21))/1000 -> 20.76970871 | BR23: =BQ23*'5. UD1 Parameters'!$H$22/1000 -> 6.189373197 | BS23: =((BN23+BO23+BP23)*'5. UD1 Parameters'!$H$20*'5. UD1 Parameters'!$H$23*'5. UD1 Parameters'!$H$21)/1000 -> 51.61317501 | BT23: =BS23*'5. UD1 Parameters'!$H$22/1000 -> 15.38072615 | BU23: 21.57009935 | BV23: 0.5777473415 | BW23: 107.1687596 | BY23: 106.7387846 | BZ23: 2.677744738 | CD23: 109.4165293 | CE23: 108.9865543 | CF23: 106.235924 | CG23: 107.1687596 | CH23: 106.7387846 | CJ23: 109.4165293 | CK23: 108.9865543 | CL23: 106.235924 | CM23: 107.1687596 | CN23: 106.7387846 | CP23: 0 | CQ23: 0 | CR23: 0 | CS23: 0 | CT23: 0
A24: 2022 | B24: ='6. UD1 Assumptions'!C31 -> 48500 | C24: =B24*'5. UD1 Parameters'!$H$10 -> 4850 | D24: =C24*'5. UD1 Parameters'!$H$6*'5. UD1 Parameters'!$H$7*'5. UD1 Parameters'!$H$8/1000 -> 85.1175 | E24: =D24*'5. UD1 Parameters'!$H$9/1000 -> 2.1279375 | F24: 11449242.96 | G24: 2665224 | H24: =H23+($H$27-$H$22)/5 -> 3616865.934 | I24: ='UD1 CropScenarios'!F24*'5. UD1 Parameters'!$H$12*'5. UD1 Parameters'!$H$13/1000 -> 179.9166752 | J24: =G24*'5. UD1 Parameters'!$H$12*'5. UD1 Parameters'!$H$13/1000 -> 41.88209143 | K24: =H24*'5. UD1 Parameters'!$H$12*'5. UD1 Parameters'!$H$13/1000 -> 56.83646468 | L24: =I24*'5. UD1 Parameters'!$H$16/1000 -> 53.6151692 | M24: =J24*'5. UD1 Parameters'!$H$16/1000 -> 12.48086325 | N24: =K24*'5. UD1 Parameters'!$H$16/1000 -> 16.93726647 | O24: =SUM('UD1 CropScenarios'!L24:N24) -> 83.03329891 | P24: =P23+($P$27-$P$22)/5 -> 11681.168 | Q24: =Q23+($Q$27-$Q$22)/5 -> 438465.0465 | R24: =P24*'5. UD1 Parameters'!$H$14*'5. UD1 Parameters'!$H$13/1000 -> 0.3671224229 | S24: =Q24*'5. UD1 Parameters'!$H$15*'5. UD1 Parameters'!$H$13/1000 -> 6.890165016 | T24: =R24*'5. UD1 Parameters'!$H$16/1000 -> 0.109402482 | U24: =S24*'5. UD1 Parameters'!$H$16/1000 -> 2.053269175 | V24: ='UD1 CropScenarios'!T24+'UD1 CropScenarios'!U24 -> 2.162671657 | W24: ='UD1 CropScenarios'!O24+'UD1 CropScenarios'!V24 -> 85.19597057 | X24: 11449242.96 | Y24: 2665224 | Z24: 962068.5 | AA24: =((X24*'5. UD1 Parameters'!$H$18)+(Z24*'5. UD1 Parameters'!$H$19))*'5. UD1 Parameters'!$H$24*'5. UD1 Parameters'!$H$21/1000 -> 21.01531137 | AB24: =AA24*'5. UD1 Parameters'!$H$22/1000 -> 6.262562789 | AC24: =((X24+Y24+Z24)*'5. UD1 Parameters'!$H$20*'5. UD1 Parameters'!$H$23*'5. UD1 Parameters'!$H$21)/1000 -> 53.30632182 | AD24: =AC24*'5. UD1 Parameters'!$H$22/1000 -> 15.8852839 | AE24: 22.14784669 | AF24: 109.4717548 | AJ24: =INDEX((DirN2OManSoilPol!$U$15:$U$43),MATCH(A24,DirN2OManSoilPol!$A$15:A$43,0)) -> 85.84544838 | AN24: ='6. UD1 Assumptions'!B31 -> 48500 | AO24: ='6. UD1 Assumptions'!F31 -> 0.08 | AP24: 3880 | AQ24: =AP24*'5. UD1 Parameters'!$H$6*'5. UD1 Parameters'!$H$7*'5. UD1 Parameters'!$H$8/1000 -> 68.094 | AR24: =AQ24*'5. UD1 Parameters'!$H$9/1000 -> 1.70235 | AS24: 0.4255875 | AT24: 109.0461673 | AV24: 53.6151692 | AW24: ='UD1 CropScenarios'!F24*'6. UD1 Assumptions'!K31 -> 10418811.1 | AX24: =AW24*'5. UD1 Parameters'!$H$12*'5. UD1 Parameters'!$H$13/1000 -> 163.7241744 | AY24: =AX24*'5. UD1 Parameters'!$H$16/1000 -> 48.78980397 | AZ24: 48.78980397 | BA24: 4.825365228 | BB24: 105.2958673 | BD24: ='6. UD1 Assumptions'!Q31*'6. UD1 Assumptions'!$O$15*'6. UD1 Assumptions'!S31 -> 8.790378401 | BE24: ='6. UD1 Assumptions'!Q31*'6. UD1 Assumptions'!$O$16*'6. UD1 Assumptions'!S31 -> 29.30126134 | BF24: ='6. UD1 Assumptions'!Q31*'6. UD1 Assumptions'!$O$17*'6. UD1 Assumptions'!S31 -> 7.032302721 | BG24: 45.12394246 | BH24: ='UD1 CropScenarios'!BG24*'5. UD1 Parameters'!$H$27 -> 22.56197123 | BI24: =BH24*'5. UD1 Parameters'!$H$28*1000000 -> 394834.4965 | BJ24: =BI24*'5. UD1 Parameters'!$H$12*'5. UD1 Parameters'!$H$13*'5. UD1 Parameters'!$H$16/1000000 -> 1.848953542 | BK24: 1.848953542 | BL24: 107.1448209 | BN24: 10418811.1 | BO24: ='UD1 CropScenarios'!Y24 -> 2665224 | BP24: 1356902.997 | BQ24: =(((BN24*'5. UD1 Parameters'!$H$18)+(BP24*'5. UD1 Parameters'!$H$19))*('5. UD1 Parameters'!$H$24*'5. UD1 Parameters'!$H$21))/1000 -> 20.63696971 | BR24: =BQ24*'5. UD1 Parameters'!$H$22/1000 -> 6.149816975 | BS24: =((BN24+BO24+BP24)*'5. UD1 Parameters'!$H$20*'5. UD1 Parameters'!$H$23*'5. UD1 Parameters'!$H$21)/1000 -> 51.05903112 | BT24: =BS24*'5. UD1 Parameters'!$H$22/1000 -> 15.21559127 | BU24: 21.36540825 | BV24: 0.7824384435 | BW24: 106.3623824 | BY24: 105.9367949 | BZ24: 3.53495982 | CD24: 109.4717548 | CE24: 109.0461673 | CF24: 105.2958673 | CG24: 106.3623824 | CH24: 105.9367949 | CJ24: 109.4717548 | CK24: 109.0461673 | CL24: 105.2958673 | CM24: 106.3623824 | CN24: 105.9367949 | CP24: 0 | CQ24: 0 | CR24: 0 | CS24: 0 | CT24: 0
A25: 2023 | B25: ='6. UD1 Assumptions'!C32 -> 48000 | C25: =B25*'5. UD1 Parameters'!$H$10 -> 4800 | D25: =C25*'5. UD1 Parameters'!$H$6*'5. UD1 Parameters'!$H$7*'5. UD1 Parameters'!$H$8/1000 -> 84.24 | E25: =D25*'5. UD1 Parameters'!$H$9/1000 -> 2.106 | F25: 11449242.96 | G25: 2665224 | H25: =H24+($H$27-$H$22)/5 -> 3633599.47 | I25: ='UD1 CropScenarios'!F25*'5. UD1 Parameters'!$H$12*'5. UD1 Parameters'!$H$13/1000 -> 179.9166752 | J25: =G25*'5. UD1 Parameters'!$H$12*'5. UD1 Parameters'!$H$13/1000 -> 41.88209143 | K25: =H25*'5. UD1 Parameters'!$H$12*'5. UD1 Parameters'!$H$13/1000 -> 57.09942024 | L25: =I25*'5. UD1 Parameters'!$H$16/1000 -> 53.6151692 | M25: =J25*'5. UD1 Parameters'!$H$16/1000 -> 12.48086325 | N25: =K25*'5. UD1 Parameters'!$H$16/1000 -> 17.01562723 | O25: =SUM('UD1 CropScenarios'!L25:N25) -> 83.11165967 | P25: =P24+($P$27-$P$22)/5 -> 11553.272 | Q25: =Q24+($Q$27-$Q$22)/5 -> 438465.0465 | R25: =P25*'5. UD1 Parameters'!$H$14*'5. UD1 Parameters'!$H$13/1000 -> 0.3631028343 | S25: =Q25*'5. UD1 Parameters'!$H$15*'5. UD1 Parameters'!$H$13/1000 -> 6.890165016 | T25: =R25*'5. UD1 Parameters'!$H$16/1000 -> 0.1082046446 | U25: =S25*'5. UD1 Parameters'!$H$16/1000 -> 2.053269175 | V25: ='UD1 CropScenarios'!T25+'UD1 CropScenarios'!U25 -> 2.16147382 | W25: ='UD1 CropScenarios'!O25+'UD1 CropScenarios'!V25 -> 85.27313349 | X25: 11449242.96 | Y25: 2665224 | Z25: 962068.5 | AA25: =((X25*'5. UD1 Parameters'!$H$18)+(Z25*'5. UD1 Parameters'!$H$19))*'5. UD1 Parameters'!$H$24*'5. UD1 Parameters'!$H$21/1000 -> 21.01531137 | AB25: =AA25*'5. UD1 Parameters'!$H$22/1000 -> 6.262562789 | AC25: =((X25+Y25+Z25)*'5. UD1 Parameters'!$H$20*'5. UD1 Parameters'!$H$23*'5. UD1 Parameters'!$H$21)/1000 -> 53.30632182 | AD25: =AC25*'5. UD1 Parameters'!$H$22/1000 -> 15.8852839 | AE25: 22.14784669 | AF25: 109.5269802 | AJ25: =INDEX((DirN2OManSoilPol!$U$15:$U$43),MATCH(A25,DirN2OManSoilPol!$A$15:A$43,0)) -> 85.99963262 | AN25: ='6. UD1 Assumptions'!B32 -> 48000 | AO25: ='6. UD1 Assumptions'!F32 -> 0.08 | AP25: 3840 | AQ25: =AP25*'5. UD1 Parameters'!$H$6*'5. UD1 Parameters'!$H$7*'5. UD1 Parameters'!$H$8/1000 -> 67.392 | AR25: =AQ25*'5. UD1 Parameters'!$H$9/1000 -> 1.6848 | AS25: 0.4212 | AT25: 109.1057802 | AV25: 53.6151692 | AW25: ='UD1 CropScenarios'!F25*'6. UD1 Assumptions'!K32 -> 10189826.24 | AX25: =AW25*'5. UD1 Parameters'!$H$12*'5. UD1 Parameters'!$H$13/1000 -> 160.1258409 | AY25: =AX25*'5. UD1 Parameters'!$H$16/1000 -> 47.71750058 | AZ25: 47.71750058 | BA25: 5.897668612 | BB25: 104.3558107 | BD25: ='6. UD1 Assumptions'!Q32*'6. UD1 Assumptions'!$O$15*'6. UD1 Assumptions'!S32 -> 10.4605503 | BE25: ='6. UD1 Assumptions'!Q32*'6. UD1 Assumptions'!$O$16*'6. UD1 Assumptions'!S32 -> 34.86850099 | BF25: ='6. UD1 Assumptions'!Q32*'6. UD1 Assumptions'!$O$17*'6. UD1 Assumptions'!S32 -> 8.368440238 | BG25: 53.69749153 | BH25: ='UD1 CropScenarios'!BG25*'5. UD1 Parameters'!$H$27 -> 26.84874576 | BI25: =BH25*'5. UD1 Parameters'!$H$28*1000000 -> 469853.0509 | BJ25: =BI25*'5. UD1 Parameters'!$H$12*'5. UD1 Parameters'!$H$13*'5. UD1 Parameters'!$H$16/1000000 -> 2.200254715 | BK25: 2.200254715 | BL25: 106.5560654 | BN25: 10189826.24 | BO25: ='UD1 CropScenarios'!Y25 -> 2665224 | BP25: 1431921.551 | BQ25: =(((BN25*'5. UD1 Parameters'!$H$18)+(BP25*'5. UD1 Parameters'!$H$19))*('5. UD1 Parameters'!$H$24*'5. UD1 Parameters'!$H$21))/1000 -> 20.51290896 | BR25: =BQ25*'5. UD1 Parameters'!$H$22/1000 -> 6.112846871 | BS25: =((BN25+BO25+BP25)*'5. UD1 Parameters'!$H$20*'5. UD1 Parameters'!$H$23*'5. UD1 Parameters'!$H$21)/1000 -> 50.51465025 | BT25: =BS25*'5. UD1 Parameters'!$H$22/1000 -> 15.05336578 | BU25: 21.16621265 | BV25: 0.9816340447 | BW25: 105.5744314 | BY25: 105.1532314 | BZ25: 4.373748811 | CD25: 109.5269802 | CE25: 109.1057802 | CF25: 104.3558107 | CG25: 105.5744314 | CH25: 105.1532314 | CJ25: 109.5269802 | CK25: 109.1057802 | CL25: 104.3558107 | CM25: 105.5744314 | CN25: 105.1532314 | CP25: 0 | CQ25: 0 | CR25: 0 | CS25: 0 | CT25: 0
A26: 2024 | B26: ='6. UD1 Assumptions'!C33 -> 47500 | C26: =B26*'5. UD1 Parameters'!$H$10 -> 4750 | D26: =C26*'5. UD1 Parameters'!$H$6*'5. UD1 Parameters'!$H$7*'5. UD1 Parameters'!$H$8/1000 -> 83.3625 | E26: =D26*'5. UD1 Parameters'!$H$9/1000 -> 2.0840625 | F26: 11449242.96 | G26: 2665224 | H26: =H25+($H$27-$H$22)/5 -> 3650333.006 | I26: ='UD1 CropScenarios'!F26*'5. UD1 Parameters'!$H$12*'5. UD1 Parameters'!$H$13/1000 -> 179.9166752 | J26: =G26*'5. UD1 Parameters'!$H$12*'5. UD1 Parameters'!$H$13/1000 -> 41.88209143 | K26: =H26*'5. UD1 Parameters'!$H$12*'5. UD1 Parameters'!$H$13/1000 -> 57.36237581 | L26: =I26*'5. UD1 Parameters'!$H$16/1000 -> 53.6151692 | M26: =J26*'5. UD1 Parameters'!$H$16/1000 -> 12.48086325 | N26: =K26*'5. UD1 Parameters'!$H$16/1000 -> 17.09398799 | O26: =SUM('UD1 CropScenarios'!L26:N26) -> 83.19002043 | P26: =P25+($P$27-$P$22)/5 -> 11425.376 | Q26: =Q25+($Q$27-$Q$22)/5 -> 438465.0465 | R26: =P26*'5. UD1 Parameters'!$H$14*'5. UD1 Parameters'!$H$13/1000 -> 0.3590832457 | S26: =Q26*'5. UD1 Parameters'!$H$15*'5. UD1 Parameters'!$H$13/1000 -> 6.890165016 | T26: =R26*'5. UD1 Parameters'!$H$16/1000 -> 0.1070068072 | U26: =S26*'5. UD1 Parameters'!$H$16/1000 -> 2.053269175 | V26: ='UD1 CropScenarios'!T26+'UD1 CropScenarios'!U26 -> 2.160275982 | W26: ='UD1 CropScenarios'!O26+'UD1 CropScenarios'!V26 -> 85.35029642 | X26: 11449242.96 | Y26: 2665224 | Z26: 962068.5 | AA26: =((X26*'5. UD1 Parameters'!$H$18)+(Z26*'5. UD1 Parameters'!$H$19))*'5. UD1 Parameters'!$H$24*'5. UD1 Parameters'!$H$21/1000 -> 21.01531137 | AB26: =AA26*'5. UD1 Parameters'!$H$22/1000 -> 6.262562789 | AC26: =((X26+Y26+Z26)*'5. UD1 Parameters'!$H$20*'5. UD1 Parameters'!$H$23*'5. UD1 Parameters'!$H$21)/1000 -> 53.30632182 | AD26: =AC26*'5. UD1 Parameters'!$H$22/1000 -> 15.8852839 | AE26: 22.14784669 | AF26: 109.5822056 | AJ26: =INDEX((DirN2OManSoilPol!$U$15:$U$43),MATCH(A26,DirN2OManSoilPol!$A$15:A$43,0)) -> 86.15381687 | AN26: ='6. UD1 Assumptions'!B33 -> 47500 | AO26: ='6. UD1 Assumptions'!F33 -> 0.08 | AP26: 3800 | AQ26: =AP26*'5. UD1 Parameters'!$H$6*'5. UD1 Parameters'!$H$7*'5. UD1 Parameters'!$H$8/1000 -> 66.69 | AR26: =AQ26*'5. UD1 Parameters'!$H$9/1000 -> 1.66725 | AS26: 0.4168125 | AT26: 109.1653931 | AV26: 53.6151692 | AW26: ='UD1 CropScenarios'!F26*'6. UD1 Assumptions'!K33 -> 9960841.379 | AX26: =AW26*'5. UD1 Parameters'!$H$12*'5. UD1 Parameters'!$H$13/1000 -> 156.5275074 | AY26: =AX26*'5. UD1 Parameters'!$H$16/1000 -> 46.6451972 | AZ26: 46.6451972 | BA26: 6.969971995 | BB26: 103.4157541 | BD26: ='6. UD1 Assumptions'!Q33*'6. UD1 Assumptions'!$O$15*'6. UD1 Assumptions'!S33 -> 12.19401292 | BE26: ='6. UD1 Assumptions'!Q33*'6. UD1 Assumptions'!$O$16*'6. UD1 Assumptions'!S33 -> 40.64670973 | BF26: ='6. UD1 Assumptions'!Q33*'6. UD1 Assumptions'!$O$17*'6. UD1 Assumptions'!S33 -> 9.755210334 | BG26: 62.59593298 | BH26: ='UD1 CropScenarios'!BG26*'5. UD1 Parameters'!$H$27 -> 31.29796649 | BI26: =BH26*'5. UD1 Parameters'!$H$28*1000000 -> 547714.4136 | BJ26: =BI26*'5. UD1 Parameters'!$H$12*'5. UD1 Parameters'!$H$13*'5. UD1 Parameters'!$H$16/1000000 -> 2.564868354 | BK26: 2.564868354 | BL26: 105.9806224 | BN26: 9960841.379 | BO26: ='UD1 CropScenarios'!Y26 -> 2665224 | BP26: 1509782.914 | BQ26: =(((BN26*'5. UD1 Parameters'!$H$18)+(BP26*'5. UD1 Parameters'!$H$19))*('5. UD1 Parameters'!$H$24*'5. UD1 Parameters'!$H$21))/1000 -> 20.39778275 | BR26: =BQ26*'5. UD1 Parameters'!$H$22/1000 -> 6.07853926 | BS26: =((BN26+BO26+BP26)*'5. UD1 Parameters'!$H$20*'5. UD1 Parameters'!$H$23*'5. UD1 Parameters'!$H$21)/1000 -> 49.98032075 | BT26: =BS26*'5. UD1 Parameters'!$H$22/1000 -> 14.89413558 | BU26: 20.97267484 | BV26: 1.175171848 | BW26: 104.8054506 | BY26: 104.3886381 | BZ26: 5.193567539 | CD26: 109.5822056 | CE26: 109.1653931 | CF26: 103.4157541 | CG26: 104.8054506 | CH26: 104.3886381 | CJ26: 109.5822056 | CK26: 109.1653931 | CL26: 103.4157541 | CM26: 104.8054506 | CN26: 104.3886381 | CP26: 0 | CQ26: 0 | CR26: 0 | CS26: 0 | CT26: 0
A27: 2025 | B27: ='6. UD1 Assumptions'!C34 -> 47000 | C27: =B27*'5. UD1 Parameters'!$H$10 -> 4700 | D27: =C27*'5. UD1 Parameters'!$H$6*'5. UD1 Parameters'!$H$7*'5. UD1 Parameters'!$H$8/1000 -> 82.485 | E27: =D27*'5. UD1 Parameters'!$H$9/1000 -> 2.062125 | F27: 11449242.96 | G27: 2665224 | H27: =MMS!W90 -> 3667066.542 | I27: ='UD1 CropScenarios'!F27*'5. UD1 Parameters'!$H$12*'5. UD1 Parameters'!$H$13/1000 -> 179.9166752 | J27: =G27*'5. UD1 Parameters'!$H$12*'5. UD1 Parameters'!$H$13/1000 -> 41.88209143 | K27: =H27*'5. UD1 Parameters'!$H$12*'5. UD1 Parameters'!$H$13/1000 -> 57.62533138 | L27: =I27*'5. UD1 Parameters'!$H$16/1000 -> 53.6151692 | M27: =J27*'5. UD1 Parameters'!$H$16/1000 -> 12.48086325 | N27: =K27*'5. UD1 Parameters'!$H$16/1000 -> 17.17234875 | O27: =SUM('UD1 CropScenarios'!L27:N27) -> 83.26838119 | P27: =MMS!W92 -> 11297.48 | Q27: =MMS!W91 -> 438465.0465 | R27: =P27*'5. UD1 Parameters'!$H$14*'5. UD1 Parameters'!$H$13/1000 -> 0.3550636571 | S27: =Q27*'5. UD1 Parameters'!$H$15*'5. UD1 Parameters'!$H$13/1000 -> 6.890165016 | T27: =R27*'5. UD1 Parameters'!$H$16/1000 -> 0.1058089698 | U27: =S27*'5. UD1 Parameters'!$H$16/1000 -> 2.053269175 | V27: ='UD1 CropScenarios'!T27+'UD1 CropScenarios'!U27 -> 2.159078145 | W27: ='UD1 CropScenarios'!O27+'UD1 CropScenarios'!V27 -> 85.42745934 | X27: 11449242.96 | Y27: 2665224 | Z27: 962068.5 | AA27: =((X27*'5. UD1 Parameters'!$H$18)+(Z27*'5. UD1 Parameters'!$H$19))*'5. UD1 Parameters'!$H$24*'5. UD1 Parameters'!$H$21/1000 -> 21.01531137 | AB27: =AA27*'5. UD1 Parameters'!$H$22/1000 -> 6.262562789 | AC27: =((X27+Y27+Z27)*'5. UD1 Parameters'!$H$20*'5. UD1 Parameters'!$H$23*'5. UD1 Parameters'!$H$21)/1000 -> 53.30632182 | AD27: =AC27*'5. UD1 Parameters'!$H$22/1000 -> 15.8852839 | AE27: 22.14784669 | AF27: 109.637431 | AJ27: =INDEX((DirN2OManSoilPol!$U$15:$U$43),MATCH(A27,DirN2OManSoilPol!$A$15:A$43,0)) -> 86.30800111 | AN27: ='6. UD1 Assumptions'!B34 -> 47000 | AO27: ='6. UD1 Assumptions'!F34 -> 0.08 | AP27: 3760 | AQ27: =AP27*'5. UD1 Parameters'!$H$6*'5. UD1 Parameters'!$H$7*'5. UD1 Parameters'!$H$8/1000 -> 65.988 | AR27: =AQ27*'5. UD1 Parameters'!$H$9/1000 -> 1.6497 | AS27: 0.412425 | AT27: 109.225006 | AV27: 53.6151692 | AW27: ='UD1 CropScenarios'!F27*'6. UD1 Assumptions'!K34 -> 9731856.52 | AX27: =AW27*'5. UD1 Parameters'!$H$12*'5. UD1 Parameters'!$H$13/1000 -> 152.9291739 | AY27: =AX27*'5. UD1 Parameters'!$H$16/1000 -> 45.57289382 | AZ27: 45.57289382 | BA27: 8.042275379 | BB27: 102.4756974 | BD27: ='6. UD1 Assumptions'!Q34*'6. UD1 Assumptions'!$O$15*'6. UD1 Assumptions'!S34 -> 13.99262982 | BE27: ='6. UD1 Assumptions'!Q34*'6. UD1 Assumptions'!$O$16*'6. UD1 Assumptions'!S34 -> 46.64209941 | BF27: ='6. UD1 Assumptions'!Q34*'6. UD1 Assumptions'!$O$17*'6. UD1 Assumptions'!S34 -> 11.19410386 | BG27: 71.82883309 | BH27: ='UD1 CropScenarios'!BG27*'5. UD1 Parameters'!$H$27 -> 35.91441655 | BI27: =BH27*'5. UD1 Parameters'!$H$28*1000000 -> 628502.2896 | BJ27: =BI27*'5. UD1 Parameters'!$H$12*'5. UD1 Parameters'!$H$13*'5. UD1 Parameters'!$H$16/1000000 -> 2.943186436 | BK27: 2.943186436 | BL27: 105.4188839 | BN27: 9731856.52 | BO27: ='UD1 CropScenarios'!Y27 -> 2665224 | BP27: 1590570.79 | BQ27: =(((BN27*'5. UD1 Parameters'!$H$18)+(BP27*'5. UD1 Parameters'!$H$19))*('5. UD1 Parameters'!$H$24*'5. UD1 Parameters'!$H$21))/1000 -> 20.29185416 | BR27: =BQ27*'5. UD1 Parameters'!$H$22/1000 -> 6.046972538 | BS27: =((BN27+BO27+BP27)*'5. UD1 Parameters'!$H$20*'5. UD1 Parameters'!$H$23*'5. UD1 Parameters'!$H$21)/1000 -> 49.45633856 | BT27: =BS27*'5. UD1 Parameters'!$H$22/1000 -> 14.73798889 | BU27: 20.78496143 | BV27: 1.362885263 | BW27: 104.0559986 | BY27: 103.6435736 | BZ27: 5.993857434 | CD27: 109.637431 | CE27: 109.225006 | CF27: 102.4756974 | CG27: 104.0559986 | CH27: 103.6435736 | CJ27: 109.637431 | CK27: 109.225006 | CL27: 102.4756974 | CM27: 104.0559986 | CN27: 103.6435736 | CP27: 0 | CQ27: 0 | CR27: 0 | CS27: 0 | CT27: 0
A28: 2026 | B28: ='6. UD1 Assumptions'!C35 -> 46500 | C28: =B28*'5. UD1 Parameters'!$H$10 -> 4650 | D28: =C28*'5. UD1 Parameters'!$H$6*'5. UD1 Parameters'!$H$7*'5. UD1 Parameters'!$H$8/1000 -> 81.6075 | E28: =D28*'5. UD1 Parameters'!$H$9/1000 -> 2.0401875 | F28: 11449242.96 | G28: 2665224 | H28: =H27+($H$32-$H$27)/5 -> 3675618.462 | I28: ='UD1 CropScenarios'!F28*'5. UD1 Parameters'!$H$12*'5. UD1 Parameters'!$H$13/1000 -> 179.9166752 | J28: =G28*'5. UD1 Parameters'!$H$12*'5. UD1 Parameters'!$H$13/1000 -> 41.88209143 | K28: =H28*'5. UD1 Parameters'!$H$12*'5. UD1 Parameters'!$H$13/1000 -> 57.7597187 | L28: =I28*'5. UD1 Parameters'!$H$16/1000 -> 53.6151692 | M28: =J28*'5. UD1 Parameters'!$H$16/1000 -> 12.48086325 | N28: =K28*'5. UD1 Parameters'!$H$16/1000 -> 17.21239617 | O28: =SUM('UD1 CropScenarios'!L28:N28) -> 83.30842861 | P28: =P27+($P$32-$P$27)/5 -> 11233.532 | Q28: =Q27+($Q$32-$Q$27)/5 -> 439746.1965 | R28: =P28*'5. UD1 Parameters'!$H$14*'5. UD1 Parameters'!$H$13/1000 -> 0.3530538629 | S28: =Q28*'5. UD1 Parameters'!$H$15*'5. UD1 Parameters'!$H$13/1000 -> 6.910297374 | T28: =R28*'5. UD1 Parameters'!$H$16/1000 -> 0.1052100511 | U28: =S28*'5. UD1 Parameters'!$H$16/1000 -> 2.059268617 | V28: ='UD1 CropScenarios'!T28+'UD1 CropScenarios'!U28 -> 2.164478668 | W28: ='UD1 CropScenarios'!O28+'UD1 CropScenarios'!V28 -> 85.47290728 | X28: 11449242.96 | Y28: 2665224 | Z28: 962068.5 | AA28: =((X28*'5. UD1 Parameters'!$H$18)+(Z28*'5. UD1 Parameters'!$H$19))*'5. UD1 Parameters'!$H$24*'5. UD1 Parameters'!$H$21/1000 -> 21.01531137 | AB28: =AA28*'5. UD1 Parameters'!$H$22/1000 -> 6.262562789 | AC28: =((X28+Y28+Z28)*'5. UD1 Parameters'!$H$20*'5. UD1 Parameters'!$H$23*'5. UD1 Parameters'!$H$21)/1000 -> 53.30632182 | AD28: =AC28*'5. UD1 Parameters'!$H$22/1000 -> 15.8852839 | AE28: 22.14784669 | AF28: 109.6609415 | AJ28: =INDEX((DirN2OManSoilPol!$U$15:$U$43),MATCH(A28,DirN2OManSoilPol!$A$15:A$43,0)) -> 86.42392725 | AN28: ='6. UD1 Assumptions'!B35 -> 46500 | AO28: ='6. UD1 Assumptions'!F35 -> 0.08 | AP28: 3720 | AQ28: =AP28*'5. UD1 Parameters'!$H$6*'5. UD1 Parameters'!$H$7*'5. UD1 Parameters'!$H$8/1000 -> 65.286 | AR28: =AQ28*'5. UD1 Parameters'!$H$9/1000 -> 1.63215 | AS28: 0.4080375 | AT28: 109.252904 | AV28: 53.6151692 | AW28: ='UD1 CropScenarios'!F28*'6. UD1 Assumptions'!K35 -> 9502871.66 | AX28: =AW28*'5. UD1 Parameters'!$H$12*'5. UD1 Parameters'!$H$13/1000 -> 149.3308404 | AY28: =AX28*'5. UD1 Parameters'!$H$16/1000 -> 44.50059043 | AZ28: 44.50059043 | BA28: 9.114578763 | BB28: 101.4973827 | BD28: ='6. UD1 Assumptions'!Q35*'6. UD1 Assumptions'!$O$15*'6. UD1 Assumptions'!S35 -> 15.8583138 | BE28: ='6. UD1 Assumptions'!Q35*'6. UD1 Assumptions'!$O$16*'6. UD1 Assumptions'!S35 -> 52.861046 | BF28: ='6. UD1 Assumptions'!Q35*'6. UD1 Assumptions'!$O$17*'6. UD1 Assumptions'!S35 -> 12.68665104 | BG28: 81.40601084 | BH28: ='UD1 CropScenarios'!BG28*'5. UD1 Parameters'!$H$27 -> 40.70300542 | BI28: =BH28*'5. UD1 Parameters'!$H$28*1000000 -> 712302.5948 | BJ28: =BI28*'5. UD1 Parameters'!$H$12*'5. UD1 Parameters'!$H$13*'5. UD1 Parameters'!$H$16/1000000 -> 3.335611294 | BK28: 3.335611294 | BL28: 104.832994 | BN28: 9502871.66 | BO28: ='UD1 CropScenarios'!Y28 -> 2665224 | BP28: 1674371.095 | BQ28: =(((BN28*'5. UD1 Parameters'!$H$18)+(BP28*'5. UD1 Parameters'!$H$19))*('5. UD1 Parameters'!$H$24*'5. UD1 Parameters'!$H$21))/1000 -> 20.19539319 | BR28: =BQ28*'5. UD1 Parameters'!$H$22/1000 -> 6.018227172 | BS28: =((BN28+BO28+BP28)*'5. UD1 Parameters'!$H$20*'5. UD1 Parameters'!$H$23*'5. UD1 Parameters'!$H$21)/1000 -> 48.94300746 | BT28: =BS28*'5. UD1 Parameters'!$H$22/1000 -> 14.58501622 | BU28: 20.60324339 | BV28: 1.544603298 | BW28: 103.2883907 | BY28: 102.8803532 | BZ28: 6.780588296 | CD28: 109.6609415 | CE28: 109.252904 | CF28: 101.4973827 | CG28: 103.2883907 | CH28: 102.8803532 | CJ28: 109.6609415 | CK28: 109.252904 | CL28: 101.4973827 | CM28: 103.2883907 | CN28: 102.8803532 | CP28: 0 | CQ28: 0 | CR28: 0 | CS28: 0 | CT28: 0
A29: 2027 | B29: ='6. UD1 Assumptions'!C36 -> 46000 | C29: =B29*'5. UD1 Parameters'!$H$10 -> 4600 | D29: =C29*'5. UD1 Parameters'!$H$6*'5. UD1 Parameters'!$H$7*'5. UD1 Parameters'!$H$8/1000 -> 80.73 | E29: =D29*'5. UD1 Parameters'!$H$9/1000 -> 2.01825 | F29: 11449242.96 | G29: 2665224 | H29: =H28+($H$32-$H$27)/5 -> 3684170.383 | I29: ='UD1 CropScenarios'!F29*'5. UD1 Parameters'!$H$12*'5. UD1 Parameters'!$H$13/1000 -> 179.9166752 | J29: =G29*'5. UD1 Parameters'!$H$12*'5. UD1 Parameters'!$H$13/1000 -> 41.88209143 | K29: =H29*'5. UD1 Parameters'!$H$12*'5. UD1 Parameters'!$H$13/1000 -> 57.89410601 | L29: =I29*'5. UD1 Parameters'!$H$16/1000 -> 53.6151692 | M29: =J29*'5. UD1 Parameters'!$H$16/1000 -> 12.48086325 | N29: =K29*'5. UD1 Parameters'!$H$16/1000 -> 17.25244359 | O29: =SUM('UD1 CropScenarios'!L29:N29) -> 83.34847603 | P29: =P28+($P$32-$P$27)/5 -> 11169.584 | Q29: =Q28+($Q$32-$Q$27)/5 -> 441027.3465 | R29: =P29*'5. UD1 Parameters'!$H$14*'5. UD1 Parameters'!$H$13/1000 -> 0.3510440686 | S29: =Q29*'5. UD1 Parameters'!$H$15*'5. UD1 Parameters'!$H$13/1000 -> 6.930429731 | T29: =R29*'5. UD1 Parameters'!$H$16/1000 -> 0.1046111324 | U29: =S29*'5. UD1 Parameters'!$H$16/1000 -> 2.06526806 | V29: ='UD1 CropScenarios'!T29+'UD1 CropScenarios'!U29 -> 2.169879192 | W29: ='UD1 CropScenarios'!O29+'UD1 CropScenarios'!V29 -> 85.51835523 | X29: 11449242.96 | Y29: 2665224 | Z29: 962068.5 | AA29: =((X29*'5. UD1 Parameters'!$H$18)+(Z29*'5. UD1 Parameters'!$H$19))*'5. UD1 Parameters'!$H$24*'5. UD1 Parameters'!$H$21/1000 -> 21.01531137 | AB29: =AA29*'5. UD1 Parameters'!$H$22/1000 -> 6.262562789 | AC29: =((X29+Y29+Z29)*'5. UD1 Parameters'!$H$20*'5. UD1 Parameters'!$H$23*'5. UD1 Parameters'!$H$21)/1000 -> 53.30632182 | AD29: =AC29*'5. UD1 Parameters'!$H$22/1000 -> 15.8852839 | AE29: 22.14784669 | AF29: 109.6844519 | AJ29: =INDEX((DirN2OManSoilPol!$U$15:$U$43),MATCH(A29,DirN2OManSoilPol!$A$15:A$43,0)) -> 86.5398534 | AN29: ='6. UD1 Assumptions'!B36 -> 46000 | AO29: ='6. UD1 Assumptions'!F36 -> 0.08 | AP29: 3680 | AQ29: =AP29*'5. UD1 Parameters'!$H$6*'5. UD1 Parameters'!$H$7*'5. UD1 Parameters'!$H$8/1000 -> 64.584 | AR29: =AQ29*'5. UD1 Parameters'!$H$9/1000 -> 1.6146 | AS29: 0.40365 | AT29: 109.2808019 | AV29: 53.6151692 | AW29: ='UD1 CropScenarios'!F29*'6. UD1 Assumptions'!K36 -> 9273886.801 | AX29: =AW29*'5. UD1 Parameters'!$H$12*'5. UD1 Parameters'!$H$13/1000 -> 145.7325069 | AY29: =AX29*'5. UD1 Parameters'!$H$16/1000 -> 43.42828705 | AZ29: 43.42828705 | BA29: 10.18688215 | BB29: 100.5190679 | BD29: ='6. UD1 Assumptions'!Q36*'6. UD1 Assumptions'!$O$15*'6. UD1 Assumptions'!S36 -> 19.41057609 | BE29: ='6. UD1 Assumptions'!Q36*'6. UD1 Assumptions'!$O$16*'6. UD1 Assumptions'!S36 -> 64.7019203 | BF29: ='6. UD1 Assumptions'!Q36*'6. UD1 Assumptions'!$O$17*'6. UD1 Assumptions'!S36 -> 15.52846087 | BG29: 99.64095727 | BH29: ='UD1 CropScenarios'!BG29*'5. UD1 Parameters'!$H$27 -> 49.82047863 | BI29: =BH29*'5. UD1 Parameters'!$H$28*1000000 -> 871858.3761 | BJ29: =BI29*'5. UD1 Parameters'!$H$12*'5. UD1 Parameters'!$H$13*'5. UD1 Parameters'!$H$16/1000000 -> 4.082788224 | BK29: 4.082788224 | BL29: 104.6018562 | BN29: 9273886.801 | BO29: ='UD1 CropScenarios'!Y29 -> 2665224 | BP29: 1833926.876 | BQ29: =(((BN29*'5. UD1 Parameters'!$H$18)+(BP29*'5. UD1 Parameters'!$H$19))*('5. UD1 Parameters'!$H$24*'5. UD1 Parameters'!$H$21))/1000 -> 20.33702087 | BR29: =BQ29*'5. UD1 Parameters'!$H$22/1000 -> 6.060432219 | BS29: =((BN29+BO29+BP29)*'5. UD1 Parameters'!$H$20*'5. UD1 Parameters'!$H$23*'5. UD1 Parameters'!$H$21)/1000 -> 48.69752607 | BT29: =BS29*'5. UD1 Parameters'!$H$22/1000 -> 14.51186277 | BU29: 20.57229499 | BV29: 1.575551703 | BW29: 103.0263045 | BY29: 102.6226545 | BZ29: 7.061797455 | CD29: 109.6844519 | CE29: 109.2808019 | CF29: 100.5190679 | CG29: 103.0263045 | CH29: 102.6226545 | CJ29: 109.6844519 | CK29: 109.2808019 | CL29: 100.5190679 | CM29: 103.0263045 | CN29: 102.6226545 | CP29: 0 | CQ29: 0 | CR29: 0 | CS29: 0 | CT29: 0
A30: 2028 | B30: ='6. UD1 Assumptions'!C37 -> 45500 | C30: =B30*'5. UD1 Parameters'!$H$10 -> 4550 | D30: =C30*'5. UD1 Parameters'!$H$6*'5. UD1 Parameters'!$H$7*'5. UD1 Parameters'!$H$8/1000 -> 79.8525 | E30: =D30*'5. UD1 Parameters'!$H$9/1000 -> 1.9963125 | F30: 11449242.96 | G30: 2665224 | H30: =H29+($H$32-$H$27)/5 -> 3692722.303 | I30: ='UD1 CropScenarios'!F30*'5. UD1 Parameters'!$H$12*'5. UD1 Parameters'!$H$13/1000 -> 179.9166752 | J30: =G30*'5. UD1 Parameters'!$H$12*'5. UD1 Parameters'!$H$13/1000 -> 41.88209143 | K30: =H30*'5. UD1 Parameters'!$H$12*'5. UD1 Parameters'!$H$13/1000 -> 58.02849333 | L30: =I30*'5. UD1 Parameters'!$H$16/1000 -> 53.6151692 | M30: =J30*'5. UD1 Parameters'!$H$16/1000 -> 12.48086325 | N30: =K30*'5. UD1 Parameters'!$H$16/1000 -> 17.29249101 | O30: =SUM('UD1 CropScenarios'!L30:N30) -> 83.38852345 | P30: =P29+($P$32-$P$27)/5 -> 11105.636 | Q30: =Q29+($Q$32-$Q$27)/5 -> 442308.4965 | R30: =P30*'5. UD1 Parameters'!$H$14*'5. UD1 Parameters'!$H$13/1000 -> 0.3490342743 | S30: =Q30*'5. UD1 Parameters'!$H$15*'5. UD1 Parameters'!$H$13/1000 -> 6.950562088 | T30: =R30*'5. UD1 Parameters'!$H$16/1000 -> 0.1040122137 | U30: =S30*'5. UD1 Parameters'!$H$16/1000 -> 2.071267502 | V30: ='UD1 CropScenarios'!T30+'UD1 CropScenarios'!U30 -> 2.175279716 | W30: ='UD1 CropScenarios'!O30+'UD1 CropScenarios'!V30 -> 85.56380317 | X30: 11449242.96 | Y30: 2665224 | Z30: 962068.5 | AA30: =((X30*'5. UD1 Parameters'!$H$18)+(Z30*'5. UD1 Parameters'!$H$19))*'5. UD1 Parameters'!$H$24*'5. UD1 Parameters'!$H$21/1000 -> 21.01531137 | AB30: =AA30*'5. UD1 Parameters'!$H$22/1000 -> 6.262562789 | AC30: =((X30+Y30+Z30)*'5. UD1 Parameters'!$H$20*'5. UD1 Parameters'!$H$23*'5. UD1 Parameters'!$H$21)/1000 -> 53.30632182 | AD30: =AC30*'5. UD1 Parameters'!$H$22/1000 -> 15.8852839 | AE30: 22.14784669 | AF30: 109.7079624 | AJ30: =INDEX((DirN2OManSoilPol!$U$15:$U$43),MATCH(A30,DirN2OManSoilPol!$A$15:A$43,0)) -> 86.65577954 | AN30: ='6. UD1 Assumptions'!B37 -> 45500 | AO30: ='6. UD1 Assumptions'!F37 -> 0.08 | AP30: 3640 | AQ30: =AP30*'5. UD1 Parameters'!$H$6*'5. UD1 Parameters'!$H$7*'5. UD1 Parameters'!$H$8/1000 -> 63.882 | AR30: =AQ30*'5. UD1 Parameters'!$H$9/1000 -> 1.59705 | AS30: 0.3992625 | AT30: 109.3086999 | AV30: 53.6151692 | AW30: ='UD1 CropScenarios'!F30*'6. UD1 Assumptions'!K37 -> 9044901.942 | AX30: =AW30*'5. UD1 Parameters'!$H$12*'5. UD1 Parameters'!$H$13/1000 -> 142.1341734 | AY30: =AX30*'5. UD1 Parameters'!$H$16/1000 -> 42.35598366 | AZ30: 42.35598366 | BA30: 11.25918553 | BB30: 99.5407532 | BD30: ='6. UD1 Assumptions'!Q37*'6. UD1 Assumptions'!$O$15*'6. UD1 Assumptions'!S37 -> 21.44868658 | BE30: ='6. UD1 Assumptions'!Q37*'6. UD1 Assumptions'!$O$16*'6. UD1 Assumptions'!S37 -> 71.49562194 | BF30: ='6. UD1 Assumptions'!Q37*'6. UD1 Assumptions'!$O$17*'6. UD1 Assumptions'!S37 -> 17.15894926 | BG30: 110.1032578 | BH30: ='UD1 CropScenarios'!BG30*'5. UD1 Parameters'!$H$27 -> 55.05162889 | BI30: =BH30*'5. UD1 Parameters'!$H$28*1000000 -> 963403.5056 | BJ30: =BI30*'5. UD1 Parameters'!$H$12*'5. UD1 Parameters'!$H$13*'5. UD1 Parameters'!$H$16/1000000 -> 4.511480988 | BK30: 4.511480988 | BL30: 104.0522342 | BN30: 9044901.942 | BO30: ='UD1 CropScenarios'!Y30 -> 2665224 | BP30: 1925472.006 | BQ30: =(((BN30*'5. UD1 Parameters'!$H$18)+(BP30*'5. UD1 Parameters'!$H$19))*('5. UD1 Parameters'!$H$24*'5. UD1 Parameters'!$H$21))/1000 -> 20.26490078 | BR30: =BQ30*'5. UD1 Parameters'!$H$22/1000 -> 6.038940433 | BS30: =((BN30+BO30+BP30)*'5. UD1 Parameters'!$H$20*'5. UD1 Parameters'!$H$23*'5. UD1 Parameters'!$H$21)/1000 -> 48.21157846 | BT30: =BS30*'5. UD1 Parameters'!$H$22/1000 -> 14.36705038 | BU30: 20.40599081 | BV30: 1.741855878 | BW30: 102.3103783 | BY30: 101.9111158 | BZ30: 7.796846552 | CD30: 109.7079624 | CE30: 109.3086999 | CF30: 99.5407532 | CG30: 102.3103783 | CH30: 101.9111158 | CJ30: 109.7079624 | CK30: 109.3086999 | CL30: 99.5407532 | CM30: 102.3103783 | CN30: 101.9111158 | CP30: 0 | CQ30: 0 | CR30: 0 | CS30: 0 | CT30: 0
A31: 2029 | B31: ='6. UD1 Assumptions'!C38 -> 45250 | C31: =B31*'5. UD1 Parameters'!$H$10 -> 4525 | D31: =C31*'5. UD1 Parameters'!$H$6*'5. UD1 Parameters'!$H$7*'5. UD1 Parameters'!$H$8/1000 -> 79.41375 | E31: =D31*'5. UD1 Parameters'!$H$9/1000 -> 1.98534375 | F31: 11449242.96 | G31: 2665224 | H31: =H30+($H$32-$H$27)/5 -> 3701274.223 | I31: ='UD1 CropScenarios'!F31*'5. UD1 Parameters'!$H$12*'5. UD1 Parameters'!$H$13/1000 -> 179.9166752 | J31: =G31*'5. UD1 Parameters'!$H$12*'5. UD1 Parameters'!$H$13/1000 -> 41.88209143 | K31: =H31*'5. UD1 Parameters'!$H$12*'5. UD1 Parameters'!$H$13/1000 -> 58.16288064 | L31: =I31*'5. UD1 Parameters'!$H$16/1000 -> 53.6151692 | M31: =J31*'5. UD1 Parameters'!$H$16/1000 -> 12.48086325 | N31: =K31*'5. UD1 Parameters'!$H$16/1000 -> 17.33253843 | O31: =SUM('UD1 CropScenarios'!L31:N31) -> 83.42857087 | P31: =P30+($P$32-$P$27)/5 -> 11041.688 | Q31: =Q30+($Q$32-$Q$27)/5 -> 443589.6465 | R31: =P31*'5. UD1 Parameters'!$H$14*'5. UD1 Parameters'!$H$13/1000 -> 0.34702448 | S31: =Q31*'5. UD1 Parameters'!$H$15*'5. UD1 Parameters'!$H$13/1000 -> 6.970694445 | T31: =R31*'5. UD1 Parameters'!$H$16/1000 -> 0.103413295 | U31: =S31*'5. UD1 Parameters'!$H$16/1000 -> 2.077266945 | V31: ='UD1 CropScenarios'!T31+'UD1 CropScenarios'!U31 -> 2.18068024 | W31: ='UD1 CropScenarios'!O31+'UD1 CropScenarios'!V31 -> 85.60925111 | X31: 11449242.96 | Y31: 2665224 | Z31: 962068.5 | AA31: =((X31*'5. UD1 Parameters'!$H$18)+(Z31*'5. UD1 Parameters'!$H$19))*'5. UD1 Parameters'!$H$24*'5. UD1 Parameters'!$H$21/1000 -> 21.01531137 | AB31: =AA31*'5. UD1 Parameters'!$H$22/1000 -> 6.262562789 | AC31: =((X31+Y31+Z31)*'5. UD1 Parameters'!$H$20*'5. UD1 Parameters'!$H$23*'5. UD1 Parameters'!$H$21)/1000 -> 53.30632182 | AD31: =AC31*'5. UD1 Parameters'!$H$22/1000 -> 15.8852839 | AE31: 22.14784669 | AF31: 109.7424416 | AJ31: =INDEX((DirN2OManSoilPol!$U$15:$U$43),MATCH(A31,DirN2OManSoilPol!$A$15:A$43,0)) -> 86.77170568 | AN31: ='6. UD1 Assumptions'!B38 -> 45250 | AO31: ='6. UD1 Assumptions'!F38 -> 0.08 | AP31: 3620 | AQ31: =AP31*'5. UD1 Parameters'!$H$6*'5. UD1 Parameters'!$H$7*'5. UD1 Parameters'!$H$8/1000 -> 63.531 | AR31: =AQ31*'5. UD1 Parameters'!$H$9/1000 -> 1.588275 | AS31: 0.39706875 | AT31: 109.3453728 | AV31: 53.6151692 | AW31: ='UD1 CropScenarios'!F31*'6. UD1 Assumptions'!K38 -> 8815917.083 | AX31: =AW31*'5. UD1 Parameters'!$H$12*'5. UD1 Parameters'!$H$13/1000 -> 138.5358399 | AY31: =AX31*'5. UD1 Parameters'!$H$16/1000 -> 41.28368028 | AZ31: 41.28368028 | BA31: 12.33148892 | BB31: 98.57340721 | BD31: ='6. UD1 Assumptions'!Q38*'6. UD1 Assumptions'!$O$15*'6. UD1 Assumptions'!S38 -> 23.56055726 | BE31: ='6. UD1 Assumptions'!Q38*'6. UD1 Assumptions'!$O$16*'6. UD1 Assumptions'!S38 -> 78.53519086 | BF31: ='6. UD1 Assumptions'!Q38*'6. UD1 Assumptions'!$O$17*'6. UD1 Assumptions'!S38 -> 18.84844581 | BG31: 120.9441939 | BH31: ='UD1 CropScenarios'!BG31*'5. UD1 Parameters'!$H$27 -> 60.47209697 | BI31: =BH31*'5. UD1 Parameters'!$H$28*1000000 -> 1058261.697 | BJ31: =BI31*'5. UD1 Parameters'!$H$12*'5. UD1 Parameters'!$H$13*'5. UD1 Parameters'!$H$16/1000000 -> 4.955688346 | BK31: 4.955688346 | BL31: 103.5290956 | BN31: 8815917.083 | BO31: ='UD1 CropScenarios'!Y31 -> 2665224 | BP31: 2020330.197 | BQ31: =(((BN31*'5. UD1 Parameters'!$H$18)+(BP31*'5. UD1 Parameters'!$H$19))*('5. UD1 Parameters'!$H$24*'5. UD1 Parameters'!$H$21))/1000 -> 20.20319318 | BR31: =BQ31*'5. UD1 Parameters'!$H$22/1000 -> 6.020551567 | BS31: =((BN31+BO31+BP31)*'5. UD1 Parameters'!$H$20*'5. UD1 Parameters'!$H$23*'5. UD1 Parameters'!$H$21)/1000 -> 47.73734488 | BT31: =BS31*'5. UD1 Parameters'!$H$22/1000 -> 14.22572877 | BU31: 20.24628034 | BV31: 1.90156635 | BW31: 101.6275292 | BY31: 101.2304605 | BZ31: 8.5119811 | CD31: 109.7424416 | CE31: 109.3453728 | CF31: 98.57340721 | CG31: 101.6275292 | CH31: 101.2304605 | CJ31: 109.7424416 | CK31: 109.3453728 | CL31: 98.57340721 | CM31: 101.6275292 | CN31: 101.2304605 | CP31: 0 | CQ31: 0 | CR31: 0 | CS31: 0 | CT31: 0
A32: 2030 | B32: ='6. UD1 Assumptions'!C39 -> 45000 | C32: =B32*'5. UD1 Parameters'!$H$10 -> 4500 | D32: =C32*'5. UD1 Parameters'!$H$6*'5. UD1 Parameters'!$H$7*'5. UD1 Parameters'!$H$8/1000 -> 78.975 | E32: =D32*'5. UD1 Parameters'!$H$9/1000 -> 1.974375 | F32: 11449242.96 | G32: 2665224 | H32: =MMS!X90 -> 3709826.143 | I32: ='UD1 CropScenarios'!F32*'5. UD1 Parameters'!$H$12*'5. UD1 Parameters'!$H$13/1000 -> 179.9166752 | J32: =G32*'5. UD1 Parameters'!$H$12*'5. UD1 Parameters'!$H$13/1000 -> 41.88209143 | K32: =H32*'5. UD1 Parameters'!$H$12*'5. UD1 Parameters'!$H$13/1000 -> 58.29726796 | L32: =I32*'5. UD1 Parameters'!$H$16/1000 -> 53.6151692 | M32: =J32*'5. UD1 Parameters'!$H$16/1000 -> 12.48086325 | N32: =K32*'5. UD1 Parameters'!$H$16/1000 -> 17.37258585 | O32: =SUM('UD1 CropScenarios'!L32:N32) -> 83.46861829 | P32: =MMS!X92 -> 10977.74 | Q32: =MMS!X91 -> 444870.7965 | R32: =P32*'5. UD1 Parameters'!$H$14*'5. UD1 Parameters'!$H$13/1000 -> 0.3450146857 | S32: =Q32*'5. UD1 Parameters'!$H$15*'5. UD1 Parameters'!$H$13/1000 -> 6.990826802 | T32: =R32*'5. UD1 Parameters'!$H$16/1000 -> 0.1028143763 | U32: =S32*'5. UD1 Parameters'!$H$16/1000 -> 2.083266387 | V32: ='UD1 CropScenarios'!T32+'UD1 CropScenarios'!U32 -> 2.186080763 | W32: ='UD1 CropScenarios'!O32+'UD1 CropScenarios'!V32 -> 85.65469906 | X32: 11449242.96 | Y32: 2665224 | Z32: 962068.5 | AA32: =((X32*'5. UD1 Parameters'!$H$18)+(Z32*'5. UD1 Parameters'!$H$19))*'5. UD1 Parameters'!$H$24*'5. UD1 Parameters'!$H$21/1000 -> 21.01531137 | AB32: =AA32*'5. UD1 Parameters'!$H$22/1000 -> 6.262562789 | AC32: =((X32+Y32+Z32)*'5. UD1 Parameters'!$H$20*'5. UD1 Parameters'!$H$23*'5. UD1 Parameters'!$H$21)/1000 -> 53.30632182 | AD32: =AC32*'5. UD1 Parameters'!$H$22/1000 -> 15.8852839 | AE32: 22.14784669 | AF32: 109.7769207 | AJ32: =INDEX((DirN2OManSoilPol!$U$15:$U$43),MATCH(A32,DirN2OManSoilPol!$A$15:A$43,0)) -> 86.88763183 | AN32: ='6. UD1 Assumptions'!B39 -> 45000 | AO32: ='6. UD1 Assumptions'!F39 -> 0.08 | AP32: 3600 | AQ32: =AP32*'5. UD1 Parameters'!$H$6*'5. UD1 Parameters'!$H$7*'5. UD1 Parameters'!$H$8/1000 -> 63.18 | AR32: =AQ32*'5. UD1 Parameters'!$H$9/1000 -> 1.5795 | AS32: 0.394875 | AT32: 109.3820457 | AV32: 53.6151692 | AW32: ='UD1 CropScenarios'!F32*'6. UD1 Assumptions'!K39 -> 8586932.223 | AX32: =AW32*'5. UD1 Parameters'!$H$12*'5. UD1 Parameters'!$H$13/1000 -> 134.9375064 | AY32: =AX32*'5. UD1 Parameters'!$H$16/1000 -> 40.2113769 | AZ32: 40.2113769 | BA32: 13.4037923 | BB32: 97.60606122 | BD32: ='6. UD1 Assumptions'!Q39*'6. UD1 Assumptions'!$O$15*'6. UD1 Assumptions'!S39 -> 25.74832329 | BE32: ='6. UD1 Assumptions'!Q39*'6. UD1 Assumptions'!$O$16*'6. UD1 Assumptions'!S39 -> 85.8277443 | BF32: ='6. UD1 Assumptions'!Q39*'6. UD1 Assumptions'!$O$17*'6. UD1 Assumptions'!S39 -> 20.59865863 | BG32: 132.1747262 | BH32: ='UD1 CropScenarios'!BG32*'5. UD1 Parameters'!$H$27 -> 66.08736311 | BI32: =BH32*'5. UD1 Parameters'!$H$28*1000000 -> 1156528.854 | BJ32: =BI32*'5. UD1 Parameters'!$H$12*'5. UD1 Parameters'!$H$13*'5. UD1 Parameters'!$H$16/1000000 -> 5.415859407 | BK32: 5.415859407 | BL32: 103.0219206 | BN32: 8586932.223 | BO32: ='UD1 CropScenarios'!Y32 -> 2665224 | BP32: 2118597.354 | BQ32: =(((BN32*'5. UD1 Parameters'!$H$18)+(BP32*'5. UD1 Parameters'!$H$19))*('5. UD1 Parameters'!$H$24*'5. UD1 Parameters'!$H$21))/1000 -> 20.15219946 | BR32: =BQ32*'5. UD1 Parameters'!$H$22/1000 -> 6.005355441 | BS32: =((BN32+BO32+BP32)*'5. UD1 Parameters'!$H$20*'5. UD1 Parameters'!$H$23*'5. UD1 Parameters'!$H$21)/1000 -> 47.27516444 | BT32: =BS32*'5. UD1 Parameters'!$H$22/1000 -> 14.087999 | BU32: 20.09335444 | BV32: 2.054492249 | BW32: 100.9674284 | BY32: 100.5725534 | BZ32: 9.204367373 | CD32: 109.7769207 | CE32: 109.3820457 | CF32: 97.60606122 | CG32: 100.9674284 | CH32: 100.5725534 | CJ32: 109.7769207 | CK32: 109.3820457 | CL32: 97.60606122 | CM32: 100.9674284 | CN32: 100.5725534 | CP32: 0 | CQ32: 0 | CR32: 0 | CS32: 0 | CT32: 0
A33: 2035 | B33: ='6. UD1 Assumptions'!C40 -> 44000 | C33: =B33*'5. UD1 Parameters'!$H$10 -> 4400 | D33: =C33*'5. UD1 Parameters'!$H$6*'5. UD1 Parameters'!$H$7*'5. UD1 Parameters'!$H$8/1000 -> 77.22 | E33: =D33*'5. UD1 Parameters'!$H$9/1000 -> 1.9305 | F33: 11449242.96 | G33: 2665224 | H33: =MMS!Y90 -> 3816834.432 | I33: ='UD1 CropScenarios'!F33*'5. UD1 Parameters'!$H$12*'5. UD1 Parameters'!$H$13/1000 -> 179.9166752 | J33: =G33*'5. UD1 Parameters'!$H$12*'5. UD1 Parameters'!$H$13/1000 -> 41.88209143 | K33: =H33*'5. UD1 Parameters'!$H$12*'5. UD1 Parameters'!$H$13/1000 -> 59.97882678 | L33: =I33*'5. UD1 Parameters'!$H$16/1000 -> 53.6151692 | M33: =J33*'5. UD1 Parameters'!$H$16/1000 -> 12.48086325 | N33: =K33*'5. UD1 Parameters'!$H$16/1000 -> 17.87369038 | O33: =SUM('UD1 CropScenarios'!L33:N33) -> 83.96972282 | P33: =MMS!Y92 -> 10977.74 | Q33: =MMS!Y91 -> 447433.0965 | R33: =P33*'5. UD1 Parameters'!$H$14*'5. UD1 Parameters'!$H$13/1000 -> 0.3450146857 | S33: =Q33*'5. UD1 Parameters'!$H$15*'5. UD1 Parameters'!$H$13/1000 -> 7.031091516 | T33: =R33*'5. UD1 Parameters'!$H$16/1000 -> 0.1028143763 | U33: =S33*'5. UD1 Parameters'!$H$16/1000 -> 2.095265272 | V33: ='UD1 CropScenarios'!T33+'UD1 CropScenarios'!U33 -> 2.198079648 | W33: ='UD1 CropScenarios'!O33+'UD1 CropScenarios'!V33 -> 86.16780247 | X33: 11449242.96 | Y33: 2665224 | Z33: 962068.5 | AA33: =((X33*'5. UD1 Parameters'!$H$18)+(Z33*'5. UD1 Parameters'!$H$19))*'5. UD1 Parameters'!$H$24*'5. UD1 Parameters'!$H$21/1000 -> 21.01531137 | AB33: =AA33*'5. UD1 Parameters'!$H$22/1000 -> 6.262562789 | AC33: =((X33+Y33+Z33)*'5. UD1 Parameters'!$H$20*'5. UD1 Parameters'!$H$23*'5. UD1 Parameters'!$H$21)/1000 -> 53.30632182 | AD33: =AC33*'5. UD1 Parameters'!$H$22/1000 -> 15.8852839 | AE33: 22.14784669 | AF33: 110.2461492 | AJ33: =INDEX((DirN2OManSoilPol!$U$15:$U$43),MATCH(A33,DirN2OManSoilPol!$A$15:A$43,0)) -> 87.8445016 | AN33: ='6. UD1 Assumptions'!B40 -> 44000 | AO33: ='6. UD1 Assumptions'!F40 -> 0.07 | AP33: 3080 | AQ33: =AP33*'5. UD1 Parameters'!$H$6*'5. UD1 Parameters'!$H$7*'5. UD1 Parameters'!$H$8/1000 -> 54.054 | AR33: =AQ33*'5. UD1 Parameters'!$H$9/1000 -> 1.35135 | AS33: 0.57915 | AT33: 109.6669992 | AV33: 53.6151692 | AW33: ='UD1 CropScenarios'!F33*'6. UD1 Assumptions'!K40 -> 8014470.075 | AX33: =AW33*'5. UD1 Parameters'!$H$12*'5. UD1 Parameters'!$H$13/1000 -> 125.9416726 | AY33: =AX33*'5. UD1 Parameters'!$H$16/1000 -> 37.53061844 | AZ33: 37.53061844 | BA33: 16.08455076 | BB33: 95.83829753 | BD33: ='6. UD1 Assumptions'!Q40*'6. UD1 Assumptions'!$O$15*'6. UD1 Assumptions'!S40 -> 33.1662677 | BE33: ='6. UD1 Assumptions'!Q40*'6. UD1 Assumptions'!$O$16*'6. UD1 Assumptions'!S40 -> 110.5542257 | BF33: ='6. UD1 Assumptions'!Q40*'6. UD1 Assumptions'!$O$17*'6. UD1 Assumptions'!S40 -> 26.53301416 | BG33: 170.2535075 | BH33: ='UD1 CropScenarios'!BG33*'5. UD1 Parameters'!$H$27 -> 85.12675377 | BI33: =BH33*'5. UD1 Parameters'!$H$28*1000000 -> 1489718.191 | BJ33: =BI33*'5. UD1 Parameters'!$H$12*'5. UD1 Parameters'!$H$13*'5. UD1 Parameters'!$H$16/1000000 -> 6.976137472 | BK33: 6.976137472 | BL33: 102.814435 | BN33: 8014470.075 | BO33: ='UD1 CropScenarios'!Y33 -> 2665224 | BP33: 2451786.691 | BQ33: =(((BN33*'5. UD1 Parameters'!$H$18)+(BP33*'5. UD1 Parameters'!$H$19))*('5. UD1 Parameters'!$H$24*'5. UD1 Parameters'!$H$21))/1000 -> 20.29978258 | BR33: =BQ33*'5. UD1 Parameters'!$H$22/1000 -> 6.049335207 | BS33: =((BN33+BO33+BP33)*'5. UD1 Parameters'!$H$20*'5. UD1 Parameters'!$H$23*'5. UD1 Parameters'!$H$21)/1000 -> 46.42916414 | BT33: =BS33*'5. UD1 Parameters'!$H$22/1000 -> 13.83589091 | BU33: 19.88522612 | BV33: 2.262620571 | BW33: 100.5518144 | BY33: 99.97266443 | BZ33: 10.27348473 | CD33: 110.2461492 | CE33: 109.6669992 | CF33: 95.83829753 | CG33: 100.5518144 | CH33: 99.97266443 | CJ33: 110.2461492 | CK33: 109.6669992 | CL33: 95.83829753 | CM33: 100.5518144 | CN33: 99.97266443 | CP33: 0 | CQ33: 0 | CR33: 0 | CS33: 0 | CT33: 0
A34: 2040 | B34: ='6. UD1 Assumptions'!C41 -> 43000 | C34: =B34*'5. UD1 Parameters'!$H$10 -> 4300 | D34: =C34*'5. UD1 Parameters'!$H$6*'5. UD1 Parameters'!$H$7*'5. UD1 Parameters'!$H$8/1000 -> 75.465 | E34: =D34*'5. UD1 Parameters'!$H$9/1000 -> 1.886625 | F34: 11449242.96 | G34: 2665224 | H34: =MMS!Z90 -> 3922135.76 | I34: ='UD1 CropScenarios'!F34*'5. UD1 Parameters'!$H$12*'5. UD1 Parameters'!$H$13/1000 -> 179.9166752 | J34: =G34*'5. UD1 Parameters'!$H$12*'5. UD1 Parameters'!$H$13/1000 -> 41.88209143 | K34: =H34*'5. UD1 Parameters'!$H$12*'5. UD1 Parameters'!$H$13/1000 -> 61.63356194 | L34: =I34*'5. UD1 Parameters'!$H$16/1000 -> 53.6151692 | M34: =J34*'5. UD1 Parameters'!$H$16/1000 -> 12.48086325 | N34: =K34*'5. UD1 Parameters'!$H$16/1000 -> 18.36680146 | O34: =SUM('UD1 CropScenarios'!L34:N34) -> 84.4628339 | P34: =MMS!Z92 -> 10977.74 | Q34: =MMS!Z91 -> 451276.5465 | R34: =P34*'5. UD1 Parameters'!$H$14*'5. UD1 Parameters'!$H$13/1000 -> 0.3450146857 | S34: =Q34*'5. UD1 Parameters'!$H$15*'5. UD1 Parameters'!$H$13/1000 -> 7.091488588 | T34: =R34*'5. UD1 Parameters'!$H$16/1000 -> 0.1028143763 | U34: =S34*'5. UD1 Parameters'!$H$16/1000 -> 2.113263599 | V34: ='UD1 CropScenarios'!T34+'UD1 CropScenarios'!U34 -> 2.216077976 | W34: ='UD1 CropScenarios'!O34+'UD1 CropScenarios'!V34 -> 86.67891187 | X34: 11449242.96 | Y34: 2665224 | Z34: 962068.5 | AA34: =((X34*'5. UD1 Parameters'!$H$18)+(Z34*'5. UD1 Parameters'!$H$19))*'5. UD1 Parameters'!$H$24*'5. UD1 Parameters'!$H$21/1000 -> 21.01531137 | AB34: =AA34*'5. UD1 Parameters'!$H$22/1000 -> 6.262562789 | AC34: =((X34+Y34+Z34)*'5. UD1 Parameters'!$H$20*'5. UD1 Parameters'!$H$23*'5. UD1 Parameters'!$H$21)/1000 -> 53.30632182 | AD34: =AC34*'5. UD1 Parameters'!$H$22/1000 -> 15.8852839 | AE34: 22.14784669 | AF34: 110.7133836 | AJ34: =INDEX((DirN2OManSoilPol!$U$15:$U$43),MATCH(A34,DirN2OManSoilPol!$A$15:A$43,0)) -> 88.79337791 | AN34: ='6. UD1 Assumptions'!B41 -> 43000 | AO34: ='6. UD1 Assumptions'!F41 -> 0.06 | AP34: 2580 | AQ34: =AP34*'5. UD1 Parameters'!$H$6*'5. UD1 Parameters'!$H$7*'5. UD1 Parameters'!$H$8/1000 -> 45.279 | AR34: =AQ34*'5. UD1 Parameters'!$H$9/1000 -> 1.131975 | AS34: 0.75465 | AT34: 109.9587336 | AV34: 53.6151692 | AW34: ='UD1 CropScenarios'!F34*'6. UD1 Assumptions'!K41 -> 7442007.927 | AX34: =AW34*'5. UD1 Parameters'!$H$12*'5. UD1 Parameters'!$H$13/1000 -> 116.9458388 | AY34: =AX34*'5. UD1 Parameters'!$H$16/1000 -> 34.84985998 | AZ34: 34.84985998 | BA34: 18.76530922 | BB34: 94.06254039 | BD34: ='6. UD1 Assumptions'!Q41*'6. UD1 Assumptions'!$O$15*'6. UD1 Assumptions'!S41 -> 41.84941655 | BE34: ='6. UD1 Assumptions'!Q41*'6. UD1 Assumptions'!$O$16*'6. UD1 Assumptions'!S41 -> 139.4980552 | BF34: ='6. UD1 Assumptions'!Q41*'6. UD1 Assumptions'!$O$17*'6. UD1 Assumptions'!S41 -> 33.47953324 | BG34: 214.827005 | BH34: ='UD1 CropScenarios'!BG34*'5. UD1 Parameters'!$H$27 -> 107.4135025 | BI34: =BH34*'5. UD1 Parameters'!$H$28*1000000 -> 1879736.294 | BJ34: =BI34*'5. UD1 Parameters'!$H$12*'5. UD1 Parameters'!$H$13*'5. UD1 Parameters'!$H$16/1000000 -> 8.802536529 | BK34: 8.802536529 | BL34: 102.8650769 | BN34: 7442007.927 | BO34: ='UD1 CropScenarios'!Y34 -> 2665224 | BP34: 2841804.794 | BQ34: =(((BN34*'5. UD1 Parameters'!$H$18)+(BP34*'5. UD1 Parameters'!$H$19))*('5. UD1 Parameters'!$H$24*'5. UD1 Parameters'!$H$21))/1000 -> 20.62597038 | BR34: =BQ34*'5. UD1 Parameters'!$H$22/1000 -> 6.146539173 | BS34: =((BN34+BO34+BP34)*'5. UD1 Parameters'!$H$20*'5. UD1 Parameters'!$H$23*'5. UD1 Parameters'!$H$21)/1000 -> 45.78409412 | BT34: =BS34*'5. UD1 Parameters'!$H$22/1000 -> 13.64366005 | BU34: 19.79019922 | BV34: 2.357647471 | BW34: 100.5074294 | BY34: 99.75277944 | BZ34: 10.96060412 | CD34: 110.7133836 | CE34: 109.9587336 | CF34: 94.06254039 | CG34: 100.5074294 | CH34: 99.75277944 | CJ34: 110.7133836 | CK34: 109.9587336 | CL34: 94.06254039 | CM34: 100.5074294 | CN34: 99.75277944 | CP34: 0 | CQ34: 0 | CR34: 0 | CS34: 0 | CT34: 0
A35: 2045 | B35: ='6. UD1 Assumptions'!C42 -> 42000 | C35: =B35*'5. UD1 Parameters'!$H$10 -> 4200 | D35: =C35*'5. UD1 Parameters'!$H$6*'5. UD1 Parameters'!$H$7*'5. UD1 Parameters'!$H$8/1000 -> 73.71 | E35: =D35*'5. UD1 Parameters'!$H$9/1000 -> 1.84275 | F35: 11449242.96 | G35: 2665224 | H35: =MMS!AA90 -> 4040586.237 | I35: ='UD1 CropScenarios'!F35*'5. UD1 Parameters'!$H$12*'5. UD1 Parameters'!$H$13/1000 -> 179.9166752 | J35: =G35*'5. UD1 Parameters'!$H$12*'5. UD1 Parameters'!$H$13/1000 -> 41.88209143 | K35: =H35*'5. UD1 Parameters'!$H$12*'5. UD1 Parameters'!$H$13/1000 -> 63.49492658 | L35: =I35*'5. UD1 Parameters'!$H$16/1000 -> 53.6151692 | M35: =J35*'5. UD1 Parameters'!$H$16/1000 -> 12.48086325 | N35: =K35*'5. UD1 Parameters'!$H$16/1000 -> 18.92148812 | O35: =SUM('UD1 CropScenarios'!L35:N35) -> 85.01752056 | P35: =MMS!AA92 -> 11047.017 | Q35: =MMS!AA91 -> 457682.2965 | R35: =P35*'5. UD1 Parameters'!$H$14*'5. UD1 Parameters'!$H$13/1000 -> 0.3471919629 | S35: =Q35*'5. UD1 Parameters'!$H$15*'5. UD1 Parameters'!$H$13/1000 -> 7.192150374 | T35: =R35*'5. UD1 Parameters'!$H$16/1000 -> 0.1034632049 | U35: =S35*'5. UD1 Parameters'!$H$16/1000 -> 2.143260811 | V35: ='UD1 CropScenarios'!T35+'UD1 CropScenarios'!U35 -> 2.246724016 | W35: ='UD1 CropScenarios'!O35+'UD1 CropScenarios'!V35 -> 87.26424458 | X35: 11449242.96 | Y35: 2665224 | Z35: 962068.5 | AA35: =((X35*'5. UD1 Parameters'!$H$18)+(Z35*'5. UD1 Parameters'!$H$19))*'5. UD1 Parameters'!$H$24*'5. UD1 Parameters'!$H$21/1000 -> 21.01531137 | AB35: =AA35*'5. UD1 Parameters'!$H$22/1000 -> 6.262562789 | AC35: =((X35+Y35+Z35)*'5. UD1 Parameters'!$H$20*'5. UD1 Parameters'!$H$23*'5. UD1 Parameters'!$H$21)/1000 -> 53.30632182 | AD35: =AC35*'5. UD1 Parameters'!$H$22/1000 -> 15.8852839 | AE35: 22.14784669 | AF35: 111.2548413 | AJ35: =INDEX((DirN2OManSoilPol!$U$15:$U$43),MATCH(A35,DirN2OManSoilPol!$A$15:A$43,0)) -> 89.79866172 | AN35: ='6. UD1 Assumptions'!B42 -> 42000 | AO35: ='6. UD1 Assumptions'!F42 -> 0.06 | AP35: 2520 | AQ35: =AP35*'5. UD1 Parameters'!$H$6*'5. UD1 Parameters'!$H$7*'5. UD1 Parameters'!$H$8/1000 -> 44.226 | AR35: =AQ35*'5. UD1 Parameters'!$H$9/1000 -> 1.10565 | AS35: 0.7371 | AT35: 110.5177413 | AV35: 53.6151692 | AW35: ='UD1 CropScenarios'!F35*'6. UD1 Assumptions'!K42 -> 6869545.779 | AX35: =AW35*'5. UD1 Parameters'!$H$12*'5. UD1 Parameters'!$H$13/1000 -> 107.9500051 | AY35: =AX35*'5. UD1 Parameters'!$H$16/1000 -> 32.16910152 | AZ35: 32.16910152 | BA35: 21.44606768 | BB35: 92.34319073 | BD35: ='6. UD1 Assumptions'!Q42*'6. UD1 Assumptions'!$O$15*'6. UD1 Assumptions'!S42 -> 51.98077962 | BE35: ='6. UD1 Assumptions'!Q42*'6. UD1 Assumptions'!$O$16*'6. UD1 Assumptions'!S42 -> 173.2692654 | BF35: ='6. UD1 Assumptions'!Q42*'6. UD1 Assumptions'!$O$17*'6. UD1 Assumptions'!S42 -> 41.5846237 | BG35: 266.8346687 | BH35: ='UD1 CropScenarios'!BG35*'5. UD1 Parameters'!$H$27 -> 133.4173344 | BI35: =BH35*'5. UD1 Parameters'!$H$28*1000000 -> 2334803.351 | BJ35: =BI35*'5. UD1 Parameters'!$H$12*'5. UD1 Parameters'!$H$13*'5. UD1 Parameters'!$H$16/1000000 -> 10.93355055 | BK35: 10.93355055 | BL35: 103.2767413 | BN35: 6869545.779 | BO35: ='UD1 CropScenarios'!Y35 -> 2665224 | BP35: 3296871.851 | BQ35: =(((BN35*'5. UD1 Parameters'!$H$18)+(BP35*'5. UD1 Parameters'!$H$19))*('5. UD1 Parameters'!$H$24*'5. UD1 Parameters'!$H$21))/1000 -> 21.15659776 | BR35: =BQ35*'5. UD1 Parameters'!$H$22/1000 -> 6.304666131 | BS35: =((BN35+BO35+BP35)*'5. UD1 Parameters'!$H$20*'5. UD1 Parameters'!$H$23*'5. UD1 Parameters'!$H$21)/1000 -> 45.36901862 | BT35: =BS35*'5. UD1 Parameters'!$H$22/1000 -> 13.51996755 | BU35: 19.82463368 | BV35: 2.323213011 | BW35: 100.9535283 | BY35: 100.2164283 | BZ35: 11.038413 | CD35: 111.2548413 | CE35: 110.5177413 | CF35: 92.34319073 | CG35: 100.9535283 | CH35: 100.2164283 | CJ35: 111.2548413 | CK35: 110.5177413 | CL35: 92.34319073 | CM35: 100.9535283 | CN35: 100.2164283 | CP35: 0 | CQ35: 0 | CR35: 0 | CS35: 0 | CT35: 0
A36: 2050 | B36: ='6. UD1 Assumptions'!C43 -> 40000 | C36: =B36*'5. UD1 Parameters'!$H$10 -> 4000 | D36: =C36*'5. UD1 Parameters'!$H$6*'5. UD1 Parameters'!$H$7*'5. UD1 Parameters'!$H$8/1000 -> 70.2 | E36: =D36*'5. UD1 Parameters'!$H$9/1000 -> 1.755 | F36: 11449242.96 | G36: 2665224 | H36: =MMS!AB90 -> 4159036.715 | I36: ='UD1 CropScenarios'!F36*'5. UD1 Parameters'!$H$12*'5. UD1 Parameters'!$H$13/1000 -> 179.9166752 | J36: =G36*'5. UD1 Parameters'!$H$12*'5. UD1 Parameters'!$H$13/1000 -> 41.88209143 | K36: =H36*'5. UD1 Parameters'!$H$12*'5. UD1 Parameters'!$H$13/1000 -> 65.35629123 | L36: =I36*'5. UD1 Parameters'!$H$16/1000 -> 53.6151692 | M36: =J36*'5. UD1 Parameters'!$H$16/1000 -> 12.48086325 | N36: =K36*'5. UD1 Parameters'!$H$16/1000 -> 19.47617479 | O36: =SUM('UD1 CropScenarios'!L36:N36) -> 85.57220723 | P36: =MMS!AB92 -> 11116.294 | Q36: =MMS!AB91 -> 464088.0465 | R36: =P36*'5. UD1 Parameters'!$H$14*'5. UD1 Parameters'!$H$13/1000 -> 0.34936924 | S36: =Q36*'5. UD1 Parameters'!$H$15*'5. UD1 Parameters'!$H$13/1000 -> 7.292812159 | T36: =R36*'5. UD1 Parameters'!$H$16/1000 -> 0.1041120335 | U36: =S36*'5. UD1 Parameters'!$H$16/1000 -> 2.173258023 | V36: ='UD1 CropScenarios'!T36+'UD1 CropScenarios'!U36 -> 2.277370057 | W36: ='UD1 CropScenarios'!O36+'UD1 CropScenarios'!V36 -> 87.84957728 | X36: 11449242.96 | Y36: 2665224 | Z36: 962068.5 | AA36: =((X36*'5. UD1 Parameters'!$H$18)+(Z36*'5. UD1 Parameters'!$H$19))*'5. UD1 Parameters'!$H$24*'5. UD1 Parameters'!$H$21/1000 -> 21.01531137 | AB36: =AA36*'5. UD1 Parameters'!$H$22/1000 -> 6.262562789 | AC36: =((X36+Y36+Z36)*'5. UD1 Parameters'!$H$20*'5. UD1 Parameters'!$H$23*'5. UD1 Parameters'!$H$21)/1000 -> 53.30632182 | AD36: =AC36*'5. UD1 Parameters'!$H$22/1000 -> 15.8852839 | AE36: 22.14784669 | AF36: 111.752424 | AJ36: =INDEX((DirN2OManSoilPol!$U$15:$U$43),MATCH(A36,DirN2OManSoilPol!$A$15:A$43,0)) -> 90.80394553 | AN36: ='6. UD1 Assumptions'!B43 -> 40000 | AO36: ='6. UD1 Assumptions'!F43 -> 0.05 | AP36: 2000 | AQ36: =AP36*'5. UD1 Parameters'!$H$6*'5. UD1 Parameters'!$H$7*'5. UD1 Parameters'!$H$8/1000 -> 35.1 | AR36: =AQ36*'5. UD1 Parameters'!$H$9/1000 -> 0.8775 | AS36: 0.8775 | AT36: 110.874924 | AV36: 53.6151692 | AW36: ='UD1 CropScenarios'!F36*'6. UD1 Assumptions'!K43 -> 6297083.63 | AX36: =AW36*'5. UD1 Parameters'!$H$12*'5. UD1 Parameters'!$H$13/1000 -> 98.95417133 | AY36: =AX36*'5. UD1 Parameters'!$H$16/1000 -> 29.48834306 | AZ36: 29.48834306 | BA36: 24.12682614 | BB36: 90.57996608 | BD36: ='6. UD1 Assumptions'!Q43*'6. UD1 Assumptions'!$O$15*'6. UD1 Assumptions'!S43 -> 63.76775657 | BE36: ='6. UD1 Assumptions'!Q43*'6. UD1 Assumptions'!$O$16*'6. UD1 Assumptions'!S43 -> 212.5591886 | BF36: ='6. UD1 Assumptions'!Q43*'6. UD1 Assumptions'!$O$17*'6. UD1 Assumptions'!S43 -> 51.01420526 | BG36: 327.3411504 | BH36: ='UD1 CropScenarios'!BG36*'5. UD1 Parameters'!$H$27 -> 163.6705752 | BI36: =BH36*'5. UD1 Parameters'!$H$28*1000000 -> 2864235.066 | BJ36: =BI36*'5. UD1 Parameters'!$H$12*'5. UD1 Parameters'!$H$13*'5. UD1 Parameters'!$H$16/1000000 -> 13.41280364 | BK36: 13.41280364 | BL36: 103.9927697 | BN36: 6297083.63 | BO36: ='UD1 CropScenarios'!Y36 -> 2665224 | BP36: 3826303.566 | BQ36: =(((BN36*'5. UD1 Parameters'!$H$18)+(BP36*'5. UD1 Parameters'!$H$19))*('5. UD1 Parameters'!$H$24*'5. UD1 Parameters'!$H$21))/1000 -> 21.92094263 | BR36: =BQ36*'5. UD1 Parameters'!$H$22/1000 -> 6.532440903 | BS36: =((BN36+BO36+BP36)*'5. UD1 Parameters'!$H$20*'5. UD1 Parameters'!$H$23*'5. UD1 Parameters'!$H$21)/1000 -> 45.2168753 | BT36: =BS36*'5. UD1 Parameters'!$H$22/1000 -> 13.47462884 | BU36: 20.00706974 | BV36: 2.140776949 | BW36: 101.8519928 | BY36: 100.9744928 | BZ36: 10.77793121 | CD36: 111.752424 | CE36: 110.874924 | CF36: 90.57996608 | CG36: 101.8519928 | CH36: 100.9744928 | CJ36: 111.752424 | CK36: 110.874924 | CL36: 90.57996608 | CM36: 101.8519928 | CN36: 100.9744928 | CP36: 0 | CQ36: 0 | CR36: 0 | CS36: 0 | CT36: 0
BB37: *
BB38: Red in Chem
BB39: Fert Only

Sheet UD2 CropScenarios (hidden)
A1: This worksheet summarises the various emissions scenarios for management of cropland. | AV1: 46 | AW1: 47 | AX1: 48 | AY1: 49 | AZ1: 50 | BA1: 51 | BB1: 52 | BC1: 53 | BD1: 54 | BE1: 55 | BF1: 56 | BG1: 57 | BH1: 58 | BI1: 59 | BJ1: 60 | BK1: 61 | BL1: 62 | BM1: 63 | BN1: 64 | BO1: 65 | BP1: 66 | BQ1: 67 | BR1: 68 | BS1: 69 | BT1: 70 | BU1: 71 | BV1: 72 | BW1: 73 | BX1: 74 | BY1: 75 | BZ1: 76
B2: 1 | C2: 2 | D2: 3 | E2: 4 | F2: 5 | G2: 6 | H2: 7 | I2: 8 | J2: 9 | K2: 10 | L2: 11 | M2: 12 | N2: 13 | O2: 14 | P2: 15 | Q2: 16 | R2: 17 | S2: 18 | T2: 19 | U2: 20 | V2: 21 | W2: 22 | X2: 23 | Y2: 24 | Z2: 25 | AA2: 26 | AB2: 27 | AC2: 28 | AD2: 29 | AE2: 30 | AF2: 31 | AG2: 32 | AH2: 33 | AI2: 34 | AJ2: 35 | AK2: 36 | AL2: 37 | AM2: 38 | AN2: 39 | AO2: 40 | AP2: 41 | AQ2: 42 | AR2: 43 | AS2: 44 | AT2: 45 | AV2: Direct N2O | BN2: Indirect N2O | BY2: Total ER | BZ2: Total ER
BN3: This worksheet calculates the indirect N2O emissions from managed soils.
B4: Business-as-Usual (BAU) | AR4: CROP BURN (Gg CO2e) | AV4: CHEMICAL FERTILIZER | AZ4: (Gg CO2e) | BA4: (Gg CO2e) | BB4: (Gg CO2e) | BD4: Biofarming | BJ4: GgCO2e | BK4: GgCO2e | BL4: GgCO2e | BN4: It follows the calculations given in sheet 3.C.5. Indirect N2O Emissions from managed soils in the IPCC tool. | BY4: GgCO2e | BZ4: reduction
B5: Crop Burn | F5: DirN2OManSoil | X5: IndN2OManSoil | AN5: Crop Burn Sc 1 | BI5: N in compost (kg) | BN5: This scenario includes the combination of reduced chemical fertilizers & use of compost generated from MSW
F6: N2O emissions from managed soils - 1/3 | P6: N2O emissions from urine and dung inputs to grazed soils - 3/3 | W6: N2O Em | X6: This worksheet calculates the indirect N2O emissions from managed soils. It follows the calculations given in sheet 3.C.5. Indirect N2O Emissions from managed soils in the IPCC tool. | BD6: Organic waste composted (Gg) | BH6: Compost (Gg) | BV6: Biofarming - GgCO2e
A7: Year | B7: Area Available (ha) | C7: Area Burnt (ha) | D7: GHG (tCH4) | E7: GHG (GgCO2e) BAU | F7: Fertilizer (kg N/yr) | G7: Crop Residues (kg N/yr) | H7: Manure (kg N/yr) | I7: N2O fert (t/yr) | J7: N2O CropRes (t/yr) | K7: N2O Manure (t/yr) | L7: CO2e Fert (Gg/yr) | M7: CO2e CropRes (Gg/yr) | N7: CO2e Manure (Gg/yr) | O7: CO2e subtotal (Gg/yr) | P7: Cattle,poultry,pigs (kgN/yr) | Q7: sheep & other (kgN/yr) | R7: N2O cpp (t/yr) | S7: N2O s&o (t/yr) | T7: CO2e cpp (Gg/yr) | U7: CO2e s&o (Gg/yr) | V7: CO2e subtotal (Gg/yr) | W7: DirN2OManSoil CO2e total (Gg/yr) | X7: Fertilizer (kg N/yr) | Y7: CropResidues (kg N/yr) | Z7: Manure (kg N/yr) | AA7: N2O Volatilised (t/yr) | AB7: CO2e Volatilised (Gg/yr) | AC7: N2O leached (y/yr) | AD7: CO2e leached (Gg/yr) | AE7: IndN2OManSoil CO2e Total (Gg/yr) | AF7: Total (BAU) | AJ7: DirN2OManSoilPol | AN7: Area Available (ha) | AO7: % Area Burnt | AP7: Area Burnt (ha) | AQ7: GHG (tCH4) | AR7: GHG due to CropBurn (Gg CO2e) | AS7: Reduction in GHG (Gg CO2e) | AT7: Nett GHG (Gg CO2e) | AV7: BAU | AW7: Fertilizer (kg N/yr) | AX7: N2O Fert (t) | AY7: CO2e Fert (Gg) | AZ7: ER | BA7: Change | BB7: Total-change | BD7: Food | BE7: Garden | BF7: Paper | BG7: Total | BJ7: Total CO2e (Gg) | BK7: Change | BL7: Total+ change | BN7: Reduced fertilizer (KgN/yr) | BO7: CropResidues (kgN/yr) | BP7: Manure (kg N/yr) | BQ7: N2O Volatized (t/yr) | BR7: CO2e Volatized (Gg/yr) | BS7: N2O leached (y/yr) | BT7: CO2e leached (Gg/yr) | BU7: CO2e Total (Gg) | BV7: Change | BW7: TotalDirN2O-Change | CD7: BAU | CE7: SC1 | CF7: SC2 | CG7: SC3 | CH7: SC4
A8: 2006 | B8: ='6. UD2 Assumptions'!C15 -> 70800 | C8: =B8*'5. UD2 Parameters'!$H$10 -> 7080 | D8: =C8*'5. UD2 Parameters'!$H$6*'5. UD2 Parameters'!$H$7*'5. UD2 Parameters'!$H$8/1000 -> 124.254 | E8: =D8*'5. UD2 Parameters'!$H$9/1000 -> 3.10635 | F8: 7526219 | G8: 3316504 | H8: 2933111.555 | I8: ='UD2 CropScenarios'!F8*'5. UD2 Parameters'!$H$12*'5. UD2 Parameters'!$H$13/1000 -> 118.2691557 | J8: =G8*'5. UD2 Parameters'!$H$12*'5. UD2 Parameters'!$H$13/1000 -> 52.11649143 | K8: =H8*'5. UD2 Parameters'!$H$12*'5. UD2 Parameters'!$H$13/1000 -> 46.09175301 | L8: =I8*'5. UD2 Parameters'!$H$16/1000 -> 35.2442084 | M8: =J8*'5. UD2 Parameters'!$H$16/1000 -> 15.53071445 | N8: =K8*'5. UD2 Parameters'!$H$16/1000 -> 13.7353424 | O8: =SUM('UD2 CropScenarios'!L8:N8) -> 64.51026524 | Q8: 451428.39 | R8: =P8*'5. UD2 Parameters'!$H$14*'5. UD2 Parameters'!$H$13/1000 -> 0 | S8: =Q8*'5. UD2 Parameters'!$H$15*'5. UD2 Parameters'!$H$13/1000 -> 7.0938747 | T8: =R8*'5. UD2 Parameters'!$H$16/1000 -> 0 | U8: =S8*'5. UD2 Parameters'!$H$16/1000 -> 2.113974661 | V8: ='UD2 CropScenarios'!T8+'UD2 CropScenarios'!U8 -> 2.113974661 | W8: ='UD2 CropScenarios'!O8+'UD2 CropScenarios'!V8 -> 66.6242399 | X8: =F8 -> 7526219 | Y8: =G8 -> 3316504 | Z8: 962068.5 | AA8: =(((X8*'5. UD2 Parameters'!$H$18)+(Z8*'5. UD2 Parameters'!$H$19))*('5. UD2 Parameters'!$H$24*'5. UD2 Parameters'!$H$21))/1000 -> 14.85055943 | AB8: =AA8*'5. UD2 Parameters'!$H$22/1000 -> 4.42546671 | AC8: =((X8+Y8+Z8)*'5. UD2 Parameters'!$H$20*'5. UD2 Parameters'!$H$23*'5. UD2 Parameters'!$H$21)/1000 -> 41.73836995 | AD8: =AC8*'5. UD2 Parameters'!$H$22/1000 -> 12.43803424 | AE8: =AB8+AD8 -> 16.86350095 | AF8: =E8+W8+AE8 -> 86.59409086 | AJ8: =INDEX((DirN2OManSoilPol!$U$15:$U$43),MATCH(A8,DirN2OManSoilPol!$A$15:A$43,0)) -> 66.6242399 | AN8: ='6. UD2 Assumptions'!B15 -> 70800 | AO8: ='6. UD2 Assumptions'!F15 -> 0.1 | AP8: =AN8*AO8 -> 7080 | AQ8: =AP8*'5. UD2 Parameters'!$H$6*'5. UD2 Parameters'!$H$7*'5. UD2 Parameters'!$H$8/1000 -> 124.254 | AR8: =AQ8*'5. UD2 Parameters'!$H$9/1000 -> 3.10635 | AS8: =E8-AR8 -> 0 | AT8: =AF8-AS8 -> 86.59409086 | AV8: =L8 -> 35.2442084 | AW8: ='UD2 CropScenarios'!F8*'6. UD2 Assumptions'!K15 -> 7526219 | AX8: =AW8*'5. UD2 Parameters'!$H$12*'5. UD2 Parameters'!$H$13/1000 -> 118.2691557 | AY8: =AX8*'5. UD2 Parameters'!$H$16/1000 -> 35.2442084 | AZ8: =AY8 -> 35.2442084 | BA8: =AV8-AZ8 -> 0 | BB8: =E8+AJ8+AE8-BA8 -> 86.59409086 | BL8: =BB8+BK8 -> 86.59409086 | BN8: =AW8 -> 7526219 | BO8: ='UD2 CropScenarios'!Y8 -> 3316504 | BP8: ='UD2 CropScenarios'!Z8 -> 962068.5 | BQ8: =(((BN8*'5. UD2 Parameters'!$H$18)+(BP8*'5. UD2 Parameters'!$H$19))*('5. UD2 Parameters'!$H$24*'5. UD2 Parameters'!$H$21))/1000 -> 14.85055943 | BR8: =BQ8*'5. UD2 Parameters'!$H$22/1000 -> 4.42546671 | BS8: =((BN8+BO8+BP8)*'5. UD2 Parameters'!$H$20*'5. UD2 Parameters'!$H$23*'5. UD2 Parameters'!$H$21)/1000 -> 41.73836995 | BT8: =BS8*'5. UD2 Parameters'!$H$22/1000 -> 12.43803424 | BU8: =BR8+BT8 -> 16.86350095 | BV8: =AE8-BU8 -> 0 | BW8: =BL8-BV8 -> 86.59409086 | BY8: =BW8-AS8 -> 86.59409086 | BZ8: =AF8-BY8 -> 0 | CD8: =AF8 -> 86.59409086 | CE8: =AT8 -> 86.59409086 | CF8: =BB8 -> 86.59409086 | CG8: =BW8 -> 86.59409086 | CH8: =BY8 -> 86.59409086 | CJ8: 86.59409086 | CK8: 86.59409086 | CL8: 86.59409086 | CM8: 86.59409086 | CN8: 86.59409086 | CP8: =CD8-CJ8 -> 0 | CQ8: =CE8-CK8 -> 0 | CR8: 0 | CS8: 0 | CT8: 0
A9: 2007 | B9: ='6. UD2 Assumptions'!C16 -> 68520 | C9: =B9*'5. UD2 Parameters'!$H$10 -> 6852 | D9: =C9*'5. UD2 Parameters'!$H$6*'5. UD2 Parameters'!$H$7*'5. UD2 Parameters'!$H$8/1000 -> 120.2526 | E9: =D9*'5. UD2 Parameters'!$H$9/1000 -> 3.006315 | F9: 7267732 | G9: 3208625 | H9: 2990028.091 | I9: ='UD2 CropScenarios'!F9*'5. UD2 Parameters'!$H$12*'5. UD2 Parameters'!$H$13/1000 -> 114.2072171 | J9: =G9*'5. UD2 Parameters'!$H$12*'5. UD2 Parameters'!$H$13/1000 -> 50.42125 | K9: =H9*'5. UD2 Parameters'!$H$12*'5. UD2 Parameters'!$H$13/1000 -> 46.98615572 | L9: =I9*'5. UD2 Parameters'!$H$16/1000 -> 34.03375071 | M9: =J9*'5. UD2 Parameters'!$H$16/1000 -> 15.0255325 | N9: =K9*'5. UD2 Parameters'!$H$16/1000 -> 14.0018744 | O9: =SUM('UD2 CropScenarios'!L9:N9) -> 63.06115761 | Q9: 409968 | R9: =P9*'5. UD2 Parameters'!$H$14*'5. UD2 Parameters'!$H$13/1000 -> 0 | S9: =Q9*'5. UD2 Parameters'!$H$15*'5. UD2 Parameters'!$H$13/1000 -> 6.442354286 | T9: =R9*'5. UD2 Parameters'!$H$16/1000 -> 0 | U9: =S9*'5. UD2 Parameters'!$H$16/1000 -> 1.919821577 | V9: ='UD2 CropScenarios'!T9+'UD2 CropScenarios'!U9 -> 1.919821577 | W9: ='UD2 CropScenarios'!O9+'UD2 CropScenarios'!V9 -> 64.98097919 | X9: =F9 -> 7267732 | Y9: 3208625 | Z9: 962068.5 | AA9: =((X9*'5. UD2 Parameters'!$H$18)+(Z9*'5. UD2 Parameters'!$H$19))*'5. UD2 Parameters'!$H$24*'5. UD2 Parameters'!$H$21/1000 -> 14.44436557 | AB9: =AA9*'5. UD2 Parameters'!$H$22/1000 -> 4.30442094 | AC9: =((X9+Y9+Z9)*'5. UD2 Parameters'!$H$20*'5. UD2 Parameters'!$H$23*'5. UD2 Parameters'!$H$21)/1000 -> 40.44300445 | AD9: =AC9*'5. UD2 Parameters'!$H$22/1000 -> 12.05201533 | AE9: 16.35643627 | AF9: =E9+W9+AE9 -> 84.34373046 | AJ9: =INDEX((DirN2OManSoilPol!$U$15:$U$43),MATCH(A9,DirN2OManSoilPol!$A$15:A$43,0)) -> 64.98097919 | AN9: ='6. UD2 Assumptions'!B16 -> 68520 | AO9: ='6. UD2 Assumptions'!F16 -> 0.1 | AP9: 6852 | AQ9: =AP9*'5. UD2 Parameters'!$H$6*'5. UD2 Parameters'!$H$7*'5. UD2 Parameters'!$H$8/1000 -> 120.2526 | AR9: =AQ9*'5. UD2 Parameters'!$H$9/1000 -> 3.006315 | AS9: 0 | AT9: 84.34373046 | AV9: =L9 -> 34.03375071 | AW9: ='UD2 CropScenarios'!F9*'6. UD2 Assumptions'!K16 -> 7267732 | AX9: =AW9*'5. UD2 Parameters'!$H$12*'5. UD2 Parameters'!$H$13/1000 -> 114.2072171 | AY9: =AX9*'5. UD2 Parameters'!$H$16/1000 -> 34.03375071 | AZ9: =AY9 -> 34.03375071 | BA9: 0 | BB9: 84.34373046 | BL9: 84.34373046 | BN9: =AW9 -> 7267732 | BO9: ='UD2 CropScenarios'!Y9 -> 3208625 | BP9: ='UD2 CropScenarios'!Z9 -> 962068.5 | BQ9: =(((BN9*'5. UD2 Parameters'!$H$18)+(BP9*'5. UD2 Parameters'!$H$19))*('5. UD2 Parameters'!$H$24*'5. UD2 Parameters'!$H$21))/1000 -> 14.44436557 | BR9: =BQ9*'5. UD2 Parameters'!$H$22/1000 -> 4.30442094 | BS9: =((BN9+BO9+BP9)*'5. UD2 Parameters'!$H$20*'5. UD2 Parameters'!$H$23*'5. UD2 Parameters'!$H$21)/1000 -> 40.44300445 | BT9: =BS9*'5. UD2 Parameters'!$H$22/1000 -> 12.05201533 | BU9: 16.35643627 | BV9: =AE9-BU9 -> 0 | BW9: 84.34373046 | BY9: 84.34373046 | BZ9: 0 | CD9: =AF9 -> 84.34373046 | CE9: =AT9 -> 84.34373046 | CF9: =BB9 -> 84.34373046 | CG9: =BW9 -> 84.34373046 | CH9: =BY9 -> 84.34373046 | CJ9: 84.34373046 | CK9: 84.34373046 | CL9: 84.34373046 | CM9: 84.34373046 | CN9: 84.34373046 | CP9: =CD9-CJ9 -> 0 | CQ9: 0 | CR9: 0 | CS9: 0 | CT9: 0
A10: 2008 | B10: ='6. UD2 Assumptions'!C17 -> 65440 | C10: =B10*'5. UD2 Parameters'!$H$10 -> 6544 | D10: =C10*'5. UD2 Parameters'!$H$6*'5. UD2 Parameters'!$H$7*'5. UD2 Parameters'!$H$8/1000 -> 114.8472 | E10: =D10*'5. UD2 Parameters'!$H$9/1000 -> 2.87118 | F10: 6807140 | G10: 3064362 | H10: 2878426.246 | I10: ='UD2 CropScenarios'!F10*'5. UD2 Parameters'!$H$12*'5. UD2 Parameters'!$H$13/1000 -> 106.9693429 | J10: =G10*'5. UD2 Parameters'!$H$12*'5. UD2 Parameters'!$H$13/1000 -> 48.15426 | K10: =H10*'5. UD2 Parameters'!$H$12*'5. UD2 Parameters'!$H$13/1000 -> 45.23241243 | L10: =I10*'5. UD2 Parameters'!$H$16/1000 -> 31.87686417 | M10: =J10*'5. UD2 Parameters'!$H$16/1000 -> 14.34996948 | N10: =K10*'5. UD2 Parameters'!$H$16/1000 -> 13.4792589 | O10: =SUM('UD2 CropScenarios'!L10:N10) -> 59.70609256 | Q10: 409968 | R10: =P10*'5. UD2 Parameters'!$H$14*'5. UD2 Parameters'!$H$13/1000 -> 0 | S10: =Q10*'5. UD2 Parameters'!$H$15*'5. UD2 Parameters'!$H$13/1000 -> 6.442354286 | T10: =R10*'5. UD2 Parameters'!$H$16/1000 -> 0 | U10: =S10*'5. UD2 Parameters'!$H$16/1000 -> 1.919821577 | V10: ='UD2 CropScenarios'!T10+'UD2 CropScenarios'!U10 -> 1.919821577 | W10: ='UD2 CropScenarios'!O10+'UD2 CropScenarios'!V10 -> 61.62591413 | X10: 6807140 | Y10: 3064362 | Z10: 962068.5 | AA10: =((X10*'5. UD2 Parameters'!$H$18)+(Z10*'5. UD2 Parameters'!$H$19))*'5. UD2 Parameters'!$H$24*'5. UD2 Parameters'!$H$21/1000 -> 13.72057814 | AB10: =AA10*'5. UD2 Parameters'!$H$22/1000 -> 4.088732287 | AC10: =((X10+Y10+Z10)*'5. UD2 Parameters'!$H$20*'5. UD2 Parameters'!$H$23*'5. UD2 Parameters'!$H$21)/1000 -> 38.30440998 | AD10: =AC10*'5. UD2 Parameters'!$H$22/1000 -> 11.41471417 | AE10: 15.50344646 | AF10: 80.00054059 | AJ10: =INDEX((DirN2OManSoilPol!$U$15:$U$43),MATCH(A10,DirN2OManSoilPol!$A$15:A$43,0)) -> 61.62591413 | AN10: ='6. UD2 Assumptions'!B17 -> 65440 | AO10: ='6. UD2 Assumptions'!F17 -> 0.1 | AP10: 6544 | AQ10: =AP10*'5. UD2 Parameters'!$H$6*'5. UD2 Parameters'!$H$7*'5. UD2 Parameters'!$H$8/1000 -> 114.8472 | AR10: =AQ10*'5. UD2 Parameters'!$H$9/1000 -> 2.87118 | AS10: 0 | AT10: 80.00054059 | AV10: 31.87686417 | AW10: ='UD2 CropScenarios'!F10*'6. UD2 Assumptions'!K17 -> 6807140 | AX10: =AW10*'5. UD2 Parameters'!$H$12*'5. UD2 Parameters'!$H$13/1000 -> 106.9693429 | AY10: =AX10*'5. UD2 Parameters'!$H$16/1000 -> 31.87686417 | AZ10: 31.87686417 | BA10: 0 | BB10: 80.00054059 | BL10: 80.00054059 | BN10: 6807140 | BO10: ='UD2 CropScenarios'!Y10 -> 3064362 | BP10: ='UD2 CropScenarios'!Z10 -> 962068.5 | BQ10: =(((BN10*'5. UD2 Parameters'!$H$18)+(BP10*'5. UD2 Parameters'!$H$19))*('5. UD2 Parameters'!$H$24*'5. UD2 Parameters'!$H$21))/1000 -> 13.72057814 | BR10: =BQ10*'5. UD2 Parameters'!$H$22/1000 -> 4.088732287 | BS10: =((BN10+BO10+BP10)*'5. UD2 Parameters'!$H$20*'5. UD2 Parameters'!$H$23*'5. UD2 Parameters'!$H$21)/1000 -> 38.30440998 | BT10: =BS10*'5. UD2 Parameters'!$H$22/1000 -> 11.41471417 | BU10: 15.50344646 | BV10: 0 | BW10: 80.00054059 | BY10: 80.00054059 | BZ10: 0 | CD10: 80.00054059 | CE10: 80.00054059 | CF10: 80.00054059 | CG10: 80.00054059 | CH10: 80.00054059 | CJ10: 80.00054059 | CK10: 80.00054059 | CL10: 80.00054059 | CM10: 80.00054059 | CN10: 80.00054059 | CP10: 0 | CQ10: 0 | CR10: 0 | CS10: 0 | CT10: 0
A11: 2009 | B11: ='6. UD2 Assumptions'!C18 -> 65850 | C11: =B11*'5. UD2 Parameters'!$H$10 -> 6585 | D11: =C11*'5. UD2 Parameters'!$H$6*'5. UD2 Parameters'!$H$7*'5. UD2 Parameters'!$H$8/1000 -> 115.56675 | E11: =D11*'5. UD2 Parameters'!$H$9/1000 -> 2.88916875 | F11: 6616456 | G11: 3013169 | H11: 2637317.403 | I11: ='UD2 CropScenarios'!F11*'5. UD2 Parameters'!$H$12*'5. UD2 Parameters'!$H$13/1000 -> 103.97288 | J11: =G11*'5. UD2 Parameters'!$H$12*'5. UD2 Parameters'!$H$13/1000 -> 47.34979857 | K11: =H11*'5. UD2 Parameters'!$H$12*'5. UD2 Parameters'!$H$13/1000 -> 41.44355919 | L11: =I11*'5. UD2 Parameters'!$H$16/1000 -> 30.98391824 | M11: =J11*'5. UD2 Parameters'!$H$16/1000 -> 14.11023997 | N11: =K11*'5. UD2 Parameters'!$H$16/1000 -> 12.35018064 | O11: =SUM('UD2 CropScenarios'!L11:N11) -> 57.44433885 | P11: 67844.83125 | Q11: 417977.6009 | R11: =P11*'5. UD2 Parameters'!$H$14*'5. UD2 Parameters'!$H$13/1000 -> 2.132266125 | S11: =Q11*'5. UD2 Parameters'!$H$15*'5. UD2 Parameters'!$H$13/1000 -> 6.568219442 | T11: =R11*'5. UD2 Parameters'!$H$16/1000 -> 0.6354153053 | U11: =S11*'5. UD2 Parameters'!$H$16/1000 -> 1.957329394 | V11: ='UD2 CropScenarios'!T11+'UD2 CropScenarios'!U11 -> 2.592744699 | W11: ='UD2 CropScenarios'!O11+'UD2 CropScenarios'!V11 -> 60.03708355 | X11: 6616456 | Y11: 3013169 | Z11: 962068.5 | AA11: =((X11*'5. UD2 Parameters'!$H$18)+(Z11*'5. UD2 Parameters'!$H$19))*'5. UD2 Parameters'!$H$24*'5. UD2 Parameters'!$H$21/1000 -> 13.42093186 | AB11: =AA11*'5. UD2 Parameters'!$H$22/1000 -> 3.999437693 | AC11: =((X11+Y11+Z11)*'5. UD2 Parameters'!$H$20*'5. UD2 Parameters'!$H$23*'5. UD2 Parameters'!$H$21)/1000 -> 37.44920202 | AD11: =AC11*'5. UD2 Parameters'!$H$22/1000 -> 11.1598622 | AE11: 15.15929989 | AF11: 78.0855522 | AJ11: =INDEX((DirN2OManSoilPol!$U$15:$U$43),MATCH(A11,DirN2OManSoilPol!$A$15:A$43,0)) -> 60.03708355 | AN11: ='6. UD2 Assumptions'!B18 -> 65850 | AO11: ='6. UD2 Assumptions'!F18 -> 0.1 | AP11: 6585 | AQ11: =AP11*'5. UD2 Parameters'!$H$6*'5. UD2 Parameters'!$H$7*'5. UD2 Parameters'!$H$8/1000 -> 115.56675 | AR11: =AQ11*'5. UD2 Parameters'!$H$9/1000 -> 2.88916875 | AS11: 0 | AT11: 78.0855522 | AV11: 30.98391824 | AW11: ='UD2 CropScenarios'!F11*'6. UD2 Assumptions'!K18 -> 6616456 | AX11: =AW11*'5. UD2 Parameters'!$H$12*'5. UD2 Parameters'!$H$13/1000 -> 103.97288 | AY11: =AX11*'5. UD2 Parameters'!$H$16/1000 -> 30.98391824 | AZ11: 30.98391824 | BA11: 0 | BB11: 78.0855522 | BL11: 78.0855522 | BN11: 6616456 | BO11: ='UD2 CropScenarios'!Y11 -> 3013169 | BP11: ='UD2 CropScenarios'!Z11 -> 962068.5 | BQ11: =(((BN11*'5. UD2 Parameters'!$H$18)+(BP11*'5. UD2 Parameters'!$H$19))*('5. UD2 Parameters'!$H$24*'5. UD2 Parameters'!$H$21))/1000 -> 13.42093186 | BR11: =BQ11*'5. UD2 Parameters'!$H$22/1000 -> 3.999437693 | BS11: =((BN11+BO11+BP11)*'5. UD2 Parameters'!$H$20*'5. UD2 Parameters'!$H$23*'5. UD2 Parameters'!$H$21)/1000 -> 37.44920202 | BT11: =BS11*'5. UD2 Parameters'!$H$22/1000 -> 11.1598622 | BU11: 15.15929989 | BV11: 0 | BW11: 78.0855522 | BY11: 78.0855522 | BZ11: 0 | CD11: 78.0855522 | CE11: 78.0855522 | CF11: 78.0855522 | CG11: 78.0855522 | CH11: 78.0855522 | CJ11: 78.0855522 | CK11: 78.0855522 | CL11: 78.0855522 | CM11: 78.0855522 | CN11: 78.0855522 | CP11: 0 | CQ11: 0 | CR11: 0 | CS11: 0 | CT11: 0
A12: 2010 | B12: ='6. UD2 Assumptions'!C19 -> 64130 | C12: =B12*'5. UD2 Parameters'!$H$10 -> 6413 | D12: =C12*'5. UD2 Parameters'!$H$6*'5. UD2 Parameters'!$H$7*'5. UD2 Parameters'!$H$8/1000 -> 112.54815 | E12: =D12*'5. UD2 Parameters'!$H$9/1000 -> 2.81370375 | F12: 7468310 | G12: 3012269 | H12: 3508672.666 | I12: ='UD2 CropScenarios'!F12*'5. UD2 Parameters'!$H$12*'5. UD2 Parameters'!$H$13/1000 -> 117.3591571 | J12: =G12*'5. UD2 Parameters'!$H$12*'5. UD2 Parameters'!$H$13/1000 -> 47.33565571 | K12: =H12*'5. UD2 Parameters'!$H$12*'5. UD2 Parameters'!$H$13/1000 -> 55.13628476 | L12: =I12*'5. UD2 Parameters'!$H$16/1000 -> 34.97302883 | M12: =J12*'5. UD2 Parameters'!$H$16/1000 -> 14.1060254 | N12: =K12*'5. UD2 Parameters'!$H$16/1000 -> 16.43061286 | O12: =SUM('UD2 CropScenarios'!L12:N12) -> 65.50966709 | P12: 10606.57515 | Q12: 409968 | R12: =P12*'5. UD2 Parameters'!$H$14*'5. UD2 Parameters'!$H$13/1000 -> 0.3333495047 | S12: =Q12*'5. UD2 Parameters'!$H$15*'5. UD2 Parameters'!$H$13/1000 -> 6.442354286 | T12: =R12*'5. UD2 Parameters'!$H$16/1000 -> 0.0993381524 | U12: =S12*'5. UD2 Parameters'!$H$16/1000 -> 1.919821577 | V12: ='UD2 CropScenarios'!T12+'UD2 CropScenarios'!U12 -> 2.01915973 | W12: ='UD2 CropScenarios'!O12+'UD2 CropScenarios'!V12 -> 67.52882682 | X12: 7468310 | Y12: 3012269 | Z12: 962068.5 | AA12: =((X12*'5. UD2 Parameters'!$H$18)+(Z12*'5. UD2 Parameters'!$H$19))*'5. UD2 Parameters'!$H$24*'5. UD2 Parameters'!$H$21/1000 -> 14.75955957 | AB12: =AA12*'5. UD2 Parameters'!$H$22/1000 -> 4.398348752 | AC12: =((X12+Y12+Z12)*'5. UD2 Parameters'!$H$20*'5. UD2 Parameters'!$H$23*'5. UD2 Parameters'!$H$21)/1000 -> 40.45793223 | AD12: =AC12*'5. UD2 Parameters'!$H$22/1000 -> 12.05646381 | AE12: 16.45481256 | AF12: 86.79734313 | AJ12: =INDEX((DirN2OManSoilPol!$U$15:$U$43),MATCH(A12,DirN2OManSoilPol!$A$15:A$43,0)) -> 67.52882682 | AN12: ='6. UD2 Assumptions'!B19 -> 64130 | AO12: ='6. UD2 Assumptions'!F19 -> 0.1 | AP12: 6413 | AQ12: =AP12*'5. UD2 Parameters'!$H$6*'5. UD2 Parameters'!$H$7*'5. UD2 Parameters'!$H$8/1000 -> 112.54815 | AR12: =AQ12*'5. UD2 Parameters'!$H$9/1000 -> 2.81370375 | AS12: 0 | AT12: 86.79734313 | AV12: 34.97302883 | AW12: ='UD2 CropScenarios'!F12*'6. UD2 Assumptions'!K19 -> 7468310 | AX12: =AW12*'5. UD2 Parameters'!$H$12*'5. UD2 Parameters'!$H$13/1000 -> 117.3591571 | AY12: =AX12*'5. UD2 Parameters'!$H$16/1000 -> 34.97302883 | AZ12: 34.97302883 | BA12: 0 | BB12: 86.79734313 | BL12: 86.79734313 | BN12: 7468310 | BO12: ='UD2 CropScenarios'!Y12 -> 3012269 | BP12: ='UD2 CropScenarios'!Z12 -> 962068.5 | BQ12: =(((BN12*'5. UD2 Parameters'!$H$18)+(BP12*'5. UD2 Parameters'!$H$19))*('5. UD2 Parameters'!$H$24*'5. UD2 Parameters'!$H$21))/1000 -> 14.75955957 | BR12: =BQ12*'5. UD2 Parameters'!$H$22/1000 -> 4.398348752 | BS12: =((BN12+BO12+BP12)*'5. UD2 Parameters'!$H$20*'5. UD2 Parameters'!$H$23*'5. UD2 Parameters'!$H$21)/1000 -> 40.45793223 | BT12: =BS12*'5. UD2 Parameters'!$H$22/1000 -> 12.05646381 | BU12: 16.45481256 | BV12: 0 | BW12: 86.79734313 | BY12: 86.79734313 | BZ12: 0 | CD12: 86.79734313 | CE12: 86.79734313 | CF12: 86.79734313 | CG12: 86.79734313 | CH12: 86.79734313 | CJ12: 86.79734313 | CK12: 86.79734313 | CL12: 86.79734313 | CM12: 86.79734313 | CN12: 86.79734313 | CP12: 0 | CQ12: 0 | CR12: 0 | CS12: 0 | CT12: 0
A13: 2011 | B13: ='6. UD2 Assumptions'!C20 -> 61730 | C13: =B13*'5. UD2 Parameters'!$H$10 -> 6173 | D13: =C13*'5. UD2 Parameters'!$H$6*'5. UD2 Parameters'!$H$7*'5. UD2 Parameters'!$H$8/1000 -> 108.33615 | E13: =D13*'5. UD2 Parameters'!$H$9/1000 -> 2.70840375 | F13: 7834140 | G13: 2902017 | H13: 3528789 | I13: ='UD2 CropScenarios'!F13*'5. UD2 Parameters'!$H$12*'5. UD2 Parameters'!$H$13/1000 -> 123.1079143 | J13: =G13*'5. UD2 Parameters'!$H$12*'5. UD2 Parameters'!$H$13/1000 -> 45.60312429 | K13: =H13*'5. UD2 Parameters'!$H$12*'5. UD2 Parameters'!$H$13/1000 -> 55.45239857 | L13: =I13*'5. UD2 Parameters'!$H$16/1000 -> 36.68615846 | M13: =J13*'5. UD2 Parameters'!$H$16/1000 -> 13.58973104 | N13: =K13*'5. UD2 Parameters'!$H$16/1000 -> 16.52481477 | O13: =SUM('UD2 CropScenarios'!L13:N13) -> 66.80070427 | P13: 11286.42232 | Q13: 420000 | R13: =P13*'5. UD2 Parameters'!$H$14*'5. UD2 Parameters'!$H$13/1000 -> 0.3547161302 | S13: =Q13*'5. UD2 Parameters'!$H$15*'5. UD2 Parameters'!$H$13/1000 -> 6.6 | T13: =R13*'5. UD2 Parameters'!$H$16/1000 -> 0.1057054068 | U13: =S13*'5. UD2 Parameters'!$H$16/1000 -> 1.9668 | V13: ='UD2 CropScenarios'!T13+'UD2 CropScenarios'!U13 -> 2.072505407 | W13: ='UD2 CropScenarios'!O13+'UD2 CropScenarios'!V13 -> 68.87320968 | X13: 7834140 | Y13: 2902017 | Z13: 962068.5 | AA13: =((X13*'5. UD2 Parameters'!$H$18)+(Z13*'5. UD2 Parameters'!$H$19))*'5. UD2 Parameters'!$H$24*'5. UD2 Parameters'!$H$21/1000 -> 15.33443529 | AB13: =AA13*'5. UD2 Parameters'!$H$22/1000 -> 4.569661715 | AC13: =((X13+Y13+Z13)*'5. UD2 Parameters'!$H$20*'5. UD2 Parameters'!$H$23*'5. UD2 Parameters'!$H$21)/1000 -> 41.36158302 | AD13: =AC13*'5. UD2 Parameters'!$H$22/1000 -> 12.32575174 | AE13: 16.89541345 | AF13: 88.47702688 | AJ13: =INDEX((DirN2OManSoilPol!$U$15:$U$43),MATCH(A13,DirN2OManSoilPol!$A$15:A$43,0)) -> 68.87320968 | AN13: ='6. UD2 Assumptions'!B20 -> 61730 | AO13: ='6. UD2 Assumptions'!F20 -> 0.1 | AP13: 6173 | AQ13: =AP13*'5. UD2 Parameters'!$H$6*'5. UD2 Parameters'!$H$7*'5. UD2 Parameters'!$H$8/1000 -> 108.33615 | AR13: =AQ13*'5. UD2 Parameters'!$H$9/1000 -> 2.70840375 | AS13: 0 | AT13: 88.47702688 | AV13: 36.68615846 | AW13: ='UD2 CropScenarios'!F13*'6. UD2 Assumptions'!K20 -> 7834140 | AX13: =AW13*'5. UD2 Parameters'!$H$12*'5. UD2 Parameters'!$H$13/1000 -> 123.1079143 | AY13: =AX13*'5. UD2 Parameters'!$H$16/1000 -> 36.68615846 | AZ13: 36.68615846 | BA13: 0 | BB13: 88.47702688 | BL13: 88.47702688 | BN13: 7834140 | BO13: ='UD2 CropScenarios'!Y13 -> 2902017 | BP13: ='UD2 CropScenarios'!Z13 -> 962068.5 | BQ13: =(((BN13*'5. UD2 Parameters'!$H$18)+(BP13*'5. UD2 Parameters'!$H$19))*('5. UD2 Parameters'!$H$24*'5. UD2 Parameters'!$H$21))/1000 -> 15.33443529 | BR13: =BQ13*'5. UD2 Parameters'!$H$22/1000 -> 4.569661715 | BS13: =((BN13+BO13+BP13)*'5. UD2 Parameters'!$H$20*'5. UD2 Parameters'!$H$23*'5. UD2 Parameters'!$H$21)/1000 -> 41.36158302 | BT13: =BS13*'5. UD2 Parameters'!$H$22/1000 -> 12.32575174 | BU13: 16.89541345 | BV13: 0 | BW13: 88.47702688 | BY13: 88.47702688 | BZ13: 0 | CD13: 88.47702688 | CE13: 88.47702688 | CF13: 88.47702688 | CG13: 88.47702688 | CH13: 88.47702688 | CJ13: 88.47702688 | CK13: 88.47702688 | CL13: 88.47702688 | CM13: 88.47702688 | CN13: 88.47702688 | CP13: 0 | CQ13: 0 | CR13: 0 | CS13: 0 | CT13: 0
A14: 2012 | B14: ='6. UD2 Assumptions'!C21 -> 57160 | C14: =B14*'5. UD2 Parameters'!$H$10 -> 5716 | D14: =C14*'5. UD2 Parameters'!$H$6*'5. UD2 Parameters'!$H$7*'5. UD2 Parameters'!$H$8/1000 -> 100.3158 | E14: =D14*'5. UD2 Parameters'!$H$9/1000 -> 2.507895 | F14: 9700004 | G14: 2697461 | H14: 3437753.084 | I14: ='UD2 CropScenarios'!F14*'5. UD2 Parameters'!$H$12*'5. UD2 Parameters'!$H$13/1000 -> 152.4286343 | J14: =G14*'5. UD2 Parameters'!$H$12*'5. UD2 Parameters'!$H$13/1000 -> 42.38867286 | K14: =H14*'5. UD2 Parameters'!$H$12*'5. UD2 Parameters'!$H$13/1000 -> 54.02183418 | L14: =I14*'5. UD2 Parameters'!$H$16/1000 -> 45.42373302 | M14: =J14*'5. UD2 Parameters'!$H$16/1000 -> 12.63182451 | N14: =K14*'5. UD2 Parameters'!$H$16/1000 -> 16.09850659 | O14: =SUM('UD2 CropScenarios'!L14:N14) -> 74.15406411 | P14: 14442.25612 | Q14: 462125.7992 | R14: =P14*'5. UD2 Parameters'!$H$14*'5. UD2 Parameters'!$H$13/1000 -> 0.4538994782 | S14: =Q14*'5. UD2 Parameters'!$H$15*'5. UD2 Parameters'!$H$13/1000 -> 7.261976845 | T14: =R14*'5. UD2 Parameters'!$H$16/1000 -> 0.1352620445 | U14: =S14*'5. UD2 Parameters'!$H$16/1000 -> 2.1640691 | V14: ='UD2 CropScenarios'!T14+'UD2 CropScenarios'!U14 -> 2.299331144 | W14: ='UD2 CropScenarios'!O14+'UD2 CropScenarios'!V14 -> 76.45339526 | X14: 9700004 | Y14: 2697461 | Z14: 962068.5 | AA14: =((X14*'5. UD2 Parameters'!$H$18)+(Z14*'5. UD2 Parameters'!$H$19))*'5. UD2 Parameters'!$H$24*'5. UD2 Parameters'!$H$21/1000 -> 18.26650729 | AB14: =AA14*'5. UD2 Parameters'!$H$22/1000 -> 5.443419171 | AC14: =((X14+Y14+Z14)*'5. UD2 Parameters'!$H$20*'5. UD2 Parameters'!$H$23*'5. UD2 Parameters'!$H$21)/1000 -> 47.23549345 | AD14: =AC14*'5. UD2 Parameters'!$H$22/1000 -> 14.07617705 | AE14: 19.51959622 | AF14: 98.48088648 | AJ14: =INDEX((DirN2OManSoilPol!$U$15:$U$43),MATCH(A14,DirN2OManSoilPol!$A$15:A$43,0)) -> 76.45339526 | AN14: ='6. UD2 Assumptions'!B21 -> 57160 | AO14: ='6. UD2 Assumptions'!F21 -> 0.1 | AP14: 5716 | AQ14: =AP14*'5. UD2 Parameters'!$H$6*'5. UD2 Parameters'!$H$7*'5. UD2 Parameters'!$H$8/1000 -> 100.3158 | AR14: =AQ14*'5. UD2 Parameters'!$H$9/1000 -> 2.507895 | AS14: 0 | AT14: 98.48088648 | AV14: 45.42373302 | AW14: ='UD2 CropScenarios'!F14*'6. UD2 Assumptions'!K21 -> 9700004 | AX14: =AW14*'5. UD2 Parameters'!$H$12*'5. UD2 Parameters'!$H$13/1000 -> 152.4286343 | AY14: =AX14*'5. UD2 Parameters'!$H$16/1000 -> 45.42373302 | AZ14: 45.42373302 | BA14: 0 | BB14: 98.48088648 | BL14: 98.48088648 | BN14: 9700004 | BO14: ='UD2 CropScenarios'!Y14 -> 2697461 | BP14: ='UD2 CropScenarios'!Z14 -> 962068.5 | BQ14: =(((BN14*'5. UD2 Parameters'!$H$18)+(BP14*'5. UD2 Parameters'!$H$19))*('5. UD2 Parameters'!$H$24*'5. UD2 Parameters'!$H$21))/1000 -> 18.26650729 | BR14: =BQ14*'5. UD2 Parameters'!$H$22/1000 -> 5.443419171 | BS14: =((BN14+BO14+BP14)*'5. UD2 Parameters'!$H$20*'5. UD2 Parameters'!$H$23*'5. UD2 Parameters'!$H$21)/1000 -> 47.23549345 | BT14: =BS14*'5. UD2 Parameters'!$H$22/1000 -> 14.07617705 | BU14: 19.51959622 | BV14: 0 | BW14: 98.48088648 | BY14: 98.48088648 | BZ14: 0 | CD14: 98.48088648 | CE14: 98.48088648 | CF14: 98.48088648 | CG14: 98.48088648 | CH14: 98.48088648 | CJ14: 98.48088648 | CK14: 98.48088648 | CL14: 98.48088648 | CM14: 98.48088648 | CN14: 98.48088648 | CP14: 0 | CQ14: 0 | CR14: 0 | CS14: 0 | CT14: 0
